Workbook

Sheet Hydrogen Cases
B3: Hydrogen Cases
C4: Hydrogen Refuse Trucks - All the way to end use
C5: Production of Hydrogen from Low Cost Solar with Storage
C6: Storage of Hydrogen versus Storage of Electricity with Batteries
C7: Centralised Production of Hydrogen versus Production at Location
C8: Production of Hydrogen in Electrolyser versus Natural Gas with Steam Methane Reformation
C9: Use of Hydrogen for Electricity Storage

Sheet Electrolyzer vs SMR
G4: Load Factor | H4: % | I4: =K4/100 -> 0.97 | K4: ='H2 vs Diesel Trucks'!F10*100 -> 97
G6: Electricity Cost/MWH | H6: USD/MWH | I6: =K6 -> 35 | K6: 35
G8: Natural Gas/MMBTU
G10: Electrolyzer Size (MW) | I10: =K10/1000 -> 1.224932436 | K10: 1224.932436
G12: Electrolyzer Selection
G14: SMR Size (MMBTU)
G16: Electrolyzer LCOH (USD/kg) | I16: ='Base Analysis'!G4 -> 3.132342439
G18: SMR LCOH (USD/kg)
G20: Electrolyzer Cost Multiplier | I20: 1
G23: Steam Methane Reforming
G24: Proton Exchange Membrane (PEM) Electrolysis

Sheet H2 vs Diesel Trucks
B2: Demand | F2: Hydrogen | G2: Diesel
D3: Total Annual Distance | E3: km/year | F3: 25000 | G3: =F3 -> 25000
D4: Truck Efficiency | E4: kg/km | F4: =R49 -> 0.11
D5: Truck Efficiency | E5: L/km | G5: 1.05
D6: Total Hydrogen Produced per Truck | E6: kg/year | F6: =F3*F4 -> 2750
D7: Total Diesel Required | E7: Litres | G7: =G3*G5 -> 26250
B9: Electrolyzer Capacity
D10: Availability of Electrolyzer | E10: % | F10: 0.97 | I10: Storage Analysis
D11: Operation when Available (Sun Hours) | E11: % | F11: 1
D12: Hours per Year of Electrolyzer | E12: Hours | F12: =F10*F11*8766 -> 8503.02 | I12: Required per Week | K12: =F24 -> 3952.772074
D13: Electrolyzer at 100% LF - 1 Truck | E13: kg-hour | F13: =F6/F12 -> 0.3234145045 | I13: Production per Day | K13: =F23 -> 564.6817248
D14: Electrolyzer Effeciency | E14: kwh/kg | F14: ='Base Analysis'!G11 -> 50.5 | I14: Required in 5 Days vs 7 Days | K14: =K12/5 -> 790.5544148
D15: Required Hydrogen in kW - 1 Truck | E15: kW | F15: =F13*F14 -> 16.33243248
K16: Saturday | L16: Sunday | M16: Monday | N16: Tuesday | O16: Wednesday | P16: Thursday | Q16: Friday
D17: Number of Trucks | E17: Number | F17: 75 | I17: Operate Truck in Day | K17: FALSE | L17: FALSE | M17: TRUE | N17: TRUE | O17: TRUE | P17: TRUE | Q17: TRUE
D18: Required Capacity of Electrolyzer | E18: kW | F18: =F15*F17 -> 1224.932436 | I18: Opening Balance | K18: =J22 -> 0 | L18: 564.6817248 | M18: 1129.36345 | N18: 903.4907598 | O18: 677.6180698 | P18: 451.7453799 | Q18: 225.8726899
D19: Total Production of Electrolyzer | E19: kg/year | F19: =F6*F17 -> 206250 | I19: Add: Production | K19: =$K$13 -> 564.6817248 | L19: 564.6817248 | M19: 564.6817248 | N19: 564.6817248 | O19: 564.6817248 | P19: 564.6817248 | Q19: 564.6817248
I20: Less: Dispensed in Day | K20: =K17*$K$14 -> 0 | L20: 0 | M20: 790.5544148 | N20: 790.5544148 | O20: 790.5544148 | P20: 790.5544148 | Q20: 790.5544148
B21: Required Storage Capacity | I21: Less: Losses from Storage | J21: 0.01
D22: Required Production per Year | E22: kg | F22: =F19 -> 206250 | I22: Closing | K22: =K18+K19-K20 -> 564.6817248 | L22: 1129.36345 | M22: 903.4907598 | N22: 677.6180698 | O22: 451.7453799 | P22: 225.8726899 | Q22: 0
D23: Daily Hydrogen Production from Elecrolyzer | E23: kg | F23: =F22/365.25 -> 564.6817248 | I23: Storage if Dispense in Morning | K23: =K18+K20 -> 0 | L23: =L18+L20 -> 564.6817248 | M23: 1919.917864 | N23: 1694.045175 | O23: 1468.172485 | P23: 1242.299795 | Q23: 1016.427105
D24: Weekly Production from Electrolyzer | E24: kg | F24: =F22/(365.25/7) -> 3952.772074
D25: Required Storage Capacity | E25: kg | F25: =J25 -> 1129.36345 | I25: Total Storage (Max) | J25: =MAX(K22:Q22) -> 1129.36345
B27: Dispenser Capacity
D28: Total Kg Required per Dispense | E28: kg | F28: =K14 -> 790.5544148
D29: Target Time in Minutes for Dispensing | E29: Minutes | F29: 30
D30: Total Flow Rate in kg/Minute | E30: kg/Minute | F30: =F28/F29 -> 26.35181383
D31: Capacity of pump per Minute | E31: kg/Minute | F31: =Dispenser!H7 -> 2.941176471
D32: Number of Dispensers Required | E32: Number | F32: =ROUNDUP(F30/F31,0) -> 9
D33: Total Dispensed | E33: kg | F33: =F28*52*5 -> 205544.1478
B34: Added Capital Cost of Trucks
D35: Added Capital Cost/Truck | E35: USD/Truck | F35: =P53 -> 110000
D36: Total Added Capital Cost | E36: USD | F36: =F17*F35 -> 8250000 | P36: Capex | Q36: Opex Cost
D40: Diesel | E40: Truck Make | F40: Description | G40: Drive Type | H40: Tare (kg) - unladen Weight | I40: GVM (kg) Gross Vehicle Mass | J40: Payload (kg) | K40: Body Make | L40: Body Model | M40: Type | N40: Capacity m3 | O40: Utisation | P40: Capex | Q40: Yearly milage | R40: Fuel -Diesel @1.32 per liter 1liter per km | S40: Insurance | T40: Maintenance | U40: MV Rego | V40: Overheads | W40: Emissions - tonnesof Co2e | X40: Total | Y40: Typical fuel burn (Ltrs/100km) | Z40: Cost per Km per year | AB40: Revenue from truck ownership | AC40: Number of lifts per day | AD40: Revenue based on lifts per route | AE40: Revenue per truck per yr assumpting 200 days- | AG40: Return truck investment
E41: Dennis Egale | F41: Cab Chassis | G41: 6X4 | H41: 13000 | I41: 23000 | J41: 10000 | K41: Bucher | L41: Gen V | M41: Side Load | N41: 22 | O41: 0.45 | P41: 415000 | Q41: 22000 | R41: 25567.33 | S41: 5046.85 | T41: 32912.65 | U41: 1208 | V41: 2820.55 | W41: =2.68*R41/1000 -> 68.5204444 | X41: 67555.38 | Y41: 90 | AC41: 3000 | AD41: 2 | AE41: =+AC41*AD41 -> 6000
Q42: Cost/L | R42: 1.32
Q43: Litre | R43: =R41/R42 -> 19369.18939
Q44: Litres/Mile | R44: =R43/Q41 -> 0.8804176997
B45: Hydrogen truck assumptions
D47: Hydrogen fuel cell truck | E47: Truck Make | F47: Description | G47: Drive Type | H47: Tare (kg) - unladen Weight | I47: GVM (kg) Gross Vehicle Mass | J47: Payload (kg) | K47: Body Make | L47: Body Model | M47: Type | N47: Capacity m3 | O47: Utisation | P47: Capex - to be confirmed | Q47: Yearly milage - 7 kg H2 per 100 km | R47: Fuel - Hydrogen @.12 kg per km @$10 per kg | S47: Insurance | T47: Maintenance | U47: MV Rego | V47: Overheads | W47: Emissions - Kg of Co2e @ $10 | X47: Total | Y47: Typical fuel burn (kg/100km) | Z47: Cost per Km per year | AD47: Revenue based on lifts per route | AE47: Revenue per truck per yr assumpting 200 days- | AG47: Return truck investment
E48: Dennis | F48: Cab Chassis | G48: 6X4 | H48: 13000 | I48: 23000 | J48: 10000 | K48: Bucher | L48: Gen V | M48: Side Load | P48: 700K - 750K | Q48: 22000 | R48: =0.12*22000 *10 -> 26400 | S48: 5046.85 | T48: 32912.65 | U48: 1208 | V48: 2820.55 | W48: =+W41*10 -> 685.204444 | X48: =+SUM( S48:V48)-W48 -> 41302.84556 | Y48: 18
R49: 0.11
Q50: =7/100 -> 0.07
P51: 700000 | Q51: =7/1 -> 7
Q52: =+Q48/7 -> 3142.857143 | R52: =+R41/Q52 -> 8.135059545 | S52: target
P53: =P56*1000 -> 110000 | Q53: =1/Q51 -> 0.1428571429
D55: insurance, Maintennce, MV, Overhead | E55: =S41+T41+U41+V41 -> 41988.05
P56: 110
D58: Note assumption
D60: 7 yrs truck life
D61: Residual 10% of capital after 6 yrs
D62: What would be the cost per KM
D63: Revenue for coucil owned vehicles are cost saving)

Sheet Summary of Truck Analysis
I2: Target Equity IRR | K2: =AB2/1000 -> 0.07 | AB2: 70
D3: Electricity Cost | E3: USD/MWH | F3: ='Electrolyzer vs SMR'!I6 -> 35 | I3: Diesel Price (USD/L) | K3: =AB3/100 -> 1.41 | AB3: 141
D6: Electrolyzer | E6: USD/kg | F6: ='Electrolizer LCOH'!J7 -> 4.637898698
D7: Compression and Storage | E7: USD/kg | F7: ='Storage LCOH'!G7 -> 1.339383062
D8: Dispenser | E8: USD/kg | F8: ='Dispenser LCOH'!G71 -> 0.5426719665
D9: Total Cost of Hydrogen | E9: USD/kg | F9: =F6+F7+F8 -> 6.519953726
D11: Hydrogen Truck w/o Added Truck Cost | E11: USD/km | F11: ='Refuse Truck LCOR'!I7 -> 4.257472002
D12: Hydrogen Truck w/ Added Truck Cost | E12: USD/km | F12: ='Refuse Truck LCOR'!H7 -> 4.750684195
D13: Cost of Conventional Refuse Truck | E13: USD/km | F13: ='Refuse Truck LCOR'!G7 -> 4.950277092
D14: Difference in Cost per km | E14: USD/km | F14: =F12-F13 -> -0.1995928971
D15: km Travelled | E15: km | F15: ='H2 vs Diesel Trucks'!F3 -> 25000
D16: Total Cost Difference/Truck-year | E16: USD | F16: =F15*F14 -> -4989.822428
D17: Percent Difference in Cost | E17: % | F17: =F14/F13 -> -0.04031954038
C19: Total Production | E19: kg/year | F19: ='H2 vs Diesel Trucks'!F22 -> 206250
D20: Total MW Required | E20: kW | F20: ='H2 vs Diesel Trucks'!F18 -> 1224.932436
D21: Cost of Electrolyzer/kW | E21: USD/kW | F21: ='Electrolyzer Analysis'!J53 -> 1755.813955
D22: Electrolyzer Capital Expenditure | E22: USD | F22: =truck_size*F21 -> 2150753.464
C24: Storage Requirement | E24: kg | F24: ='H2 vs Diesel Trucks'!F25 -> 1129.36345
D25: Cost/kg | E25: USD/kg | F25: ='Compression & Storage Analysis'!G11 -> 2630.434783
D26: Stoarge and Compression Cap Exp | E26: USD | F26: =F24*F25 -> 2970716.9
C28: Dispenser Requirement
D29: Number of Dispensers | E29: Number | F29: ='H2 vs Diesel Trucks'!F32 -> 9
D30: Cost/Dispenser | E30: Cost/Unit | F30: =Dispenser!H9 -> 125158.5
D31: Total Dispenser Cap Exp | E31: USD | F31: =F29*F30 -> 1126426.5
C33: Truck Cost
D34: Number of Trucks | E34: Number | F34: ='H2 vs Diesel Trucks'!F17 -> 75
D35: Cost/Truck | E35: USD/Truck | F35: ='H2 vs Diesel Trucks'!F35 -> 110000
D36: Total Cost | E36: USD | F36: =F34*F35 -> 8250000
D61: =D22 -> Electrolyzer Capital Expenditure | F61: =F22 -> 2150753.464
D62: =D26 -> Stoarge and Compression Cap Exp | F62: =F26 -> 2970716.9
D63: =D31 -> Total Dispenser Cap Exp | F63: =F31 -> 1126426.5
D64: Truck Cost | F64: =F36 -> 8250000

Sheet Solar LCOE
F1: 1
G3: 1 | H3: 2 | I3: 3 | J3: 4
A5: Drivers | G5: Base | H5: No Tracking | I5: Single Axis Tracking | J5: Bi-Facial | S5: =INDEX(G5:R5,$F$1) -> Base
C6: Units | G6: USD/MWH | H6: USD/MWH | I6: Rand/MWH | J6: Rand/MWH | S6: =INDEX(G6:R6,$F$1) -> USD/MWH
C7: Resulting Levelised Cost per Unit | G7: =G62 -> 17.64973704 | H7: =H62 -> 20.24773829 | I7: =I62 -> 488.5430112 | J7: =I7+H7 -> 508.7907495
B9: Project Inputs
D10: Size in MW per Hour | E10: MW | G10: 1 | H10: =G10 -> 1 | I10: =H10 -> 1 | J10: =I10 -> 1 | S10: =INDEX(G10:R10,$F$1) -> 1
D12: Cost/kW | E12: USD/kW | G12: 500 | H12: 605 | I12: =H12*15 -> 9075 | J12: =I12 -> 9075 | S12: =INDEX(G12:R12,$F$1) -> 500
D13: Total Up-Front Cost | E13: USD | G13: =G12*G10*1000 -> 500000 | H13: =H12*H10*1000 -> 605000 | I13: =I12*I10*1000 -> 9075000 | J13: =H13+I13 -> 9680000 | S13: =INDEX(G13:R13,$F$1) -> 500000
S14: =INDEX(G14:R14,$F$1) -> 0
D15: Capacity Factor | E15: % | G15: 0.23 | H15: =G15 -> 0.23 | I15: =H15 -> 0.23 | J15: =I15 -> 0.23 | S15: =INDEX(G15:R15,$F$1) -> 0.23
D16: Hours of Operation at Load Factor | E16: Hours/Year | G16: =G15*8766 -> 2016.18 | H16: =H15*8766 -> 2016.18 | I16: =I15*8766 -> 2016.18 | J16: =J15*8766 -> 2016.18 | S16: =INDEX(G16:R16,$F$1) -> 2016.18
D17: Annual Energy | E17: MWh/Year | G17: =G10*G16 -> 2016.18 | H17: =H10*H16 -> 2016.18 | I17: =I10*I16 -> 2016.18 | J17: =J10*J16 -> 2016.18 | S17: =INDEX(G17:R17,$F$1) -> 2016.18
D18: Hours/Yr | E18: Hours | G18: =8766*G15 -> 2016.18 | H18: =8766*H15 -> 2016.18 | I18: =8766*I15 -> 2016.18 | J18: =8766*J15 -> 2016.18 | S18: =INDEX(G18:R18,$F$1) -> 2016.18
D20: O&M Cost | E20: USD/kW-Year | G20: 10 | H20: =G20 -> 10 | I20: =H20*15 -> 150 | J20: =I20 -> 150 | S20: =INDEX(G20:R20,$F$1) -> 10
D21: Total O&M Cost per Year | E21: USD/year | G21: =G20*G10*1000 -> 10000 | H21: =G21 -> 10000 | I21: =H21 -> 10000 | J21: =I21 -> 10000 | S21: =INDEX(G21:R21,$F$1) -> 10000
B23: Capital Charge Inputs
D24: Plant Life | E24: Years | G24: 25 | H24: =G24 -> 25 | I24: =G24 -> 25 | J24: =H24 -> 25 | S24: =INDEX(G24:R24,$F$1) -> 25
D25: Plant Life from Maximum Hours | E25: Years | G25: =G24 -> 25 | H25: =H24 -> 25 | I25: =I24 -> 25 | J25: =I25 -> 25 | S25: =INDEX(G25:R25,$F$1) -> 25
D27: Income Tax Rate | E27: % p.a. | G27: 0.25 | H27: =G27 -> 0.25 | I27: 0.25 | J27: 0.25 | S27: =INDEX(G27:R27,$F$1) -> 0.25
D28: Tax Life | E28: Year | G28: 10 | H28: 10 | I28: 10 | J28: 10 | S28: =INDEX(G28:R28,$F$1) -> 10
D29: Variable Delicing Factor (1-SL) | E29: Factor | G29: 1 | H29: 1 | I29: 1 | J29: 1 | S29: =INDEX(G29:R29,$F$1) -> 1
D30: Value of Depreciation Deduction | E30: % | G30: =F183 -> 0.2143475398 | H30: =F188 -> 0.2143475398 | I30: =F193 -> 0.1669980185 | J30: =F198 -> 0.1669980185 | S30: =INDEX(G30:R30,$F$1) -> 0.2143475398
S31: =INDEX(G31:R31,$F$1) -> 0
D32: Degradation | E32: % p.a. | G32: 0.005 | H32: =G32 -> 0.005 | I32: 0.005 | J32: 0.005 | S32: =INDEX(G32:R32,$F$1) -> 0.005
D33: Inflation Rate | E33: % p.a. | G33: 0.02 | H33: 0.02 | I33: 0.02 | J33: 0.02 | S33: =INDEX(G33:R33,$F$1) -> 0.02
S34: =INDEX(G34:R34,$F$1) -> 0
D35: Debt Percent | E35: % | G35: 0.8 | H35: =G35 -> 0.8 | I35: =H35 -> 0.8 | J35: =I35 -> 0.8 | S35: =INDEX(G35:R35,$F$1) -> 0.8
D36: Equity Percent | E36: % | G36: =1-G35 -> 0.2 | H36: =1-H35 -> 0.2 | I36: =1-I35 -> 0.2 | J36: =1-J35 -> 0.2 | S36: =INDEX(G36:R36,$F$1) -> 0.2
D37: Pre-tax Interest Rate | E37: % | G37: 0.025 | H37: =G37 -> 0.025 | I37: 0.085 | J37: =I37 -> 0.085 | S37: =INDEX(G37:R37,$F$1) -> 0.025
D38: Interest Rate | E38: % | G38: =G37*(1-G27) -> 0.01875 | H38: =H37*(1-H27) -> 0.01875 | I38: =I37*(1-I27) -> 0.06375 | J38: =J37*(1-J27) -> 0.06375 | S38: =INDEX(G38:R38,$F$1) -> 0.01875
D39: Minimum Target Equity IRR | E39: % | G39: ='Summary of Truck Analysis'!$K$2 -> 0.07 | H39: ='Summary of Truck Analysis'!$K$2 -> 0.07 | I39: 0.15 | J39: =I39 -> 0.15 | S39: =INDEX(G39:R39,$F$1) -> 0.07
D40: WACC | E40: % | G40: =G38*G35+G39*G36 -> 0.029 | H40: =H38*H35+H39*H36 -> 0.029 | I40: =I38*I35+I39*I36 -> 0.081 | J40: =J38*J35+J39*J36 -> 0.081 | S40: =INDEX(G40:R40,$F$1) -> 0.029
D42: Required Pre-tax Project IRR - Nominal | E42: % p.a. | G42: =G40 -> 0.029 | H42: =H40 -> 0.029 | I42: =I40 -> 0.081 | J42: =J40 -> 0.081 | S42: =INDEX(G42:R42,$F$1) -> 0.029
D43: Required Real IRR | E43: % p.a. | G43: =(1+G42)/(1+G33)-1 -> 0.008823529412 | H43: =(1+H42)/(1+H33)-1 -> 0.008823529412 | I43: =(1+I42)/(1+I33)-1 -> 0.05980392157 | J43: =(1+J42)/(1+J33)-1 -> 0.05980392157 | S43: =INDEX(G43:R43,$F$1) -> 0.008823529412 | V43: =_xlfn.FORMULATEXT(J43) -> =(1+J42)/(1+J33)-1
D45: Nominal Adjusted IRR for Degradation | E45: % p.a. | G45: =(1+G42)/(1-G32)-1 -> 0.03417085427 | H45: =(1+H42)/(1-H32)-1 -> 0.03417085427 | I45: =(1+I42)/(1-I32)-1 -> 0.0864321608 | J45: =(1+J42)/(1-J32)-1 -> 0.0864321608 | S45: =INDEX(G45:R45,$F$1) -> 0.03417085427 | V45: =_xlfn.FORMULATEXT(J45) -> =(1+J42)/(1-J32)-1
D46: Real Adjusted IRR for Degradation | E46: % p.a. | G46: =(1+G43)/(1-G32)-1 -> 0.01389299438 | H46: =(1+H43)/(1-H32)-1 -> 0.01389299438 | I46: =(1+I43)/(1-I32)-1 -> 0.06512956942 | J46: =(1+J43)/(1-J32)-1 -> 0.06512956942 | S46: =INDEX(G46:R46,$F$1) -> 0.01389299438 | V46: =_xlfn.FORMULATEXT(J46) -> =(1+J43)/(1-J32)-1
D48: Carrying charge rate - Nominal | E48: % p.a. | G48: =PMT(G45,G25,-1)/(1-G27) -> 0.08017241574 | H48: =PMT(H45,H25,-1)/(1-H27) -> 0.08017241574 | I48: =PMT(I45,I25,-1)/(1-I27) -> 0.1318377774 | J48: =PMT(J45,J25,-1)/(1-J27) -> 0.1318377774 | S48: =INDEX(G48:R48,$F$1) -> 0.08017241574 | V48: =_xlfn.FORMULATEXT(J48) -> =PMT(J45,J25,-1)/(1-J27)
D49: Carrying charge rate - Real | E49: % p.a. | G49: =PMT(G46,G25,-1)/(1-G27) -> 0.06349636795 | H49: =PMT(H46,H25,-1)/(1-H27) -> 0.06349636795 | I49: =PMT(I46,I25,-1)/(1-I27) -> 0.1094397099 | J49: =PMT(J46,J25,-1)/(1-J27) -> 0.1094397099 | S49: =INDEX(G49:R49,$F$1) -> 0.06349636795 | V49: =_xlfn.FORMULATEXT(J49) -> =PMT(J46,J25,-1)/(1-J27)
D51: Capexp Recovery - Nominal | E51: USD/Kw-yr | G51: =G48*G12 -> 40.08620787 | H51: =H48*H12 -> 48.50431152 | I51: =I48*I12 -> 1196.42783 | J51: =J48*J12 -> 1196.42783 | S51: =INDEX(G51:R51,$F$1) -> 40.08620787
D52: Capexp Recovery - After Tax Shield | E52: USD/kgyr | G52: =G51*(1-G30) -> 31.49382783 | H52: =H51*(1-H30) -> 38.10753168 | I52: =I51*(1-I30) -> 996.6267527 | J52: =J51*(1-J30) -> 996.6267527 | S52: =INDEX(G52:R52,$F$1) -> 31.49382783
D53: Capexp Recovery - Nominal | E53: USD/MWH | G53: =G52/G16*1000 -> 15.62054372 | H53: =H52/H16*1000 -> 18.9008579 | I53: =I52/I16*1000 -> 494.3143731 | J53: =J52/J16*1000 -> 494.3143731 | S53: =INDEX(G53:R53,$F$1) -> 15.62054372
D54: Capexp Recovery - Real | E54: USD/kgyr | G54: =G49*G12*(1-G30) -> 24.94303885 | H54: =H49*H12*(1-H30) -> 30.18107701 | I54: =I49*I12*(1-I30) -> 827.308719 | J54: =J49*J12*(1-J30) -> 827.308719 | S54: =INDEX(G54:R54,$F$1) -> 24.94303885
D55: Capexp Recovery - Real | E55: USD/MWH | G55: =G54/G18*1000 -> 12.37143452 | H55: =H54/H18*1000 -> 14.96943577 | I55: =I54/I18*1000 -> 410.3347514 | J55: =J54/J18*1000 -> 410.3347514 | S55: =INDEX(G55:R55,$F$1) -> 12.37143452
D57: O&M Cost - Nominal | E57: USD/kW-yr | G57: =G20*PV(G43,G25,-1)/PV(G45,G25,-1) -> 13.43691797 | H57: =H20*PV(H43,H25,-1)/PV(H45,H25,-1) -> 13.43691797 | I57: =I20*PV(I43,I25,-1)/PV(I45,I25,-1) -> 189.9533094 | J57: =J20*PV(J43,J25,-1)/PV(J45,J25,-1) -> 189.9533094 | S57: =INDEX(G57:R57,$F$1) -> 13.43691797
D58: O&M Cost - Nominal | E58: USD/MWH | G58: =G57*1000/G16 -> 6.664542835 | H58: =H57*1000/H16 -> 6.664542835 | I58: =I57*1000/I16 -> 94.21445973 | J58: =J57*1000/J16 -> 94.21445973 | S58: =INDEX(G58:R58,$F$1) -> 6.664542835
D59: O&M Cost - Real Degradation | E59: USD/kW-yr | G59: =PV(G43,G25,-1)/PV(G46,G25,-1)*G20 -> 10.64200798 | H59: =PV(H43,H25,-1)/PV(H46,H25,-1)*H20 -> 10.64200798 | I59: =PV(I43,I25,-1)/PV(I46,I25,-1)*I20 -> 157.6819292 | J59: =PV(J43,J25,-1)/PV(J46,J25,-1)*J20 -> 157.6819292 | S59: =INDEX(G59:R59,$F$1) -> 10.64200798
D60: O&M Cost - Real | E60: USD/MWH | G60: =G59*1000/G16 -> 5.278302521 | H60: =H59*1000/H16 -> 5.278302521 | I60: =I59*1000/I16 -> 78.2082598 | J60: =J59*1000/J16 -> 78.2082598 | S60: =INDEX(G60:R60,$F$1) -> 5.278302521
D62: LCOE - Real | E62: USD/MWH | G62: =G55+G60 -> 17.64973704 | H62: =H55+H60 -> 20.24773829 | I62: =I55+I60 -> 488.5430112 | J62: =J55+J60 -> 488.5430112 | S62: =INDEX(G62:R62,$F$1) -> 17.64973704
D63: LCOE - Nominal | E63: USD/MWH | G63: =G53+G58 -> 22.28508655 | H63: =H53+H58 -> 25.56540073 | I63: =I53+I58 -> 588.5288328 | J63: =J53+J58 -> 588.5288328 | S63: =INDEX(G63:R63,$F$1) -> 22.28508655
B65: Proof w/ financial model | E65: Driver
C66: Timeline | F66: 0 | G66: 1 | H66: 2 | I66: 3 | J66: 4 | K66: 5 | L66: 6 | M66: 7 | N66: 8 | O66: 9 | P66: 10 | Q66: 11 | R66: 12 | S66: 13 | T66: 14 | U66: 15 | V66: 16 | W66: 17 | X66: 18 | Y66: 19 | Z66: 20 | AA66: 21 | AB66: 22 | AC66: 23 | AD66: 24 | AE66: 25 | AF66: 26 | AG66: 27 | AH66: 28 | AI66: 29 | AJ66: 30 | AK66: 31 | AL66: 32 | AM66: 33 | AN66: 34 | AO66: 35 | AP66: 36 | AQ66: 37 | AR66: 38 | AS66: 39 | AT66: 40 | AU66: 41 | AV66: 42 | AW66: 43 | AX66: 44 | AY66: 45 | AZ66: 46 | BA66: 47 | BB66: 48 | BC66: 49 | BD66: 50 | BE66: 51 | BF66: 52 | BG66: 53 | BH66: 54 | BI66: 55 | BJ66: 56 | BK66: 57 | BL66: 58 | BM66: 59 | BN66: 60 | BO66: 61 | BP66: 62 | BQ66: 63 | BR66: 64 | BS66: 65 | BT66: 66 | BU66: 67 | BV66: 68 | BW66: 69 | BX66: 70 | BY66: 71 | BZ66: 72 | CA66: 73 | CB66: 74 | CC66: 75 | CD66: 76 | CE66: 77 | CF66: 78 | CG66: 79 | CH66: 80 | CI66: 81 | CJ66: 82 | CK66: 83 | CL66: 84 | CM66: 85 | CN66: 86 | CO66: 87 | CP66: 88 | CQ66: 89 | CR66: 90 | CS66: 91 | CT66: 92 | CU66: 93 | CV66: 94 | CW66: 95 | CX66: 96 | CY66: 97 | CZ66: 98 | DA66: 99 | DB66: 100
C67: Flag | E67: =S25 -> 25 | G67: =G66<=$E$67 -> TRUE | H67: TRUE | I67: TRUE | J67: TRUE | K67: TRUE | L67: TRUE | M67: TRUE | N67: TRUE | O67: TRUE | P67: TRUE | Q67: TRUE | R67: TRUE | S67: TRUE | T67: TRUE | U67: TRUE | V67: TRUE | W67: TRUE | X67: TRUE | Y67: TRUE | Z67: TRUE | AA67: TRUE | AB67: TRUE | AC67: TRUE | AD67: TRUE | AE67: TRUE | AF67: FALSE | AG67: FALSE | AH67: FALSE | AI67: FALSE | AJ67: FALSE | AK67: FALSE | AL67: FALSE | AM67: FALSE | AN67: FALSE | AO67: FALSE | AP67: FALSE | AQ67: FALSE | AR67: FALSE | AS67: FALSE | AT67: FALSE | AU67: FALSE | AV67: FALSE | AW67: FALSE | AX67: FALSE | AY67: FALSE | AZ67: FALSE | BA67: FALSE | BB67: FALSE | BC67: FALSE | BD67: FALSE | BE67: FALSE | BF67: FALSE | BG67: FALSE | BH67: FALSE | BI67: FALSE | BJ67: FALSE | BK67: FALSE | BL67: FALSE | BM67: FALSE | BN67: FALSE | BO67: FALSE | BP67: FALSE | BQ67: FALSE | BR67: FALSE | BS67: =BS66<=$E$67 -> FALSE | BT67: FALSE | BU67: FALSE | BV67: FALSE | BW67: FALSE | BX67: FALSE | BY67: FALSE | BZ67: FALSE | CA67: FALSE | CB67: FALSE | CC67: FALSE | CD67: FALSE | CE67: FALSE | CF67: FALSE | CG67: FALSE | CH67: FALSE | CI67: FALSE | CJ67: FALSE | CK67: FALSE | CL67: FALSE | CM67: FALSE | CN67: FALSE | CO67: FALSE | CP67: FALSE | CQ67: FALSE | CR67: FALSE | CS67: FALSE | CT67: FALSE | CU67: FALSE | CV67: FALSE | CW67: FALSE | CX67: FALSE | CY67: FALSE | CZ67: FALSE | DA67: FALSE | DB67: FALSE
C68: Nominal
D69: Price per MWH | E69: =S63 -> 22.28508655 | G69: =$E$69*G67 -> 22.28508655 | H69: =$E$69 -> 22.28508655 | I69: 22.28508655 | J69: 22.28508655 | K69: 22.28508655 | L69: 22.28508655 | M69: 22.28508655 | N69: 22.28508655 | O69: 22.28508655 | P69: 22.28508655 | Q69: 22.28508655 | R69: 22.28508655 | S69: 22.28508655 | T69: 22.28508655 | U69: 22.28508655 | V69: 22.28508655 | W69: 22.28508655 | X69: 22.28508655 | Y69: 22.28508655 | Z69: 22.28508655 | AA69: 22.28508655 | AB69: 22.28508655 | AC69: 22.28508655 | AD69: 22.28508655 | AE69: 22.28508655 | AF69: 22.28508655 | AG69: 22.28508655 | AH69: 22.28508655 | AI69: 22.28508655 | AJ69: 22.28508655 | AK69: 22.28508655 | AL69: 22.28508655 | AM69: 22.28508655 | AN69: 22.28508655 | AO69: 22.28508655 | AP69: 22.28508655 | AQ69: 22.28508655 | AR69: 22.28508655 | AS69: 22.28508655 | AT69: 22.28508655 | AU69: 22.28508655 | AV69: 22.28508655 | AW69: 22.28508655 | AX69: 22.28508655 | AY69: 22.28508655 | AZ69: 22.28508655 | BA69: 22.28508655 | BB69: 22.28508655 | BC69: 22.28508655 | BD69: 22.28508655 | BE69: 22.28508655 | BF69: 22.28508655 | BG69: 22.28508655 | BH69: 22.28508655 | BI69: 22.28508655 | BJ69: 22.28508655 | BK69: 22.28508655 | BL69: 22.28508655 | BM69: 22.28508655 | BN69: 22.28508655 | BO69: 22.28508655 | BP69: 22.28508655 | BQ69: 22.28508655 | BR69: 22.28508655 | BS69: 22.28508655 | BT69: =$E$69 -> 22.28508655 | BU69: 22.28508655 | BV69: 22.28508655 | BW69: 22.28508655 | BX69: 22.28508655 | BY69: 22.28508655 | BZ69: 22.28508655 | CA69: 22.28508655 | CB69: 22.28508655 | CC69: 22.28508655 | CD69: 22.28508655 | CE69: 22.28508655 | CF69: 22.28508655 | CG69: 22.28508655 | CH69: 22.28508655 | CI69: 22.28508655 | CJ69: 22.28508655 | CK69: 22.28508655 | CL69: 22.28508655 | CM69: 22.28508655 | CN69: 22.28508655 | CO69: 22.28508655 | CP69: 22.28508655 | CQ69: 22.28508655 | CR69: 22.28508655 | CS69: 22.28508655 | CT69: 22.28508655 | CU69: 22.28508655 | CV69: 22.28508655 | CW69: 22.28508655 | CX69: 22.28508655 | CY69: 22.28508655 | CZ69: 22.28508655 | DA69: 22.28508655 | DB69: 22.28508655
D70: Production without Degradation | E70: =S16 -> 2016.18 | G70: =$E$70*G67 -> 2016.18 | H70: 2016.18 | I70: 2016.18 | J70: 2016.18 | K70: 2016.18 | L70: 2016.18 | M70: 2016.18 | N70: 2016.18 | O70: 2016.18 | P70: 2016.18 | Q70: 2016.18 | R70: 2016.18 | S70: 2016.18 | T70: 2016.18 | U70: 2016.18 | V70: 2016.18 | W70: 2016.18 | X70: 2016.18 | Y70: 2016.18 | Z70: 2016.18 | AA70: 2016.18 | AB70: 2016.18 | AC70: 2016.18 | AD70: 2016.18 | AE70: 2016.18 | AF70: 0 | AG70: 0 | AH70: 0 | AI70: 0 | AJ70: 0 | AK70: 0 | AL70: 0 | AM70: 0 | AN70: 0 | AO70: 0 | AP70: 0 | AQ70: 0 | AR70: 0 | AS70: 0 | AT70: 0 | AU70: 0 | AV70: 0 | AW70: 0 | AX70: 0 | AY70: 0 | AZ70: 0 | BA70: 0 | BB70: 0 | BC70: 0 | BD70: 0 | BE70: 0 | BF70: 0 | BG70: 0 | BH70: 0 | BI70: 0 | BJ70: 0 | BK70: 0 | BL70: 0 | BM70: 0 | BN70: 0 | BO70: 0 | BP70: 0 | BQ70: 0 | BR70: 0 | BS70: =$E$70*BS67 -> 0 | BT70: 0 | BU70: 0 | BV70: 0 | BW70: 0 | BX70: 0 | BY70: 0 | BZ70: 0 | CA70: 0 | CB70: 0 | CC70: 0 | CD70: 0 | CE70: 0 | CF70: 0 | CG70: 0 | CH70: 0 | CI70: 0 | CJ70: 0 | CK70: 0 | CL70: 0 | CM70: 0 | CN70: 0 | CO70: 0 | CP70: 0 | CQ70: 0 | CR70: 0 | CS70: 0 | CT70: 0 | CU70: 0 | CV70: 0 | CW70: 0 | CX70: 0 | CY70: 0 | CZ70: 0 | DA70: 0 | DB70: 0
D71: Degradation Index | E71: =S32 -> 0.005 | F71: 1 | G71: =F71*(1-$E$71) -> 0.995 | H71: 0.990025 | I71: 0.985074875 | J71: 0.9801495006 | K71: 0.9752487531 | L71: 0.9703725094 | M71: 0.9655206468 | N71: 0.9606930436 | O71: 0.9558895784 | P71: 0.9511101305 | Q71: 0.9463545798 | R71: 0.9416228069 | S71: 0.9369146929 | T71: 0.9322301194 | U71: 0.9275689688 | V71: 0.922931124 | W71: 0.9183164684 | X71: 0.913724886 | Y71: 0.9091562616 | Z71: 0.9046104803 | AA71: 0.9000874279 | AB71: 0.8955869907 | AC71: 0.8911090558 | AD71: 0.8866535105 | AE71: 0.8822202429 | AF71: 0.8778091417 | AG71: 0.873420096 | AH71: 0.8690529955 | AI71: 0.8647077306 | AJ71: 0.8603841919 | AK71: 0.856082271 | AL71: 0.8518018596 | AM71: 0.8475428503 | AN71: 0.8433051361 | AO71: 0.8390886104 | AP71: 0.8348931673 | AQ71: 0.8307187015 | AR71: 0.826565108 | AS71: 0.8224322824 | AT71: 0.818320121 | AU71: 0.8142285204 | AV71: 0.8101573778 | AW71: 0.8061065909 | AX71: 0.802076058 | AY71: 0.7980656777 | AZ71: 0.7940753493 | BA71: 0.7901049725 | BB71: 0.7861544477 | BC71: 0.7822236754 | BD71: 0.7783125571 | BE71: 0.7744209943 | BF71: 0.7705488893 | BG71: 0.7666961449 | BH71: 0.7628626641 | BI71: 0.7590483508 | BJ71: 0.7552531091 | BK71: 0.7514768435 | BL71: 0.7477194593 | BM71: 0.743980862 | BN71: 0.7402609577 | BO71: 0.7365596529 | BP71: 0.7328768546 | BQ71: 0.7292124704 | BR71: 0.725566408 | BS71: =BR71*(1-$E$71) -> 0.721938576 | BT71: 0.7183288831 | BU71: 0.7147372387 | BV71: 0.7111635525 | BW71: 0.7076077347 | BX71: 0.7040696961 | BY71: 0.7005493476 | BZ71: 0.6970466008 | CA71: 0.6935613678 | CB71: 0.690093561 | CC71: 0.6866430932 | CD71: 0.6832098777 | CE71: 0.6797938283 | CF71: 0.6763948592 | CG71: 0.6730128849 | CH71: 0.6696478205 | CI71: 0.6662995814 | CJ71: 0.6629680835 | CK71: 0.659653243 | CL71: 0.6563549768 | CM71: 0.6530732019 | CN71: 0.6498078359 | CO71: 0.6465587968 | CP71: 0.6433260028 | CQ71: 0.6401093728 | CR71: 0.6369088259 | CS71: 0.6337242818 | CT71: 0.6305556604 | CU71: 0.6274028821 | CV71: 0.6242658676 | CW71: 0.6211445383 | CX71: 0.6180388156 | CY71: 0.6149486215 | CZ71: 0.6118738784 | DA71: 0.608814509 | DB71: 0.6057704365
D72: Final Production with Degradation | G72: =G70*G71 -> 2006.0991 | H72: =H70*H71 -> 1996.068605 | I72: 1986.088261 | J72: 1976.15782 | K72: 1966.277031 | L72: 1956.445646 | M72: 1946.663418 | N72: 1936.930101 | O72: 1927.24545 | P72: 1917.609223 | Q72: 1908.021177 | R72: 1898.481071 | S72: 1888.988665 | T72: 1879.543722 | U72: 1870.146004 | V72: 1860.795274 | W72: 1851.491297 | X72: 1842.233841 | Y72: 1833.022671 | Z72: 1823.857558 | AA72: 1814.73827 | AB72: 1805.664579 | AC72: 1796.636256 | AD72: 1787.653075 | AE72: 1778.714809 | AF72: 0 | AG72: 0 | AH72: 0 | AI72: 0 | AJ72: 0 | AK72: 0 | AL72: 0 | AM72: 0 | AN72: 0 | AO72: 0 | AP72: 0 | AQ72: 0 | AR72: 0 | AS72: 0 | AT72: 0 | AU72: 0 | AV72: 0 | AW72: 0 | AX72: 0 | AY72: 0 | AZ72: 0 | BA72: 0 | BB72: 0 | BC72: 0 | BD72: 0 | BE72: 0 | BF72: 0 | BG72: 0 | BH72: 0 | BI72: 0 | BJ72: 0 | BK72: 0 | BL72: 0 | BM72: 0 | BN72: 0 | BO72: 0 | BP72: 0 | BQ72: 0 | BR72: 0 | BS72: 0 | BT72: =BT70*BT71 -> 0 | BU72: 0 | BV72: 0 | BW72: 0 | BX72: 0 | BY72: 0 | BZ72: 0 | CA72: 0 | CB72: 0 | CC72: 0 | CD72: 0 | CE72: 0 | CF72: 0 | CG72: 0 | CH72: 0 | CI72: 0 | CJ72: 0 | CK72: 0 | CL72: 0 | CM72: 0 | CN72: 0 | CO72: 0 | CP72: 0 | CQ72: 0 | CR72: 0 | CS72: 0 | CT72: 0 | CU72: 0 | CV72: 0 | CW72: 0 | CX72: 0 | CY72: 0 | CZ72: 0 | DA72: 0 | DB72: 0
D73: Nominal Revenues | G73: =G69*G72 -> 44706.09208 | H73: =H69*H72 -> 44482.56162 | I73: 44260.14881 | J73: 44038.84806 | K73: 43818.65382 | L73: 43599.56055 | M73: 43381.56275 | N73: 43164.65494 | O73: 42948.83166 | P73: 42734.0875 | Q73: 42520.41707 | R73: 42307.81498 | S73: 42096.27591 | T73: 41885.79453 | U73: 41676.36555 | V73: 41467.98373 | W73: 41260.64381 | X73: 41054.34059 | Y73: 40849.06889 | Z73: 40644.82354 | AA73: 40441.59942 | AB73: 40239.39143 | AC73: 40038.19447 | AD73: 39838.0035 | AE73: 39638.81348 | AF73: 0 | AG73: 0 | AH73: 0 | AI73: 0 | AJ73: 0 | AK73: 0 | AL73: 0 | AM73: 0 | AN73: 0 | AO73: 0 | AP73: 0 | AQ73: 0 | AR73: 0 | AS73: 0 | AT73: 0 | AU73: 0 | AV73: 0 | AW73: 0 | AX73: 0 | AY73: 0 | AZ73: 0 | BA73: 0 | BB73: 0 | BC73: 0 | BD73: 0 | BE73: 0 | BF73: 0 | BG73: 0 | BH73: 0 | BI73: 0 | BJ73: 0 | BK73: 0 | BL73: 0 | BM73: 0 | BN73: 0 | BO73: 0 | BP73: 0 | BQ73: 0 | BR73: 0 | BS73: 0 | BT73: =BT69*BT72 -> 0 | BU73: 0 | BV73: 0 | BW73: 0 | BX73: 0 | BY73: 0 | BZ73: 0 | CA73: 0 | CB73: 0 | CC73: 0 | CD73: 0 | CE73: 0 | CF73: 0 | CG73: 0 | CH73: 0 | CI73: 0 | CJ73: 0 | CK73: 0 | CL73: 0 | CM73: 0 | CN73: 0 | CO73: 0 | CP73: 0 | CQ73: 0 | CR73: 0 | CS73: 0 | CT73: 0 | CU73: 0 | CV73: 0 | CW73: 0 | CX73: 0 | CY73: 0 | CZ73: 0 | DA73: 0 | DB73: 0
D74: Inflation Index | E74: =S33 -> 0.02 | F74: 1 | G74: =F74*(1+$E$74) -> 1.02 | H74: 1.0404 | I74: 1.061208 | J74: 1.08243216 | K74: 1.104080803 | L74: 1.126162419 | M74: 1.148685668 | N74: 1.171659381 | O74: 1.195092569 | P74: 1.21899442 | Q74: 1.243374308 | R74: 1.268241795 | S74: 1.29360663 | T74: 1.319478763 | U74: 1.345868338 | V74: 1.372785705 | W74: 1.400241419 | X74: 1.428246248 | Y74: 1.456811173 | Z74: 1.485947396 | AA74: 1.515666344 | AB74: 1.545979671 | AC74: 1.576899264 | AD74: 1.608437249 | AE74: 1.640605994 | AF74: 1.673418114 | AG74: 1.706886477 | AH74: 1.741024206 | AI74: 1.77584469 | AJ74: 1.811361584 | AK74: 1.847588816 | AL74: 1.884540592 | AM74: 1.922231404 | AN74: 1.960676032 | AO74: 1.999889553 | AP74: 2.039887344 | AQ74: 2.080685091 | AR74: 2.122298792 | AS74: 2.164744768 | AT74: 2.208039664 | AU74: 2.252200457 | AV74: 2.297244466 | AW74: 2.343189355 | AX74: 2.390053142 | AY74: 2.437854205 | AZ74: 2.486611289 | BA74: 2.536343515 | BB74: 2.587070385 | BC74: 2.638811793 | BD74: 2.691588029 | BE74: 2.74541979 | BF74: 2.800328185 | BG74: 2.856334749 | BH74: 2.913461444 | BI74: 2.971730673 | BJ74: 3.031165286 | BK74: 3.091788592 | BL74: 3.153624364 | BM74: 3.216696851 | BN74: 3.281030788 | BO74: 3.346651404 | BP74: 3.413584432 | BQ74: 3.481856121 | BR74: 3.551493243 | BS74: =BR74*(1+$E$74) -> 3.622523108 | BT74: 3.69497357 | BU74: 3.768873042 | BV74: 3.844250503 | BW74: 3.921135513 | BX74: 3.999558223 | BY74: 4.079549387 | BZ74: 4.161140375 | CA74: 4.244363183 | CB74: 4.329250446 | CC74: 4.415835455 | CD74: 4.504152164 | CE74: 4.594235208 | CF74: 4.686119912 | CG74: 4.77984231 | CH74: 4.875439156 | CI74: 4.972947939 | CJ74: 5.072406898 | CK74: 5.173855036 | CL74: 5.277332137 | CM74: 5.382878779 | CN74: 5.490536355 | CO74: 5.600347082 | CP74: 5.712354024 | CQ74: 5.826601104 | CR74: 5.943133126 | CS74: 6.061995789 | CT74: 6.183235705 | CU74: 6.306900419 | CV74: 6.433038427 | CW74: 6.561699196 | CX74: 6.69293318 | CY74: 6.826791843 | CZ74: 6.96332768 | DA74: 7.102594234 | DB74: 7.244646118
D75: O&M Cost per year | E75: =S21 -> 10000 | G75: =$E$75*G74*G67 -> 10200 | H75: 10404 | I75: 10612.08 | J75: 10824.3216 | K75: 11040.80803 | L75: 11261.62419 | M75: 11486.85668 | N75: 11716.59381 | O75: 11950.92569 | P75: 12189.9442 | Q75: 12433.74308 | R75: 12682.41795 | S75: 12936.0663 | T75: 13194.78763 | U75: 13458.68338 | V75: 13727.85705 | W75: 14002.41419 | X75: 14282.46248 | Y75: 14568.11173 | Z75: 14859.47396 | AA75: 15156.66344 | AB75: 15459.79671 | AC75: 15768.99264 | AD75: 16084.37249 | AE75: 16406.05994 | AF75: 0 | AG75: 0 | AH75: 0 | AI75: 0 | AJ75: 0 | AK75: 0 | AL75: 0 | AM75: 0 | AN75: 0 | AO75: 0 | AP75: 0 | AQ75: 0 | AR75: 0 | AS75: 0 | AT75: 0 | AU75: 0 | AV75: 0 | AW75: 0 | AX75: 0 | AY75: 0 | AZ75: 0 | BA75: 0 | BB75: 0 | BC75: 0 | BD75: 0 | BE75: 0 | BF75: 0 | BG75: 0 | BH75: 0 | BI75: 0 | BJ75: 0 | BK75: 0 | BL75: 0 | BM75: 0 | BN75: 0 | BO75: 0 | BP75: 0 | BQ75: 0 | BR75: 0 | BS75: =$E$75*BS74*BS67 -> 0 | BT75: 0 | BU75: 0 | BV75: 0 | BW75: 0 | BX75: 0 | BY75: 0 | BZ75: 0 | CA75: 0 | CB75: 0 | CC75: 0 | CD75: 0 | CE75: 0 | CF75: 0 | CG75: 0 | CH75: 0 | CI75: 0 | CJ75: 0 | CK75: 0 | CL75: 0 | CM75: 0 | CN75: 0 | CO75: 0 | CP75: 0 | CQ75: 0 | CR75: 0 | CS75: 0 | CT75: 0 | CU75: 0 | CV75: 0 | CW75: 0 | CX75: 0 | CY75: 0 | CZ75: 0 | DA75: 0 | DB75: 0
D76: EBITDA | G76: =G73-G75 -> 34506.09208 | H76: =H73-H75 -> 34078.56162 | I76: 33648.06881 | J76: 33214.52646 | K76: 32777.84579 | L76: 32337.93636 | M76: 31894.70607 | N76: 31448.06113 | O76: 30997.90598 | P76: 30544.1433 | Q76: 30086.67398 | R76: 29625.39704 | S76: 29160.2096 | T76: 28691.0069 | U76: 28217.68217 | V76: 27740.12668 | W76: 27258.22962 | X76: 26771.87811 | Y76: 26280.95716 | Z76: 25785.34958 | AA76: 25284.93599 | AB76: 24779.59472 | AC76: 24269.20183 | AD76: 23753.631 | AE76: 23232.75354 | AF76: 0 | AG76: 0 | AH76: 0 | AI76: 0 | AJ76: 0 | AK76: 0 | AL76: 0 | AM76: 0 | AN76: 0 | AO76: 0 | AP76: 0 | AQ76: 0 | AR76: 0 | AS76: 0 | AT76: 0 | AU76: 0 | AV76: 0 | AW76: 0 | AX76: 0 | AY76: 0 | AZ76: 0 | BA76: 0 | BB76: 0 | BC76: 0 | BD76: 0 | BE76: 0 | BF76: 0 | BG76: 0 | BH76: 0 | BI76: 0 | BJ76: 0 | BK76: 0 | BL76: 0 | BM76: 0 | BN76: 0 | BO76: 0 | BP76: 0 | BQ76: 0 | BR76: 0 | BS76: 0 | BT76: =BT73-BT75 -> 0 | BU76: 0 | BV76: 0 | BW76: 0 | BX76: 0 | BY76: 0 | BZ76: 0 | CA76: 0 | CB76: 0 | CC76: 0 | CD76: 0 | CE76: 0 | CF76: 0 | CG76: 0 | CH76: 0 | CI76: 0 | CJ76: 0 | CK76: 0 | CL76: 0 | CM76: 0 | CN76: 0 | CO76: 0 | CP76: 0 | CQ76: 0 | CR76: 0 | CS76: 0 | CT76: 0 | CU76: 0 | CV76: 0 | CW76: 0 | CX76: 0 | CY76: 0 | CZ76: 0 | DA76: 0 | DB76: 0
D77: Less: Tax Depreciation | E77: =S13 -> 500000 | G77: =$E$77*G200 -> 50000 | H77: 50000 | I77: 50000 | J77: 50000 | K77: 50000 | L77: 50000 | M77: 50000 | N77: 50000 | O77: 50000 | P77: 50000 | Q77: 0 | R77: 0 | S77: 0 | T77: 0 | U77: 0 | V77: 0 | W77: 0 | X77: 0 | Y77: 0 | Z77: 0 | AA77: 0 | AB77: 0 | AC77: 0 | AD77: 0 | AE77: 0 | AF77: 0 | AG77: 0 | AH77: 0 | AI77: 0 | AJ77: 0 | AK77: 0 | AL77: 0 | AM77: =$E$77*AM200 -> 0 | AN77: 0 | AO77: 0 | AP77: 0 | AQ77: 0 | AR77: 0 | AS77: 0 | AT77: 0 | AU77: 0 | AV77: 0 | AW77: 0 | AX77: 0 | AY77: 0 | AZ77: 0 | BA77: 0 | BB77: 0 | BC77: 0 | BD77: 0 | BE77: 0 | BF77: 0 | BG77: 0 | BH77: 0 | BI77: 0 | BJ77: 0 | BK77: 0 | BL77: 0 | BM77: 0 | BN77: 0 | BO77: 0 | BP77: 0 | BQ77: 0 | BR77: 0 | BS77: =$E$77*BS200 -> 0 | BT77: 0 | BU77: 0 | BV77: 0 | BW77: 0 | BX77: 0 | BY77: 0 | BZ77: 0 | CA77: 0 | CB77: 0 | CC77: 0 | CD77: 0 | CE77: 0 | CF77: 0 | CG77: 0 | CH77: 0 | CI77: 0 | CJ77: 0 | CK77: 0 | CL77: 0 | CM77: 0 | CN77: 0 | CO77: 0 | CP77: 0 | CQ77: 0 | CR77: 0 | CS77: 0 | CT77: 0 | CU77: 0 | CV77: 0 | CW77: 0 | CX77: 0 | CY77: 0 | CZ77: 0 | DA77: 0 | DB77: 0
D78: Less: Interest | E78: FALSE | G78: =G119*$E$78 -> 0 | H78: 0 | I78: 0 | J78: 0 | K78: 0 | L78: 0 | M78: 0 | N78: 0 | O78: 0 | P78: 0 | Q78: 0 | R78: 0 | S78: 0 | T78: 0 | U78: 0 | V78: 0 | W78: 0 | X78: 0 | Y78: 0 | Z78: 0 | AA78: 0 | AB78: 0 | AC78: 0 | AD78: 0 | AE78: 0 | AF78: 0 | AG78: 0 | AH78: 0 | AI78: 0 | AJ78: 0 | AK78: 0 | AL78: 0 | AM78: 0 | AN78: 0 | AO78: 0 | AP78: 0 | AQ78: 0 | AR78: 0 | AS78: 0 | AT78: 0 | AU78: 0 | AV78: 0 | AW78: 0 | AX78: 0 | AY78: 0 | AZ78: 0 | BA78: 0 | BB78: 0 | BC78: 0 | BD78: 0 | BE78: 0 | BF78: 0 | BG78: 0 | BH78: 0 | BI78: 0 | BJ78: 0 | BK78: 0 | BL78: 0 | BM78: 0 | BN78: 0 | BO78: 0 | BP78: 0 | BQ78: 0 | BR78: 0 | BS78: =BS119*$E$78 -> 0 | BT78: 0 | BU78: 0 | BV78: 0 | BW78: 0 | BX78: 0 | BY78: 0 | BZ78: 0 | CA78: 0 | CB78: 0 | CC78: 0 | CD78: 0 | CE78: 0 | CF78: 0 | CG78: 0 | CH78: 0 | CI78: 0 | CJ78: 0 | CK78: 0 | CL78: 0 | CM78: 0 | CN78: 0 | CO78: 0 | CP78: 0 | CQ78: 0 | CR78: 0 | CS78: 0 | CT78: 0 | CU78: 0 | CV78: 0 | CW78: 0 | CX78: 0 | CY78: 0 | CZ78: 0 | DA78: 0 | DB78: 0
D79: Taxable Income | G79: =G76-G77-G78 -> -15493.90792 | H79: =H76-H77-H78 -> -15921.43838 | I79: -16351.93119 | J79: -16785.47354 | K79: -17222.15421 | L79: -17662.06364 | M79: -18105.29393 | N79: -18551.93887 | O79: -19002.09402 | P79: -19455.8567 | Q79: 30086.67398 | R79: 29625.39704 | S79: 29160.2096 | T79: 28691.0069 | U79: 28217.68217 | V79: 27740.12668 | W79: 27258.22962 | X79: 26771.87811 | Y79: 26280.95716 | Z79: 25785.34958 | AA79: 25284.93599 | AB79: 24779.59472 | AC79: 24269.20183 | AD79: 23753.631 | AE79: 23232.75354 | AF79: 0 | AG79: 0 | AH79: 0 | AI79: 0 | AJ79: 0 | AK79: 0 | AL79: 0 | AM79: 0 | AN79: 0 | AO79: 0 | AP79: 0 | AQ79: 0 | AR79: 0 | AS79: 0 | AT79: 0 | AU79: 0 | AV79: 0 | AW79: 0 | AX79: 0 | AY79: 0 | AZ79: 0 | BA79: 0 | BB79: 0 | BC79: 0 | BD79: 0 | BE79: 0 | BF79: 0 | BG79: 0 | BH79: 0 | BI79: 0 | BJ79: 0 | BK79: 0 | BL79: 0 | BM79: 0 | BN79: 0 | BO79: 0 | BP79: 0 | BQ79: 0 | BR79: 0 | BS79: 0 | BT79: =BT76-BT77-BT78 -> 0 | BU79: 0 | BV79: 0 | BW79: 0 | BX79: 0 | BY79: 0 | BZ79: 0 | CA79: 0 | CB79: 0 | CC79: 0 | CD79: 0 | CE79: 0 | CF79: 0 | CG79: 0 | CH79: 0 | CI79: 0 | CJ79: 0 | CK79: 0 | CL79: 0 | CM79: 0 | CN79: 0 | CO79: 0 | CP79: 0 | CQ79: 0 | CR79: 0 | CS79: 0 | CT79: 0 | CU79: 0 | CV79: 0 | CW79: 0 | CX79: 0 | CY79: 0 | CZ79: 0 | DA79: 0 | DB79: 0
D80: Taxes | E80: =S27 -> 0.25 | G80: =G79*$E$80 -> -3873.476981 | H80: -3980.359596 | I80: -4087.982798 | J80: -4196.368384 | K80: -4305.538552 | L80: -4415.51591 | M80: -4526.323481 | N80: -4637.984718 | O80: -4750.523506 | P80: -4863.964174 | Q80: 7521.668496 | R80: 7406.349259 | S80: 7290.052401 | T80: 7172.751724 | U80: 7054.420543 | V80: 6935.031669 | W80: 6814.557404 | X80: 6692.969528 | Y80: 6570.23929 | Z80: 6446.337395 | AA80: 6321.233996 | AB80: 6194.89868 | AC80: 6067.300457 | AD80: 5938.407751 | AE80: 5808.188384 | AF80: 0 | AG80: 0 | AH80: 0 | AI80: 0 | AJ80: 0 | AK80: 0 | AL80: 0 | AM80: 0 | AN80: 0 | AO80: 0 | AP80: 0 | AQ80: 0 | AR80: 0 | AS80: 0 | AT80: 0 | AU80: 0 | AV80: 0 | AW80: 0 | AX80: 0 | AY80: 0 | AZ80: 0 | BA80: 0 | BB80: 0 | BC80: 0 | BD80: 0 | BE80: 0 | BF80: 0 | BG80: 0 | BH80: 0 | BI80: 0 | BJ80: 0 | BK80: 0 | BL80: 0 | BM80: 0 | BN80: 0 | BO80: 0 | BP80: 0 | BQ80: 0 | BR80: 0 | BS80: =BS79*$E$80 -> 0 | BT80: 0 | BU80: 0 | BV80: 0 | BW80: 0 | BX80: 0 | BY80: 0 | BZ80: 0 | CA80: 0 | CB80: 0 | CC80: 0 | CD80: 0 | CE80: 0 | CF80: 0 | CG80: 0 | CH80: 0 | CI80: 0 | CJ80: 0 | CK80: 0 | CL80: 0 | CM80: 0 | CN80: 0 | CO80: 0 | CP80: 0 | CQ80: 0 | CR80: 0 | CS80: 0 | CT80: 0 | CU80: 0 | CV80: 0 | CW80: 0 | CX80: 0 | CY80: 0 | CZ80: 0 | DA80: 0 | DB80: 0
D81: Less: Debt Service | G81: =G119+G117 -> 26603.65525 | H81: =H119+H117 -> 26542.94944 | I81: 26483.51547 | J81: 26425.37123 | K81: 26368.53517 | L81: 26313.02627 | M81: 26258.86408 | N81: 26206.06872 | O81: 26154.66094 | P81: 26104.66206 | Q81: 16056.09405 | R81: 15906.47953 | S81: 15755.36926 | T81: 15602.70099 | U81: 15448.41065 | V81: 15292.43234 | W81: 15134.69822 | X81: 14975.13848 | Y81: 14813.6813 | Z81: 14650.25274 | AA81: 14484.77673 | AB81: 14317.17496 | AC81: 14147.36686 | AD81: 13975.26949 | AE81: 13800.79747 | AF81: 6.99174052e-12 | AG81: 6.99174052e-12 | AH81: 6.99174052e-12 | AI81: 6.99174052e-12 | AJ81: 6.99174052e-12 | AK81: 6.99174052e-12 | AL81: 6.99174052e-12 | AM81: 6.99174052e-12 | AN81: 6.99174052e-12 | AO81: 6.99174052e-12 | AP81: 6.99174052e-12 | AQ81: 6.99174052e-12 | AR81: 6.99174052e-12 | AS81: 6.99174052e-12 | AT81: 6.99174052e-12 | AU81: 6.99174052e-12 | AV81: 6.99174052e-12 | AW81: 6.99174052e-12 | AX81: 6.99174052e-12 | AY81: 6.99174052e-12 | AZ81: 6.99174052e-12 | BA81: 6.99174052e-12 | BB81: 6.99174052e-12 | BC81: 6.99174052e-12 | BD81: 6.99174052e-12 | BE81: 6.99174052e-12 | BF81: 6.99174052e-12 | BG81: 6.99174052e-12 | BH81: 6.99174052e-12 | BI81: 6.99174052e-12 | BJ81: 6.99174052e-12 | BK81: 6.99174052e-12 | BL81: 6.99174052e-12 | BM81: 6.99174052e-12 | BN81: 6.99174052e-12 | BO81: 6.99174052e-12 | BP81: 6.99174052e-12 | BQ81: 6.99174052e-12 | BR81: 6.99174052e-12 | BS81: 6.99174052e-12 | BT81: =BT119+BT117 -> 6.99174052e-12 | BU81: 6.99174052e-12 | BV81: 6.99174052e-12 | BW81: 6.99174052e-12 | BX81: 6.99174052e-12 | BY81: 6.99174052e-12 | BZ81: 6.99174052e-12 | CA81: 6.99174052e-12 | CB81: 6.99174052e-12 | CC81: 6.99174052e-12 | CD81: 6.99174052e-12 | CE81: 6.99174052e-12 | CF81: 6.99174052e-12 | CG81: 6.99174052e-12 | CH81: 6.99174052e-12 | CI81: 6.99174052e-12 | CJ81: 6.99174052e-12 | CK81: 6.99174052e-12 | CL81: 6.99174052e-12 | CM81: 6.99174052e-12 | CN81: 6.99174052e-12 | CO81: 6.99174052e-12 | CP81: 6.99174052e-12 | CQ81: 6.99174052e-12 | CR81: 6.99174052e-12 | CS81: 6.99174052e-12 | CT81: 6.99174052e-12 | CU81: 6.99174052e-12 | CV81: 6.99174052e-12 | CW81: 6.99174052e-12 | CX81: 6.99174052e-12 | CY81: 6.99174052e-12 | CZ81: 6.99174052e-12 | DA81: 6.99174052e-12 | DB81: 6.99174052e-12
D82: Capital Expenditure | F82: =-G13 -> -500000
D83: Equity Cash Flow | F83: =-F109 -> -100000 | G83: =G76-G80-G81 -> 11775.91381 | H83: =H76-H80-H81 -> 11515.97178 | I83: 11252.53614 | J83: 10985.52361 | K83: 10714.84917 | L83: 10440.426 | M83: 10162.16548 | N83: 9879.977122 | O83: 9593.768544 | P83: 9303.445419 | Q83: 6508.911433 | R83: 6312.568246 | S83: 6114.787941 | T83: 5915.554184 | U83: 5714.850974 | V83: 5512.662666 | W83: 5308.973994 | X83: 5103.770103 | Y83: 4897.036573 | Z83: 4688.759447 | AA83: 4478.925261 | AB83: 4267.521075 | AC83: 4054.534508 | AD83: 3839.953766 | AE83: 3623.76768 | AF83: -6.99174052e-12 | AG83: -6.99174052e-12 | AH83: -6.99174052e-12 | AI83: -6.99174052e-12 | AJ83: -6.99174052e-12 | AK83: -6.99174052e-12 | AL83: -6.99174052e-12 | AM83: -6.99174052e-12 | AN83: -6.99174052e-12 | AO83: -6.99174052e-12 | AP83: -6.99174052e-12 | AQ83: -6.99174052e-12 | AR83: -6.99174052e-12 | AS83: -6.99174052e-12 | AT83: -6.99174052e-12 | AU83: -6.99174052e-12 | AV83: -6.99174052e-12 | AW83: -6.99174052e-12 | AX83: -6.99174052e-12 | AY83: -6.99174052e-12 | AZ83: -6.99174052e-12 | BA83: -6.99174052e-12 | BB83: -6.99174052e-12 | BC83: -6.99174052e-12 | BD83: -6.99174052e-12 | BE83: -6.99174052e-12 | BF83: -6.99174052e-12 | BG83: -6.99174052e-12 | BH83: -6.99174052e-12 | BI83: -6.99174052e-12 | BJ83: -6.99174052e-12 | BK83: -6.99174052e-12 | BL83: -6.99174052e-12 | BM83: -6.99174052e-12 | BN83: -6.99174052e-12 | BO83: -6.99174052e-12 | BP83: -6.99174052e-12 | BQ83: -6.99174052e-12 | BR83: -6.99174052e-12 | BS83: -6.99174052e-12 | BT83: =BT76-BT80-BT81 -> -6.99174052e-12 | BU83: -6.99174052e-12 | BV83: -6.99174052e-12 | BW83: -6.99174052e-12 | BX83: -6.99174052e-12 | BY83: -6.99174052e-12 | BZ83: -6.99174052e-12 | CA83: -6.99174052e-12 | CB83: -6.99174052e-12 | CC83: -6.99174052e-12 | CD83: -6.99174052e-12 | CE83: -6.99174052e-12 | CF83: -6.99174052e-12 | CG83: -6.99174052e-12 | CH83: -6.99174052e-12 | CI83: -6.99174052e-12 | CJ83: -6.99174052e-12 | CK83: -6.99174052e-12 | CL83: -6.99174052e-12 | CM83: -6.99174052e-12 | CN83: -6.99174052e-12 | CO83: -6.99174052e-12 | CP83: -6.99174052e-12 | CQ83: -6.99174052e-12 | CR83: -6.99174052e-12 | CS83: -6.99174052e-12 | CT83: -6.99174052e-12 | CU83: -6.99174052e-12 | CV83: -6.99174052e-12 | CW83: -6.99174052e-12 | CX83: -6.99174052e-12 | CY83: -6.99174052e-12 | CZ83: -6.99174052e-12 | DA83: -6.99174052e-12 | DB83: -6.99174052e-12
D84: Equity IRR | F84: =IRR(F83:DB83) -> 0.07 | G84: Target | H84: =S39 -> 0.07 | I84: Test | J84: =ROUND(H84-F84,3)=0 -> TRUE
D86: Project Cash Flow Pre-tax | F86: =F76+F82 -> -500000 | G86: =G76+G82 -> 34506.09208 | H86: 34078.56162 | I86: 33648.06881 | J86: 33214.52646 | K86: 32777.84579 | L86: 32337.93636 | M86: 31894.70607 | N86: 31448.06113 | O86: 30997.90598 | P86: 30544.1433 | Q86: 30086.67398 | R86: 29625.39704 | S86: 29160.2096 | T86: 28691.0069 | U86: 28217.68217 | V86: 27740.12668 | W86: 27258.22962 | X86: 26771.87811 | Y86: 26280.95716 | Z86: 25785.34958 | AA86: 25284.93599 | AB86: 24779.59472 | AC86: 24269.20183 | AD86: 23753.631 | AE86: 23232.75354 | AF86: 0 | AG86: 0 | AH86: 0 | AI86: 0 | AJ86: 0 | AK86: 0 | AL86: 0 | AM86: 0 | AN86: 0 | AO86: 0 | AP86: 0 | AQ86: 0 | AR86: 0 | AS86: 0 | AT86: 0 | AU86: 0 | AV86: 0 | AW86: 0 | AX86: 0 | AY86: 0 | AZ86: 0 | BA86: 0 | BB86: 0 | BC86: 0 | BD86: 0 | BE86: 0 | BF86: 0 | BG86: 0 | BH86: 0 | BI86: 0 | BJ86: 0 | BK86: 0 | BL86: 0 | BM86: 0 | BN86: 0 | BO86: 0 | BP86: 0 | BQ86: 0 | BR86: 0 | BS86: =BS76+BS82 -> 0 | BT86: 0 | BU86: 0 | BV86: 0 | BW86: 0 | BX86: 0 | BY86: 0 | BZ86: 0 | CA86: 0 | CB86: 0 | CC86: 0 | CD86: 0 | CE86: 0 | CF86: 0 | CG86: 0 | CH86: 0 | CI86: 0 | CJ86: 0 | CK86: 0 | CL86: 0 | CM86: 0 | CN86: 0 | CO86: 0 | CP86: 0 | CQ86: 0 | CR86: 0 | CS86: 0 | CT86: 0 | CU86: 0 | CV86: 0 | CW86: 0 | CX86: 0 | CY86: 0 | CZ86: 0 | DA86: 0 | DB86: 0
D87: Pre-tax IRR | F87: =IRR(86:86) -> 0.03350739961
D88: Project After-tax Cash Flow | F88: =F86 -> -500000 | G88: =G76-(G76-G77)*$E$80 -> 38379.56906 | H88: 38058.92121 | I88: 37736.05161 | J88: 37410.89485 | K88: 37083.38434 | L88: 36753.45227 | M88: 36421.02956 | N88: 36086.04585 | O88: 35748.42948 | P88: 35408.10748 | Q88: 22565.00549 | R88: 22219.04778 | S88: 21870.1572 | T88: 21518.25517 | U88: 21163.26163 | V88: 20805.09501 | W88: 20443.67221 | X88: 20078.90859 | Y88: 19710.71787 | Z88: 19339.01219 | AA88: 18963.70199 | AB88: 18584.69604 | AC88: 18201.90137 | AD88: 17815.22325 | AE88: 17424.56515 | AF88: 0 | AG88: 0 | AH88: 0 | AI88: 0 | AJ88: 0 | AK88: 0 | AL88: 0 | AM88: 0 | AN88: 0 | AO88: 0 | AP88: 0 | AQ88: 0 | AR88: 0 | AS88: 0 | AT88: 0 | AU88: 0 | AV88: 0 | AW88: 0 | AX88: 0 | AY88: 0 | AZ88: 0 | BA88: 0 | BB88: 0 | BC88: 0 | BD88: 0 | BE88: 0 | BF88: 0 | BG88: 0 | BH88: 0 | BI88: 0 | BJ88: 0 | BK88: 0 | BL88: 0 | BM88: 0 | BN88: 0 | BO88: 0 | BP88: 0 | BQ88: 0 | BR88: 0 | BS88: =BS76-(BS76-BS77)*$E$80 -> 0 | BT88: 0 | BU88: 0 | BV88: 0 | BW88: 0 | BX88: 0 | BY88: 0 | BZ88: 0 | CA88: 0 | CB88: 0 | CC88: 0 | CD88: 0 | CE88: 0 | CF88: 0 | CG88: 0 | CH88: 0 | CI88: 0 | CJ88: 0 | CK88: 0 | CL88: 0 | CM88: 0 | CN88: 0 | CO88: 0 | CP88: 0 | CQ88: 0 | CR88: 0 | CS88: 0 | CT88: 0 | CU88: 0 | CV88: 0 | CW88: 0 | CX88: 0 | CY88: 0 | CZ88: 0 | DA88: 0 | DB88: 0
D89: After-tax Project IRR | F89: =IFERROR(IRR(F88:DB88),0.1) -> 0.029
C91: Asset Balance
D92: Straight Line Depreciation | E92: =S25 -> 25 | F92: =-F82 -> 500000 | G92: =$F$92/$E$92*G67 -> 20000 | H92: 20000 | I92: 20000 | J92: 20000 | K92: 20000 | L92: 20000 | M92: 20000 | N92: 20000 | O92: 20000 | P92: 20000 | Q92: 20000 | R92: 20000 | S92: 20000 | T92: 20000 | U92: 20000 | V92: 20000 | W92: 20000 | X92: 20000 | Y92: 20000 | Z92: 20000 | AA92: 20000 | AB92: 20000 | AC92: 20000 | AD92: 20000 | AE92: 20000 | AF92: 0 | AG92: 0 | AH92: 0 | AI92: 0 | AJ92: 0 | AK92: 0 | AL92: 0 | AM92: 0 | AN92: 0 | AO92: 0 | AP92: 0 | AQ92: 0 | AR92: 0 | AS92: 0 | AT92: 0 | AU92: 0 | AV92: 0 | AW92: 0 | AX92: 0 | AY92: 0 | AZ92: 0 | BA92: 0 | BB92: 0 | BC92: 0 | BD92: 0 | BE92: 0 | BF92: 0 | BG92: 0 | BH92: 0 | BI92: 0 | BJ92: 0 | BK92: 0 | BL92: 0 | BM92: 0 | BN92: 0 | BO92: 0 | BP92: 0 | BQ92: 0 | BR92: 0 | BS92: =$F$92/$E$92*BS67 -> 0 | BT92: 0 | BU92: 0 | BV92: 0 | BW92: 0 | BX92: 0 | BY92: 0 | BZ92: 0 | CA92: 0 | CB92: 0 | CC92: 0 | CD92: 0 | CE92: 0 | CF92: 0 | CG92: 0 | CH92: 0 | CI92: 0 | CJ92: 0 | CK92: 0 | CL92: 0 | CM92: 0 | CN92: 0 | CO92: 0 | CP92: 0 | CQ92: 0 | CR92: 0 | CS92: 0 | CT92: 0 | CU92: 0 | CV92: 0 | CW92: 0 | CX92: 0 | CY92: 0 | CZ92: 0 | DA92: 0 | DB92: 0
D93: NPV of Future Project Cash Flow | F93: =NPV($F$89,G88:DB88) -> 500000 | G93: 476120.4309 | H93: 451869.0022 | I93: 427237.1517 | J93: 402216.1342 | K93: 376797.0178 | L93: 350970.679 | M93: 324727.7992 | N93: 298058.8595 | O93: 270954.1369 | P93: 243403.6994 | Q93: 227897.4012 | R93: 212287.3781 | S93: 196573.5549 | T93: 180755.9328 | U93: 164834.5932 | V93: 148809.7014 | W93: 132681.5105 | X93: 116450.3657 | Y93: 100116.7085 | Z93: 83681.08083 | AA93: 67144.13019 | AB93: 50506.61392 | AC93: 33769.40436 | AD93: 16933.49383 | AE93: 0 | AF93: 0 | AG93: 0 | AH93: 0 | AI93: 0 | AJ93: 0 | AK93: 0 | AL93: 0 | AM93: 0 | AN93: 0 | AO93: 0 | AP93: 0 | AQ93: 0 | AR93: 0 | AS93: 0 | AT93: 0 | AU93: 0 | AV93: 0 | AW93: 0 | AX93: 0 | AY93: 0 | AZ93: 0 | BA93: 0 | BB93: 0 | BC93: 0 | BD93: 0 | BE93: 0 | BF93: 0 | BG93: 0 | BH93: 0 | BI93: 0 | BJ93: 0 | BK93: 0 | BL93: 0 | BM93: 0 | BN93: 0 | BO93: 0 | BP93: 0 | BQ93: 0 | BR93: =NPV($F$89,BS88:FN88) -> 0 | BS93: 0 | BT93: 0 | BU93: 0 | BV93: 0 | BW93: 0 | BX93: 0 | BY93: 0 | BZ93: 0 | CA93: 0 | CB93: 0 | CC93: 0 | CD93: 0 | CE93: 0 | CF93: 0 | CG93: 0 | CH93: 0 | CI93: 0 | CJ93: 0 | CK93: 0 | CL93: 0 | CM93: 0 | CN93: 0 | CO93: 0 | CP93: 0 | CQ93: 0 | CR93: 0 | CS93: 0 | CT93: 0 | CU93: 0 | CV93: 0 | CW93: 0 | CX93: 0 | CY93: 0 | CZ93: 0 | DA93: 0 | DB93: 0
D94: Economic Depreciation from NPV of After Tax Cash Flow | G94: =F93-G93 -> 23879.56906 | H94: =G93-H93 -> 24251.42871 | I94: 24631.85054 | J94: 25021.01745 | K94: 25419.11645 | L94: 25826.33876 | M94: 26242.87986 | N94: 26668.93967 | O94: =N93-O93 -> 27104.72256 | P94: 27550.43751 | Q94: 15506.2982 | R94: 15610.02314 | S94: 15713.82324 | T94: 15817.62208 | U94: 15921.33958 | V94: 16024.8918 | W94: 16128.19087 | X94: 16231.14478 | Y94: 16333.65726 | Z94: 16435.62764 | AA94: 16536.95064 | AB94: 16637.51626 | AC94: 16737.20957 | AD94: 16835.91053 | AE94: 16933.49383 | AF94: 0 | AG94: 0 | AH94: 0 | AI94: 0 | AJ94: 0 | AK94: 0 | AL94: 0 | AM94: 0 | AN94: 0 | AO94: 0 | AP94: 0 | AQ94: 0 | AR94: 0 | AS94: 0 | AT94: 0 | AU94: 0 | AV94: 0 | AW94: 0 | AX94: 0 | AY94: 0 | AZ94: 0 | BA94: 0 | BB94: 0 | BC94: 0 | BD94: 0 | BE94: 0 | BF94: 0 | BG94: 0 | BH94: 0 | BI94: 0 | BJ94: 0 | BK94: 0 | BL94: 0 | BM94: 0 | BN94: 0 | BO94: 0 | BP94: 0 | BQ94: 0 | BR94: 0 | BS94: 0 | BT94: =BS93-BT93 -> 0 | BU94: 0 | BV94: 0 | BW94: 0 | BX94: 0 | BY94: 0 | BZ94: 0 | CA94: 0 | CB94: 0 | CC94: 0 | CD94: 0 | CE94: 0 | CF94: 0 | CG94: 0 | CH94: 0 | CI94: 0 | CJ94: 0 | CK94: 0 | CL94: 0 | CM94: 0 | CN94: 0 | CO94: 0 | CP94: 0 | CQ94: 0 | CR94: 0 | CS94: 0 | CT94: 0 | CU94: 0 | CV94: 0 | CW94: 0 | CX94: 0 | CY94: 0 | CZ94: 0 | DA94: 0 | DB94: 0
D96: Income with Straight Line Depreciation | E96: =SUM(G96:DB96) -> 169789.1066 | G96: =G76-G92-G78-G80 -> 18379.56906 | H96: =H76-H92-H78-H80 -> 18058.92121 | I96: 17736.05161 | J96: 17410.89485 | K96: 17083.38434 | L96: 16753.45227 | M96: 16421.02956 | N96: 16086.04585 | O96: 15748.42948 | P96: 15408.10748 | Q96: 2565.005487 | R96: 2219.047777 | S96: 1870.157202 | T96: 1518.255172 | U96: 1163.261629 | V96: 805.0950069 | W96: 443.6722122 | X96: 78.90858504 | Y96: -289.2821293 | Z96: -660.9878135 | AA96: -1036.298011 | AB96: -1415.303961 | AC96: -1798.098629 | AD96: -2184.776748 | AE96: -2575.434849 | AF96: 0 | AG96: 0 | AH96: 0 | AI96: 0 | AJ96: 0 | AK96: 0 | AL96: 0 | AM96: 0 | AN96: 0 | AO96: 0 | AP96: 0 | AQ96: 0 | AR96: 0 | AS96: 0 | AT96: 0 | AU96: 0 | AV96: 0 | AW96: 0 | AX96: 0 | AY96: 0 | AZ96: 0 | BA96: 0 | BB96: 0 | BC96: 0 | BD96: 0 | BE96: 0 | BF96: 0 | BG96: 0 | BH96: 0 | BI96: 0 | BJ96: 0 | BK96: 0 | BL96: 0 | BM96: 0 | BN96: 0 | BO96: 0 | BP96: 0 | BQ96: 0 | BR96: 0 | BS96: 0 | BT96: =BT76-BT92-BT78-BT80 -> 0 | BU96: 0 | BV96: 0 | BW96: 0 | BX96: 0 | BY96: 0 | BZ96: 0 | CA96: 0 | CB96: 0 | CC96: 0 | CD96: 0 | CE96: 0 | CF96: 0 | CG96: 0 | CH96: 0 | CI96: 0 | CJ96: 0 | CK96: 0 | CL96: 0 | CM96: 0 | CN96: 0 | CO96: 0 | CP96: 0 | CQ96: 0 | CR96: 0 | CS96: 0 | CT96: 0 | CU96: 0 | CV96: 0 | CW96: 0 | CX96: 0 | CY96: 0 | CZ96: 0 | DA96: 0 | DB96: 0
D97: Income with Economic Depreciation | E97: =SUM(G97:DB97) -> 81967.15492 | G97: =(G76-G94-G78)*(1-$E$104)+G104-G119 -> 7000 | H97: 6665.686033 | I97: 6326.166031 | J97: 5981.320124 | K97: 5631.025879 | L97: 5275.158249 | M97: 4913.589506 | N97: 4546.189188 | O97: 4172.824033 | P97: 3793.357917 | Q97: 3407.651792 | R97: 3190.563617 | S97: 2972.023293 | T97: 2752.029768 | U97: 2530.583059 | V97: 2307.684305 | W97: 2083.335819 | X97: 1857.541147 | Y97: 1630.30512 | Z97: 1401.633919 | AA97: 1171.535132 | AB97: 940.0178226 | AC97: 707.0925949 | AD97: 472.771661 | AE97: 237.0689136 | AF97: -6.99174052e-12 | AG97: -6.99174052e-12 | AH97: -6.99174052e-12 | AI97: -6.99174052e-12 | AJ97: -6.99174052e-12 | AK97: -6.99174052e-12 | AL97: -6.99174052e-12 | AM97: -6.99174052e-12 | AN97: -6.99174052e-12 | AO97: -6.99174052e-12 | AP97: -6.99174052e-12 | AQ97: -6.99174052e-12 | AR97: -6.99174052e-12 | AS97: -6.99174052e-12 | AT97: -6.99174052e-12 | AU97: -6.99174052e-12 | AV97: -6.99174052e-12 | AW97: -6.99174052e-12 | AX97: -6.99174052e-12 | AY97: -6.99174052e-12 | AZ97: -6.99174052e-12 | BA97: -6.99174052e-12 | BB97: -6.99174052e-12 | BC97: -6.99174052e-12 | BD97: -6.99174052e-12 | BE97: -6.99174052e-12 | BF97: -6.99174052e-12 | BG97: -6.99174052e-12 | BH97: -6.99174052e-12 | BI97: -6.99174052e-12 | BJ97: -6.99174052e-12 | BK97: -6.99174052e-12 | BL97: -6.99174052e-12 | BM97: -6.99174052e-12 | BN97: -6.99174052e-12 | BO97: -6.99174052e-12 | BP97: -6.99174052e-12 | BQ97: -6.99174052e-12 | BR97: -6.99174052e-12 | BS97: =(BS76-BS94-BS78)*(1-$E$104)+BS104-BS119 -> -6.99174052e-12 | BT97: -6.99174052e-12 | BU97: -6.99174052e-12 | BV97: -6.99174052e-12 | BW97: -6.99174052e-12 | BX97: -6.99174052e-12 | BY97: -6.99174052e-12 | BZ97: -6.99174052e-12 | CA97: -6.99174052e-12 | CB97: -6.99174052e-12 | CC97: -6.99174052e-12 | CD97: -6.99174052e-12 | CE97: -6.99174052e-12 | CF97: -6.99174052e-12 | CG97: -6.99174052e-12 | CH97: -6.99174052e-12 | CI97: -6.99174052e-12 | CJ97: -6.99174052e-12 | CK97: -6.99174052e-12 | CL97: -6.99174052e-12 | CM97: -6.99174052e-12 | CN97: -6.99174052e-12 | CO97: -6.99174052e-12 | CP97: -6.99174052e-12 | CQ97: -6.99174052e-12 | CR97: -6.99174052e-12 | CS97: -6.99174052e-12 | CT97: -6.99174052e-12 | CU97: -6.99174052e-12 | CV97: -6.99174052e-12 | CW97: -6.99174052e-12 | CX97: -6.99174052e-12 | CY97: -6.99174052e-12 | CZ97: -6.99174052e-12 | DA97: -6.99174052e-12 | DB97: -6.99174052e-12
D99: Gross Plant | F99: =F92 -> 500000 | G99: =F99 -> 500000 | H99: =G99 -> 500000 | I99: 500000 | J99: 500000 | K99: 500000 | L99: 500000 | M99: 500000 | N99: 500000 | O99: =N99 -> 500000 | P99: 500000 | Q99: 500000 | R99: 500000 | S99: 500000 | T99: 500000 | U99: 500000 | V99: 500000 | W99: 500000 | X99: 500000 | Y99: 500000 | Z99: 500000 | AA99: 500000 | AB99: 500000 | AC99: 500000 | AD99: 500000 | AE99: 500000 | AF99: 500000 | AG99: 500000 | AH99: 500000 | AI99: 500000 | AJ99: 500000 | AK99: 500000 | AL99: 500000 | AM99: 500000 | AN99: 500000 | AO99: 500000 | AP99: 500000 | AQ99: 500000 | AR99: 500000 | AS99: 500000 | AT99: 500000 | AU99: 500000 | AV99: 500000 | AW99: 500000 | AX99: 500000 | AY99: 500000 | AZ99: 500000 | BA99: 500000 | BB99: 500000 | BC99: 500000 | BD99: 500000 | BE99: 500000 | BF99: 500000 | BG99: 500000 | BH99: 500000 | BI99: 500000 | BJ99: 500000 | BK99: 500000 | BL99: 500000 | BM99: 500000 | BN99: 500000 | BO99: 500000 | BP99: 500000 | BQ99: 500000 | BR99: 500000 | BS99: 500000 | BT99: =BS99 -> 500000 | BU99: 500000 | BV99: 500000 | BW99: 500000 | BX99: 500000 | BY99: 500000 | BZ99: 500000 | CA99: 500000 | CB99: 500000 | CC99: 500000 | CD99: 500000 | CE99: 500000 | CF99: 500000 | CG99: 500000 | CH99: 500000 | CI99: 500000 | CJ99: 500000 | CK99: 500000 | CL99: 500000 | CM99: 500000 | CN99: 500000 | CO99: 500000 | CP99: 500000 | CQ99: 500000 | CR99: 500000 | CS99: 500000 | CT99: 500000 | CU99: 500000 | CV99: 500000 | CW99: 500000 | CX99: 500000 | CY99: 500000 | CZ99: 500000 | DA99: 500000 | DB99: 500000
D100: Less: Accumulated Depreciation | G100: =F100+G94 -> 23879.56906 | H100: =G100+H94 -> 48130.99777 | I100: 72762.84831 | J100: 97783.86576 | K100: 123202.9822 | L100: 149029.321 | M100: 175272.2008 | N100: 201941.1405 | O100: =N100+O94 -> 229045.8631 | P100: 256596.3006 | Q100: 272102.5988 | R100: 287712.6219 | S100: 303426.4451 | T100: 319244.0672 | U100: 335165.4068 | V100: 351190.2986 | W100: 367318.4895 | X100: 383549.6343 | Y100: 399883.2915 | Z100: 416318.9192 | AA100: 432855.8698 | AB100: 449493.3861 | AC100: 466230.5956 | AD100: 483066.5062 | AE100: 500000 | AF100: 500000 | AG100: 500000 | AH100: 500000 | AI100: 500000 | AJ100: 500000 | AK100: 500000 | AL100: 500000 | AM100: 500000 | AN100: 500000 | AO100: 500000 | AP100: 500000 | AQ100: 500000 | AR100: 500000 | AS100: 500000 | AT100: 500000 | AU100: 500000 | AV100: 500000 | AW100: 500000 | AX100: 500000 | AY100: 500000 | AZ100: 500000 | BA100: 500000 | BB100: 500000 | BC100: 500000 | BD100: 500000 | BE100: 500000 | BF100: 500000 | BG100: 500000 | BH100: 500000 | BI100: 500000 | BJ100: 500000 | BK100: 500000 | BL100: 500000 | BM100: 500000 | BN100: 500000 | BO100: 500000 | BP100: 500000 | BQ100: 500000 | BR100: 500000 | BS100: 500000 | BT100: =BS100+BT94 -> 500000 | BU100: 500000 | BV100: 500000 | BW100: 500000 | BX100: 500000 | BY100: 500000 | BZ100: 500000 | CA100: 500000 | CB100: 500000 | CC100: 500000 | CD100: 500000 | CE100: 500000 | CF100: 500000 | CG100: 500000 | CH100: 500000 | CI100: 500000 | CJ100: 500000 | CK100: 500000 | CL100: 500000 | CM100: 500000 | CN100: 500000 | CO100: 500000 | CP100: 500000 | CQ100: 500000 | CR100: 500000 | CS100: 500000 | CT100: 500000 | CU100: 500000 | CV100: 500000 | CW100: 500000 | CX100: 500000 | CY100: 500000 | CZ100: 500000 | DA100: 500000 | DB100: 500000
D101: Net Plant | F101: =F99-F100 -> 500000 | G101: =G99-G100 -> 476120.4309 | H101: =H99-H100 -> 451869.0022 | I101: 427237.1517 | J101: 402216.1342 | K101: 376797.0178 | L101: 350970.679 | M101: 324727.7992 | N101: 298058.8595 | O101: 270954.1369 | P101: 243403.6994 | Q101: 227897.4012 | R101: 212287.3781 | S101: 196573.5549 | T101: 180755.9328 | U101: 164834.5932 | V101: 148809.7014 | W101: 132681.5105 | X101: 116450.3657 | Y101: 100116.7085 | Z101: 83681.08083 | AA101: 67144.13019 | AB101: 50506.61392 | AC101: 33769.40436 | AD101: 16933.49383 | AE101: 4.656612873e-10 | AF101: 4.656612873e-10 | AG101: 4.656612873e-10 | AH101: 4.656612873e-10 | AI101: 4.656612873e-10 | AJ101: 4.656612873e-10 | AK101: 4.656612873e-10 | AL101: 4.656612873e-10 | AM101: 4.656612873e-10 | AN101: 4.656612873e-10 | AO101: 4.656612873e-10 | AP101: 4.656612873e-10 | AQ101: 4.656612873e-10 | AR101: 4.656612873e-10 | AS101: 4.656612873e-10 | AT101: 4.656612873e-10 | AU101: 4.656612873e-10 | AV101: 4.656612873e-10 | AW101: 4.656612873e-10 | AX101: 4.656612873e-10 | AY101: 4.656612873e-10 | AZ101: 4.656612873e-10 | BA101: 4.656612873e-10 | BB101: 4.656612873e-10 | BC101: 4.656612873e-10 | BD101: 4.656612873e-10 | BE101: 4.656612873e-10 | BF101: 4.656612873e-10 | BG101: 4.656612873e-10 | BH101: 4.656612873e-10 | BI101: 4.656612873e-10 | BJ101: 4.656612873e-10 | BK101: 4.656612873e-10 | BL101: 4.656612873e-10 | BM101: 4.656612873e-10 | BN101: 4.656612873e-10 | BO101: 4.656612873e-10 | BP101: 4.656612873e-10 | BQ101: 4.656612873e-10 | BR101: 4.656612873e-10 | BS101: 4.656612873e-10 | BT101: =BT99-BT100 -> 4.656612873e-10 | BU101: 4.656612873e-10 | BV101: 4.656612873e-10 | BW101: 4.656612873e-10 | BX101: 4.656612873e-10 | BY101: 4.656612873e-10 | BZ101: 4.656612873e-10 | CA101: 4.656612873e-10 | CB101: 4.656612873e-10 | CC101: 4.656612873e-10 | CD101: 4.656612873e-10 | CE101: 4.656612873e-10 | CF101: 4.656612873e-10 | CG101: 4.656612873e-10 | CH101: 4.656612873e-10 | CI101: 4.656612873e-10 | CJ101: 4.656612873e-10 | CK101: 4.656612873e-10 | CL101: 4.656612873e-10 | CM101: 4.656612873e-10 | CN101: 4.656612873e-10 | CO101: 4.656612873e-10 | CP101: 4.656612873e-10 | CQ101: 4.656612873e-10 | CR101: 4.656612873e-10 | CS101: 4.656612873e-10 | CT101: 4.656612873e-10 | CU101: 4.656612873e-10 | CV101: 4.656612873e-10 | CW101: 4.656612873e-10 | CX101: 4.656612873e-10 | CY101: 4.656612873e-10 | CZ101: 4.656612873e-10 | DA101: 4.656612873e-10 | DB101: 4.656612873e-10
C103: Capital Balance
D104: Deferred Taxes | E104: =S27 -> 0.25 | G104: =(G77-G94)*$E$104 -> 6530.107736 | H104: 6437.142821 | I104: 6342.037365 | J104: 6244.745638 | K104: 6145.220887 | L104: 6043.415311 | M104: 5939.280034 | N104: 5832.765083 | O104: 5723.819361 | P104: 5612.390623 | Q104: -3876.574551 | R104: -3902.505785 | S104: -3928.455809 | T104: -3954.40552 | U104: -3980.334895 | V104: -4006.222951 | W104: -4032.047718 | X104: -4057.786195 | Y104: -4083.414316 | Z104: -4108.90691 | AA104: -4134.237661 | AB104: -4159.379066 | AC104: -4184.302392 | AD104: -4208.977631 | AE104: -4233.373458 | AF104: 0 | AG104: 0 | AH104: 0 | AI104: 0 | AJ104: 0 | AK104: 0 | AL104: 0 | AM104: 0 | AN104: 0 | AO104: 0 | AP104: 0 | AQ104: 0 | AR104: 0 | AS104: 0 | AT104: 0 | AU104: 0 | AV104: 0 | AW104: 0 | AX104: 0 | AY104: 0 | AZ104: 0 | BA104: 0 | BB104: 0 | BC104: 0 | BD104: 0 | BE104: 0 | BF104: 0 | BG104: 0 | BH104: 0 | BI104: 0 | BJ104: 0 | BK104: 0 | BL104: 0 | BM104: 0 | BN104: 0 | BO104: 0 | BP104: 0 | BQ104: 0 | BR104: 0 | BS104: =(BS77-BS94)*$E$104 -> 0 | BT104: 0 | BU104: 0 | BV104: 0 | BW104: 0 | BX104: 0 | BY104: 0 | BZ104: 0 | CA104: 0 | CB104: 0 | CC104: 0 | CD104: 0 | CE104: 0 | CF104: 0 | CG104: 0 | CH104: 0 | CI104: 0 | CJ104: 0 | CK104: 0 | CL104: 0 | CM104: 0 | CN104: 0 | CO104: 0 | CP104: 0 | CQ104: 0 | CR104: 0 | CS104: 0 | CT104: 0 | CU104: 0 | CV104: 0 | CW104: 0 | CX104: 0 | CY104: 0 | CZ104: 0 | DA104: 0 | DB104: 0
D105: Accumulated Deferred Taxes
D106: Net Capital | F106: =F101-F105 -> 500000 | G106: =G101-G105 -> 476120.4309 | H106: =H101-H105 -> 451869.0022 | I106: 427237.1517 | J106: 402216.1342 | K106: 376797.0178 | L106: 350970.679 | M106: 324727.7992 | N106: 298058.8595 | O106: 270954.1369 | P106: 243403.6994 | Q106: 227897.4012 | R106: 212287.3781 | S106: 196573.5549 | T106: 180755.9328 | U106: 164834.5932 | V106: 148809.7014 | W106: 132681.5105 | X106: 116450.3657 | Y106: 100116.7085 | Z106: 83681.08083 | AA106: 67144.13019 | AB106: 50506.61392 | AC106: 33769.40436 | AD106: 16933.49383 | AE106: 4.656612873e-10 | AF106: 4.656612873e-10 | AG106: 4.656612873e-10 | AH106: 4.656612873e-10 | AI106: 4.656612873e-10 | AJ106: 4.656612873e-10 | AK106: 4.656612873e-10 | AL106: 4.656612873e-10 | AM106: 4.656612873e-10 | AN106: 4.656612873e-10 | AO106: 4.656612873e-10 | AP106: 4.656612873e-10 | AQ106: 4.656612873e-10 | AR106: 4.656612873e-10 | AS106: 4.656612873e-10 | AT106: 4.656612873e-10 | AU106: 4.656612873e-10 | AV106: 4.656612873e-10 | AW106: 4.656612873e-10 | AX106: 4.656612873e-10 | AY106: 4.656612873e-10 | AZ106: 4.656612873e-10 | BA106: 4.656612873e-10 | BB106: 4.656612873e-10 | BC106: 4.656612873e-10 | BD106: 4.656612873e-10 | BE106: 4.656612873e-10 | BF106: 4.656612873e-10 | BG106: 4.656612873e-10 | BH106: 4.656612873e-10 | BI106: 4.656612873e-10 | BJ106: 4.656612873e-10 | BK106: 4.656612873e-10 | BL106: 4.656612873e-10 | BM106: 4.656612873e-10 | BN106: 4.656612873e-10 | BO106: 4.656612873e-10 | BP106: 4.656612873e-10 | BQ106: 4.656612873e-10 | BR106: 4.656612873e-10 | BS106: 4.656612873e-10 | BT106: =BT101-BT105 -> 4.656612873e-10 | BU106: 4.656612873e-10 | BV106: 4.656612873e-10 | BW106: 4.656612873e-10 | BX106: 4.656612873e-10 | BY106: 4.656612873e-10 | BZ106: 4.656612873e-10 | CA106: 4.656612873e-10 | CB106: 4.656612873e-10 | CC106: 4.656612873e-10 | CD106: 4.656612873e-10 | CE106: 4.656612873e-10 | CF106: 4.656612873e-10 | CG106: 4.656612873e-10 | CH106: 4.656612873e-10 | CI106: 4.656612873e-10 | CJ106: 4.656612873e-10 | CK106: 4.656612873e-10 | CL106: 4.656612873e-10 | CM106: 4.656612873e-10 | CN106: 4.656612873e-10 | CO106: 4.656612873e-10 | CP106: 4.656612873e-10 | CQ106: 4.656612873e-10 | CR106: 4.656612873e-10 | CS106: 4.656612873e-10 | CT106: 4.656612873e-10 | CU106: 4.656612873e-10 | CV106: 4.656612873e-10 | CW106: 4.656612873e-10 | CX106: 4.656612873e-10 | CY106: 4.656612873e-10 | CZ106: 4.656612873e-10 | DA106: 4.656612873e-10 | DB106: 4.656612873e-10
D108: Debt Balance | E108: =S35 -> 0.8 | F108: =F106*$E$108 -> 400000 | G108: 380896.3448 | H108: 361495.2018 | I108: 341789.7214 | J108: 321772.9074 | K108: 301437.6142 | L108: 280776.5432 | M108: 259782.2393 | N108: 238447.0876 | O108: 216763.3096 | P108: 194722.9595 | Q108: 182317.921 | R108: 169829.9025 | S108: 157258.8439 | T108: 144604.7462 | U108: 131867.6746 | V108: 119047.7611 | W108: 106145.2084 | X108: 93160.29259 | Y108: 80093.36678 | Z108: 66944.86467 | AA108: 53715.30415 | AB108: 40405.29114 | AC108: 27015.52348 | AD108: 13546.79506 | AE108: 3.725290298e-10 | AF108: 3.725290298e-10 | AG108: 3.725290298e-10 | AH108: 3.725290298e-10 | AI108: 3.725290298e-10 | AJ108: 3.725290298e-10 | AK108: 3.725290298e-10 | AL108: 3.725290298e-10 | AM108: 3.725290298e-10 | AN108: 3.725290298e-10 | AO108: 3.725290298e-10 | AP108: 3.725290298e-10 | AQ108: 3.725290298e-10 | AR108: 3.725290298e-10 | AS108: 3.725290298e-10 | AT108: 3.725290298e-10 | AU108: 3.725290298e-10 | AV108: 3.725290298e-10 | AW108: 3.725290298e-10 | AX108: 3.725290298e-10 | AY108: 3.725290298e-10 | AZ108: 3.725290298e-10 | BA108: 3.725290298e-10 | BB108: 3.725290298e-10 | BC108: 3.725290298e-10 | BD108: 3.725290298e-10 | BE108: 3.725290298e-10 | BF108: 3.725290298e-10 | BG108: 3.725290298e-10 | BH108: 3.725290298e-10 | BI108: 3.725290298e-10 | BJ108: 3.725290298e-10 | BK108: 3.725290298e-10 | BL108: 3.725290298e-10 | BM108: 3.725290298e-10 | BN108: 3.725290298e-10 | BO108: 3.725290298e-10 | BP108: 3.725290298e-10 | BQ108: 3.725290298e-10 | BR108: =BR106*$E$108 -> 3.725290298e-10 | BS108: 3.725290298e-10 | BT108: 3.725290298e-10 | BU108: 3.725290298e-10 | BV108: 3.725290298e-10 | BW108: 3.725290298e-10 | BX108: 3.725290298e-10 | BY108: 3.725290298e-10 | BZ108: 3.725290298e-10 | CA108: 3.725290298e-10 | CB108: 3.725290298e-10 | CC108: 3.725290298e-10 | CD108: 3.725290298e-10 | CE108: 3.725290298e-10 | CF108: 3.725290298e-10 | CG108: 3.725290298e-10 | CH108: 3.725290298e-10 | CI108: 3.725290298e-10 | CJ108: 3.725290298e-10 | CK108: 3.725290298e-10 | CL108: 3.725290298e-10 | CM108: 3.725290298e-10 | CN108: 3.725290298e-10 | CO108: 3.725290298e-10 | CP108: 3.725290298e-10 | CQ108: 3.725290298e-10 | CR108: 3.725290298e-10 | CS108: 3.725290298e-10 | CT108: 3.725290298e-10 | CU108: 3.725290298e-10 | CV108: 3.725290298e-10 | CW108: 3.725290298e-10 | CX108: 3.725290298e-10 | CY108: 3.725290298e-10 | CZ108: 3.725290298e-10 | DA108: 3.725290298e-10 | DB108: 3.725290298e-10
D109: Equity Balance | E109: =S36 -> 0.2 | F109: =F106*$E$109 -> 100000 | G109: 95224.08619 | H109: 90373.80045 | I109: 85447.43034 | J109: 80443.22685 | K109: 75359.40356 | L109: 70194.13581 | M109: 64945.55983 | N109: 59611.7719 | O109: 54190.82739 | P109: 48680.73989 | Q109: 45579.48025 | R109: 42457.47562 | S109: 39314.71097 | T109: 36151.18655 | U109: 32966.91864 | V109: 29761.94028 | W109: 26536.3021 | X109: 23290.07315 | Y109: 20023.34169 | Z109: 16736.21617 | AA109: 13428.82604 | AB109: 10101.32278 | AC109: 6753.880871 | AD109: 3386.698766 | AE109: 9.313225746e-11 | AF109: 9.313225746e-11 | AG109: 9.313225746e-11 | AH109: 9.313225746e-11 | AI109: 9.313225746e-11 | AJ109: 9.313225746e-11 | AK109: 9.313225746e-11 | AL109: 9.313225746e-11 | AM109: 9.313225746e-11 | AN109: 9.313225746e-11 | AO109: 9.313225746e-11 | AP109: 9.313225746e-11 | AQ109: 9.313225746e-11 | AR109: 9.313225746e-11 | AS109: 9.313225746e-11 | AT109: 9.313225746e-11 | AU109: 9.313225746e-11 | AV109: 9.313225746e-11 | AW109: 9.313225746e-11 | AX109: 9.313225746e-11 | AY109: 9.313225746e-11 | AZ109: 9.313225746e-11 | BA109: 9.313225746e-11 | BB109: 9.313225746e-11 | BC109: 9.313225746e-11 | BD109: 9.313225746e-11 | BE109: 9.313225746e-11 | BF109: 9.313225746e-11 | BG109: 9.313225746e-11 | BH109: 9.313225746e-11 | BI109: 9.313225746e-11 | BJ109: 9.313225746e-11 | BK109: 9.313225746e-11 | BL109: 9.313225746e-11 | BM109: 9.313225746e-11 | BN109: 9.313225746e-11 | BO109: 9.313225746e-11 | BP109: 9.313225746e-11 | BQ109: 9.313225746e-11 | BR109: =BR106*$E$109 -> 9.313225746e-11 | BS109: 9.313225746e-11 | BT109: 9.313225746e-11 | BU109: 9.313225746e-11 | BV109: 9.313225746e-11 | BW109: 9.313225746e-11 | BX109: 9.313225746e-11 | BY109: 9.313225746e-11 | BZ109: 9.313225746e-11 | CA109: 9.313225746e-11 | CB109: 9.313225746e-11 | CC109: 9.313225746e-11 | CD109: 9.313225746e-11 | CE109: 9.313225746e-11 | CF109: 9.313225746e-11 | CG109: 9.313225746e-11 | CH109: 9.313225746e-11 | CI109: 9.313225746e-11 | CJ109: 9.313225746e-11 | CK109: 9.313225746e-11 | CL109: 9.313225746e-11 | CM109: 9.313225746e-11 | CN109: 9.313225746e-11 | CO109: 9.313225746e-11 | CP109: 9.313225746e-11 | CQ109: 9.313225746e-11 | CR109: 9.313225746e-11 | CS109: 9.313225746e-11 | CT109: 9.313225746e-11 | CU109: 9.313225746e-11 | CV109: 9.313225746e-11 | CW109: 9.313225746e-11 | CX109: 9.313225746e-11 | CY109: 9.313225746e-11 | CZ109: 9.313225746e-11 | DA109: 9.313225746e-11 | DB109: 9.313225746e-11
D111: Debt Percent | G111: =G108/G106 -> 0.8 | H111: =H108/H106 -> 0.8 | I111: 0.8 | J111: 0.8 | K111: 0.8 | L111: 0.8 | M111: 0.8 | N111: 0.8 | O111: 0.8 | P111: 0.8 | Q111: 0.8 | R111: 0.8 | S111: 0.8 | T111: 0.8 | U111: 0.8 | V111: 0.8 | W111: 0.8 | X111: 0.8 | Y111: 0.8 | Z111: 0.8 | AA111: 0.8 | AB111: 0.8 | AC111: 0.8 | AD111: 0.8 | AE111: 0.8 | AF111: 0.8 | AG111: 0.8 | AH111: 0.8 | AI111: 0.8 | AJ111: 0.8 | AK111: 0.8 | AL111: 0.8 | AM111: 0.8 | AN111: 0.8 | AO111: 0.8 | AP111: 0.8 | AQ111: 0.8 | AR111: 0.8 | AS111: 0.8 | AT111: 0.8 | AU111: 0.8 | AV111: 0.8 | AW111: 0.8 | AX111: 0.8 | AY111: 0.8 | AZ111: 0.8 | BA111: 0.8 | BB111: 0.8 | BC111: 0.8 | BD111: 0.8 | BE111: 0.8 | BF111: 0.8 | BG111: 0.8 | BH111: 0.8 | BI111: 0.8 | BJ111: 0.8 | BK111: 0.8 | BL111: 0.8 | BM111: 0.8 | BN111: 0.8 | BO111: 0.8 | BP111: 0.8 | BQ111: 0.8 | BR111: 0.8 | BS111: 0.8 | BT111: =BT108/BT106 -> 0.8 | BU111: 0.8 | BV111: 0.8 | BW111: 0.8 | BX111: 0.8 | BY111: 0.8 | BZ111: 0.8 | CA111: 0.8 | CB111: 0.8 | CC111: 0.8 | CD111: 0.8 | CE111: 0.8 | CF111: 0.8 | CG111: 0.8 | CH111: 0.8 | CI111: 0.8 | CJ111: 0.8 | CK111: 0.8 | CL111: 0.8 | CM111: 0.8 | CN111: 0.8 | CO111: 0.8 | CP111: 0.8 | CQ111: 0.8 | CR111: 0.8 | CS111: 0.8 | CT111: 0.8 | CU111: 0.8 | CV111: 0.8 | CW111: 0.8 | CX111: 0.8 | CY111: 0.8 | CZ111: 0.8 | DA111: 0.8 | DB111: 0.8
D112: Equity Percent | G112: =G109/G106 -> 0.2 | H112: =H109/H106 -> 0.2 | I112: 0.2 | J112: 0.2 | K112: 0.2 | L112: 0.2 | M112: 0.2 | N112: 0.2 | O112: 0.2 | P112: 0.2 | Q112: 0.2 | R112: 0.2 | S112: 0.2 | T112: 0.2 | U112: 0.2 | V112: 0.2 | W112: 0.2 | X112: 0.2 | Y112: 0.2 | Z112: 0.2 | AA112: 0.2 | AB112: 0.2 | AC112: 0.2 | AD112: 0.2 | AE112: 0.2 | AF112: 0.2 | AG112: 0.2 | AH112: 0.2 | AI112: 0.2 | AJ112: 0.2 | AK112: 0.2 | AL112: 0.2 | AM112: 0.2 | AN112: 0.2 | AO112: 0.2 | AP112: 0.2 | AQ112: 0.2 | AR112: 0.2 | AS112: 0.2 | AT112: 0.2 | AU112: 0.2 | AV112: 0.2 | AW112: 0.2 | AX112: 0.2 | AY112: 0.2 | AZ112: 0.2 | BA112: 0.2 | BB112: 0.2 | BC112: 0.2 | BD112: 0.2 | BE112: 0.2 | BF112: 0.2 | BG112: 0.2 | BH112: 0.2 | BI112: 0.2 | BJ112: 0.2 | BK112: 0.2 | BL112: 0.2 | BM112: 0.2 | BN112: 0.2 | BO112: 0.2 | BP112: 0.2 | BQ112: 0.2 | BR112: 0.2 | BS112: 0.2 | BT112: =BT109/BT106 -> 0.2 | BU112: 0.2 | BV112: 0.2 | BW112: 0.2 | BX112: 0.2 | BY112: 0.2 | BZ112: 0.2 | CA112: 0.2 | CB112: 0.2 | CC112: 0.2 | CD112: 0.2 | CE112: 0.2 | CF112: 0.2 | CG112: 0.2 | CH112: 0.2 | CI112: 0.2 | CJ112: 0.2 | CK112: 0.2 | CL112: 0.2 | CM112: 0.2 | CN112: 0.2 | CO112: 0.2 | CP112: 0.2 | CQ112: 0.2 | CR112: 0.2 | CS112: 0.2 | CT112: 0.2 | CU112: 0.2 | CV112: 0.2 | CW112: 0.2 | CX112: 0.2 | CY112: 0.2 | CZ112: 0.2 | DA112: 0.2 | DB112: 0.2
C114: Debt Balance
D115: Debt Repayment | G115: =F108-G108 -> 19103.65525 | H115: 19401.14297 | I115: 19705.48043 | J115: 20016.81396 | K115: 20335.29316 | L115: 20661.071 | M115: 20994.30389 | N115: 21335.15174 | O115: =N108-O108 -> 21683.77805 | P115: 22040.35001 | Q115: 12405.03856 | R115: 12488.01851 | S115: 12571.05859 | T115: 12654.09767 | U115: 12737.07166 | V115: 12819.91344 | W115: 12902.5527 | X115: 12984.91582 | Y115: 13066.92581 | Z115: 13148.50211 | AA115: 13229.56052 | AB115: 13310.01301 | AC115: 13389.76765 | AD115: 13468.72842 | AE115: 13546.79506 | AF115: 0 | AG115: 0 | AH115: 0 | AI115: 0 | AJ115: 0 | AK115: 0 | AL115: 0 | AM115: 0 | AN115: 0 | AO115: 0 | AP115: 0 | AQ115: 0 | AR115: 0 | AS115: 0 | AT115: 0 | AU115: 0 | AV115: 0 | AW115: 0 | AX115: 0 | AY115: 0 | AZ115: 0 | BA115: 0 | BB115: 0 | BC115: 0 | BD115: 0 | BE115: 0 | BF115: 0 | BG115: 0 | BH115: 0 | BI115: 0 | BJ115: 0 | BK115: 0 | BL115: 0 | BM115: 0 | BN115: 0 | BO115: 0 | BP115: 0 | BQ115: 0 | BR115: 0 | BS115: =BR108-BS108 -> 0 | BT115: 0 | BU115: 0 | BV115: 0 | BW115: 0 | BX115: 0 | BY115: 0 | BZ115: 0 | CA115: 0 | CB115: 0 | CC115: 0 | CD115: 0 | CE115: 0 | CF115: 0 | CG115: 0 | CH115: 0 | CI115: 0 | CJ115: 0 | CK115: 0 | CL115: 0 | CM115: 0 | CN115: 0 | CO115: 0 | CP115: 0 | CQ115: 0 | CR115: 0 | CS115: 0 | CT115: 0 | CU115: 0 | CV115: 0 | CW115: 0 | CX115: 0 | CY115: 0 | CZ115: 0 | DA115: 0 | DB115: 0
D116: Opening Balance | G116: =F118 -> 400000 | H116: =G118 -> 380896.3448 | I116: 361495.2018 | J116: 341789.7214 | K116: 321772.9074 | L116: 301437.6142 | M116: 280776.5432 | N116: 259782.2393 | O116: =N118 -> 238447.0876 | P116: 216763.3096 | Q116: 194722.9595 | R116: 182317.921 | S116: 169829.9025 | T116: 157258.8439 | U116: 144604.7462 | V116: 131867.6746 | W116: 119047.7611 | X116: 106145.2084 | Y116: 93160.29259 | Z116: 80093.36678 | AA116: 66944.86467 | AB116: 53715.30415 | AC116: 40405.29114 | AD116: 27015.52348 | AE116: 13546.79506 | AF116: 3.728928277e-10 | AG116: 3.728928277e-10 | AH116: 3.728928277e-10 | AI116: 3.728928277e-10 | AJ116: 3.728928277e-10 | AK116: 3.728928277e-10 | AL116: 3.728928277e-10 | AM116: 3.728928277e-10 | AN116: 3.728928277e-10 | AO116: 3.728928277e-10 | AP116: 3.728928277e-10 | AQ116: 3.728928277e-10 | AR116: 3.728928277e-10 | AS116: 3.728928277e-10 | AT116: 3.728928277e-10 | AU116: 3.728928277e-10 | AV116: 3.728928277e-10 | AW116: 3.728928277e-10 | AX116: 3.728928277e-10 | AY116: 3.728928277e-10 | AZ116: 3.728928277e-10 | BA116: 3.728928277e-10 | BB116: 3.728928277e-10 | BC116: 3.728928277e-10 | BD116: 3.728928277e-10 | BE116: 3.728928277e-10 | BF116: 3.728928277e-10 | BG116: 3.728928277e-10 | BH116: 3.728928277e-10 | BI116: 3.728928277e-10 | BJ116: 3.728928277e-10 | BK116: 3.728928277e-10 | BL116: 3.728928277e-10 | BM116: 3.728928277e-10 | BN116: 3.728928277e-10 | BO116: 3.728928277e-10 | BP116: 3.728928277e-10 | BQ116: 3.728928277e-10 | BR116: 3.728928277e-10 | BS116: 3.728928277e-10 | BT116: =BS118 -> 3.728928277e-10 | BU116: 3.728928277e-10 | BV116: 3.728928277e-10 | BW116: 3.728928277e-10 | BX116: 3.728928277e-10 | BY116: 3.728928277e-10 | BZ116: 3.728928277e-10 | CA116: 3.728928277e-10 | CB116: 3.728928277e-10 | CC116: 3.728928277e-10 | CD116: 3.728928277e-10 | CE116: 3.728928277e-10 | CF116: 3.728928277e-10 | CG116: 3.728928277e-10 | CH116: 3.728928277e-10 | CI116: 3.728928277e-10 | CJ116: 3.728928277e-10 | CK116: 3.728928277e-10 | CL116: 3.728928277e-10 | CM116: 3.728928277e-10 | CN116: 3.728928277e-10 | CO116: 3.728928277e-10 | CP116: 3.728928277e-10 | CQ116: 3.728928277e-10 | CR116: 3.728928277e-10 | CS116: 3.728928277e-10 | CT116: 3.728928277e-10 | CU116: 3.728928277e-10 | CV116: 3.728928277e-10 | CW116: 3.728928277e-10 | CX116: 3.728928277e-10 | CY116: 3.728928277e-10 | CZ116: 3.728928277e-10 | DA116: 3.728928277e-10 | DB116: 3.728928277e-10
D117: Debt Repayment | G117: =G115 -> 19103.65525 | H117: 19401.14297 | I117: 19705.48043 | J117: 20016.81396 | K117: 20335.29316 | L117: 20661.071 | M117: 20994.30389 | N117: 21335.15174 | O117: 21683.77805 | P117: 22040.35001 | Q117: 12405.03856 | R117: 12488.01851 | S117: 12571.05859 | T117: 12654.09767 | U117: 12737.07166 | V117: 12819.91344 | W117: 12902.5527 | X117: 12984.91582 | Y117: 13066.92581 | Z117: 13148.50211 | AA117: 13229.56052 | AB117: 13310.01301 | AC117: 13389.76765 | AD117: 13468.72842 | AE117: 13546.79506 | AF117: 0 | AG117: 0 | AH117: 0 | AI117: 0 | AJ117: 0 | AK117: 0 | AL117: 0 | AM117: 0 | AN117: 0 | AO117: 0 | AP117: 0 | AQ117: 0 | AR117: 0 | AS117: 0 | AT117: 0 | AU117: 0 | AV117: 0 | AW117: 0 | AX117: 0 | AY117: 0 | AZ117: 0 | BA117: 0 | BB117: 0 | BC117: 0 | BD117: 0 | BE117: 0 | BF117: 0 | BG117: 0 | BH117: 0 | BI117: 0 | BJ117: 0 | BK117: 0 | BL117: 0 | BM117: 0 | BN117: 0 | BO117: 0 | BP117: 0 | BQ117: 0 | BR117: 0 | BS117: =BS115 -> 0 | BT117: 0 | BU117: 0 | BV117: 0 | BW117: 0 | BX117: 0 | BY117: 0 | BZ117: 0 | CA117: 0 | CB117: 0 | CC117: 0 | CD117: 0 | CE117: 0 | CF117: 0 | CG117: 0 | CH117: 0 | CI117: 0 | CJ117: 0 | CK117: 0 | CL117: 0 | CM117: 0 | CN117: 0 | CO117: 0 | CP117: 0 | CQ117: 0 | CR117: 0 | CS117: 0 | CT117: 0 | CU117: 0 | CV117: 0 | CW117: 0 | CX117: 0 | CY117: 0 | CZ117: 0 | DA117: 0 | DB117: 0
D118: Closing Balance | F118: =F108 -> 400000 | G118: =G116-G117 -> 380896.3448 | H118: =H116-H117 -> 361495.2018 | I118: 341789.7214 | J118: 321772.9074 | K118: 301437.6142 | L118: 280776.5432 | M118: 259782.2393 | N118: 238447.0876 | O118: 216763.3096 | P118: 194722.9595 | Q118: 182317.921 | R118: 169829.9025 | S118: 157258.8439 | T118: 144604.7462 | U118: 131867.6746 | V118: 119047.7611 | W118: 106145.2084 | X118: 93160.29259 | Y118: 80093.36678 | Z118: 66944.86467 | AA118: 53715.30415 | AB118: 40405.29114 | AC118: 27015.52348 | AD118: 13546.79506 | AE118: 3.728928277e-10 | AF118: 3.728928277e-10 | AG118: 3.728928277e-10 | AH118: 3.728928277e-10 | AI118: 3.728928277e-10 | AJ118: 3.728928277e-10 | AK118: 3.728928277e-10 | AL118: 3.728928277e-10 | AM118: 3.728928277e-10 | AN118: 3.728928277e-10 | AO118: 3.728928277e-10 | AP118: 3.728928277e-10 | AQ118: 3.728928277e-10 | AR118: 3.728928277e-10 | AS118: 3.728928277e-10 | AT118: 3.728928277e-10 | AU118: 3.728928277e-10 | AV118: 3.728928277e-10 | AW118: 3.728928277e-10 | AX118: 3.728928277e-10 | AY118: 3.728928277e-10 | AZ118: 3.728928277e-10 | BA118: 3.728928277e-10 | BB118: 3.728928277e-10 | BC118: 3.728928277e-10 | BD118: 3.728928277e-10 | BE118: 3.728928277e-10 | BF118: 3.728928277e-10 | BG118: 3.728928277e-10 | BH118: 3.728928277e-10 | BI118: 3.728928277e-10 | BJ118: 3.728928277e-10 | BK118: 3.728928277e-10 | BL118: 3.728928277e-10 | BM118: 3.728928277e-10 | BN118: 3.728928277e-10 | BO118: 3.728928277e-10 | BP118: 3.728928277e-10 | BQ118: 3.728928277e-10 | BR118: 3.728928277e-10 | BS118: 3.728928277e-10 | BT118: =BT116-BT117 -> 3.728928277e-10 | BU118: 3.728928277e-10 | BV118: 3.728928277e-10 | BW118: 3.728928277e-10 | BX118: 3.728928277e-10 | BY118: 3.728928277e-10 | BZ118: 3.728928277e-10 | CA118: 3.728928277e-10 | CB118: 3.728928277e-10 | CC118: 3.728928277e-10 | CD118: 3.728928277e-10 | CE118: 3.728928277e-10 | CF118: 3.728928277e-10 | CG118: 3.728928277e-10 | CH118: 3.728928277e-10 | CI118: 3.728928277e-10 | CJ118: 3.728928277e-10 | CK118: 3.728928277e-10 | CL118: 3.728928277e-10 | CM118: 3.728928277e-10 | CN118: 3.728928277e-10 | CO118: 3.728928277e-10 | CP118: 3.728928277e-10 | CQ118: 3.728928277e-10 | CR118: 3.728928277e-10 | CS118: 3.728928277e-10 | CT118: 3.728928277e-10 | CU118: 3.728928277e-10 | CV118: 3.728928277e-10 | CW118: 3.728928277e-10 | CX118: 3.728928277e-10 | CY118: 3.728928277e-10 | CZ118: 3.728928277e-10 | DA118: 3.728928277e-10 | DB118: 3.728928277e-10
D119: Interest Expense | E119: =S38 -> 0.01875 | G119: =G116*$E$119 -> 7500 | H119: 7141.806464 | I119: 6778.035033 | J119: 6408.557275 | K119: 6033.242014 | L119: 5651.955267 | M119: 5264.560185 | N119: 4870.916988 | O119: 4470.882892 | P119: 4064.312054 | Q119: 3651.055492 | R119: 3418.461018 | S119: 3184.310671 | T119: 2948.603323 | U119: 2711.338992 | V119: 2472.518898 | W119: 2232.145521 | X119: 1990.222658 | Y119: 1746.755486 | Z119: 1501.750627 | AA119: 1255.216212 | AB119: 1007.161953 | AC119: 757.5992088 | AD119: 506.5410653 | AE119: 254.0024075 | AF119: 6.99174052e-12 | AG119: 6.99174052e-12 | AH119: 6.99174052e-12 | AI119: 6.99174052e-12 | AJ119: 6.99174052e-12 | AK119: 6.99174052e-12 | AL119: 6.99174052e-12 | AM119: 6.99174052e-12 | AN119: 6.99174052e-12 | AO119: 6.99174052e-12 | AP119: 6.99174052e-12 | AQ119: 6.99174052e-12 | AR119: 6.99174052e-12 | AS119: 6.99174052e-12 | AT119: 6.99174052e-12 | AU119: 6.99174052e-12 | AV119: 6.99174052e-12 | AW119: 6.99174052e-12 | AX119: 6.99174052e-12 | AY119: 6.99174052e-12 | AZ119: 6.99174052e-12 | BA119: 6.99174052e-12 | BB119: 6.99174052e-12 | BC119: 6.99174052e-12 | BD119: 6.99174052e-12 | BE119: 6.99174052e-12 | BF119: 6.99174052e-12 | BG119: 6.99174052e-12 | BH119: 6.99174052e-12 | BI119: 6.99174052e-12 | BJ119: 6.99174052e-12 | BK119: 6.99174052e-12 | BL119: 6.99174052e-12 | BM119: 6.99174052e-12 | BN119: 6.99174052e-12 | BO119: 6.99174052e-12 | BP119: 6.99174052e-12 | BQ119: 6.99174052e-12 | BR119: 6.99174052e-12 | BS119: =BS116*$E$119 -> 6.99174052e-12 | BT119: 6.99174052e-12 | BU119: 6.99174052e-12 | BV119: 6.99174052e-12 | BW119: 6.99174052e-12 | BX119: 6.99174052e-12 | BY119: 6.99174052e-12 | BZ119: 6.99174052e-12 | CA119: 6.99174052e-12 | CB119: 6.99174052e-12 | CC119: 6.99174052e-12 | CD119: 6.99174052e-12 | CE119: 6.99174052e-12 | CF119: 6.99174052e-12 | CG119: 6.99174052e-12 | CH119: 6.99174052e-12 | CI119: 6.99174052e-12 | CJ119: 6.99174052e-12 | CK119: 6.99174052e-12 | CL119: 6.99174052e-12 | CM119: 6.99174052e-12 | CN119: 6.99174052e-12 | CO119: 6.99174052e-12 | CP119: 6.99174052e-12 | CQ119: 6.99174052e-12 | CR119: 6.99174052e-12 | CS119: 6.99174052e-12 | CT119: 6.99174052e-12 | CU119: 6.99174052e-12 | CV119: 6.99174052e-12 | CW119: 6.99174052e-12 | CX119: 6.99174052e-12 | CY119: 6.99174052e-12 | CZ119: 6.99174052e-12 | DA119: 6.99174052e-12 | DB119: 6.99174052e-12
D121: Equity Cash Flow Check (Equity Chg + Income) | F121: =-F109 -> -100000 | G121: =F109-G109+G97 -> 11775.91381 | H121: =G109-H109+H97 -> 11515.97178 | I121: 11252.53614 | J121: 10985.52361 | K121: 10714.84917 | L121: 10440.426 | M121: 10162.16548 | N121: 9879.977122 | O121: =N109-O109+O97 -> 9593.768544 | P121: 9303.445419 | Q121: 6508.911433 | R121: 6312.568246 | S121: 6114.787941 | T121: 5915.554184 | U121: 5714.850974 | V121: 5512.662666 | W121: 5308.973994 | X121: 5103.770103 | Y121: 4897.036573 | Z121: 4688.759447 | AA121: 4478.925261 | AB121: 4267.521075 | AC121: 4054.534508 | AD121: 3839.953766 | AE121: 3623.76768 | AF121: -6.99174052e-12 | AG121: -6.99174052e-12 | AH121: -6.99174052e-12 | AI121: -6.99174052e-12 | AJ121: -6.99174052e-12 | AK121: -6.99174052e-12 | AL121: -6.99174052e-12 | AM121: -6.99174052e-12 | AN121: -6.99174052e-12 | AO121: -6.99174052e-12 | AP121: -6.99174052e-12 | AQ121: -6.99174052e-12 | AR121: -6.99174052e-12 | AS121: -6.99174052e-12 | AT121: -6.99174052e-12 | AU121: -6.99174052e-12 | AV121: -6.99174052e-12 | AW121: -6.99174052e-12 | AX121: -6.99174052e-12 | AY121: -6.99174052e-12 | AZ121: -6.99174052e-12 | BA121: -6.99174052e-12 | BB121: -6.99174052e-12 | BC121: -6.99174052e-12 | BD121: -6.99174052e-12 | BE121: -6.99174052e-12 | BF121: -6.99174052e-12 | BG121: -6.99174052e-12 | BH121: -6.99174052e-12 | BI121: -6.99174052e-12 | BJ121: -6.99174052e-12 | BK121: -6.99174052e-12 | BL121: -6.99174052e-12 | BM121: -6.99174052e-12 | BN121: -6.99174052e-12 | BO121: -6.99174052e-12 | BP121: -6.99174052e-12 | BQ121: -6.99174052e-12 | BR121: -6.99174052e-12 | BS121: -6.99174052e-12 | BT121: =BS109-BT109+BT97 -> -6.99174052e-12 | BU121: -6.99174052e-12 | BV121: -6.99174052e-12 | BW121: -6.99174052e-12 | BX121: -6.99174052e-12 | BY121: -6.99174052e-12 | BZ121: -6.99174052e-12 | CA121: -6.99174052e-12 | CB121: -6.99174052e-12 | CC121: -6.99174052e-12 | CD121: -6.99174052e-12 | CE121: -6.99174052e-12 | CF121: -6.99174052e-12 | CG121: -6.99174052e-12 | CH121: -6.99174052e-12 | CI121: -6.99174052e-12 | CJ121: -6.99174052e-12 | CK121: -6.99174052e-12 | CL121: -6.99174052e-12 | CM121: -6.99174052e-12 | CN121: -6.99174052e-12 | CO121: -6.99174052e-12 | CP121: -6.99174052e-12 | CQ121: -6.99174052e-12 | CR121: -6.99174052e-12 | CS121: -6.99174052e-12 | CT121: -6.99174052e-12 | CU121: -6.99174052e-12 | CV121: -6.99174052e-12 | CW121: -6.99174052e-12 | CX121: -6.99174052e-12 | CY121: -6.99174052e-12 | CZ121: -6.99174052e-12 | DA121: -6.99174052e-12 | DB121: -6.99174052e-12
D122: Equity IRR Check | F122: =IRR(F121:DB121) -> 0.07 | G122: =G83 -> 11775.91381 | H122: =H83 -> 11515.97178 | I122: 11252.53614 | J122: 10985.52361 | K122: 10714.84917 | L122: 10440.426 | M122: 10162.16548 | N122: 9879.977122 | O122: 9593.768544 | P122: 9303.445419 | Q122: 6508.911433 | R122: 6312.568246 | S122: 6114.787941 | T122: 5915.554184 | U122: 5714.850974 | V122: 5512.662666 | W122: 5308.973994 | X122: 5103.770103 | Y122: 4897.036573 | Z122: 4688.759447 | AA122: 4478.925261 | AB122: 4267.521075 | AC122: 4054.534508 | AD122: 3839.953766 | AE122: 3623.76768 | AF122: -6.99174052e-12 | AG122: -6.99174052e-12 | AH122: -6.99174052e-12 | AI122: -6.99174052e-12 | AJ122: -6.99174052e-12 | AK122: -6.99174052e-12 | AL122: -6.99174052e-12 | AM122: -6.99174052e-12 | AN122: -6.99174052e-12 | AO122: -6.99174052e-12 | AP122: -6.99174052e-12 | AQ122: -6.99174052e-12 | AR122: -6.99174052e-12 | AS122: -6.99174052e-12 | AT122: -6.99174052e-12 | AU122: -6.99174052e-12 | AV122: -6.99174052e-12 | AW122: -6.99174052e-12 | AX122: -6.99174052e-12 | AY122: -6.99174052e-12 | AZ122: -6.99174052e-12 | BA122: -6.99174052e-12 | BB122: -6.99174052e-12 | BC122: -6.99174052e-12 | BD122: -6.99174052e-12 | BE122: -6.99174052e-12 | BF122: -6.99174052e-12 | BG122: -6.99174052e-12 | BH122: -6.99174052e-12 | BI122: -6.99174052e-12 | BJ122: -6.99174052e-12 | BK122: -6.99174052e-12 | BL122: -6.99174052e-12 | BM122: -6.99174052e-12 | BN122: -6.99174052e-12 | BO122: -6.99174052e-12 | BP122: -6.99174052e-12 | BQ122: -6.99174052e-12 | BR122: -6.99174052e-12 | BS122: -6.99174052e-12 | BT122: =BT83 -> -6.99174052e-12 | BU122: -6.99174052e-12 | BV122: -6.99174052e-12 | BW122: -6.99174052e-12 | BX122: -6.99174052e-12 | BY122: -6.99174052e-12 | BZ122: -6.99174052e-12 | CA122: -6.99174052e-12 | CB122: -6.99174052e-12 | CC122: -6.99174052e-12 | CD122: -6.99174052e-12 | CE122: -6.99174052e-12 | CF122: -6.99174052e-12 | CG122: -6.99174052e-12 | CH122: -6.99174052e-12 | CI122: -6.99174052e-12 | CJ122: -6.99174052e-12 | CK122: -6.99174052e-12 | CL122: -6.99174052e-12 | CM122: -6.99174052e-12 | CN122: -6.99174052e-12 | CO122: -6.99174052e-12 | CP122: -6.99174052e-12 | CQ122: -6.99174052e-12 | CR122: -6.99174052e-12 | CS122: -6.99174052e-12 | CT122: -6.99174052e-12 | CU122: -6.99174052e-12 | CV122: -6.99174052e-12 | CW122: -6.99174052e-12 | CX122: -6.99174052e-12 | CY122: -6.99174052e-12 | CZ122: -6.99174052e-12 | DA122: -6.99174052e-12 | DB122: -6.99174052e-12
D123: Check | F123: =ROUND(F122-H84,3)=0 -> TRUE | G123: =G122-G121 -> 1.455191523e-11 | H123: =H122-H121 -> 2.546585165e-11 | I123: -1.455191523e-11 | J123: 0 | K123: 0 | L123: 1.455191523e-11 | M123: 0 | N123: 0 | O123: 0 | P123: 0 | Q123: 5.09317033e-11 | R123: -4.183675628e-11 | S123: 9.094947018e-12 | T123: 2.364686225e-11 | U123: 0 | V123: 0 | W123: 3.274180926e-11 | X123: -1.000444172e-11 | Y123: 0 | Z123: -1.273292582e-11 | AA123: -3.637978807e-11 | AB123: 3.274180926e-11 | AC123: 2.910383046e-11 | AD123: -2.000888344e-11 | AE123: 7.275957614e-12 | AF123: 0 | AG123: 0 | AH123: 0 | AI123: 0 | AJ123: 0 | AK123: 0 | AL123: 0 | AM123: 0 | AN123: 0 | AO123: 0 | AP123: 0 | AQ123: 0 | AR123: 0 | AS123: 0 | AT123: 0 | AU123: 0 | AV123: 0 | AW123: 0 | AX123: 0 | AY123: 0 | AZ123: 0 | BA123: 0 | BB123: 0 | BC123: 0 | BD123: 0 | BE123: 0 | BF123: 0 | BG123: 0 | BH123: 0 | BI123: 0 | BJ123: 0 | BK123: 0 | BL123: 0 | BM123: 0 | BN123: 0 | BO123: 0 | BP123: 0 | BQ123: 0 | BR123: 0 | BS123: 0 | BT123: =BT122-BT121 -> 0 | BU123: 0 | BV123: 0 | BW123: 0 | BX123: 0 | BY123: 0 | BZ123: 0 | CA123: 0 | CB123: 0 | CC123: 0 | CD123: 0 | CE123: 0 | CF123: 0 | CG123: 0 | CH123: 0 | CI123: 0 | CJ123: 0 | CK123: 0 | CL123: 0 | CM123: 0 | CN123: 0 | CO123: 0 | CP123: 0 | CQ123: 0 | CR123: 0 | CS123: 0 | CT123: 0 | CU123: 0 | CV123: 0 | CW123: 0 | CX123: 0 | CY123: 0 | CZ123: 0 | DA123: 0 | DB123: 0
B125: Financial Model in Real Terms with Inflating Price
D126: Index | F126: 1 | G126: =F126*(1+$S$33) -> 1.02 | H126: 1.0404 | I126: 1.061208 | J126: 1.08243216 | K126: 1.104080803 | L126: 1.126162419 | M126: 1.148685668 | N126: 1.171659381 | O126: 1.195092569 | P126: 1.21899442 | Q126: 1.243374308 | R126: 1.268241795 | S126: 1.29360663 | T126: 1.319478763 | U126: 1.345868338 | V126: 1.372785705 | W126: 1.400241419 | X126: 1.428246248 | Y126: 1.456811173 | Z126: 1.485947396 | AA126: 1.515666344 | AB126: 1.545979671 | AC126: 1.576899264 | AD126: 1.608437249 | AE126: 1.640605994 | AF126: 1.673418114 | AG126: 1.706886477 | AH126: 1.741024206 | AI126: 1.77584469 | AJ126: 1.811361584 | AK126: 1.847588816 | AL126: 1.884540592 | AM126: 1.922231404 | AN126: 1.960676032 | AO126: 1.999889553 | AP126: 2.039887344 | AQ126: 2.080685091 | AR126: 2.122298792 | AS126: 2.164744768 | AT126: 2.208039664 | AU126: 2.252200457 | AV126: 2.297244466 | AW126: 2.343189355 | AX126: 2.390053142 | AY126: 2.437854205 | AZ126: 2.486611289 | BA126: 2.536343515 | BB126: 2.587070385 | BC126: 2.638811793 | BD126: 2.691588029 | BE126: 2.74541979 | BF126: 2.800328185 | BG126: 2.856334749 | BH126: 2.913461444 | BI126: 2.971730673 | BJ126: 3.031165286 | BK126: 3.091788592 | BL126: 3.153624364 | BM126: 3.216696851 | BN126: 3.281030788 | BO126: 3.346651404 | BP126: 3.413584432 | BQ126: 3.481856121 | BR126: 3.551493243 | BS126: =BR126*(1+$S$33) -> 3.622523108 | BT126: 3.69497357 | BU126: 3.768873042 | BV126: 3.844250503 | BW126: 3.921135513 | BX126: 3.999558223 | BY126: 4.079549387 | BZ126: 4.161140375 | CA126: 4.244363183 | CB126: 4.329250446 | CC126: 4.415835455 | CD126: 4.504152164 | CE126: 4.594235208 | CF126: 4.686119912 | CG126: 4.77984231 | CH126: 4.875439156 | CI126: 4.972947939 | CJ126: 5.072406898 | CK126: 5.173855036 | CL126: 5.277332137 | CM126: 5.382878779 | CN126: 5.490536355 | CO126: 5.600347082 | CP126: 5.712354024 | CQ126: 5.826601104 | CR126: 5.943133126 | CS126: 6.061995789 | CT126: 6.183235705 | CU126: 6.306900419 | CV126: 6.433038427 | CW126: 6.561699196 | CX126: 6.69293318 | CY126: 6.826791843 | CZ126: 6.96332768 | DA126: 7.102594234 | DB126: 7.244646118
D127: Initial Price | E127: =S62 -> 17.64973704 | G127: =$E$127*G67 -> 17.64973704 | H127: 17.64973704 | I127: 17.64973704 | J127: 17.64973704 | K127: 17.64973704 | L127: 17.64973704 | M127: 17.64973704 | N127: 17.64973704 | O127: 17.64973704 | P127: 17.64973704 | Q127: 17.64973704 | R127: 17.64973704 | S127: 17.64973704 | T127: 17.64973704 | U127: 17.64973704 | V127: 17.64973704 | W127: 17.64973704 | X127: 17.64973704 | Y127: 17.64973704 | Z127: 17.64973704 | AA127: 17.64973704 | AB127: 17.64973704 | AC127: 17.64973704 | AD127: 17.64973704 | AE127: 17.64973704 | AF127: 0 | AG127: 0 | AH127: 0 | AI127: 0 | AJ127: 0 | AK127: 0 | AL127: 0 | AM127: 0 | AN127: 0 | AO127: 0 | AP127: 0 | AQ127: 0 | AR127: 0 | AS127: 0 | AT127: 0 | AU127: 0 | AV127: 0 | AW127: 0 | AX127: 0 | AY127: 0 | AZ127: 0 | BA127: 0 | BB127: 0 | BC127: 0 | BD127: 0 | BE127: 0 | BF127: 0 | BG127: 0 | BH127: 0 | BI127: 0 | BJ127: 0 | BK127: 0 | BL127: 0 | BM127: 0 | BN127: 0 | BO127: 0 | BP127: 0 | BQ127: 0 | BR127: 0 | BS127: =$E$127*BS67 -> 0 | BT127: 0 | BU127: 0 | BV127: 0 | BW127: 0 | BX127: 0 | BY127: 0 | BZ127: 0 | CA127: 0 | CB127: 0 | CC127: 0 | CD127: 0 | CE127: 0 | CF127: 0 | CG127: 0 | CH127: 0 | CI127: 0 | CJ127: 0 | CK127: 0 | CL127: 0 | CM127: 0 | CN127: 0 | CO127: 0 | CP127: 0 | CQ127: 0 | CR127: 0 | CS127: 0 | CT127: 0 | CU127: 0 | CV127: 0 | CW127: 0 | CX127: 0 | CY127: 0 | CZ127: 0 | DA127: 0 | DB127: 0
D128: Inflated Price | G128: =G127*G126 -> 18.00273178 | H128: =H127*H126 -> 18.36278642 | I128: 18.73004214 | J128: 19.10464299 | K128: 19.48673585 | L128: 19.87647056 | M128: 20.27399998 | N128: 20.67947997 | O128: 21.09306957 | P128: 21.51493097 | Q128: 21.94522959 | R128: 22.38413418 | S128: 22.83181686 | T128: 23.2884532 | U128: 23.75422226 | V128: 24.22930671 | W128: 24.71389284 | X128: 25.2081707 | Y128: 25.71233411 | Z128: 26.22658079 | AA128: 26.75111241 | AB128: 27.28613466 | AC128: 27.83185735 | AD128: 28.3884945 | AE128: 28.95626439 | AF128: 0 | AG128: 0 | AH128: 0 | AI128: 0 | AJ128: 0 | AK128: 0 | AL128: 0 | AM128: 0 | AN128: 0 | AO128: 0 | AP128: 0 | AQ128: 0 | AR128: 0 | AS128: 0 | AT128: 0 | AU128: 0 | AV128: 0 | AW128: 0 | AX128: 0 | AY128: 0 | AZ128: 0 | BA128: 0 | BB128: 0 | BC128: 0 | BD128: 0 | BE128: 0 | BF128: 0 | BG128: 0 | BH128: 0 | BI128: 0 | BJ128: 0 | BK128: 0 | BL128: 0 | BM128: 0 | BN128: 0 | BO128: 0 | BP128: 0 | BQ128: 0 | BR128: 0 | BS128: 0 | BT128: =BT127*BT126 -> 0 | BU128: 0 | BV128: 0 | BW128: 0 | BX128: 0 | BY128: 0 | BZ128: 0 | CA128: 0 | CB128: 0 | CC128: 0 | CD128: 0 | CE128: 0 | CF128: 0 | CG128: 0 | CH128: 0 | CI128: 0 | CJ128: 0 | CK128: 0 | CL128: 0 | CM128: 0 | CN128: 0 | CO128: 0 | CP128: 0 | CQ128: 0 | CR128: 0 | CS128: 0 | CT128: 0 | CU128: 0 | CV128: 0 | CW128: 0 | CX128: 0 | CY128: 0 | CZ128: 0 | DA128: 0 | DB128: 0
D129: Generation | E129: =S18 -> 2016.18 | G129: =G72 -> 2006.0991 | H129: 1996.068605 | I129: 1986.088261 | J129: 1976.15782 | K129: 1966.277031 | L129: 1956.445646 | M129: 1946.663418 | N129: 1936.930101 | O129: 1927.24545 | P129: 1917.609223 | Q129: 1908.021177 | R129: 1898.481071 | S129: 1888.988665 | T129: 1879.543722 | U129: 1870.146004 | V129: 1860.795274 | W129: 1851.491297 | X129: 1842.233841 | Y129: 1833.022671 | Z129: 1823.857558 | AA129: 1814.73827 | AB129: 1805.664579 | AC129: 1796.636256 | AD129: 1787.653075 | AE129: 1778.714809 | AF129: 0 | AG129: 0 | AH129: 0 | AI129: 0 | AJ129: 0 | AK129: 0 | AL129: 0 | AM129: 0 | AN129: 0 | AO129: 0 | AP129: 0 | AQ129: 0 | AR129: 0 | AS129: 0 | AT129: 0 | AU129: 0 | AV129: 0 | AW129: 0 | AX129: 0 | AY129: 0 | AZ129: 0 | BA129: 0 | BB129: 0 | BC129: 0 | BD129: 0 | BE129: 0 | BF129: 0 | BG129: 0 | BH129: 0 | BI129: 0 | BJ129: 0 | BK129: 0 | BL129: 0 | BM129: 0 | BN129: 0 | BO129: 0 | BP129: 0 | BQ129: 0 | BR129: 0 | BS129: =BS72 -> 0 | BT129: 0 | BU129: 0 | BV129: 0 | BW129: 0 | BX129: 0 | BY129: 0 | BZ129: 0 | CA129: 0 | CB129: 0 | CC129: 0 | CD129: 0 | CE129: 0 | CF129: 0 | CG129: 0 | CH129: 0 | CI129: 0 | CJ129: 0 | CK129: 0 | CL129: 0 | CM129: 0 | CN129: 0 | CO129: 0 | CP129: 0 | CQ129: 0 | CR129: 0 | CS129: 0 | CT129: 0 | CU129: 0 | CV129: 0 | CW129: 0 | CX129: 0 | CY129: 0 | CZ129: 0 | DA129: 0 | DB129: 0
D130: Revenues (USD) | G130: =G128*G129 -> 36115.26402 | H130: =H128*H129 -> 36653.38146 | I130: 37199.51684 | J130: 37753.78964 | K130: 38316.32111 | L130: 38887.23429 | M130: 39466.65408 | N130: 40054.70723 | O130: 40651.52237 | P130: 41257.23005 | Q130: 41871.96278 | R130: 42495.85502 | S130: 43129.04326 | T130: 43771.66601 | U130: 44423.86383 | V130: 45085.7794 | W130: 45757.55751 | X130: 46439.34512 | Y130: 47131.29136 | Z130: 47833.5476 | AA130: 48546.26746 | AB130: 49269.60685 | AC130: 50003.72399 | AD130: 50748.77948 | AE130: 51504.93629 | AF130: 0 | AG130: 0 | AH130: 0 | AI130: 0 | AJ130: 0 | AK130: 0 | AL130: 0 | AM130: 0 | AN130: 0 | AO130: 0 | AP130: 0 | AQ130: 0 | AR130: 0 | AS130: 0 | AT130: 0 | AU130: 0 | AV130: 0 | AW130: 0 | AX130: 0 | AY130: 0 | AZ130: 0 | BA130: 0 | BB130: 0 | BC130: 0 | BD130: 0 | BE130: 0 | BF130: 0 | BG130: 0 | BH130: 0 | BI130: 0 | BJ130: 0 | BK130: 0 | BL130: 0 | BM130: 0 | BN130: 0 | BO130: 0 | BP130: 0 | BQ130: 0 | BR130: 0 | BS130: 0 | BT130: =BT128*BT129 -> 0 | BU130: 0 | BV130: 0 | BW130: 0 | BX130: 0 | BY130: 0 | BZ130: 0 | CA130: 0 | CB130: 0 | CC130: 0 | CD130: 0 | CE130: 0 | CF130: 0 | CG130: 0 | CH130: 0 | CI130: 0 | CJ130: 0 | CK130: 0 | CL130: 0 | CM130: 0 | CN130: 0 | CO130: 0 | CP130: 0 | CQ130: 0 | CR130: 0 | CS130: 0 | CT130: 0 | CU130: 0 | CV130: 0 | CW130: 0 | CX130: 0 | CY130: 0 | CZ130: 0 | DA130: 0 | DB130: 0
D131: Operating Cost | E131: =E75 -> 10000 | G131: =G75 -> 10200 | H131: 10404 | I131: 10612.08 | J131: 10824.3216 | K131: 11040.80803 | L131: 11261.62419 | M131: 11486.85668 | N131: 11716.59381 | O131: 11950.92569 | P131: 12189.9442 | Q131: 12433.74308 | R131: 12682.41795 | S131: 12936.0663 | T131: 13194.78763 | U131: 13458.68338 | V131: 13727.85705 | W131: 14002.41419 | X131: 14282.46248 | Y131: 14568.11173 | Z131: 14859.47396 | AA131: 15156.66344 | AB131: 15459.79671 | AC131: 15768.99264 | AD131: 16084.37249 | AE131: 16406.05994 | AF131: 0 | AG131: 0 | AH131: 0 | AI131: 0 | AJ131: 0 | AK131: 0 | AL131: 0 | AM131: 0 | AN131: 0 | AO131: 0 | AP131: 0 | AQ131: 0 | AR131: 0 | AS131: 0 | AT131: 0 | AU131: 0 | AV131: 0 | AW131: 0 | AX131: 0 | AY131: 0 | AZ131: 0 | BA131: 0 | BB131: 0 | BC131: 0 | BD131: 0 | BE131: 0 | BF131: 0 | BG131: 0 | BH131: 0 | BI131: 0 | BJ131: 0 | BK131: 0 | BL131: 0 | BM131: 0 | BN131: 0 | BO131: 0 | BP131: 0 | BQ131: 0 | BR131: 0 | BS131: =BS75 -> 0 | BT131: 0 | BU131: 0 | BV131: 0 | BW131: 0 | BX131: 0 | BY131: 0 | BZ131: 0 | CA131: 0 | CB131: 0 | CC131: 0 | CD131: 0 | CE131: 0 | CF131: 0 | CG131: 0 | CH131: 0 | CI131: 0 | CJ131: 0 | CK131: 0 | CL131: 0 | CM131: 0 | CN131: 0 | CO131: 0 | CP131: 0 | CQ131: 0 | CR131: 0 | CS131: 0 | CT131: 0 | CU131: 0 | CV131: 0 | CW131: 0 | CX131: 0 | CY131: 0 | CZ131: 0 | DA131: 0 | DB131: 0
D132: EBITDA | G132: =G130-G131 -> 25915.26402 | H132: 26249.38146 | I132: 26587.43684 | J132: 26929.46804 | K132: 27275.51307 | L132: 27625.6101 | M132: 27979.79741 | N132: 28338.11342 | O132: 28700.59668 | P132: 29067.28585 | Q132: 29438.21969 | R132: 29813.43708 | S132: 30192.97696 | T132: 30576.87838 | U132: 30965.18045 | V132: 31357.92235 | W132: 31755.14332 | X132: 32156.88265 | Y132: 32563.17964 | Z132: 32974.07364 | AA132: 33389.60402 | AB132: 33809.81014 | AC132: 34234.73135 | AD132: 34664.40698 | AE132: 35098.87635 | AF132: 0 | AG132: 0 | AH132: 0 | AI132: 0 | AJ132: 0 | AK132: 0 | AL132: 0 | AM132: 0 | AN132: 0 | AO132: 0 | AP132: 0 | AQ132: 0 | AR132: 0 | AS132: 0 | AT132: 0 | AU132: 0 | AV132: 0 | AW132: 0 | AX132: 0 | AY132: 0 | AZ132: 0 | BA132: 0 | BB132: 0 | BC132: 0 | BD132: 0 | BE132: 0 | BF132: 0 | BG132: 0 | BH132: 0 | BI132: 0 | BJ132: 0 | BK132: 0 | BL132: 0 | BM132: 0 | BN132: 0 | BO132: 0 | BP132: 0 | BQ132: 0 | BR132: 0 | BS132: =BS130-BS131 -> 0 | BT132: 0 | BU132: 0 | BV132: 0 | BW132: 0 | BX132: 0 | BY132: 0 | BZ132: 0 | CA132: 0 | CB132: 0 | CC132: 0 | CD132: 0 | CE132: 0 | CF132: 0 | CG132: 0 | CH132: 0 | CI132: 0 | CJ132: 0 | CK132: 0 | CL132: 0 | CM132: 0 | CN132: 0 | CO132: 0 | CP132: 0 | CQ132: 0 | CR132: 0 | CS132: 0 | CT132: 0 | CU132: 0 | CV132: 0 | CW132: 0 | CX132: 0 | CY132: 0 | CZ132: 0 | DA132: 0 | DB132: 0
D133: Depreciation | E133: =G13 -> 500000 | G133: =$E$133*G200 -> 50000 | H133: 50000 | I133: 50000 | J133: 50000 | K133: 50000 | L133: 50000 | M133: 50000 | N133: 50000 | O133: 50000 | P133: 50000 | Q133: 0 | R133: 0 | S133: 0 | T133: 0 | U133: 0 | V133: 0 | W133: 0 | X133: 0 | Y133: 0 | Z133: 0 | AA133: 0 | AB133: 0 | AC133: 0 | AD133: 0 | AE133: 0 | AF133: 0 | AG133: 0 | AH133: 0 | AI133: 0 | AJ133: 0 | AK133: 0 | AL133: 0 | AM133: =$E$133*AM200 -> 0 | AN133: 0 | AO133: 0 | AP133: 0 | AQ133: 0 | AR133: 0 | AS133: 0 | AT133: 0 | AU133: 0 | AV133: 0 | AW133: 0 | AX133: 0 | AY133: 0 | AZ133: 0 | BA133: 0 | BB133: 0 | BC133: 0 | BD133: 0 | BE133: 0 | BF133: 0 | BG133: 0 | BH133: 0 | BI133: 0 | BJ133: 0 | BK133: 0 | BL133: 0 | BM133: 0 | BN133: 0 | BO133: 0 | BP133: 0 | BQ133: 0 | BR133: 0 | BS133: =$E$133*BS200 -> 0 | BT133: 0 | BU133: 0 | BV133: 0 | BW133: 0 | BX133: 0 | BY133: 0 | BZ133: 0 | CA133: 0 | CB133: 0 | CC133: 0 | CD133: 0 | CE133: 0 | CF133: 0 | CG133: 0 | CH133: 0 | CI133: 0 | CJ133: 0 | CK133: 0 | CL133: 0 | CM133: 0 | CN133: 0 | CO133: 0 | CP133: 0 | CQ133: 0 | CR133: 0 | CS133: 0 | CT133: 0 | CU133: 0 | CV133: 0 | CW133: 0 | CX133: 0 | CY133: 0 | CZ133: 0 | DA133: 0 | DB133: 0
D134: Less: Taxes | E134: =S27 -> 0.25 | G134: =(G132-G133)*$E$134 -> -6021.183994 | H134: -5937.654636 | I134: -5853.14079 | J134: -5767.63299 | K134: -5681.121731 | L134: -5593.597475 | M134: -5505.050649 | N134: -5415.471646 | O134: -5324.85083 | P134: -5233.178538 | Q134: 7359.554923 | R134: 7453.359269 | S134: 7548.244239 | T134: 7644.219594 | U134: 7741.295112 | V134: 7839.480587 | W134: 7938.78583 | X134: 8039.220661 | Y134: 8140.794909 | Z134: 8243.518411 | AA134: 8347.401006 | AB134: 8452.452535 | AC134: 8558.682837 | AD134: 8666.101746 | AE134: 8774.719087 | AF134: 0 | AG134: 0 | AH134: 0 | AI134: 0 | AJ134: 0 | AK134: 0 | AL134: 0 | AM134: 0 | AN134: 0 | AO134: 0 | AP134: 0 | AQ134: 0 | AR134: 0 | AS134: 0 | AT134: 0 | AU134: 0 | AV134: 0 | AW134: 0 | AX134: 0 | AY134: 0 | AZ134: 0 | BA134: 0 | BB134: 0 | BC134: 0 | BD134: 0 | BE134: 0 | BF134: 0 | BG134: 0 | BH134: 0 | BI134: 0 | BJ134: 0 | BK134: 0 | BL134: 0 | BM134: 0 | BN134: 0 | BO134: 0 | BP134: 0 | BQ134: 0 | BR134: 0 | BS134: =(BS132-BS133)*$E$134 -> 0 | BT134: 0 | BU134: 0 | BV134: 0 | BW134: 0 | BX134: 0 | BY134: 0 | BZ134: 0 | CA134: 0 | CB134: 0 | CC134: 0 | CD134: 0 | CE134: 0 | CF134: 0 | CG134: 0 | CH134: 0 | CI134: 0 | CJ134: 0 | CK134: 0 | CL134: 0 | CM134: 0 | CN134: 0 | CO134: 0 | CP134: 0 | CQ134: 0 | CR134: 0 | CS134: 0 | CT134: 0 | CU134: 0 | CV134: 0 | CW134: 0 | CX134: 0 | CY134: 0 | CZ134: 0 | DA134: 0 | DB134: 0
D135: Capex | F135: =G13 -> 500000
D136: Project Cash Flow | F136: =F132-F135 -> -500000 | G136: =G132-G134 -> 31936.44802 | H136: =H132-H134 -> 32187.03609 | I136: 32440.57763 | J136: 32697.10103 | K136: 32956.63481 | L136: 33219.20757 | M136: 33484.84805 | N136: 33753.58506 | O136: 34025.44751 | P136: 34300.46439 | Q136: 22078.66477 | R136: 22360.07781 | S136: 22644.73272 | T136: 22932.65878 | U136: 23223.88533 | V136: 23518.44176 | W136: 23816.35749 | X136: 24117.66198 | Y136: 24422.38473 | Z136: 24730.55523 | AA136: 25042.20302 | AB136: 25357.35761 | AC136: 25676.04851 | AD136: 25998.30524 | AE136: 26324.15726 | AF136: 0 | AG136: 0 | AH136: 0 | AI136: 0 | AJ136: 0 | AK136: 0 | AL136: 0 | AM136: 0 | AN136: 0 | AO136: 0 | AP136: 0 | AQ136: 0 | AR136: 0 | AS136: 0 | AT136: 0 | AU136: 0 | AV136: 0 | AW136: 0 | AX136: 0 | AY136: 0 | AZ136: 0 | BA136: 0 | BB136: 0 | BC136: 0 | BD136: 0 | BE136: 0 | BF136: 0 | BG136: 0 | BH136: 0 | BI136: 0 | BJ136: 0 | BK136: 0 | BL136: 0 | BM136: 0 | BN136: 0 | BO136: 0 | BP136: 0 | BQ136: 0 | BR136: 0 | BS136: 0 | BT136: =BT132-BT134 -> 0 | BU136: 0 | BV136: 0 | BW136: 0 | BX136: 0 | BY136: 0 | BZ136: 0 | CA136: 0 | CB136: 0 | CC136: 0 | CD136: 0 | CE136: 0 | CF136: 0 | CG136: 0 | CH136: 0 | CI136: 0 | CJ136: 0 | CK136: 0 | CL136: 0 | CM136: 0 | CN136: 0 | CO136: 0 | CP136: 0 | CQ136: 0 | CR136: 0 | CS136: 0 | CT136: 0 | CU136: 0 | CV136: 0 | CW136: 0 | CX136: 0 | CY136: 0 | CZ136: 0 | DA136: 0 | DB136: 0
D137: After-tax Project IRR | F137: =IRR(F136:DS136) -> 0.029 | G137: Target | H137: =G40 -> 0.029 | I137: =ROUND(H137-F137,3)=0 -> TRUE
B139: Proof with LCOE Formula - LCOE =NPV(Revenues)/NPV(Generation)
C141: Nominal | F141: Computed | G141: Method 1 | H141: Test
D142: NPV of Revenues | E142: =S42 -> 0.029 | F142: =NPV(E142,G130:EB130) -> 747235.3243
D143: NPV of Generation | E143: =E142 -> 0.029 | F143: =NPV(E143,G72:DB72) -> 33530.73467
D144: Nominal LCOE | F144: =F142/F143 -> 22.28508655 | G144: =S63 -> 22.28508655 | H144: =ROUND(F144-G144,0)=0 -> TRUE
C146: Real
D147: NPV of Revenues | E147: =E142 -> 0.029 | F147: =F142 -> 747235.3243
D148: NPV of Generation | E148: =$S$43 -> 0.008823529412 | F148: =NPV(E148,G129:DB129) -> 42336.90976
D149: Real LCOE | F149: =F142/F148 -> 17.64973704 | G149: =$E$127 -> 17.64973704 | H149: =ROUND(F149-G149,0)=0 -> TRUE
B151: Proof with LCOE Formula - LCOE =NPV Cost/NPV(Generation)
D153: Capital Expenditure at COD -1 | F153: =G13 -> 500000
D154: Gross-Up for Taxes | E154: =S27 -> 0.25 | F154: =F153/(1-E154) -> 666666.6667
D155: Value of Tax Deduction | E155: =S30 -> 0.2143475398 | F155: =F154*E155*-1 -> -142898.3599
D156: O&M Factors (Nom OM, Life) | E156: =S57*1000 -> 13436.91797 | F156: =S25 -> 25
D157: NPV of O&M Expenses | E157: =S45 -> 0.03417085427 | F157: =PV(E157,F156,-E156) -> 223467.0175
D158: Total Cost | F158: =F154+F157+F155 -> 747235.3243
D160: NPV Generation - Nominal | E160: =E142 -> 0.029 | F160: =NPV(E160,G72:DB72) -> 33530.73467
D161: Nominal LCOE | F161: =F158/F160 -> 22.28508655 | G161: =$E$69 -> 22.28508655 | H161: =ROUND(G161-F161,0)=0 -> TRUE
D163: Total Cost | F163: =F158 -> 747235.3243
D164: NPV Generation - Real | E164: =S43 -> 0.008823529412 | F164: =NPV(E164,G72:DB72) -> 42336.90976
D165: Real LCOE | F165: =F163/F164 -> 17.64973704 | G165: =$E$127 -> 17.64973704 | H165: =ROUND(F165-G165,0)=0 -> TRUE
B167: Proof with LCOE Formula - LCOE =NPV Cost/NPV(Generation)
G168: =G66 -> 1 | H168: 2 | I168: 3 | J168: 4 | K168: 5 | L168: 6 | M168: 7 | N168: 8 | O168: 9 | P168: 10 | Q168: 11 | R168: 12 | S168: 13 | T168: 14 | U168: 15 | V168: 16 | W168: 17 | X168: 18 | Y168: 19 | Z168: 20 | AA168: 21 | AB168: 22 | AC168: 23 | AD168: 24 | AE168: 25 | AF168: 26 | AG168: 27 | AH168: 28 | AI168: 29 | AJ168: 30 | AK168: 31 | AL168: 32 | AM168: 33 | AN168: 34 | AO168: 35 | AP168: 36 | AQ168: 37 | AR168: 38 | AS168: 39 | AT168: 40 | AU168: 41 | AV168: 42 | AW168: 43 | AX168: 44 | AY168: 45 | AZ168: 46 | BA168: 47 | BB168: 48 | BC168: 49 | BD168: 50 | BE168: 51 | BF168: 52 | BG168: 53 | BH168: 54 | BI168: 55 | BJ168: 56 | BK168: 57 | BL168: 58 | BM168: 59 | BN168: 60 | BO168: 61 | BP168: 62 | BQ168: 63 | BR168: 64 | BS168: =BS66 -> 65 | BT168: 66 | BU168: 67 | BV168: 68 | BW168: 69 | BX168: 70 | BY168: 71 | BZ168: 72 | CA168: 73 | CB168: 74 | CC168: 75 | CD168: 76 | CE168: 77 | CF168: 78 | CG168: 79 | CH168: 80 | CI168: 81 | CJ168: 82 | CK168: 83 | CL168: 84 | CM168: 85 | CN168: 86 | CO168: 87 | CP168: 88 | CQ168: 89 | CR168: 90 | CS168: 91 | CT168: 92 | CU168: 93 | CV168: 94 | CW168: 95 | CX168: 96 | CY168: 97 | CZ168: 98 | DA168: 99 | DB168: 100
D169: Inflated Price | F169: =F165 -> 17.64973704 | G169: =G128 -> 18.00273178 | H169: 18.36278642 | I169: 18.73004214 | J169: 19.10464299 | K169: 19.48673585 | L169: 19.87647056 | M169: 20.27399998 | N169: 20.67947997 | O169: 21.09306957 | P169: 21.51493097 | Q169: 21.94522959 | R169: 22.38413418 | S169: 22.83181686 | T169: 23.2884532 | U169: 23.75422226 | V169: 24.22930671 | W169: 24.71389284 | X169: 25.2081707 | Y169: 25.71233411 | Z169: 26.22658079 | AA169: 26.75111241 | AB169: 27.28613466 | AC169: 27.83185735 | AD169: 28.3884945 | AE169: 28.95626439 | AF169: 0 | AG169: 0 | AH169: 0 | AI169: 0 | AJ169: 0 | AK169: 0 | AL169: 0 | AM169: 0 | AN169: 0 | AO169: 0 | AP169: 0 | AQ169: 0 | AR169: 0 | AS169: 0 | AT169: 0 | AU169: 0 | AV169: 0 | AW169: 0 | AX169: 0 | AY169: 0 | AZ169: 0 | BA169: 0 | BB169: 0 | BC169: 0 | BD169: 0 | BE169: 0 | BF169: 0 | BG169: 0 | BH169: 0 | BI169: 0 | BJ169: 0 | BK169: 0 | BL169: 0 | BM169: 0 | BN169: 0 | BO169: 0 | BP169: 0 | BQ169: 0 | BR169: 0 | BS169: =BS128 -> 0 | BT169: 0 | BU169: 0 | BV169: 0 | BW169: 0 | BX169: 0 | BY169: 0 | BZ169: 0 | CA169: 0 | CB169: 0 | CC169: 0 | CD169: 0 | CE169: 0 | CF169: 0 | CG169: 0 | CH169: 0 | CI169: 0 | CJ169: 0 | CK169: 0 | CL169: 0 | CM169: 0 | CN169: 0 | CO169: 0 | CP169: 0 | CQ169: 0 | CR169: 0 | CS169: 0 | CT169: 0 | CU169: 0 | CV169: 0 | CW169: 0 | CX169: 0 | CY169: 0 | CZ169: 0 | DA169: 0 | DB169: 0
D170: Generation | G170: 2006.0991 | H170: 1996.068605 | I170: 1986.088261 | J170: 1976.15782 | K170: 1966.277031 | L170: 1956.445646 | M170: 1946.663418 | N170: 1936.930101 | O170: 1927.24545 | P170: 1917.609223 | Q170: 1908.021177 | R170: 1898.481071 | S170: 1888.988665 | T170: 1879.543722 | U170: 1870.146004 | V170: 1860.795274 | W170: 1851.491297 | X170: 1842.233841 | Y170: 1833.022671 | Z170: 1823.857558 | AA170: 1814.73827 | AB170: 1805.664579 | AC170: 1796.636256 | AD170: 1787.653075 | AE170: 1778.714809 | AF170: 0 | AG170: 0 | AH170: 0 | AI170: 0 | AJ170: 0 | AK170: 0 | AL170: 0 | AM170: 0 | AN170: 0 | AO170: 0 | AP170: 0 | AQ170: 0 | AR170: 0 | AS170: 0 | AT170: 0 | AU170: 0 | AV170: 0 | AW170: 0 | AX170: 0 | AY170: 0 | AZ170: 0 | BA170: 0 | BB170: 0 | BC170: 0 | BD170: 0 | BE170: 0 | BF170: 0 | BG170: 0 | BH170: 0 | BI170: 0 | BJ170: 0 | BK170: 0 | BL170: 0 | BM170: 0 | BN170: 0 | BO170: 0 | BP170: 0 | BQ170: 0 | BR170: 0 | BS170: 0 | BT170: 0 | BU170: 0 | BV170: 0 | BW170: 0 | BX170: 0 | BY170: 0 | BZ170: 0 | CA170: 0 | CB170: 0 | CC170: 0 | CD170: 0 | CE170: 0 | CF170: 0 | CG170: 0 | CH170: 0 | CI170: 0 | CJ170: 0 | CK170: 0 | CL170: 0 | CM170: 0 | CN170: 0 | CO170: 0 | CP170: 0 | CQ170: 0 | CR170: 0 | CS170: 0 | CT170: 0 | CU170: 0 | CV170: 0 | CW170: 0 | CX170: 0 | CY170: 0 | CZ170: 0 | DA170: 0 | DB170: 0
D171: Discount Factor - Nominal | E171: =E160 -> 0.029 | G171: =1/(1+$E$171)^G168 -> 0.9718172983 | H171: 0.9444288614 | I171: 0.9178123045 | J171: 0.8919458742 | K171: 0.8668084297 | L171: 0.8423794264 | M171: 0.8186388983 | N171: 0.7955674425 | O171: 0.7731462026 | P171: 0.7513568538 | Q171: 0.7301815878 | R171: 0.709603098 | S171: 0.6896045656 | T171: 0.6701696458 | U171: 0.6512824546 | V171: 0.6329275555 | W171: 0.6150899471 | X171: 0.5977550506 | Y171: 0.5809086983 | Z171: 0.5645371218 | AA171: 0.5486269405 | AB171: 0.5331651512 | AC171: 0.5181391168 | AD171: 0.5035365566 | AE171: 0.4893455361 | AF171: 0.4755544568 | AG171: 0.4621520475 | AH171: 0.4491273542 | AI171: 0.436469732 | AJ171: 0.4241688357 | AK171: 0.412214612 | AL171: 0.4005972905 | AM171: 0.3893073766 | AN171: 0.378335643 | AO171: 0.3676731224 | AP171: 0.3573111005 | AQ171: 0.3472411084 | AR171: 0.3374549158 | AS171: 0.3279445246 | AT171: 0.3187021619 | AU171: 0.309720274 | AV171: 0.3009915199 | AW171: 0.2925087657 | AX171: 0.2842650784 | AY171: 0.2762537205 | AZ171: 0.2684681443 | BA171: 0.2609019867 | BB171: 0.2535490639 | BC171: 0.2464033662 | BD171: 0.2394590537 | BE171: 0.2327104506 | BF171: 0.2261520414 | BG171: 0.2197784659 | BH171: 0.213584515 | BI171: 0.2075651263 | BJ171: 0.2017153803 | BK171: 0.1960304959 | BL171: 0.1905058269 | BM171: 0.185136858 | BN171: 0.1799192012 | BO171: 0.174848592 | BP171: 0.1699208863 | BQ171: 0.1651320567 | BR171: 0.1604781892 | BS171: =1/(1+$E$171)^BS168 -> 0.1559554803 | BT171: 0.1515602335 | BU171: 0.1472888567 | BV171: 0.1431378587 | BW171: 0.1391038472 | BX171: 0.135183525 | BY171: 0.131373688 | BZ171: 0.1276712225 | CA171: 0.1240731026 | CB171: 0.1205763873 | CC171: 0.117178219 | CD171: 0.1138758202 | CE171: 0.1106664919 | CF171: 0.1075476112 | CG171: 0.104516629 | CH171: 0.101571068 | CI171: 0.0987085209 | CJ171: 0.0959266481 | CK171: 0.093223176 | CL171: 0.09059589504 | CM171: 0.08804265796 | CN171: 0.085561378 | CO171: 0.08315002721 | CP171: 0.0808066348 | CQ171: 0.07852928552 | CR171: 0.07631611809 | CS171: 0.07416532371 | CT171: 0.07207514452 | CU171: 0.07004387222 | CV171: 0.06806984667 | CW171: 0.06615145449 | CX171: 0.06428712778 | CY171: 0.06247534284 | CZ171: 0.06071461889 | DA171: 0.0590035169 | DB171: 0.05734063839
D172: Discounted Generation | G172: =G170*G171 -> 1949.561808 | H172: =H170*H171 -> 1885.144799 | I172: 1822.856244 | J172: 1762.625814 | K172: 1704.385506 | L172: 1648.069561 | M172: 1593.614396 | N172: 1540.958526 | O172: 1490.042501 | P172: 1440.808833 | Q172: 1393.201932 | R172: 1347.168049 | S172: 1302.655208 | T172: 1259.613151 | U172: 1217.99328 | V172: 1177.748604 | W172: 1138.833684 | X172: 1101.204583 | Y172: 1064.818814 | Z172: 1029.635296 | AA172: 995.6143051 | AB172: 962.7174282 | AC172: 930.9075229 | AD172: 900.1486737 | AE172: 870.4061519 | AF172: 0 | AG172: 0 | AH172: 0 | AI172: 0 | AJ172: 0 | AK172: 0 | AL172: 0 | AM172: 0 | AN172: 0 | AO172: 0 | AP172: 0 | AQ172: 0 | AR172: 0 | AS172: 0 | AT172: 0 | AU172: 0 | AV172: 0 | AW172: 0 | AX172: 0 | AY172: 0 | AZ172: 0 | BA172: 0 | BB172: 0 | BC172: 0 | BD172: 0 | BE172: 0 | BF172: 0 | BG172: 0 | BH172: 0 | BI172: 0 | BJ172: 0 | BK172: 0 | BL172: 0 | BM172: 0 | BN172: 0 | BO172: 0 | BP172: 0 | BQ172: 0 | BR172: 0 | BS172: 0 | BT172: =BT170*BT171 -> 0 | BU172: 0 | BV172: 0 | BW172: 0 | BX172: 0 | BY172: 0 | BZ172: 0 | CA172: 0 | CB172: 0 | CC172: 0 | CD172: 0 | CE172: 0 | CF172: 0 | CG172: 0 | CH172: 0 | CI172: 0 | CJ172: 0 | CK172: 0 | CL172: 0 | CM172: 0 | CN172: 0 | CO172: 0 | CP172: 0 | CQ172: 0 | CR172: 0 | CS172: 0 | CT172: 0 | CU172: 0 | CV172: 0 | CW172: 0 | CX172: 0 | CY172: 0 | CZ172: 0 | DA172: 0 | DB172: 0
D173: Weighting Factor | G173: =G172/SUM(172:172) -> 0.05814253182 | H173: 0.0562213986 | I173: 0.05436374306 | J173: 0.05256746778 | K173: 0.05083054465 | L173: 0.04915101256 | M173: 0.04752697521 | N173: 0.04595659897 | O173: 0.04443811076 | P173: 0.04296979612 | Q173: 0.04154999722 | R173: 0.04017711101 | S173: 0.03884958742 | T173: 0.03756592759 | U173: 0.03632468217 | V173: 0.03512444971 | W173: 0.03396387509 | X173: 0.03284164792 | Y173: 0.03175650115 | Z173: 0.03070720957 | AA173: 0.02969258845 | AB173: 0.02871149224 | AC173: 0.02776281319 | AD173: 0.0268454802 | AE173: 0.02595845753 | AF173: 0 | AG173: 0 | AH173: 0 | AI173: 0 | AJ173: 0 | AK173: 0 | AL173: 0 | AM173: 0 | AN173: 0 | AO173: 0 | AP173: 0 | AQ173: 0 | AR173: 0 | AS173: 0 | AT173: 0 | AU173: 0 | AV173: 0 | AW173: 0 | AX173: 0 | AY173: 0 | AZ173: 0 | BA173: 0 | BB173: 0 | BC173: 0 | BD173: 0 | BE173: 0 | BF173: 0 | BG173: 0 | BH173: 0 | BI173: 0 | BJ173: 0 | BK173: 0 | BL173: 0 | BM173: 0 | BN173: 0 | BO173: 0 | BP173: 0 | BQ173: 0 | BR173: 0 | BS173: =BS172/SUM(172:172) -> 0 | BT173: 0 | BU173: 0 | BV173: 0 | BW173: 0 | BX173: 0 | BY173: 0 | BZ173: 0 | CA173: 0 | CB173: 0 | CC173: 0 | CD173: 0 | CE173: 0 | CF173: 0 | CG173: 0 | CH173: 0 | CI173: 0 | CJ173: 0 | CK173: 0 | CL173: 0 | CM173: 0 | CN173: 0 | CO173: 0 | CP173: 0 | CQ173: 0 | CR173: 0 | CS173: 0 | CT173: 0 | CU173: 0 | CV173: 0 | CW173: 0 | CX173: 0 | CY173: 0 | CZ173: 0 | DA173: 0 | DB173: 0
D175: LCOE with Sumproduct - MWH | E175: =SUMPRODUCT(G173:DB173*G169:DB169) -> 22.28508655 | G175: =_xlfn.FORMULATEXT(E175) -> =SUMPRODUCT(G173:DB173*G169:DB169)
B178: Depreciation Tax Shield
D180: Year | E180: =G28 -> 10 | F180: 0 | G180: 1 | H180: 2 | I180: 3 | J180: 4 | K180: 5 | L180: 6 | M180: 7 | N180: 8 | O180: 9 | P180: 10 | Q180: 11 | R180: 12 | S180: 13 | T180: 14 | U180: 15 | V180: 16 | W180: 17 | X180: 18 | Y180: 19 | Z180: 20 | AA180: 21 | AB180: 22 | AC180: 23 | AD180: 24 | AE180: 25 | AF180: 26 | AG180: 27 | AH180: 28 | AI180: 29 | AJ180: 30 | AK180: 31 | AL180: 32 | AM180: 33 | AN180: 34 | AO180: 35 | AP180: 36 | AQ180: 37 | AR180: 38 | AS180: 39 | AT180: 40
D181: Depreciation Rate | E181: =G29 -> 1 | G181: =IFERROR(VDB(1,0,$E$180,F180,G180,$E$181),0) -> 0.1 | H181: 0.1 | I181: 0.1 | J181: 0.1 | K181: 0.1 | L181: 0.1 | M181: 0.1 | N181: 0.1 | O181: 0.1 | P181: 0.1 | Q181: 0 | R181: 0 | S181: 0 | T181: 0 | U181: 0 | V181: 0 | W181: 0 | X181: 0 | Y181: 0 | Z181: 0 | AA181: 0 | AB181: 0 | AC181: 0 | AD181: 0 | AE181: 0 | AF181: 0 | AG181: 0 | AH181: 0 | AI181: 0 | AJ181: 0 | AK181: 0 | AL181: 0 | AM181: 0 | AN181: 0 | AO181: 0 | AP181: 0 | AQ181: 0 | AR181: 0 | AS181: 0 | AT181: 0
D182: NPV | E182: =S42 -> 0.029 | F182: =NPV(E182,G181:AT181) -> 0.8573901592
D183: Multiplied by Tax Rate | E183: =S27 -> 0.25 | F183: =F182*E183 -> 0.2143475398
D185: Year | E185: =H28 -> 10 | F185: 0 | G185: 1 | H185: 2 | I185: 3 | J185: 4 | K185: 5 | L185: 6 | M185: 7 | N185: 8 | O185: 9 | P185: 10 | Q185: 11 | R185: 12 | S185: 13 | T185: 14 | U185: 15 | V185: 16 | W185: 17 | X185: 18 | Y185: 19 | Z185: 20 | AA185: 21 | AB185: 22 | AC185: 23 | AD185: 24 | AE185: 25 | AF185: 26 | AG185: 27 | AH185: 28 | AI185: 29 | AJ185: 30 | AK185: 31 | AL185: 32 | AM185: 33 | AN185: 34 | AO185: 35 | AP185: 36 | AQ185: 37 | AR185: 38 | AS185: 39 | AT185: 40
D186: Depreciation Rate | E186: =H29 -> 1 | G186: =IFERROR(VDB(1,0,$E$185,F185,G185,$E$186),0) -> 0.1 | H186: 0.1 | I186: 0.1 | J186: 0.1 | K186: 0.1 | L186: 0.1 | M186: 0.1 | N186: 0.1 | O186: 0.1 | P186: 0.1 | Q186: 0 | R186: 0 | S186: 0 | T186: 0 | U186: 0 | V186: 0 | W186: 0 | X186: 0 | Y186: 0 | Z186: 0 | AA186: 0 | AB186: 0 | AC186: 0 | AD186: 0 | AE186: 0 | AF186: 0 | AG186: 0 | AH186: 0 | AI186: 0 | AJ186: 0 | AK186: 0 | AL186: 0 | AM186: 0 | AN186: 0 | AO186: 0 | AP186: 0 | AQ186: 0 | AR186: 0 | AS186: 0 | AT186: 0
D187: NPV | E187: =S42 -> 0.029 | F187: =NPV(E187,G186:AT186) -> 0.8573901592
D188: Multiplied by Tax Rate | E188: =H27 -> 0.25 | F188: =F187*E188 -> 0.2143475398
D190: Year | E190: =I28 -> 10 | F190: 0 | G190: 1 | H190: 2 | I190: 3 | J190: 4 | K190: 5 | L190: 6 | M190: 7 | N190: 8 | O190: 9 | P190: 10 | Q190: 11 | R190: 12 | S190: 13 | T190: 14 | U190: 15 | V190: 16 | W190: 17 | X190: 18 | Y190: 19 | Z190: 20 | AA190: 21 | AB190: 22 | AC190: 23 | AD190: 24 | AE190: 25 | AF190: 26 | AG190: 27 | AH190: 28 | AI190: 29 | AJ190: 30 | AK190: 31 | AL190: 32 | AM190: 33 | AN190: 34 | AO190: 35 | AP190: 36 | AQ190: 37 | AR190: 38 | AS190: 39 | AT190: 40
D191: Depreciation Rate | E191: =I29 -> 1 | G191: =IFERROR(VDB(1,0,$E$190,F190,G190,$E$191),0) -> 0.1 | H191: 0.1 | I191: 0.1 | J191: 0.1 | K191: 0.1 | L191: 0.1 | M191: 0.1 | N191: 0.1 | O191: 0.1 | P191: 0.1 | Q191: 0 | R191: 0 | S191: 0 | T191: 0 | U191: 0 | V191: 0 | W191: 0 | X191: 0 | Y191: 0 | Z191: 0 | AA191: 0 | AB191: 0 | AC191: 0 | AD191: 0 | AE191: 0 | AF191: 0 | AG191: 0 | AH191: 0 | AI191: 0 | AJ191: 0 | AK191: 0 | AL191: 0 | AM191: 0 | AN191: 0 | AO191: 0 | AP191: 0 | AQ191: 0 | AR191: 0 | AS191: 0 | AT191: 0
D192: NPV | E192: =I42 -> 0.081 | F192: =NPV(E192,G191:AT191) -> 0.667992074
D193: Multiplied by Tax Rate | E193: =I27 -> 0.25 | F193: =F192*E193 -> 0.1669980185
D195: Year | E195: =J28 -> 10 | F195: 0 | G195: 1 | H195: 2 | I195: 3 | J195: 4 | K195: 5 | L195: 6 | M195: 7 | N195: 8 | O195: 9 | P195: 10 | Q195: 11 | R195: 12 | S195: 13 | T195: 14 | U195: 15 | V195: 16 | W195: 17 | X195: 18 | Y195: 19 | Z195: 20 | AA195: 21 | AB195: 22 | AC195: 23 | AD195: 24 | AE195: 25 | AF195: 26 | AG195: 27 | AH195: 28 | AI195: 29 | AJ195: 30 | AK195: 31 | AL195: 32 | AM195: 33 | AN195: 34 | AO195: 35 | AP195: 36 | AQ195: 37 | AR195: 38 | AS195: 39 | AT195: 40
D196: Depreciation Rate | E196: =J29 -> 1 | G196: =IFERROR(VDB(1,0,$E$195,F195,G195,$E$196),0) -> 0.1 | H196: 0.1 | I196: 0.1 | J196: 0.1 | K196: 0.1 | L196: 0.1 | M196: 0.1 | N196: 0.1 | O196: 0.1 | P196: 0.1 | Q196: 0 | R196: 0 | S196: 0 | T196: 0 | U196: 0 | V196: 0 | W196: 0 | X196: 0 | Y196: 0 | Z196: 0 | AA196: 0 | AB196: 0 | AC196: 0 | AD196: 0 | AE196: 0 | AF196: 0 | AG196: 0 | AH196: 0 | AI196: 0 | AJ196: 0 | AK196: 0 | AL196: 0 | AM196: 0 | AN196: 0 | AO196: 0 | AP196: 0 | AQ196: 0 | AR196: 0 | AS196: 0 | AT196: 0
D197: NPV | E197: =J42 -> 0.081 | F197: =NPV(E197,G196:AT196) -> 0.667992074
D198: Multiplied by Tax Rate | E198: =J27 -> 0.25 | F198: =F197*E198 -> 0.1669980185
D200: Applied Tax Depreciation Rate | E200: =F1 -> 1 | G200: =CHOOSE($E$200,G181,G186,G191,G196) -> 0.1 | H200: 0.1 | I200: 0.1 | J200: 0.1 | K200: 0.1 | L200: 0.1 | M200: 0.1 | N200: 0.1 | O200: 0.1 | P200: 0.1 | Q200: 0 | R200: 0 | S200: 0 | T200: 0 | U200: 0 | V200: 0 | W200: 0 | X200: 0 | Y200: 0 | Z200: 0 | AA200: 0 | AB200: 0 | AC200: 0 | AD200: 0 | AE200: 0 | AF200: 0 | AG200: 0 | AH200: 0 | AI200: 0 | AJ200: 0 | AK200: 0 | AL200: 0 | AM200: 0 | AN200: 0 | AO200: 0 | AP200: 0 | AQ200: 0 | AR200: 0 | AS200: 0 | AT200: 0

Sheet Electrolizer LCOH
F1: 1
G3: 1 | H3: 2 | I3: 3 | J3: 4
A5: Drivers | G5: Combined | H5: Stack Portion Incl O&M | I5: Non-Stack Portion | J5: Combined Stack and Non-Stack | S5: =INDEX(G5:R5,$F$1) -> Combined
C6: Units | G6: kg | H6: kg | I6: kg | J6: kg | K6: MW | L6: kg | M6: kg | N6: kg | O6: kg | P6: kg | Q6: kg | S6: =INDEX(G6:R6,$F$1) -> kg
C7: Resulting Levelised Cost per Unit | G7: =G87 -> 4.038613423 | H7: =H87 -> 4.088788977 | I7: =I87 -> 0.5491097207 | J7: =I7+H7 -> 4.637898698
B9: Project Inputs
D10: Technology Selected | E10: ='Electrolyzer Analysis'!$D$53 -> PEM - NREL | G10: Total | H10: Stack | I10: Non-Stack | J10: Wtd Combined
D12: Stack Percent | H12: 0.6 | I12: =1-H12 -> 0.4 | J12: =I12+H12 -> 1
D13: Size in MW per Hour | E13: MW | G13: ='Electrolyzer vs SMR'!$I$10 -> 1.224932436 | H13: =G13 -> 1.224932436 | I13: 1.224932436 | J13: 1.224932436
D14: Efficiency (kW/kg) | E14: kWh/kg | G14: ='Electrolyzer Analysis'!F47 -> 63 | H14: 63 | I14: 63 | J14: 63
D15: Capacity in kg/hour | E15: kg/hour | G15: =G13*1000/G14 -> 19.443372 | H15: 19.443372 | I15: 19.443372 | J15: 19.443372
D17: Cost/kW | E17: USD/kW | G17: ='Electrolyzer Analysis'!$F$46 -> 1755.813955 | H17: =G17*H12 -> 1053.488373 | I17: =G17*I12 -> 702.3255819 | J17: =H17+I17 -> 1755.813955
D18: Cost/kg | E18: USD/kg | G18: =G19/G15 -> 110616.2791 | H18: =H19/H15 -> 66369.76749 | I18: =I19/I15 -> 44246.51166 | J18: =J19/J15 -> 110616.2791
D19: Total Up-Front Cost | E19: USD | G19: =G17*G13*1000 -> 2150753.464 | H19: =H17*H13*1000 -> 1290452.079 | I19: =I17*I13*1000 -> 860301.3857 | J19: =H19+I19 -> 2150753.464
D21: kg at 100% Load Factor | E21: kg/year | G21: =G15*8760 -> 170323.9387 | H21: =H15*8760 -> 170323.9387 | I21: =I15*8760 -> 170323.9387 | J21: =J15*8760 -> 170323.9387
D22: Load Factor | E22: % | G22: ='Electrolyzer vs SMR'!$I$4 -> 0.97 | H22: =G22 -> 0.97 | I22: =H22 -> 0.97 | J22: =I22 -> 0.97
D23: Hours of Operation at Load Factor | E23: Hours/Year | G23: =G22*8766 -> 8503.02 | H23: =H22*8766 -> 8503.02 | I23: =I22*8766 -> 8503.02 | J23: =J22*8766 -> 8503.02
D24: Annual Energy | E24: MWh/Year | G24: =G13*G23 -> 10415.625 | H24: =H13*H23 -> 10415.625 | I24: =I13*I23 -> 10415.625 | J24: =J13*J23 -> 10415.625
D25: Hydrogen Produced | E25: kg/Year | G25: =G13*1000/G14*G23 -> 165327.381 | H25: =H13*1000/H14*H23 -> 165327.381 | I25: =I13*1000/I14*I23 -> 165327.381 | J25: =J13*1000/J14*J23 -> 165327.381
D27: Electricity Cost (USD/MWH) | E27: USD/MWh | G27: ='Electrolyzer vs SMR'!$I$6 -> 35 | H27: =G27 -> 35 | J27: =H27 -> 35
D28: Electricity Cost (USD/kg) | E28: USD/kg | G28: =G27/1000*G14 -> 2.205 | H28: =H27/1000*H14 -> 2.205 | J28: =H28 -> 2.205
D29: Fuel Cost | E29: USD/Year | G29: =G24*G27 -> 364546.875 | H29: =H24*H27 -> 364546.875 | J29: =H29 -> 364546.875
D30: OpEx % | E30: % | G30: ='Electrolyzer Analysis'!$F$45 -> 0.04 | H30: =G30 -> 0.04
D31: O&M per Year | E31: USD/Year | G31: =G19*G30 -> 86030.13857 | H31: =G31 -> 86030.13857 | J31: =H31 -> 86030.13857 | S31: =INDEX(G31:K31,$F$1) -> 86030.13857
D33: Water Efficiency (Litres/kg) | E33: L/kg | G33: ='NREL Backup'!$N$30 -> 17.9928 | H33: =G33 -> 17.9928 | J33: =H33 -> 17.9928
D34: Annual Water | E34: L/Year | G34: =G25*G33 -> 2974702.5 | H34: =H25*H33 -> 2974702.5 | J34: =H34 -> 2974702.5
D35: Water Cost (USD/Litre) | E35: USD/L | G35: ='Specs & Adders'!$K$7 -> 0.0007804232804 | H35: =G35 -> 0.0007804232804 | J35: =H35 -> 0.0007804232804
D36: Water Cost (USD/kg) | E36: USD/kg | G36: =G33*G35 -> 0.014042 | H36: =G36 -> 0.014042 | J36: =H36 -> 0.014042
D37: Annual Water Cost | E37: USD | G37: =G34*G35 -> 2321.527083 | H37: =G37 -> 2321.527083
D38: O&M Cost per Unit | E38: USD/kg | G38: =G39/G25 -> 2.739404314 | H38: =H39/H25 -> 2.739404314 | J38: =H38 -> 2.739404314
D39: Total O&M Cost per Year | E39: USD/year | G39: =G29+G31+G37 -> 452898.5407 | H39: =G39 -> 452898.5407 | J39: =H39 -> 452898.5407
B41: Carrying Charge Inputs
D42: Plant Life | E42: Years | G42: 15 | H42: =ROUND(G44,0) -> 7 | I42: =G42 -> 15 | S42: =INDEX(G42:K42,$F$1) -> 15
D43: Stack Life | E43: Hours | G43: 60000
D44: Stack Life | E44: Years | G44: =G43/G23 -> 7.056316462
D46: Hours/Yr | E46: Hours | G46: =8766*G22 -> 8503.02 | H46: =8766*H22 -> 8503.02 | I46: =8766*I22 -> 8503.02 | J46: =8766*J22 -> 8503.02 | S46: =INDEX(G46:R46,$F$1) -> 8503.02
D47: Maximum Hours | E47: Hours
D48: Fixed Plant Life Input | E48: Years | G48: =G42 -> 15 | H48: 35 | I48: 50 | J48: 0
D49: Plant Life from Maximum Hours | E49: Years | G49: =G42 -> 15 | H49: =H42 -> 7 | I49: =I42 -> 15 | J49: =H49*H12+I49*I12 -> 10.2 | S49: =INDEX(G49:R49,$F$1) -> 15
D51: Income Tax Rate | E51: % p.a. | G51: 0.2 | H51: 0.2 | I51: 0.3 | J51: 0.5 | S51: =INDEX(G51:J51,$F$1) -> 0.2
D52: Tax Life | E52: Year | G52: 30 | H52: 4 | I52: 10 | J52: 20 | S52: =INDEX(G52:R52,$F$1) -> 30
D53: Variable Delicing Factor (1-SL) | E53: Factor | G53: 1 | H53: 2 | I53: 1.5 | J53: 1 | S53: =INDEX(G53:R53,$F$1) -> 1
D54: Value of Depreciation Deduction | E54: % | G54: =F95 -> 0.1226136361 | H54: =F100 -> 0.1876285158 | I54: =F105 -> 0.2322647379 | J54: =F110 -> 0.2987595621 | S54: =INDEX(G54:J54,$F$1) -> 0.1226136361
D56: Degradation | E56: % p.a. | G56: 0.005 | H56: =G56 -> 0.005 | I56: 0.005 | J56: 0.005 | S56: =INDEX(G56:R56,$F$1) -> 0.005
D57: Inflation Rate | E57: % p.a. | G57: 0.01 | H57: 0.01 | I57: 0.01 | J57: 0.01 | S57: =INDEX(G57:R57,$F$1) -> 0.01
D59: Debt Percent | E59: % | G59: 0.7 | H59: 0.75 | I59: 0.75 | J59: 0.75 | S59: =INDEX(G59:R59,$F$1) -> 0.7
D60: Equity Percent | E60: % | G60: =1-G59 -> 0.3 | H60: =1-H59 -> 0.25 | I60: =1-I59 -> 0.25 | J60: =1-J59 -> 0.25 | S60: =INDEX(G60:R60,$F$1) -> 0.3
D61: Pre-tax Interest Rate | E61: % | G61: 0.025 | H61: =G61 -> 0.025 | I61: =H61 -> 0.025 | J61: =I61 -> 0.025
D62: Interest Rate | E62: % | G62: =G61*(1-G51) -> 0.02 | H62: =H61*(1-H51) -> 0.02 | I62: =I61*(1-I51) -> 0.0175 | J62: =J61*(1-J51) -> 0.0125 | S62: =INDEX(G62:R62,$F$1) -> 0.02
D63: Minimum Target Equity IRR | E63: % | G63: ='Summary of Truck Analysis'!$K$2 -> 0.07 | H63: ='Summary of Truck Analysis'!$K$2 -> 0.07 | I63: ='Summary of Truck Analysis'!$K$2 -> 0.07 | J63: ='Summary of Truck Analysis'!$K$2 -> 0.07 | S63: =INDEX(G63:R63,$F$1) -> 0.07
D64: WACC | E64: % | G64: =G62*G59+G63*G60 -> 0.035 | H64: =H62*H59+H63*H60 -> 0.0325 | I64: =I62*I59+I63*I60 -> 0.030625 | J64: =J62*J59+J63*J60 -> 0.026875
D66: Required Pre-tax Project IRR | E66: % p.a. | G66: =G64 -> 0.035 | H66: 0.04 | I66: 0.055 | J66: 0.055 | S66: =INDEX(G66:R66,$F$1) -> 0.035
D67: Required Real IRR | E67: % p.a. | G67: =(1+G66)/(1+G57)-1 -> 0.02475247525 | H67: =(1+H66)/(1+H57)-1 -> 0.0297029703 | I67: =(1+I66)/(1+I57)-1 -> 0.04455445545 | J67: =(1+J66)/(1+J57)-1 -> 0.04455445545 | S67: =INDEX(G67:R67,$F$1) -> 0.02475247525 | V67: =_xlfn.FORMULATEXT(J67) -> =(1+J66)/(1+J57)-1
D69: Nominal Adjusted for Degradation | E69: % p.a. | G69: =(1+G66)/(1-G56)-1 -> 0.04020100503 | H69: =(1+H66)/(1-H56)-1 -> 0.04522613065 | I69: =(1+I66)/(1-I56)-1 -> 0.06030150754 | J69: =(1+J66)/(1-J56)-1 -> 0.06030150754 | S69: =INDEX(G69:R69,$F$1) -> 0.04020100503 | V69: =_xlfn.FORMULATEXT(J69) -> =(1+J66)/(1-J56)-1
D70: Real Adjusted for Degradation | E70: % p.a. | G70: =(1+G67)/(1-G56)-1 -> 0.02990198517 | H70: =(1+H67)/(1-H56)-1 -> 0.03487735708 | I70: =(1+I67)/(1-I56)-1 -> 0.04980347281 | J70: =(1+J67)/(1-J56)-1 -> 0.04980347281 | S70: =INDEX(G70:R70,$F$1) -> 0.02990198517 | V70: =_xlfn.FORMULATEXT(J70) -> =(1+J67)/(1-J56)-1
D72: Carrying charge rate - Nominal | E72: % p.a. | G72: =PMT(G69,G49,-1)/(1-G51) -> 0.1125844486 | H72: =PMT(H69,H49,-1)/(1-H51) -> 0.2123024109 | I72: =PMT(I69,I49,-1)/(1-I51) -> 0.1473795714 | J72: =PMT(J69,J49,-1)/(1-J51) -> 0.2682012266 | S72: =INDEX(G72:R72,$F$1) -> 0.1125844486 | V72: =_xlfn.FORMULATEXT(J72) -> =PMT(J69,J49,-1)/(1-J51)
D73: Carrying charge rate - Real | E73: % p.a. | G73: =PMT(G70,G49,-1)/(1-G51) -> 0.1046340071 | H73: =PMT(H70,H49,-1)/(1-H51) -> 0.204337061 | I73: =PMT(I70,I49,-1)/(1-I51) -> 0.1374490705 | J73: =PMT(J70,J49,-1)/(1-J51) -> 0.2548233043 | S73: =INDEX(G73:R73,$F$1) -> 0.1046340071 | V73: =_xlfn.FORMULATEXT(J73) -> =PMT(J70,J49,-1)/(1-J51)
D75: Value of Tax Deductions | E75: % | S75: =F95 -> 0.1226136361
D76: Capexp Recovery - Nominal | E76: USD/Kgyr | G76: =G72*G18 -> 12453.6728 | H76: =H72*H18 -> 14090.46165 | I76: =I72*I18 -> 6521.031922 | J76: =J72*J18 -> 29667.42175 | S76: =INDEX(G76:R76,$F$1) -> 12453.6728
D77: Capexp Recovery - After Tax Shield | E77: USD/kgyr | G77: =G76*(1-G54) -> 10926.68269 | H77: =H76*(1-H54) -> 11446.68924 | I77: =I76*(1-I54) -> 5006.426152 | J77: =J76*(1-J54) -> 20803.99582
D78: Capexp Recovery - Nominal | E78: USD/kghr | G78: =G77/G23 -> 1.285035516 | H78: =H77/H46 -> 1.346191029 | I78: =I77/I46 -> 0.5887821212 | J78: =J77/J46 -> 2.446659636 | S78: =INDEX(G78:R78,$F$1) -> 1.285035516
D79: Capexp Recovery - Real | E79: USD/kgyr | G79: =G73*G18*(1-G54) -> 10155.06678 | H79: =H73*H18*(1-H54) -> 11017.22221 | I79: =I73*I18*(1-I54) -> 4669.090937 | J79: =J73*J18*(1-J54) -> 19766.28901 | S79: =INDEX(G79:R79,$F$1) -> 10155.06678
D80: Capexp Recovery - Real | E80: USD/kghr | G80: =G79/G46 -> 1.194289415 | H80: =H79/H46 -> 1.295683441 | I80: =I79/I46 -> 0.5491097207 | J80: =I80+H80 -> 1.844793162 | S80: =INDEX(G80:R80,$F$1) -> 1.194289415
D82: O&M Cost - Nominal | E82: USD/kghr | G82: =PV(G67,G49,-1)/PV(G69,G49,-1)*G38 -> 3.060445251 | H82: =PV(H67,H49,-1)/PV(H69,H49,-1)*H38 -> 2.901984771 | I82: =PV(I67,I49,-1)/PV(I69,I49,-1)*I38 -> 0 | J82: =PV(J67,J49,-1)/PV(J69,J49,-1)*J38 -> 2.959443385 | S82: =INDEX(G82:R82,$F$1) -> 3.060445251
D83: O&M Cost - Nominal | E83: USD/kghr | G83: =G82 -> 3.060445251 | H83: =H82 -> 2.901984771 | I83: =I82 -> 0 | J83: =J82 -> 2.959443385 | S83: =INDEX(G83:R83,$F$1) -> 3.060445251
D84: O&M Cost - Real Degradation | E84: USD/kghr | G84: =PV(G67,G49,-1)/PV(G70,G49,-1)*G38 -> 2.844324008 | H84: =PV(H67,H49,-1)/PV(H70,H49,-1)*H38 -> 2.793105536 | I84: =PV(I67,I49,-1)/PV(I70,I49,-1)*I38 -> 0 | J84: =PV(J67,J49,-1)/PV(J70,J49,-1)*J38 -> 2.811825851 | S84: =INDEX(G84:R84,$F$1) -> 2.844324008
D85: O&M Cost - Real | E85: USD/kghr | G85: =G84 -> 2.844324008 | H85: =H84 -> 2.793105536 | I85: =I84 -> 0 | J85: =J84 -> 2.811825851 | S85: =INDEX(G85:R85,$F$1) -> 2.844324008
D87: LCOE - Real | E87: USD/kg | G87: =G80+G85 -> 4.038613423 | H87: =H80+H85 -> 4.088788977 | I87: =I80+I85 -> 0.5491097207 | J87: =J80+J85 -> 4.656619013 | S87: =INDEX(G87:R87,$F$1) -> 4.038613423
D88: LCOE - Nominal | E88: USD/kg | G88: =G78+G83 -> 4.345480767 | H88: =H78+H83 -> 4.2481758 | I88: =I78+I83 -> 0.5887821212 | J88: =J78+J83 -> 5.40610302 | S88: =INDEX(G88:R88,$F$1) -> 4.345480767
B90: Depreciation Tax Shield
D92: Year | E92: =G52 -> 30 | F92: 0 | G92: 1 | H92: 2 | I92: 3 | J92: 4 | K92: 5 | L92: 6 | M92: 7 | N92: 8 | O92: 9 | P92: 10 | Q92: 11 | R92: 12 | S92: 13 | T92: 14 | U92: 15 | V92: 16 | W92: 17 | X92: 18 | Y92: 19 | Z92: 20 | AA92: 21 | AB92: 22 | AC92: 23 | AD92: 24 | AE92: 25 | AF92: 26 | AG92: 27 | AH92: 28 | AI92: 29 | AJ92: 30 | AK92: 31 | AL92: 32 | AM92: 33 | AN92: 34 | AO92: 35 | AP92: 36 | AQ92: 37 | AR92: 38 | AS92: 39 | AT92: 40
D93: Depreciation Rate | E93: =G53 -> 1 | G93: =IFERROR(VDB(1,0,$E$92,F92,G92,$E$93),0) -> 0.03333333333 | H93: 0.03333333333 | I93: 0.03333333333 | J93: 0.03333333333 | K93: 0.03333333333 | L93: 0.03333333333 | M93: 0.03333333333 | N93: 0.03333333333 | O93: 0.03333333333 | P93: 0.03333333333 | Q93: 0.03333333333 | R93: 0.03333333333 | S93: 0.03333333333 | T93: 0.03333333333 | U93: 0.03333333333 | V93: 0.03333333333 | W93: 0.03333333333 | X93: 0.03333333333 | Y93: 0.03333333333 | Z93: 0.03333333333 | AA93: 0.03333333333 | AB93: 0.03333333333 | AC93: 0.03333333333 | AD93: 0.03333333333 | AE93: 0.03333333333 | AF93: 0.03333333333 | AG93: 0.03333333333 | AH93: 0.03333333333 | AI93: 0.03333333333 | AJ93: 0.03333333333 | AK93: 0 | AL93: 0 | AM93: 0 | AN93: 0 | AO93: 0 | AP93: 0 | AQ93: 0 | AR93: 0 | AS93: 0 | AT93: 0
D94: NPV | E94: =S66 -> 0.035 | F94: =NPV(E94,G93:AT93) -> 0.6130681804
D95: Multiplied by Tax Rate | E95: =S51 -> 0.2 | F95: =F94*E95 -> 0.1226136361
D97: Year | E97: =H52 -> 4 | F97: 0 | G97: 1 | H97: 2 | I97: 3 | J97: 4 | K97: 5 | L97: 6 | M97: 7 | N97: 8 | O97: 9 | P97: 10 | Q97: 11 | R97: 12 | S97: 13 | T97: 14 | U97: 15 | V97: 16 | W97: 17 | X97: 18 | Y97: 19 | Z97: 20 | AA97: 21 | AB97: 22 | AC97: 23 | AD97: 24 | AE97: 25 | AF97: 26 | AG97: 27 | AH97: 28 | AI97: 29 | AJ97: 30 | AK97: 31 | AL97: 32 | AM97: 33 | AN97: 34 | AO97: 35 | AP97: 36 | AQ97: 37 | AR97: 38 | AS97: 39 | AT97: 40
D98: Depreciation Rate | E98: =H53 -> 2 | G98: =IFERROR(VDB(1,0,$E$97,F97,G97,$E$98),0) -> 0.5 | H98: 0.25 | I98: 0.125 | J98: 0.125 | K98: 0 | L98: 0 | M98: 0 | N98: 0 | O98: 0 | P98: 0 | Q98: 0 | R98: 0 | S98: 0 | T98: 0 | U98: 0 | V98: 0 | W98: 0 | X98: 0 | Y98: 0 | Z98: 0 | AA98: 0 | AB98: 0 | AC98: 0 | AD98: 0 | AE98: 0 | AF98: 0 | AG98: 0 | AH98: 0 | AI98: 0 | AJ98: 0 | AK98: 0 | AL98: 0 | AM98: 0 | AN98: 0 | AO98: 0 | AP98: 0 | AQ98: 0 | AR98: 0 | AS98: 0 | AT98: 0
D99: NPV | E99: =S66 -> 0.035 | F99: =NPV(E99,G98:AT98) -> 0.9381425792
D100: Multiplied by Tax Rate | E100: =H51 -> 0.2 | F100: =F99*E100 -> 0.1876285158
D102: Year | E102: =I52 -> 10 | F102: 0 | G102: 1 | H102: 2 | I102: 3 | J102: 4 | K102: 5 | L102: 6 | M102: 7 | N102: 8 | O102: 9 | P102: 10 | Q102: 11 | R102: 12 | S102: 13 | T102: 14 | U102: 15 | V102: 16 | W102: 17 | X102: 18 | Y102: 19 | Z102: 20 | AA102: 21 | AB102: 22 | AC102: 23 | AD102: 24 | AE102: 25 | AF102: 26 | AG102: 27 | AH102: 28 | AI102: 29 | AJ102: 30 | AK102: 31 | AL102: 32 | AM102: 33 | AN102: 34 | AO102: 35 | AP102: 36 | AQ102: 37 | AR102: 38 | AS102: 39 | AT102: 40
D103: Depreciation Rate | E103: =I53 -> 1.5 | G103: =IFERROR(VDB(1,0,$E$102,F102,G102,$E$103),0) -> 0.15 | H103: 0.1275 | I103: 0.108375 | J103: 0.09211875 | K103: 0.08700104167 | L103: 0.08700104167 | M103: 0.08700104167 | N103: 0.08700104167 | O103: 0.08700104167 | P103: 0.08700104167 | Q103: 0 | R103: 0 | S103: 0 | T103: 0 | U103: 0 | V103: 0 | W103: 0 | X103: 0 | Y103: 0 | Z103: 0 | AA103: 0 | AB103: 0 | AC103: 0 | AD103: 0 | AE103: 0 | AF103: 0 | AG103: 0 | AH103: 0 | AI103: 0 | AJ103: 0 | AK103: 0 | AL103: 0 | AM103: 0 | AN103: 0 | AO103: 0 | AP103: 0 | AQ103: 0 | AR103: 0 | AS103: 0 | AT103: 0
D104: NPV | E104: =I66 -> 0.055 | F104: =NPV(E104,G103:AT103) -> 0.774215793
D105: Multiplied by Tax Rate | E105: =I51 -> 0.3 | F105: =F104*E105 -> 0.2322647379
D107: Year | E107: =J52 -> 20 | F107: 0 | G107: 1 | H107: 2 | I107: 3 | J107: 4 | K107: 5 | L107: 6 | M107: 7 | N107: 8 | O107: 9 | P107: 10 | Q107: 11 | R107: 12 | S107: 13 | T107: 14 | U107: 15 | V107: 16 | W107: 17 | X107: 18 | Y107: 19 | Z107: 20 | AA107: 21 | AB107: 22 | AC107: 23 | AD107: 24 | AE107: 25 | AF107: 26 | AG107: 27 | AH107: 28 | AI107: 29 | AJ107: 30 | AK107: 31 | AL107: 32 | AM107: 33 | AN107: 34 | AO107: 35 | AP107: 36 | AQ107: 37 | AR107: 38 | AS107: 39 | AT107: 40
D108: Depreciation Rate | E108: =J53 -> 1 | G108: =IFERROR(VDB(1,0,$E$107,F107,G107,$E$108),0) -> 0.05 | H108: 0.05 | I108: 0.05 | J108: 0.05 | K108: 0.05 | L108: 0.05 | M108: 0.05 | N108: 0.05 | O108: 0.05 | P108: 0.05 | Q108: 0.05 | R108: 0.05 | S108: 0.05 | T108: 0.05 | U108: 0.05 | V108: 0.05 | W108: 0.05 | X108: 0.05 | Y108: 0.05 | Z108: 0.05 | AA108: 0 | AB108: 0 | AC108: 0 | AD108: 0 | AE108: 0 | AF108: 0 | AG108: 0 | AH108: 0 | AI108: 0 | AJ108: 0 | AK108: 0 | AL108: 0 | AM108: 0 | AN108: 0 | AO108: 0 | AP108: 0 | AQ108: 0 | AR108: 0 | AS108: 0 | AT108: 0
D109: NPV | E109: =J66 -> 0.055 | F109: =NPV(E109,G108:AT108) -> 0.5975191242
D110: Multiplied by Tax Rate | E110: =J51 -> 0.5 | F110: =F109*E110 -> 0.2987595621
D112: Applied Tax Depreciation Rate | E112: =F1 -> 1 | G112: =CHOOSE($E$112,G93,G98,G103,G108) -> 0.03333333333 | H112: 0.03333333333 | I112: 0.03333333333 | J112: 0.03333333333 | K112: 0.03333333333 | L112: 0.03333333333 | M112: 0.03333333333 | N112: 0.03333333333 | O112: 0.03333333333 | P112: 0.03333333333 | Q112: 0.03333333333 | R112: 0.03333333333 | S112: 0.03333333333 | T112: 0.03333333333 | U112: 0.03333333333 | V112: 0.03333333333 | W112: 0.03333333333 | X112: 0.03333333333 | Y112: 0.03333333333 | Z112: 0.03333333333 | AA112: 0.03333333333 | AB112: 0.03333333333 | AC112: 0.03333333333 | AD112: 0.03333333333 | AE112: 0.03333333333 | AF112: 0.03333333333 | AG112: 0.03333333333 | AH112: 0.03333333333 | AI112: 0.03333333333 | AJ112: 0.03333333333 | AK112: 0 | AL112: 0 | AM112: 0 | AN112: 0 | AO112: 0 | AP112: 0 | AQ112: 0 | AR112: 0 | AS112: 0 | AT112: 0
B114: Proof w/ financial model | E114: Driver
C115: Timeline | F115: 0 | G115: 1 | H115: 2 | I115: 3 | J115: 4 | K115: 5 | L115: 6 | M115: 7 | N115: 8 | O115: 9 | P115: 10 | Q115: 11 | R115: 12 | S115: 13 | T115: 14 | U115: 15 | V115: 16 | W115: 17 | X115: 18 | Y115: 19 | Z115: 20 | AA115: 21 | AB115: 22 | AC115: 23 | AD115: 24 | AE115: 25 | AF115: 26 | AG115: 27 | AH115: 28 | AI115: 29 | AJ115: 30 | AK115: 31 | AL115: 32 | AM115: 33 | AN115: 34 | AO115: 35 | AP115: 36 | AQ115: 37 | AR115: 38 | AS115: 39 | AT115: 40 | AU115: 41 | AV115: 42 | AW115: 43 | AX115: 44 | AY115: 45 | AZ115: 46 | BA115: 47 | BB115: 48 | BC115: 49 | BD115: 50 | BE115: 51 | BF115: 52 | BG115: 53 | BH115: 54 | BI115: 55 | BJ115: 56 | BK115: 57 | BL115: 58 | BM115: 59 | BN115: 60 | BO115: 61 | BP115: 62 | BQ115: 63 | BR115: 64 | BS115: 65 | BT115: 66 | BU115: 67 | BV115: 68 | BW115: 69 | BX115: 70 | BY115: 71 | BZ115: 72 | CA115: 73 | CB115: 74 | CC115: 75 | CD115: 76 | CE115: 77 | CF115: 78 | CG115: 79 | CH115: 80 | CI115: 81 | CJ115: 82 | CK115: 83 | CL115: 84 | CM115: 85 | CN115: 86 | CO115: 87 | CP115: 88 | CQ115: 89 | CR115: 90 | CS115: 91 | CT115: 92 | CU115: 93 | CV115: 94 | CW115: 95 | CX115: 96 | CY115: 97 | CZ115: 98 | DA115: 99 | DB115: 100
C116: Flag | E116: =S49 -> 15 | G116: =G115<=$E$116 -> TRUE | H116: TRUE | I116: TRUE | J116: TRUE | K116: TRUE | L116: TRUE | M116: TRUE | N116: TRUE | O116: TRUE | P116: TRUE | Q116: TRUE | R116: TRUE | S116: TRUE | T116: TRUE | U116: TRUE | V116: FALSE | W116: FALSE | X116: FALSE | Y116: FALSE | Z116: FALSE | AA116: FALSE | AB116: FALSE | AC116: FALSE | AD116: FALSE | AE116: FALSE | AF116: FALSE | AG116: FALSE | AH116: FALSE | AI116: FALSE | AJ116: FALSE | AK116: FALSE | AL116: FALSE | AM116: =AM115<=$E$116 -> FALSE | AN116: FALSE | AO116: FALSE | AP116: FALSE | AQ116: FALSE | AR116: FALSE | AS116: FALSE | AT116: FALSE | AU116: FALSE | AV116: FALSE | AW116: FALSE | AX116: FALSE | AY116: FALSE | AZ116: FALSE | BA116: FALSE | BB116: FALSE | BC116: FALSE | BD116: FALSE | BE116: FALSE | BF116: FALSE | BG116: FALSE | BH116: FALSE | BI116: FALSE | BJ116: FALSE | BK116: FALSE | BL116: FALSE | BM116: FALSE | BN116: FALSE | BO116: FALSE | BP116: FALSE | BQ116: FALSE | BR116: FALSE | BS116: =BS115<=$E$116 -> FALSE | BT116: FALSE | BU116: FALSE | BV116: FALSE | BW116: FALSE | BX116: FALSE | BY116: FALSE | BZ116: FALSE | CA116: FALSE | CB116: FALSE | CC116: FALSE | CD116: FALSE | CE116: FALSE | CF116: FALSE | CG116: FALSE | CH116: FALSE | CI116: FALSE | CJ116: FALSE | CK116: FALSE | CL116: FALSE | CM116: FALSE | CN116: FALSE | CO116: FALSE | CP116: FALSE | CQ116: FALSE | CR116: FALSE | CS116: FALSE | CT116: FALSE | CU116: FALSE | CV116: FALSE | CW116: FALSE | CX116: FALSE | CY116: =CY115<=$E$116 -> FALSE | CZ116: =CZ115<=$E$116 -> FALSE | DA116: =DA115<=$E$116 -> FALSE | DB116: =DB115<=$E$116 -> FALSE
C117: Nominal
D118: Price per kg | E118: =S88 -> 4.345480767 | G118: =$E$118*G116 -> 4.345480767 | H118: =$E$118 -> 4.345480767 | I118: 4.345480767 | J118: 4.345480767 | K118: 4.345480767 | L118: 4.345480767 | M118: 4.345480767 | N118: 4.345480767 | O118: 4.345480767 | P118: 4.345480767 | Q118: 4.345480767 | R118: 4.345480767 | S118: 4.345480767 | T118: 4.345480767 | U118: 4.345480767 | V118: 4.345480767 | W118: 4.345480767 | X118: 4.345480767 | Y118: 4.345480767 | Z118: 4.345480767 | AA118: 4.345480767 | AB118: 4.345480767 | AC118: 4.345480767 | AD118: 4.345480767 | AE118: 4.345480767 | AF118: 4.345480767 | AG118: 4.345480767 | AH118: 4.345480767 | AI118: 4.345480767 | AJ118: 4.345480767 | AK118: 4.345480767 | AL118: 4.345480767 | AM118: 4.345480767 | AN118: =$E$118 -> 4.345480767 | AO118: 4.345480767 | AP118: 4.345480767 | AQ118: 4.345480767 | AR118: 4.345480767 | AS118: 4.345480767 | AT118: 4.345480767 | AU118: 4.345480767 | AV118: 4.345480767 | AW118: 4.345480767 | AX118: 4.345480767 | AY118: 4.345480767 | AZ118: 4.345480767 | BA118: 4.345480767 | BB118: 4.345480767 | BC118: 4.345480767 | BD118: 4.345480767 | BE118: 4.345480767 | BF118: 4.345480767 | BG118: 4.345480767 | BH118: 4.345480767 | BI118: 4.345480767 | BJ118: 4.345480767 | BK118: 4.345480767 | BL118: 4.345480767 | BM118: 4.345480767 | BN118: 4.345480767 | BO118: 4.345480767 | BP118: 4.345480767 | BQ118: 4.345480767 | BR118: 4.345480767 | BS118: 4.345480767 | BT118: =$E$118 -> 4.345480767 | BU118: 4.345480767 | BV118: 4.345480767 | BW118: 4.345480767 | BX118: 4.345480767 | BY118: 4.345480767 | BZ118: 4.345480767 | CA118: 4.345480767 | CB118: 4.345480767 | CC118: 4.345480767 | CD118: 4.345480767 | CE118: 4.345480767 | CF118: 4.345480767 | CG118: 4.345480767 | CH118: 4.345480767 | CI118: 4.345480767 | CJ118: 4.345480767 | CK118: 4.345480767 | CL118: 4.345480767 | CM118: 4.345480767 | CN118: 4.345480767 | CO118: 4.345480767 | CP118: 4.345480767 | CQ118: 4.345480767 | CR118: 4.345480767 | CS118: 4.345480767 | CT118: 4.345480767 | CU118: 4.345480767 | CV118: 4.345480767 | CW118: 4.345480767 | CX118: 4.345480767 | CY118: 4.345480767 | CZ118: 4.345480767 | DA118: 4.345480767 | DB118: 4.345480767
D119: Production without Degradation | E119: =G25 -> 165327.381 | G119: =$E$119*G116 -> 165327.381 | H119: 165327.381 | I119: 165327.381 | J119: 165327.381 | K119: 165327.381 | L119: 165327.381 | M119: 165327.381 | N119: 165327.381 | O119: 165327.381 | P119: 165327.381 | Q119: 165327.381 | R119: 165327.381 | S119: 165327.381 | T119: 165327.381 | U119: 165327.381 | V119: 0 | W119: 0 | X119: 0 | Y119: 0 | Z119: 0 | AA119: 0 | AB119: 0 | AC119: 0 | AD119: 0 | AE119: 0 | AF119: 0 | AG119: 0 | AH119: 0 | AI119: 0 | AJ119: 0 | AK119: 0 | AL119: 0 | AM119: =$E$119*AM116 -> 0 | AN119: 0 | AO119: 0 | AP119: 0 | AQ119: 0 | AR119: 0 | AS119: 0 | AT119: 0 | AU119: 0 | AV119: 0 | AW119: 0 | AX119: 0 | AY119: 0 | AZ119: 0 | BA119: 0 | BB119: 0 | BC119: 0 | BD119: 0 | BE119: 0 | BF119: 0 | BG119: 0 | BH119: 0 | BI119: 0 | BJ119: 0 | BK119: 0 | BL119: 0 | BM119: 0 | BN119: 0 | BO119: 0 | BP119: 0 | BQ119: 0 | BR119: 0 | BS119: =$E$119*BS116 -> 0 | BT119: 0 | BU119: 0 | BV119: 0 | BW119: 0 | BX119: 0 | BY119: 0 | BZ119: 0 | CA119: 0 | CB119: 0 | CC119: 0 | CD119: 0 | CE119: 0 | CF119: 0 | CG119: 0 | CH119: 0 | CI119: 0 | CJ119: 0 | CK119: 0 | CL119: 0 | CM119: 0 | CN119: 0 | CO119: 0 | CP119: 0 | CQ119: 0 | CR119: 0 | CS119: 0 | CT119: 0 | CU119: 0 | CV119: 0 | CW119: 0 | CX119: 0 | CY119: 0 | CZ119: 0 | DA119: 0 | DB119: 0
D120: Degradation Index | E120: =S56 -> 0.005 | F120: 1 | G120: =F120*(1-$E$120) -> 0.995 | H120: 0.990025 | I120: 0.985074875 | J120: 0.9801495006 | K120: 0.9752487531 | L120: 0.9703725094 | M120: 0.9655206468 | N120: 0.9606930436 | O120: 0.9558895784 | P120: 0.9511101305 | Q120: 0.9463545798 | R120: 0.9416228069 | S120: 0.9369146929 | T120: 0.9322301194 | U120: 0.9275689688 | V120: 0.922931124 | W120: 0.9183164684 | X120: 0.913724886 | Y120: 0.9091562616 | Z120: 0.9046104803 | AA120: 0.9000874279 | AB120: 0.8955869907 | AC120: 0.8911090558 | AD120: 0.8866535105 | AE120: 0.8822202429 | AF120: 0.8778091417 | AG120: 0.873420096 | AH120: 0.8690529955 | AI120: 0.8647077306 | AJ120: 0.8603841919 | AK120: 0.856082271 | AL120: 0.8518018596 | AM120: =AL120*(1-$E$120) -> 0.8475428503 | AN120: 0.8433051361 | AO120: 0.8390886104 | AP120: 0.8348931673 | AQ120: 0.8307187015 | AR120: 0.826565108 | AS120: 0.8224322824 | AT120: 0.818320121 | AU120: 0.8142285204 | AV120: 0.8101573778 | AW120: 0.8061065909 | AX120: 0.802076058 | AY120: 0.7980656777 | AZ120: 0.7940753493 | BA120: 0.7901049725 | BB120: 0.7861544477 | BC120: 0.7822236754 | BD120: 0.7783125571 | BE120: 0.7744209943 | BF120: 0.7705488893 | BG120: 0.7666961449 | BH120: 0.7628626641 | BI120: 0.7590483508 | BJ120: 0.7552531091 | BK120: 0.7514768435 | BL120: 0.7477194593 | BM120: 0.743980862 | BN120: 0.7402609577 | BO120: 0.7365596529 | BP120: 0.7328768546 | BQ120: 0.7292124704 | BR120: 0.725566408 | BS120: =BR120*(1-$E$120) -> 0.721938576 | BT120: 0.7183288831 | BU120: 0.7147372387 | BV120: 0.7111635525 | BW120: 0.7076077347 | BX120: 0.7040696961 | BY120: 0.7005493476 | BZ120: 0.6970466008 | CA120: 0.6935613678 | CB120: 0.690093561 | CC120: 0.6866430932 | CD120: 0.6832098777 | CE120: 0.6797938283 | CF120: 0.6763948592 | CG120: 0.6730128849 | CH120: 0.6696478205 | CI120: 0.6662995814 | CJ120: 0.6629680835 | CK120: 0.659653243 | CL120: 0.6563549768 | CM120: 0.6530732019 | CN120: 0.6498078359 | CO120: 0.6465587968 | CP120: 0.6433260028 | CQ120: 0.6401093728 | CR120: 0.6369088259 | CS120: 0.6337242818 | CT120: 0.6305556604 | CU120: 0.6274028821 | CV120: 0.6242658676 | CW120: 0.6211445383 | CX120: 0.6180388156 | CY120: 0.6149486215 | CZ120: 0.6118738784 | DA120: 0.608814509 | DB120: 0.6057704365
D121: Final Production | G121: =G119*G120 -> 164500.744 | H121: =H119*H120 -> 163678.2403 | I121: 162859.8491 | J121: 162045.5499 | K121: 161235.3221 | L121: 160429.1455 | M121: 159626.9998 | N121: 158828.8648 | O121: 158034.7205 | P121: 157244.5469 | Q121: 156458.3241 | R121: 155676.0325 | S121: 154897.6523 | T121: 154123.1641 | U121: 153352.5483 | V121: 0 | W121: 0 | X121: 0 | Y121: 0 | Z121: 0 | AA121: 0 | AB121: 0 | AC121: 0 | AD121: 0 | AE121: 0 | AF121: 0 | AG121: 0 | AH121: 0 | AI121: 0 | AJ121: 0 | AK121: 0 | AL121: 0 | AM121: 0 | AN121: 0 | AO121: 0 | AP121: 0 | AQ121: 0 | AR121: 0 | AS121: 0 | AT121: 0 | AU121: 0 | AV121: 0 | AW121: 0 | AX121: 0 | AY121: 0 | AZ121: 0 | BA121: 0 | BB121: 0 | BC121: 0 | BD121: 0 | BE121: 0 | BF121: 0 | BG121: 0 | BH121: 0 | BI121: 0 | BJ121: 0 | BK121: 0 | BL121: 0 | BM121: 0 | BN121: 0 | BO121: 0 | BP121: 0 | BQ121: 0 | BR121: 0 | BS121: 0 | BT121: =BT119*BT120 -> 0 | BU121: 0 | BV121: 0 | BW121: 0 | BX121: 0 | BY121: 0 | BZ121: 0 | CA121: 0 | CB121: 0 | CC121: 0 | CD121: 0 | CE121: 0 | CF121: 0 | CG121: 0 | CH121: 0 | CI121: 0 | CJ121: 0 | CK121: 0 | CL121: 0 | CM121: 0 | CN121: 0 | CO121: 0 | CP121: 0 | CQ121: 0 | CR121: 0 | CS121: 0 | CT121: 0 | CU121: 0 | CV121: 0 | CW121: 0 | CX121: 0 | CY121: 0 | CZ121: 0 | DA121: 0 | DB121: 0
D122: Nominal Revenues (USD) | G122: =G118*G121 -> 714834.8195 | H122: =H118*H121 -> 711260.6454 | I122: 707704.3422 | J122: 704165.8204 | K122: 700644.9913 | L122: 697141.7664 | M122: 693656.0576 | N122: 690187.7773 | O122: 686736.8384 | P122: 683303.1542 | Q122: 679886.6384 | R122: 676487.2052 | S122: 673104.7692 | T122: 669739.2454 | U122: 666390.5491 | V122: 0 | W122: 0 | X122: 0 | Y122: 0 | Z122: 0 | AA122: 0 | AB122: 0 | AC122: 0 | AD122: 0 | AE122: 0 | AF122: 0 | AG122: 0 | AH122: 0 | AI122: 0 | AJ122: 0 | AK122: 0 | AL122: 0 | AM122: 0 | AN122: 0 | AO122: 0 | AP122: 0 | AQ122: 0 | AR122: 0 | AS122: 0 | AT122: 0 | AU122: 0 | AV122: 0 | AW122: 0 | AX122: 0 | AY122: 0 | AZ122: 0 | BA122: 0 | BB122: 0 | BC122: 0 | BD122: 0 | BE122: 0 | BF122: 0 | BG122: 0 | BH122: 0 | BI122: 0 | BJ122: 0 | BK122: 0 | BL122: 0 | BM122: 0 | BN122: 0 | BO122: 0 | BP122: 0 | BQ122: 0 | BR122: 0 | BS122: 0 | BT122: =BT118*BT121 -> 0 | BU122: 0 | BV122: 0 | BW122: 0 | BX122: 0 | BY122: 0 | BZ122: 0 | CA122: 0 | CB122: 0 | CC122: 0 | CD122: 0 | CE122: 0 | CF122: 0 | CG122: 0 | CH122: 0 | CI122: 0 | CJ122: 0 | CK122: 0 | CL122: 0 | CM122: 0 | CN122: 0 | CO122: 0 | CP122: 0 | CQ122: 0 | CR122: 0 | CS122: 0 | CT122: 0 | CU122: 0 | CV122: 0 | CW122: 0 | CX122: 0 | CY122: 0 | CZ122: 0 | DA122: 0 | DB122: 0
D123: Inflation Index | E123: =S57 -> 0.01 | F123: 1 | G123: =F123*(1+$E$123) -> 1.01 | H123: 1.0201 | I123: 1.030301 | J123: 1.04060401 | K123: 1.05101005 | L123: 1.061520151 | M123: 1.072135352 | N123: 1.082856706 | O123: 1.093685273 | P123: 1.104622125 | Q123: 1.115668347 | R123: 1.12682503 | S123: 1.13809328 | T123: 1.149474213 | U123: 1.160968955 | V123: 1.172578645 | W123: 1.184304431 | X123: 1.196147476 | Y123: 1.20810895 | Z123: 1.22019004 | AA123: 1.23239194 | AB123: 1.24471586 | AC123: 1.257163018 | AD123: 1.269734649 | AE123: 1.282431995 | AF123: 1.295256315 | AG123: 1.308208878 | AH123: 1.321290967 | AI123: 1.334503877 | AJ123: 1.347848915 | AK123: 1.361327404 | AL123: 1.374940679 | AM123: =AL123*(1+$E$123) -> 1.388690085 | AN123: 1.402576986 | AO123: 1.416602756 | AP123: 1.430768784 | AQ123: 1.445076471 | AR123: 1.459527236 | AS123: 1.474122509 | AT123: 1.488863734 | AU123: 1.503752371 | AV123: 1.518789895 | AW123: 1.533977794 | AX123: 1.549317572 | AY123: 1.564810747 | AZ123: 1.580458855 | BA123: 1.596263443 | BB123: 1.612226078 | BC123: 1.628348338 | BD123: 1.644631822 | BE123: 1.66107814 | BF123: 1.677688921 | BG123: 1.694465811 | BH123: 1.711410469 | BI123: 1.728524573 | BJ123: 1.745809819 | BK123: 1.763267917 | BL123: 1.780900597 | BM123: 1.798709603 | BN123: 1.816696699 | BO123: 1.834863666 | BP123: 1.853212302 | BQ123: 1.871744425 | BR123: 1.890461869 | BS123: =BR123*(1+$E$123) -> 1.909366488 | BT123: 1.928460153 | BU123: 1.947744755 | BV123: 1.967222202 | BW123: 1.986894424 | BX123: 2.006763368 | BY123: 2.026831002 | BZ123: 2.047099312 | CA123: 2.067570305 | CB123: 2.088246008 | CC123: 2.109128468 | CD123: 2.130219753 | CE123: 2.151521951 | CF123: 2.17303717 | CG123: 2.194767542 | CH123: 2.216715217 | CI123: 2.238882369 | CJ123: 2.261271193 | CK123: 2.283883905 | CL123: 2.306722744 | CM123: 2.329789971 | CN123: 2.353087871 | CO123: 2.37661875 | CP123: 2.400384937 | CQ123: 2.424388787 | CR123: 2.448632675 | CS123: 2.473119001 | CT123: 2.497850191 | CU123: 2.522828693 | CV123: 2.54805698 | CW123: 2.57353755 | CX123: 2.599272926 | CY123: 2.625265655 | CZ123: 2.651518311 | DA123: 2.678033494 | DB123: 2.704813829
D124: O&M Cost per year | E124: =G39 -> 452898.5407 | G124: =$E$124*G123*G116 -> 457427.5261 | H124: 462001.8013 | I124: 466621.8193 | J124: 471288.0375 | K124: 476000.9179 | L124: 480760.9271 | M124: 485568.5364 | N124: 490424.2217 | O124: 495328.4639 | P124: 500281.7486 | Q124: 505284.5661 | R124: 510337.4117 | S124: 515440.7858 | T124: 520595.1937 | U124: 525801.1456 | V124: 0 | W124: 0 | X124: 0 | Y124: 0 | Z124: 0 | AA124: 0 | AB124: 0 | AC124: 0 | AD124: 0 | AE124: 0 | AF124: 0 | AG124: 0 | AH124: 0 | AI124: 0 | AJ124: 0 | AK124: 0 | AL124: 0 | AM124: =$E$124*AM123*AM116 -> 0 | AN124: 0 | AO124: 0 | AP124: 0 | AQ124: 0 | AR124: 0 | AS124: 0 | AT124: 0 | AU124: 0 | AV124: 0 | AW124: 0 | AX124: 0 | AY124: 0 | AZ124: 0 | BA124: 0 | BB124: 0 | BC124: 0 | BD124: 0 | BE124: 0 | BF124: 0 | BG124: 0 | BH124: 0 | BI124: 0 | BJ124: 0 | BK124: 0 | BL124: 0 | BM124: 0 | BN124: 0 | BO124: 0 | BP124: 0 | BQ124: 0 | BR124: 0 | BS124: =$E$124*BS123*BS116 -> 0 | BT124: 0 | BU124: 0 | BV124: 0 | BW124: 0 | BX124: 0 | BY124: 0 | BZ124: 0 | CA124: 0 | CB124: 0 | CC124: 0 | CD124: 0 | CE124: 0 | CF124: 0 | CG124: 0 | CH124: 0 | CI124: 0 | CJ124: 0 | CK124: 0 | CL124: 0 | CM124: 0 | CN124: 0 | CO124: 0 | CP124: 0 | CQ124: 0 | CR124: 0 | CS124: 0 | CT124: 0 | CU124: 0 | CV124: 0 | CW124: 0 | CX124: 0 | CY124: =$E$124*CY123*CY116 -> 0 | CZ124: =$E$124*CZ123*CZ116 -> 0 | DA124: =$E$124*DA123*DA116 -> 0 | DB124: =$E$124*DB123*DB116 -> 0
D125: EBITDA | G125: =G122-G124 -> 257407.2934 | H125: =H122-H124 -> 249258.8441 | I125: 241082.5228 | J125: 232877.7829 | K125: 224644.0734 | L125: 216380.8393 | M125: 208087.5212 | N125: 199763.5556 | O125: 191408.3744 | P125: 183021.4056 | Q125: 174602.0724 | R125: 166149.7935 | S125: 157663.9834 | T125: 149144.0517 | U125: 140589.4035 | V125: 0 | W125: 0 | X125: 0 | Y125: 0 | Z125: 0 | AA125: 0 | AB125: 0 | AC125: 0 | AD125: 0 | AE125: 0 | AF125: 0 | AG125: 0 | AH125: 0 | AI125: 0 | AJ125: 0 | AK125: 0 | AL125: 0 | AM125: 0 | AN125: 0 | AO125: 0 | AP125: 0 | AQ125: 0 | AR125: 0 | AS125: 0 | AT125: 0 | AU125: 0 | AV125: 0 | AW125: 0 | AX125: 0 | AY125: 0 | AZ125: 0 | BA125: 0 | BB125: 0 | BC125: 0 | BD125: 0 | BE125: 0 | BF125: 0 | BG125: 0 | BH125: 0 | BI125: 0 | BJ125: 0 | BK125: 0 | BL125: 0 | BM125: 0 | BN125: 0 | BO125: 0 | BP125: 0 | BQ125: 0 | BR125: 0 | BS125: 0 | BT125: =BT122-BT124 -> 0 | BU125: 0 | BV125: 0 | BW125: 0 | BX125: 0 | BY125: 0 | BZ125: 0 | CA125: 0 | CB125: 0 | CC125: 0 | CD125: 0 | CE125: 0 | CF125: 0 | CG125: 0 | CH125: 0 | CI125: 0 | CJ125: 0 | CK125: 0 | CL125: 0 | CM125: 0 | CN125: 0 | CO125: 0 | CP125: 0 | CQ125: 0 | CR125: 0 | CS125: 0 | CT125: 0 | CU125: 0 | CV125: 0 | CW125: 0 | CX125: 0 | CY125: 0 | CZ125: 0 | DA125: 0 | DB125: 0
D126: Less: Tax Depreciation | E126: =G19 -> 2150753.464 | G126: =$E$126*G112 -> 71691.78214 | H126: 71691.78214 | I126: 71691.78214 | J126: 71691.78214 | K126: 71691.78214 | L126: 71691.78214 | M126: 71691.78214 | N126: 71691.78214 | O126: 71691.78214 | P126: 71691.78214 | Q126: 71691.78214 | R126: 71691.78214 | S126: 71691.78214 | T126: 71691.78214 | U126: 71691.78214 | V126: 71691.78214 | W126: 71691.78214 | X126: 71691.78214 | Y126: 71691.78214 | Z126: 71691.78214 | AA126: 71691.78214 | AB126: 71691.78214 | AC126: 71691.78214 | AD126: 71691.78214 | AE126: 71691.78214 | AF126: 71691.78214 | AG126: 71691.78214 | AH126: 71691.78214 | AI126: 71691.78214 | AJ126: 71691.78214 | AK126: 0 | AL126: 0 | AM126: =$E$126*AM112 -> 0 | AN126: 0 | AO126: 0 | AP126: 0 | AQ126: 0 | AR126: 0 | AS126: 0 | AT126: 0 | AU126: 0 | AV126: 0 | AW126: 0 | AX126: 0 | AY126: 0 | AZ126: 0 | BA126: 0 | BB126: 0 | BC126: 0 | BD126: 0 | BE126: 0 | BF126: 0 | BG126: 0 | BH126: 0 | BI126: 0 | BJ126: 0 | BK126: 0 | BL126: 0 | BM126: 0 | BN126: 0 | BO126: 0 | BP126: 0 | BQ126: 0 | BR126: 0 | BS126: =$E$126*BS112 -> 0 | BT126: 0 | BU126: 0 | BV126: 0 | BW126: 0 | BX126: 0 | BY126: 0 | BZ126: 0 | CA126: 0 | CB126: 0 | CC126: 0 | CD126: 0 | CE126: 0 | CF126: 0 | CG126: 0 | CH126: 0 | CI126: 0 | CJ126: 0 | CK126: 0 | CL126: 0 | CM126: 0 | CN126: 0 | CO126: 0 | CP126: 0 | CQ126: 0 | CR126: 0 | CS126: 0 | CT126: 0 | CU126: 0 | CV126: 0 | CW126: 0 | CX126: 0 | CY126: 0 | CZ126: 0 | DA126: 0 | DB126: 0
D127: Less: Interest | E127: FALSE | G127: =G166*$E$127 -> 0 | H127: 0 | I127: 0 | J127: 0 | K127: 0 | L127: 0 | M127: 0 | N127: 0 | O127: 0 | P127: 0 | Q127: 0 | R127: 0 | S127: 0 | T127: 0 | U127: 0 | V127: 0 | W127: 0 | X127: 0 | Y127: 0 | Z127: 0 | AA127: 0 | AB127: 0 | AC127: 0 | AD127: 0 | AE127: 0 | AF127: 0 | AG127: 0 | AH127: 0 | AI127: 0 | AJ127: 0 | AK127: 0 | AL127: 0 | AM127: =AM166*$E$127 -> 0 | AN127: 0 | AO127: 0 | AP127: 0 | AQ127: 0 | AR127: 0 | AS127: 0 | AT127: 0 | AU127: 0 | AV127: 0 | AW127: 0 | AX127: 0 | AY127: 0 | AZ127: 0 | BA127: 0 | BB127: 0 | BC127: 0 | BD127: 0 | BE127: 0 | BF127: 0 | BG127: 0 | BH127: 0 | BI127: 0 | BJ127: 0 | BK127: 0 | BL127: 0 | BM127: 0 | BN127: 0 | BO127: 0 | BP127: 0 | BQ127: 0 | BR127: 0 | BS127: =BS166*$E$127 -> 0 | BT127: 0 | BU127: 0 | BV127: 0 | BW127: 0 | BX127: 0 | BY127: 0 | BZ127: 0 | CA127: 0 | CB127: 0 | CC127: 0 | CD127: 0 | CE127: 0 | CF127: 0 | CG127: 0 | CH127: 0 | CI127: 0 | CJ127: 0 | CK127: 0 | CL127: 0 | CM127: 0 | CN127: 0 | CO127: 0 | CP127: 0 | CQ127: 0 | CR127: 0 | CS127: 0 | CT127: 0 | CU127: 0 | CV127: 0 | CW127: 0 | CX127: 0 | CY127: 0 | CZ127: 0 | DA127: 0 | DB127: 0
D128: Taxable Income | G128: =G125-G126-G127 -> 185715.5113 | H128: =H125-H126-H127 -> 177567.0619 | I128: 169390.7407 | J128: 161186.0008 | K128: 152952.2913 | L128: 144689.0572 | M128: 136395.7391 | N128: 128071.7734 | O128: 119716.5923 | P128: 111329.6235 | Q128: 102910.2902 | R128: 94458.01136 | S128: 85972.20122 | T128: 77452.26952 | U128: 68897.62135 | V128: -71691.78214 | W128: -71691.78214 | X128: -71691.78214 | Y128: -71691.78214 | Z128: -71691.78214 | AA128: -71691.78214 | AB128: -71691.78214 | AC128: -71691.78214 | AD128: -71691.78214 | AE128: -71691.78214 | AF128: -71691.78214 | AG128: -71691.78214 | AH128: -71691.78214 | AI128: -71691.78214 | AJ128: -71691.78214 | AK128: 0 | AL128: 0 | AM128: 0 | AN128: 0 | AO128: 0 | AP128: 0 | AQ128: 0 | AR128: 0 | AS128: 0 | AT128: 0 | AU128: 0 | AV128: 0 | AW128: 0 | AX128: 0 | AY128: 0 | AZ128: 0 | BA128: 0 | BB128: 0 | BC128: 0 | BD128: 0 | BE128: 0 | BF128: 0 | BG128: 0 | BH128: 0 | BI128: 0 | BJ128: 0 | BK128: 0 | BL128: 0 | BM128: 0 | BN128: 0 | BO128: 0 | BP128: 0 | BQ128: 0 | BR128: 0 | BS128: 0 | BT128: =BT125-BT126-BT127 -> 0 | BU128: 0 | BV128: 0 | BW128: 0 | BX128: 0 | BY128: 0 | BZ128: 0 | CA128: 0 | CB128: 0 | CC128: 0 | CD128: 0 | CE128: 0 | CF128: 0 | CG128: 0 | CH128: 0 | CI128: 0 | CJ128: 0 | CK128: 0 | CL128: 0 | CM128: 0 | CN128: 0 | CO128: 0 | CP128: 0 | CQ128: 0 | CR128: 0 | CS128: 0 | CT128: 0 | CU128: 0 | CV128: 0 | CW128: 0 | CX128: 0 | CY128: 0 | CZ128: 0 | DA128: 0 | DB128: 0
D129: Taxes | E129: =S51 -> 0.2 | G129: =G128*$E$129 -> 37143.10226 | H129: 35513.41238 | I129: 33878.14814 | J129: 32237.20016 | K129: 30590.45826 | L129: 28937.81143 | M129: 27279.14781 | N129: 25614.35468 | O129: 23943.31846 | P129: 22265.92469 | Q129: 20582.05804 | R129: 18891.60227 | S129: 17194.44024 | T129: 15490.4539 | U129: 13779.52427 | V129: -14338.35643 | W129: -14338.35643 | X129: -14338.35643 | Y129: -14338.35643 | Z129: -14338.35643 | AA129: -14338.35643 | AB129: -14338.35643 | AC129: -14338.35643 | AD129: -14338.35643 | AE129: -14338.35643 | AF129: -14338.35643 | AG129: -14338.35643 | AH129: -14338.35643 | AI129: -14338.35643 | AJ129: -14338.35643 | AK129: 0 | AL129: 0 | AM129: =AM128*$E$129 -> 0 | AN129: 0 | AO129: 0 | AP129: 0 | AQ129: 0 | AR129: 0 | AS129: 0 | AT129: 0 | AU129: 0 | AV129: 0 | AW129: 0 | AX129: 0 | AY129: 0 | AZ129: 0 | BA129: 0 | BB129: 0 | BC129: 0 | BD129: 0 | BE129: 0 | BF129: 0 | BG129: 0 | BH129: 0 | BI129: 0 | BJ129: 0 | BK129: 0 | BL129: 0 | BM129: 0 | BN129: 0 | BO129: 0 | BP129: 0 | BQ129: 0 | BR129: 0 | BS129: =BS128*$E$129 -> 0 | BT129: 0 | BU129: 0 | BV129: 0 | BW129: 0 | BX129: 0 | BY129: 0 | BZ129: 0 | CA129: 0 | CB129: 0 | CC129: 0 | CD129: 0 | CE129: 0 | CF129: 0 | CG129: 0 | CH129: 0 | CI129: 0 | CJ129: 0 | CK129: 0 | CL129: 0 | CM129: 0 | CN129: 0 | CO129: 0 | CP129: 0 | CQ129: 0 | CR129: 0 | CS129: 0 | CT129: 0 | CU129: 0 | CV129: 0 | CW129: 0 | CX129: 0 | CY129: =CY128*$E$129 -> 0 | CZ129: =CZ128*$E$129 -> 0 | DA129: =DA128*$E$129 -> 0 | DB129: =DB128*$E$129 -> 0
D130: Less: Debt Service | G130: =G166+G164 -> 131602.0224 | H130: =H166+H164 -> 128561.2629 | I130: 125489.7312 | J130: 122386.3562 | K130: 119250.0332 | L130: 116079.6226 | M130: 112873.9489 | N130: 109631.7991 | O130: 106351.9218 | P130: 103033.0258 | Q130: 99673.7783 | R130: 96272.80419 | S130: 92828.68398 | T130: 89339.95256 | U130: 85805.09756 | V130: 8302.871703 | W130: 8392.735223 | X130: 8485.743965 | Y130: 8582.008014 | Z130: 8681.641305 | AA130: 8784.76176 | AB130: 8891.491432 | AC130: 9001.956642 | AD130: 9116.288135 | AE130: 9234.621229 | AF130: 9357.095982 | AG130: 9483.857352 | AH130: 9615.055369 | AI130: 9750.845317 | AJ130: 9891.387913 | AK130: 0 | AL130: 0 | AM130: 0 | AN130: 0 | AO130: 0 | AP130: 0 | AQ130: 0 | AR130: 0 | AS130: 0 | AT130: 0 | AU130: 0 | AV130: 0 | AW130: 0 | AX130: 0 | AY130: 0 | AZ130: 0 | BA130: 0 | BB130: 0 | BC130: 0 | BD130: 0 | BE130: 0 | BF130: 0 | BG130: 0 | BH130: 0 | BI130: 0 | BJ130: 0 | BK130: 0 | BL130: 0 | BM130: 0 | BN130: 0 | BO130: 0 | BP130: 0 | BQ130: 0 | BR130: 0 | BS130: 0 | BT130: =BT166+BT164 -> 0 | BU130: 0 | BV130: 0 | BW130: 0 | BX130: 0 | BY130: 0 | BZ130: 0 | CA130: 0 | CB130: 0 | CC130: 0 | CD130: 0 | CE130: 0 | CF130: 0 | CG130: 0 | CH130: 0 | CI130: 0 | CJ130: 0 | CK130: 0 | CL130: 0 | CM130: 0 | CN130: 0 | CO130: 0 | CP130: 0 | CQ130: 0 | CR130: 0 | CS130: 0 | CT130: 0 | CU130: 0 | CV130: 0 | CW130: 0 | CX130: 0 | CY130: 0 | CZ130: 0 | DA130: 0 | DB130: 0
D131: Capital Expenditure | F131: =-G19 -> -2150753.464
D132: Equity Cash Flow | F132: =-F156 -> -645226.0393 | G132: =G125-G129-G130 -> 88662.16872 | H132: =H125-H129-H130 -> 85184.16877 | I132: 81714.64351 | J132: 78254.22659 | K132: 74803.58201 | L132: 71363.40527 | M132: 67934.42452 | N132: 64517.40178 | O132: 61113.13416 | P132: 57722.45516 | Q132: 54346.23601 | R132: 50985.38705 | S132: 47640.85914 | T132: 44313.6452 | U132: 41004.78167 | V132: 6035.484726 | W132: 5945.621206 | X132: 5852.612463 | Y132: 5756.348414 | Z132: 5656.715124 | AA132: 5553.594668 | AB132: 5446.864997 | AC132: 5336.399786 | AD132: 5222.068294 | AE132: 5103.735199 | AF132: 4981.260446 | AG132: 4854.499077 | AH132: 4723.30106 | AI132: 4587.511112 | AJ132: 4446.968516 | AK132: 0 | AL132: 0 | AM132: 0 | AN132: 0 | AO132: 0 | AP132: 0 | AQ132: 0 | AR132: 0 | AS132: 0 | AT132: 0 | AU132: 0 | AV132: 0 | AW132: 0 | AX132: 0 | AY132: 0 | AZ132: 0 | BA132: 0 | BB132: 0 | BC132: 0 | BD132: 0 | BE132: 0 | BF132: 0 | BG132: 0 | BH132: 0 | BI132: 0 | BJ132: 0 | BK132: 0 | BL132: 0 | BM132: 0 | BN132: 0 | BO132: 0 | BP132: 0 | BQ132: 0 | BR132: 0 | BS132: 0 | BT132: =BT125-BT129-BT130 -> 0 | BU132: 0 | BV132: 0 | BW132: 0 | BX132: 0 | BY132: 0 | BZ132: 0 | CA132: 0 | CB132: 0 | CC132: 0 | CD132: 0 | CE132: 0 | CF132: 0 | CG132: 0 | CH132: 0 | CI132: 0 | CJ132: 0 | CK132: 0 | CL132: 0 | CM132: 0 | CN132: 0 | CO132: 0 | CP132: 0 | CQ132: 0 | CR132: 0 | CS132: 0 | CT132: 0 | CU132: 0 | CV132: 0 | CW132: 0 | CX132: 0 | CY132: 0 | CZ132: 0 | DA132: 0 | DB132: 0
D133: Equity IRR | F133: =IRR(F132:DB132) -> 0.07 | G133: Target | H133: =G63 -> 0.07 | I133: Test | J133: =ROUND(H133-F133,3)=0 -> TRUE
D134: Project Cash Flow Pre-tax | F134: =F125+F131 -> -2150753.464 | G134: =G125+G131 -> 257407.2934 | H134: 249258.8441 | I134: 241082.5228 | J134: 232877.7829 | K134: 224644.0734 | L134: 216380.8393 | M134: 208087.5212 | N134: 199763.5556 | O134: 191408.3744 | P134: 183021.4056 | Q134: 174602.0724 | R134: 166149.7935 | S134: 157663.9834 | T134: 149144.0517 | U134: 140589.4035 | V134: 0 | W134: 0 | X134: 0 | Y134: 0 | Z134: 0 | AA134: 0 | AB134: 0 | AC134: 0 | AD134: 0 | AE134: 0 | AF134: 0 | AG134: 0 | AH134: 0 | AI134: 0 | AJ134: 0 | AK134: 0 | AL134: 0 | AM134: 0 | AN134: 0 | AO134: 0 | AP134: 0 | AQ134: 0 | AR134: 0 | AS134: 0 | AT134: 0 | AU134: 0 | AV134: 0 | AW134: 0 | AX134: 0 | AY134: 0 | AZ134: 0 | BA134: 0 | BB134: 0 | BC134: 0 | BD134: 0 | BE134: 0 | BF134: 0 | BG134: 0 | BH134: 0 | BI134: 0 | BJ134: 0 | BK134: 0 | BL134: 0 | BM134: 0 | BN134: 0 | BO134: 0 | BP134: 0 | BQ134: 0 | BR134: 0 | BS134: =BS125+BS131 -> 0 | BT134: 0 | BU134: 0 | BV134: 0 | BW134: 0 | BX134: 0 | BY134: 0 | BZ134: 0 | CA134: 0 | CB134: 0 | CC134: 0 | CD134: 0 | CE134: 0 | CF134: 0 | CG134: 0 | CH134: 0 | CI134: 0 | CJ134: 0 | CK134: 0 | CL134: 0 | CM134: 0 | CN134: 0 | CO134: 0 | CP134: 0 | CQ134: 0 | CR134: 0 | CS134: 0 | CT134: 0 | CU134: 0 | CV134: 0 | CW134: 0 | CX134: 0 | CY134: 0 | CZ134: 0 | DA134: 0 | DB134: 0
D135: Pre-tax IRR | F135: =IRR(134:134) -> 0.04983227978
D136: Project After-tax Cash Flow | F136: =F134 -> -2150753.464 | G136: =G125-(G125-G126)*$E$129 -> 220264.1912 | H136: 213745.4317 | I136: 207204.3747 | J136: 200640.5828 | K136: 194053.6152 | L136: 187443.0279 | M136: 180808.3734 | N136: 174149.2009 | O136: 167465.056 | P136: 160755.4809 | Q136: 154020.0143 | R136: 147258.1912 | S136: 140469.5431 | T136: 133653.5978 | U136: 126809.8792 | V136: 14338.35643 | W136: 14338.35643 | X136: 14338.35643 | Y136: 14338.35643 | Z136: 14338.35643 | AA136: 14338.35643 | AB136: 14338.35643 | AC136: 14338.35643 | AD136: 14338.35643 | AE136: 14338.35643 | AF136: 14338.35643 | AG136: 14338.35643 | AH136: 14338.35643 | AI136: 14338.35643 | AJ136: 14338.35643 | AK136: 0 | AL136: 0 | AM136: =AM125-(AM125-AM126)*$E$129 -> 0 | AN136: 0 | AO136: 0 | AP136: 0 | AQ136: 0 | AR136: 0 | AS136: 0 | AT136: 0 | AU136: 0 | AV136: 0 | AW136: 0 | AX136: 0 | AY136: 0 | AZ136: 0 | BA136: 0 | BB136: 0 | BC136: 0 | BD136: 0 | BE136: 0 | BF136: 0 | BG136: 0 | BH136: 0 | BI136: 0 | BJ136: 0 | BK136: 0 | BL136: 0 | BM136: 0 | BN136: 0 | BO136: 0 | BP136: 0 | BQ136: 0 | BR136: 0 | BS136: =BS125-(BS125-BS126)*$E$129 -> 0 | BT136: 0 | BU136: 0 | BV136: 0 | BW136: 0 | BX136: 0 | BY136: 0 | BZ136: 0 | CA136: 0 | CB136: 0 | CC136: 0 | CD136: 0 | CE136: 0 | CF136: 0 | CG136: 0 | CH136: 0 | CI136: 0 | CJ136: 0 | CK136: 0 | CL136: 0 | CM136: 0 | CN136: 0 | CO136: 0 | CP136: 0 | CQ136: 0 | CR136: 0 | CS136: 0 | CT136: 0 | CU136: 0 | CV136: 0 | CW136: 0 | CX136: 0 | CY136: 0 | CZ136: 0 | DA136: 0 | DB136: 0
D137: After-tax IRR | F137: =IFERROR(IRR(F136:DB136),0.1) -> 0.035
C139: Asset Balance
D140: Straight Line Depreciation | E140: =S49 -> 15 | F140: =-F131 -> 2150753.464 | G140: =$F$140/$E$140*G116 -> 143383.5643 | H140: 143383.5643 | I140: 143383.5643 | J140: 143383.5643 | K140: 143383.5643 | L140: 143383.5643 | M140: 143383.5643 | N140: 143383.5643 | O140: 143383.5643 | P140: 143383.5643 | Q140: 143383.5643 | R140: 143383.5643 | S140: 143383.5643 | T140: 143383.5643 | U140: 143383.5643 | V140: 0 | W140: 0 | X140: 0 | Y140: 0 | Z140: 0 | AA140: 0 | AB140: 0 | AC140: 0 | AD140: 0 | AE140: 0 | AF140: 0 | AG140: 0 | AH140: 0 | AI140: 0 | AJ140: 0 | AK140: 0 | AL140: 0 | AM140: =$F$140/$E$140*AM116 -> 0 | AN140: 0 | AO140: 0 | AP140: 0 | AQ140: 0 | AR140: 0 | AS140: 0 | AT140: 0 | AU140: 0 | AV140: 0 | AW140: 0 | AX140: 0 | AY140: 0 | AZ140: 0 | BA140: 0 | BB140: 0 | BC140: 0 | BD140: 0 | BE140: 0 | BF140: 0 | BG140: 0 | BH140: 0 | BI140: 0 | BJ140: 0 | BK140: 0 | BL140: 0 | BM140: 0 | BN140: 0 | BO140: 0 | BP140: 0 | BQ140: 0 | BR140: 0 | BS140: =$F$140/$E$140*BS116 -> 0 | BT140: 0 | BU140: 0 | BV140: 0 | BW140: 0 | BX140: 0 | BY140: 0 | BZ140: 0 | CA140: 0 | CB140: 0 | CC140: 0 | CD140: 0 | CE140: 0 | CF140: 0 | CG140: 0 | CH140: 0 | CI140: 0 | CJ140: 0 | CK140: 0 | CL140: 0 | CM140: 0 | CN140: 0 | CO140: 0 | CP140: 0 | CQ140: 0 | CR140: 0 | CS140: 0 | CT140: 0 | CU140: 0 | CV140: 0 | CW140: 0 | CX140: 0 | CY140: 0 | CZ140: 0 | DA140: 0 | DB140: 0
D141: NPV of Future Project Cash Flow | F141: =NPV($F$137,G136:DB136) -> 2150753.464 | G141: 2005765.644 | H141: 1862222.01 | I141: 1720195.406 | J141: 1579761.662 | K141: 1440999.705 | L141: 1303991.667 | M141: 1168823.002 | N141: 1035582.606 | O141: 904362.9416 | P141: 775260.1636 | Q141: 648374.255 | R141: 523809.1627 | S141: 401672.9403 | T141: 282077.8955 | U141: 165140.7426 | V141: 156582.3121 | W141: 147724.3366 | X141: 138556.332 | Y141: 129067.4472 | Z141: 119246.4514 | AA141: 109081.7208 | AB141: 98561.22456 | AC141: 87672.51099 | AD141: 76402.69245 | AE141: 64738.43025 | AF141: 52665.91888 | AG141: 40170.86962 | AH141: 27238.49362 | AI141: 13853.48447 | AJ141: 0 | AK141: 0 | AL141: =NPV($F$137,AM136:EH136) -> 0 | AM141: 0 | AN141: 0 | AO141: 0 | AP141: 0 | AQ141: 0 | AR141: 0 | AS141: 0 | AT141: 0 | AU141: 0 | AV141: 0 | AW141: 0 | AX141: 0 | AY141: 0 | AZ141: 0 | BA141: 0 | BB141: 0 | BC141: 0 | BD141: 0 | BE141: 0 | BF141: 0 | BG141: 0 | BH141: 0 | BI141: 0 | BJ141: 0 | BK141: 0 | BL141: 0 | BM141: 0 | BN141: 0 | BO141: 0 | BP141: 0 | BQ141: 0 | BR141: =NPV($F$137,BS136:FN136) -> 0 | BS141: 0 | BT141: 0 | BU141: 0 | BV141: 0 | BW141: 0 | BX141: 0 | BY141: 0 | BZ141: 0 | CA141: 0 | CB141: 0 | CC141: 0 | CD141: 0 | CE141: 0 | CF141: 0 | CG141: 0 | CH141: 0 | CI141: 0 | CJ141: 0 | CK141: 0 | CL141: 0 | CM141: 0 | CN141: 0 | CO141: 0 | CP141: 0 | CQ141: 0 | CR141: 0 | CS141: 0 | CT141: 0 | CU141: 0 | CV141: 0 | CW141: 0 | CX141: =NPV($F$137,CY136:GT136) -> 0 | CY141: =NPV($F$137,CZ136:GU136) -> 0 | CZ141: =NPV($F$137,DA136:GV136) -> 0 | DA141: =NPV($F$137,DB136:GW136) -> 0 | DB141: =NPV($F$137,DC136:GX136) -> 0
D142: Economic Depreciation | G142: =F141-G141 -> 144987.8199 | H142: =G141-H141 -> 143543.6341 | I142: 142026.6043 | J142: 140433.7436 | K142: 138761.957 | L142: 137008.0382 | M142: 135168.665 | N142: 133240.3958 | O142: =N141-O141 -> 131219.6648 | P142: 129102.778 | Q142: 126885.9086 | R142: 124565.0923 | S142: 122136.2224 | T142: 119595.0448 | U142: 116937.1529 | V142: 8558.430439 | W142: 8857.975504 | X142: 9168.004647 | Y142: 9488.884809 | Z142: 9820.995778 | AA142: 10164.73063 | AB142: 10520.4962 | AC142: 10888.71357 | AD142: 11269.81854 | AE142: 11664.26219 | AF142: 12072.51137 | AG142: 12495.04927 | AH142: 12932.37599 | AI142: 13385.00915 | AJ142: 13853.48447 | AK142: 0 | AL142: 0 | AM142: 0 | AN142: 0 | AO142: 0 | AP142: 0 | AQ142: 0 | AR142: 0 | AS142: 0 | AT142: 0 | AU142: 0 | AV142: 0 | AW142: 0 | AX142: 0 | AY142: 0 | AZ142: 0 | BA142: 0 | BB142: 0 | BC142: 0 | BD142: 0 | BE142: 0 | BF142: 0 | BG142: 0 | BH142: 0 | BI142: 0 | BJ142: 0 | BK142: 0 | BL142: 0 | BM142: 0 | BN142: 0 | BO142: 0 | BP142: 0 | BQ142: 0 | BR142: 0 | BS142: 0 | BT142: =BS141-BT141 -> 0 | BU142: 0 | BV142: 0 | BW142: 0 | BX142: 0 | BY142: 0 | BZ142: 0 | CA142: 0 | CB142: 0 | CC142: 0 | CD142: 0 | CE142: 0 | CF142: 0 | CG142: 0 | CH142: 0 | CI142: 0 | CJ142: 0 | CK142: 0 | CL142: 0 | CM142: 0 | CN142: 0 | CO142: 0 | CP142: 0 | CQ142: 0 | CR142: 0 | CS142: 0 | CT142: 0 | CU142: 0 | CV142: 0 | CW142: 0 | CX142: 0 | CY142: 0 | CZ142: 0 | DA142: 0 | DB142: 0
D144: Income with Straight Line Depreciation | E144: =SUM(G144:DB144) -> 673062.4423 | G144: =G125-G140-G127-G129 -> 76880.62688 | H144: =H125-H140-H127-H129 -> 70361.86739 | I144: 63820.8104 | J144: 57257.01848 | K144: 50670.0509 | L144: 44059.46359 | M144: 37424.8091 | N144: 30765.63658 | O144: 24081.4917 | P144: 17371.91664 | Q144: 10636.45003 | R144: 3874.626948 | S144: -2914.021167 | T144: -9729.96653 | U144: -16573.68506 | V144: 14338.35643 | W144: 14338.35643 | X144: 14338.35643 | Y144: 14338.35643 | Z144: 14338.35643 | AA144: 14338.35643 | AB144: 14338.35643 | AC144: 14338.35643 | AD144: 14338.35643 | AE144: 14338.35643 | AF144: 14338.35643 | AG144: 14338.35643 | AH144: 14338.35643 | AI144: 14338.35643 | AJ144: 14338.35643 | AK144: 0 | AL144: 0 | AM144: 0 | AN144: 0 | AO144: 0 | AP144: 0 | AQ144: 0 | AR144: 0 | AS144: 0 | AT144: 0 | AU144: 0 | AV144: 0 | AW144: 0 | AX144: 0 | AY144: 0 | AZ144: 0 | BA144: 0 | BB144: 0 | BC144: 0 | BD144: 0 | BE144: 0 | BF144: 0 | BG144: 0 | BH144: 0 | BI144: 0 | BJ144: 0 | BK144: 0 | BL144: 0 | BM144: 0 | BN144: 0 | BO144: 0 | BP144: 0 | BQ144: 0 | BR144: 0 | BS144: 0 | BT144: =BT125-BT140-BT127-BT129 -> 0 | BU144: 0 | BV144: 0 | BW144: 0 | BX144: 0 | BY144: 0 | BZ144: 0 | CA144: 0 | CB144: 0 | CC144: 0 | CD144: 0 | CE144: 0 | CF144: 0 | CG144: 0 | CH144: 0 | CI144: 0 | CJ144: 0 | CK144: 0 | CL144: 0 | CM144: 0 | CN144: 0 | CO144: 0 | CP144: 0 | CQ144: 0 | CR144: 0 | CS144: 0 | CT144: 0 | CU144: 0 | CV144: 0 | CW144: 0 | CX144: 0 | CY144: 0 | CZ144: 0 | DA144: 0 | DB144: 0
D145: Income with Economic Depreciation | E145: =SUM(G145:DB145) -> 403837.4654 | G145: =(G125-G142-G127)*(1-$E$151)+G151-G166 -> 45165.82275 | H145: 42121.07853 | I145: 39106.66222 | J145: 36124.10352 | K145: 33174.99491 | L145: 30260.99381 | M145: 27383.82501 | N145: 24545.28305 | O145: 21747.23473 | P145: 18991.62177 | Q145: 16280.46344 | R145: 13615.85936 | S145: 10999.99242 | T145: 8435.131746 | U145: 5923.635805 | V145: 3467.955594 | W145: 3288.228555 | X145: 3102.211069 | Y145: 2909.682972 | Z145: 2710.416391 | AA145: 2504.175479 | AB145: 2290.716136 | AC145: 2069.785716 | AD145: 1841.122731 | AE145: 1604.456541 | AF145: 1359.507035 | AG145: 1105.984297 | AH145: 843.5882619 | AI145: 572.0083661 | AJ145: 290.9231739 | AK145: 0 | AL145: 0 | AM145: =(AM125-AM142-AM127)*(1-$E$151)+AM151-AM166 -> 0 | AN145: 0 | AO145: 0 | AP145: 0 | AQ145: 0 | AR145: 0 | AS145: 0 | AT145: 0 | AU145: 0 | AV145: 0 | AW145: 0 | AX145: 0 | AY145: 0 | AZ145: 0 | BA145: 0 | BB145: 0 | BC145: 0 | BD145: 0 | BE145: 0 | BF145: 0 | BG145: 0 | BH145: 0 | BI145: 0 | BJ145: 0 | BK145: 0 | BL145: 0 | BM145: 0 | BN145: 0 | BO145: 0 | BP145: 0 | BQ145: 0 | BR145: 0 | BS145: =(BS125-BS142-BS127)*(1-$E$151)+BS151-BS166 -> 0 | BT145: 0 | BU145: 0 | BV145: 0 | BW145: 0 | BX145: 0 | BY145: 0 | BZ145: 0 | CA145: 0 | CB145: 0 | CC145: 0 | CD145: 0 | CE145: 0 | CF145: 0 | CG145: 0 | CH145: 0 | CI145: 0 | CJ145: 0 | CK145: 0 | CL145: 0 | CM145: 0 | CN145: 0 | CO145: 0 | CP145: 0 | CQ145: 0 | CR145: 0 | CS145: 0 | CT145: 0 | CU145: 0 | CV145: 0 | CW145: 0 | CX145: 0 | CY145: 0 | CZ145: 0 | DA145: 0 | DB145: 0
D147: Gross Plant | F147: =F140 -> 2150753.464 | G147: =F147 -> 2150753.464 | H147: =G147 -> 2150753.464 | I147: 2150753.464 | J147: 2150753.464 | K147: 2150753.464 | L147: 2150753.464 | M147: 2150753.464 | N147: 2150753.464 | O147: =N147 -> 2150753.464 | P147: 2150753.464 | Q147: 2150753.464 | R147: 2150753.464 | S147: 2150753.464 | T147: 2150753.464 | U147: 2150753.464 | V147: 2150753.464 | W147: 2150753.464 | X147: 2150753.464 | Y147: 2150753.464 | Z147: 2150753.464 | AA147: 2150753.464 | AB147: 2150753.464 | AC147: 2150753.464 | AD147: 2150753.464 | AE147: 2150753.464 | AF147: 2150753.464 | AG147: 2150753.464 | AH147: 2150753.464 | AI147: 2150753.464 | AJ147: 2150753.464 | AK147: 2150753.464 | AL147: 2150753.464 | AM147: 2150753.464 | AN147: 2150753.464 | AO147: 2150753.464 | AP147: 2150753.464 | AQ147: 2150753.464 | AR147: 2150753.464 | AS147: 2150753.464 | AT147: 2150753.464 | AU147: 2150753.464 | AV147: 2150753.464 | AW147: 2150753.464 | AX147: 2150753.464 | AY147: 2150753.464 | AZ147: 2150753.464 | BA147: 2150753.464 | BB147: 2150753.464 | BC147: 2150753.464 | BD147: 2150753.464 | BE147: 2150753.464 | BF147: 2150753.464 | BG147: 2150753.464 | BH147: 2150753.464 | BI147: 2150753.464 | BJ147: 2150753.464 | BK147: 2150753.464 | BL147: 2150753.464 | BM147: 2150753.464 | BN147: 2150753.464 | BO147: 2150753.464 | BP147: 2150753.464 | BQ147: 2150753.464 | BR147: 2150753.464 | BS147: 2150753.464 | BT147: =BS147 -> 2150753.464 | BU147: 2150753.464 | BV147: 2150753.464 | BW147: 2150753.464 | BX147: 2150753.464 | BY147: 2150753.464 | BZ147: 2150753.464 | CA147: 2150753.464 | CB147: 2150753.464 | CC147: 2150753.464 | CD147: 2150753.464 | CE147: 2150753.464 | CF147: 2150753.464 | CG147: 2150753.464 | CH147: 2150753.464 | CI147: 2150753.464 | CJ147: 2150753.464 | CK147: 2150753.464 | CL147: 2150753.464 | CM147: 2150753.464 | CN147: 2150753.464 | CO147: 2150753.464 | CP147: 2150753.464 | CQ147: 2150753.464 | CR147: 2150753.464 | CS147: 2150753.464 | CT147: 2150753.464 | CU147: 2150753.464 | CV147: 2150753.464 | CW147: 2150753.464 | CX147: 2150753.464 | CY147: 2150753.464 | CZ147: 2150753.464 | DA147: 2150753.464 | DB147: 2150753.464
D148: Less: Accumulated Depreciation | G148: =F148+G142 -> 144987.8199 | H148: =G148+H142 -> 288531.454 | I148: 430558.0584 | J148: 570991.8019 | K148: 709753.7589 | L148: 846761.7971 | M148: 981930.4621 | N148: 1115170.858 | O148: =N148+O142 -> 1246390.523 | P148: 1375493.301 | Q148: 1502379.209 | R148: 1626944.302 | S148: 1749080.524 | T148: 1868675.569 | U148: 1985612.722 | V148: 1994171.152 | W148: 2003029.128 | X148: 2012197.132 | Y148: 2021686.017 | Z148: 2031507.013 | AA148: 2041671.744 | AB148: 2052192.24 | AC148: 2063080.953 | AD148: 2074350.772 | AE148: 2086015.034 | AF148: 2098087.545 | AG148: 2110582.595 | AH148: 2123514.971 | AI148: 2136899.98 | AJ148: 2150753.464 | AK148: 2150753.464 | AL148: 2150753.464 | AM148: 2150753.464 | AN148: 2150753.464 | AO148: 2150753.464 | AP148: 2150753.464 | AQ148: 2150753.464 | AR148: 2150753.464 | AS148: 2150753.464 | AT148: 2150753.464 | AU148: 2150753.464 | AV148: 2150753.464 | AW148: 2150753.464 | AX148: 2150753.464 | AY148: 2150753.464 | AZ148: 2150753.464 | BA148: 2150753.464 | BB148: 2150753.464 | BC148: 2150753.464 | BD148: 2150753.464 | BE148: 2150753.464 | BF148: 2150753.464 | BG148: 2150753.464 | BH148: 2150753.464 | BI148: 2150753.464 | BJ148: 2150753.464 | BK148: 2150753.464 | BL148: 2150753.464 | BM148: 2150753.464 | BN148: 2150753.464 | BO148: 2150753.464 | BP148: 2150753.464 | BQ148: 2150753.464 | BR148: 2150753.464 | BS148: 2150753.464 | BT148: =BS148+BT142 -> 2150753.464 | BU148: 2150753.464 | BV148: 2150753.464 | BW148: 2150753.464 | BX148: 2150753.464 | BY148: 2150753.464 | BZ148: 2150753.464 | CA148: 2150753.464 | CB148: 2150753.464 | CC148: 2150753.464 | CD148: 2150753.464 | CE148: 2150753.464 | CF148: 2150753.464 | CG148: 2150753.464 | CH148: 2150753.464 | CI148: 2150753.464 | CJ148: 2150753.464 | CK148: 2150753.464 | CL148: 2150753.464 | CM148: 2150753.464 | CN148: 2150753.464 | CO148: 2150753.464 | CP148: 2150753.464 | CQ148: 2150753.464 | CR148: 2150753.464 | CS148: 2150753.464 | CT148: 2150753.464 | CU148: 2150753.464 | CV148: 2150753.464 | CW148: 2150753.464 | CX148: 2150753.464 | CY148: 2150753.464 | CZ148: 2150753.464 | DA148: 2150753.464 | DB148: 2150753.464
D149: Net Plant | F149: =F147-F148 -> 2150753.464 | G149: =G147-G148 -> 2005765.644 | H149: =H147-H148 -> 1862222.01 | I149: 1720195.406 | J149: 1579761.662 | K149: 1440999.705 | L149: 1303991.667 | M149: 1168823.002 | N149: 1035582.606 | O149: 904362.9416 | P149: 775260.1636 | Q149: 648374.255 | R149: 523809.1627 | S149: 401672.9403 | T149: 282077.8955 | U149: 165140.7426 | V149: 156582.3121 | W149: 147724.3366 | X149: 138556.332 | Y149: 129067.4472 | Z149: 119246.4514 | AA149: 109081.7208 | AB149: 98561.22456 | AC149: 87672.51099 | AD149: 76402.69245 | AE149: 64738.43025 | AF149: 52665.91888 | AG149: 40170.86962 | AH149: 27238.49362 | AI149: 13853.48447 | AJ149: 0 | AK149: 0 | AL149: 0 | AM149: 0 | AN149: 0 | AO149: 0 | AP149: 0 | AQ149: 0 | AR149: 0 | AS149: 0 | AT149: 0 | AU149: 0 | AV149: 0 | AW149: 0 | AX149: 0 | AY149: 0 | AZ149: 0 | BA149: 0 | BB149: 0 | BC149: 0 | BD149: 0 | BE149: 0 | BF149: 0 | BG149: 0 | BH149: 0 | BI149: 0 | BJ149: 0 | BK149: 0 | BL149: 0 | BM149: 0 | BN149: 0 | BO149: 0 | BP149: 0 | BQ149: 0 | BR149: 0 | BS149: 0 | BT149: =BT147-BT148 -> 0 | BU149: 0 | BV149: 0 | BW149: 0 | BX149: 0 | BY149: 0 | BZ149: 0 | CA149: 0 | CB149: 0 | CC149: 0 | CD149: 0 | CE149: 0 | CF149: 0 | CG149: 0 | CH149: 0 | CI149: 0 | CJ149: 0 | CK149: 0 | CL149: 0 | CM149: 0 | CN149: 0 | CO149: 0 | CP149: 0 | CQ149: 0 | CR149: 0 | CS149: 0 | CT149: 0 | CU149: 0 | CV149: 0 | CW149: 0 | CX149: 0 | CY149: 0 | CZ149: 0 | DA149: 0 | DB149: 0
D151: Deferred Taxes | E151: =S51 -> 0.2 | G151: =(G126-G142)*$E$151 -> -14659.20755 | H151: -14370.3704 | I151: -14066.96444 | J151: -13748.39228 | K151: -13414.03497 | L151: -13063.25121 | M151: -12695.37658 | N151: -12309.72273 | O151: -11905.57652 | P151: -11482.19916 | Q151: -11038.82529 | R151: -10574.66203 | S151: -10088.88806 | T151: -9580.652541 | U151: -9049.074148 | V151: 12626.67034 | W151: 12566.76133 | X151: 12504.7555 | Y151: 12440.57947 | Z151: 12374.15727 | AA151: 12305.4103 | AB151: 12234.25719 | AC151: 12160.61371 | AD151: 12084.39272 | AE151: 12005.50399 | AF151: 11923.85415 | AG151: 11839.34658 | AH151: 11751.88123 | AI151: 11661.3546 | AJ151: 11567.65953 | AK151: 0 | AL151: 0 | AM151: =(AM126-AM142)*$E$151 -> 0 | AN151: 0 | AO151: 0 | AP151: 0 | AQ151: 0 | AR151: 0 | AS151: 0 | AT151: 0 | AU151: 0 | AV151: 0 | AW151: 0 | AX151: 0 | AY151: 0 | AZ151: 0 | BA151: 0 | BB151: 0 | BC151: 0 | BD151: 0 | BE151: 0 | BF151: 0 | BG151: 0 | BH151: 0 | BI151: 0 | BJ151: 0 | BK151: 0 | BL151: 0 | BM151: 0 | BN151: 0 | BO151: 0 | BP151: 0 | BQ151: 0 | BR151: 0 | BS151: =(BS126-BS142)*$E$151 -> 0 | BT151: 0 | BU151: 0 | BV151: 0 | BW151: 0 | BX151: 0 | BY151: 0 | BZ151: 0 | CA151: 0 | CB151: 0 | CC151: 0 | CD151: 0 | CE151: 0 | CF151: 0 | CG151: 0 | CH151: 0 | CI151: 0 | CJ151: 0 | CK151: 0 | CL151: 0 | CM151: 0 | CN151: 0 | CO151: 0 | CP151: 0 | CQ151: 0 | CR151: 0 | CS151: 0 | CT151: 0 | CU151: 0 | CV151: 0 | CW151: 0 | CX151: 0 | CY151: 0 | CZ151: 0 | DA151: 0 | DB151: 0
D152: Accumulated Deferred Taxes | E152: FALSE
D153: Net Capital | F153: =F149-F152 -> 2150753.464 | G153: =G149-G152 -> 2005765.644 | H153: =H149-H152 -> 1862222.01 | I153: 1720195.406 | J153: 1579761.662 | K153: 1440999.705 | L153: 1303991.667 | M153: 1168823.002 | N153: 1035582.606 | O153: 904362.9416 | P153: 775260.1636 | Q153: 648374.255 | R153: 523809.1627 | S153: 401672.9403 | T153: 282077.8955 | U153: 165140.7426 | V153: 156582.3121 | W153: 147724.3366 | X153: 138556.332 | Y153: 129067.4472 | Z153: 119246.4514 | AA153: 109081.7208 | AB153: 98561.22456 | AC153: 87672.51099 | AD153: 76402.69245 | AE153: 64738.43025 | AF153: 52665.91888 | AG153: 40170.86962 | AH153: 27238.49362 | AI153: 13853.48447 | AJ153: 0 | AK153: 0 | AL153: 0 | AM153: 0 | AN153: 0 | AO153: 0 | AP153: 0 | AQ153: 0 | AR153: 0 | AS153: 0 | AT153: 0 | AU153: 0 | AV153: 0 | AW153: 0 | AX153: 0 | AY153: 0 | AZ153: 0 | BA153: 0 | BB153: 0 | BC153: 0 | BD153: 0 | BE153: 0 | BF153: 0 | BG153: 0 | BH153: 0 | BI153: 0 | BJ153: 0 | BK153: 0 | BL153: 0 | BM153: 0 | BN153: 0 | BO153: 0 | BP153: 0 | BQ153: 0 | BR153: 0 | BS153: 0 | BT153: =BT149-BT152 -> 0 | BU153: 0 | BV153: 0 | BW153: 0 | BX153: 0 | BY153: 0 | BZ153: 0 | CA153: 0 | CB153: 0 | CC153: 0 | CD153: 0 | CE153: 0 | CF153: 0 | CG153: 0 | CH153: 0 | CI153: 0 | CJ153: 0 | CK153: 0 | CL153: 0 | CM153: 0 | CN153: 0 | CO153: 0 | CP153: 0 | CQ153: 0 | CR153: 0 | CS153: 0 | CT153: 0 | CU153: 0 | CV153: 0 | CW153: 0 | CX153: 0 | CY153: 0 | CZ153: 0 | DA153: 0 | DB153: 0
D155: Debt Balance | E155: =S59 -> 0.7 | F155: =F153*$E$155 -> 1505527.425 | G155: 1404035.951 | H155: 1303555.407 | I155: 1204136.784 | J155: 1105833.164 | K155: 1008699.794 | L155: 912794.167 | M155: 818176.1015 | N155: 724907.8244 | O155: 633054.0591 | P155: 542682.1145 | Q155: 453861.9785 | R155: 366666.4139 | S155: 281171.0582 | T155: 197454.5268 | U155: 115598.5198 | V155: 109607.6185 | W155: 103407.0356 | X155: 96989.43239 | Y155: 90347.21302 | Z155: 83472.51597 | AA155: 76357.20453 | AB155: 68992.85719 | AC155: 61370.75769 | AD155: 53481.88471 | AE155: 45316.90118 | AF155: 36866.14322 | AG155: 28119.60873 | AH155: 19066.94554 | AI155: 9697.43913 | AJ155: 0 | AK155: 0 | AL155: =AL153*$E$155 -> 0 | AM155: 0 | AN155: 0 | AO155: 0 | AP155: 0 | AQ155: 0 | AR155: 0 | AS155: 0 | AT155: 0 | AU155: 0 | AV155: 0 | AW155: 0 | AX155: 0 | AY155: 0 | AZ155: 0 | BA155: 0 | BB155: 0 | BC155: 0 | BD155: 0 | BE155: 0 | BF155: 0 | BG155: 0 | BH155: 0 | BI155: 0 | BJ155: 0 | BK155: 0 | BL155: 0 | BM155: 0 | BN155: 0 | BO155: 0 | BP155: 0 | BQ155: 0 | BR155: =BR153*$E$155 -> 0 | BS155: 0 | BT155: 0 | BU155: 0 | BV155: 0 | BW155: 0 | BX155: 0 | BY155: 0 | BZ155: 0 | CA155: 0 | CB155: 0 | CC155: 0 | CD155: 0 | CE155: 0 | CF155: 0 | CG155: 0 | CH155: 0 | CI155: 0 | CJ155: 0 | CK155: 0 | CL155: 0 | CM155: 0 | CN155: 0 | CO155: 0 | CP155: 0 | CQ155: 0 | CR155: 0 | CS155: 0 | CT155: 0 | CU155: 0 | CV155: 0 | CW155: 0 | CX155: 0 | CY155: 0 | CZ155: 0 | DA155: 0 | DB155: 0
D156: Equity Balance | E156: =S60 -> 0.3 | F156: =F153*$E$156 -> 645226.0393 | G156: 601729.6933 | H156: 558666.6031 | I156: 516058.6218 | J156: 473928.4987 | K156: 432299.9116 | L156: 391197.5002 | M156: 350646.9006 | N156: 310674.7819 | O156: 271308.8825 | P156: 232578.0491 | Q156: 194512.2765 | R156: 157142.7488 | S156: 120501.8821 | T156: 84623.36864 | U156: 49542.22277 | V156: 46974.69364 | W156: 44317.30099 | X156: 41566.89959 | Y156: 38720.23415 | Z156: 35773.93542 | AA156: 32724.51623 | AB156: 29568.36737 | AC156: 26301.7533 | AD156: 22920.80773 | AE156: 19421.52908 | AF156: 15799.77567 | AG156: 12051.26088 | AH156: 8171.548087 | AI156: 4156.045342 | AJ156: 0 | AK156: 0 | AL156: =AL153*$E$156 -> 0 | AM156: 0 | AN156: 0 | AO156: 0 | AP156: 0 | AQ156: 0 | AR156: 0 | AS156: 0 | AT156: 0 | AU156: 0 | AV156: 0 | AW156: 0 | AX156: 0 | AY156: 0 | AZ156: 0 | BA156: 0 | BB156: 0 | BC156: 0 | BD156: 0 | BE156: 0 | BF156: 0 | BG156: 0 | BH156: 0 | BI156: 0 | BJ156: 0 | BK156: 0 | BL156: 0 | BM156: 0 | BN156: 0 | BO156: 0 | BP156: 0 | BQ156: 0 | BR156: =BR153*$E$156 -> 0 | BS156: 0 | BT156: 0 | BU156: 0 | BV156: 0 | BW156: 0 | BX156: 0 | BY156: 0 | BZ156: 0 | CA156: 0 | CB156: 0 | CC156: 0 | CD156: 0 | CE156: 0 | CF156: 0 | CG156: 0 | CH156: 0 | CI156: 0 | CJ156: 0 | CK156: 0 | CL156: 0 | CM156: 0 | CN156: 0 | CO156: 0 | CP156: 0 | CQ156: 0 | CR156: 0 | CS156: 0 | CT156: 0 | CU156: 0 | CV156: 0 | CW156: 0 | CX156: 0 | CY156: 0 | CZ156: 0 | DA156: 0 | DB156: 0
D158: Debt Percent | G158: =G155/G153 -> 0.7 | H158: =H155/H153 -> 0.7 | I158: 0.7 | J158: 0.7 | K158: 0.7 | L158: 0.7 | M158: 0.7 | N158: 0.7 | O158: 0.7 | P158: 0.7 | Q158: 0.7 | R158: 0.7 | S158: 0.7 | T158: 0.7 | U158: 0.7 | V158: 0.7 | W158: 0.7 | X158: 0.7 | Y158: 0.7 | Z158: 0.7 | AA158: 0.7 | AB158: 0.7 | AC158: 0.7 | AD158: 0.7 | AE158: 0.7 | AF158: 0.7 | AG158: 0.7 | AH158: 0.7 | AI158: 0.7 | BT158: =BT155/BT153 -> 
D159: Equity Percent | G159: =G156/G153 -> 0.3 | H159: =H156/H153 -> 0.3 | I159: 0.3 | J159: 0.3 | K159: 0.3 | L159: 0.3 | M159: 0.3 | N159: 0.3 | O159: 0.3 | P159: 0.3 | Q159: 0.3 | R159: 0.3 | S159: 0.3 | T159: 0.3 | U159: 0.3 | V159: 0.3 | W159: 0.3 | X159: 0.3 | Y159: 0.3 | Z159: 0.3 | AA159: 0.3 | AB159: 0.3 | AC159: 0.3 | AD159: 0.3 | AE159: 0.3 | AF159: 0.3 | AG159: 0.3 | AH159: 0.3 | AI159: 0.3 | BT159: =BT156/BT153 -> 
C161: Debt Balance
D162: Debt Repayment | G162: =F155-G155 -> 101491.4739 | H162: 100480.5439 | I162: 99418.62303 | J162: 98303.62049 | K162: 97133.3699 | L162: 95905.62673 | M162: 94618.06553 | N162: 93268.27706 | O162: =N155-O155 -> 91853.76534 | P162: 90371.94458 | Q162: 88820.13601 | R162: 87195.56462 | S162: 85495.3557 | T162: 83716.53139 | U162: 81856.00702 | V162: 5990.901307 | W162: 6200.582853 | X162: 6417.603253 | Y162: 6642.219367 | Z162: 6874.697044 | AA162: 7115.311441 | AB162: 7364.347341 | AC162: 7622.099498 | AD162: 7888.872981 | AE162: 8164.983535 | AF162: 8450.757959 | AG162: 8746.534487 | AH162: 9052.663194 | AI162: 9369.506406 | AJ162: 9697.43913 | AK162: 0 | AL162: 0 | AM162: 0 | AN162: 0 | AO162: 0 | AP162: 0 | AQ162: 0 | AR162: 0 | AS162: 0 | AT162: 0 | AU162: 0 | AV162: 0 | AW162: 0 | AX162: 0 | AY162: 0 | AZ162: 0 | BA162: 0 | BB162: 0 | BC162: 0 | BD162: 0 | BE162: 0 | BF162: 0 | BG162: 0 | BH162: 0 | BI162: 0 | BJ162: 0 | BK162: 0 | BL162: 0 | BM162: 0 | BN162: 0 | BO162: 0 | BP162: 0 | BQ162: 0 | BR162: 0 | BS162: =BR155-BS155 -> 0 | BT162: 0 | BU162: 0 | BV162: 0 | BW162: 0 | BX162: 0 | BY162: 0 | BZ162: 0 | CA162: 0 | CB162: 0 | CC162: 0 | CD162: 0 | CE162: 0 | CF162: 0 | CG162: 0 | CH162: 0 | CI162: 0 | CJ162: 0 | CK162: 0 | CL162: 0 | CM162: 0 | CN162: 0 | CO162: 0 | CP162: 0 | CQ162: 0 | CR162: 0 | CS162: 0 | CT162: 0 | CU162: 0 | CV162: 0 | CW162: 0 | CX162: 0 | CY162: 0 | CZ162: 0 | DA162: 0 | DB162: 0
D163: Opening Balance | G163: =F165 -> 1505527.425 | H163: =G165 -> 1404035.951 | I163: 1303555.407 | J163: 1204136.784 | K163: 1105833.164 | L163: 1008699.794 | M163: 912794.167 | N163: 818176.1015 | O163: =N165 -> 724907.8244 | P163: 633054.0591 | Q163: 542682.1145 | R163: 453861.9785 | S163: 366666.4139 | T163: 281171.0582 | U163: 197454.5268 | V163: 115598.5198 | W163: 109607.6185 | X163: 103407.0356 | Y163: 96989.43239 | Z163: 90347.21302 | AA163: 83472.51597 | AB163: 76357.20453 | AC163: 68992.85719 | AD163: 61370.75769 | AE163: 53481.88471 | AF163: 45316.90118 | AG163: 36866.14322 | AH163: 28119.60873 | AI163: 19066.94554 | AJ163: 9697.43913 | AK163: 0 | AL163: 0 | AM163: 0 | AN163: 0 | AO163: 0 | AP163: 0 | AQ163: 0 | AR163: 0 | AS163: 0 | AT163: 0 | AU163: 0 | AV163: 0 | AW163: 0 | AX163: 0 | AY163: 0 | AZ163: 0 | BA163: 0 | BB163: 0 | BC163: 0 | BD163: 0 | BE163: 0 | BF163: 0 | BG163: 0 | BH163: 0 | BI163: 0 | BJ163: 0 | BK163: 0 | BL163: 0 | BM163: 0 | BN163: 0 | BO163: 0 | BP163: 0 | BQ163: 0 | BR163: 0 | BS163: 0 | BT163: =BS165 -> 0 | BU163: 0 | BV163: 0 | BW163: 0 | BX163: 0 | BY163: 0 | BZ163: 0 | CA163: 0 | CB163: 0 | CC163: 0 | CD163: 0 | CE163: 0 | CF163: 0 | CG163: 0 | CH163: 0 | CI163: 0 | CJ163: 0 | CK163: 0 | CL163: 0 | CM163: 0 | CN163: 0 | CO163: 0 | CP163: 0 | CQ163: 0 | CR163: 0 | CS163: 0 | CT163: 0 | CU163: 0 | CV163: 0 | CW163: 0 | CX163: 0 | CY163: 0 | CZ163: 0 | DA163: 0 | DB163: 0
D164: Debt Repayment | G164: =G162 -> 101491.4739 | H164: 100480.5439 | I164: 99418.62303 | J164: 98303.62049 | K164: 97133.3699 | L164: 95905.62673 | M164: 94618.06553 | N164: 93268.27706 | O164: 91853.76534 | P164: 90371.94458 | Q164: 88820.13601 | R164: 87195.56462 | S164: 85495.3557 | T164: 83716.53139 | U164: 81856.00702 | V164: 5990.901307 | W164: 6200.582853 | X164: 6417.603253 | Y164: 6642.219367 | Z164: 6874.697044 | AA164: 7115.311441 | AB164: 7364.347341 | AC164: 7622.099498 | AD164: 7888.872981 | AE164: 8164.983535 | AF164: 8450.757959 | AG164: 8746.534487 | AH164: 9052.663194 | AI164: 9369.506406 | AJ164: 9697.43913 | AK164: 0 | AL164: 0 | AM164: 0 | AN164: 0 | AO164: 0 | AP164: 0 | AQ164: 0 | AR164: 0 | AS164: 0 | AT164: 0 | AU164: 0 | AV164: 0 | AW164: 0 | AX164: 0 | AY164: 0 | AZ164: 0 | BA164: 0 | BB164: 0 | BC164: 0 | BD164: 0 | BE164: 0 | BF164: 0 | BG164: 0 | BH164: 0 | BI164: 0 | BJ164: 0 | BK164: 0 | BL164: 0 | BM164: 0 | BN164: 0 | BO164: 0 | BP164: 0 | BQ164: 0 | BR164: 0 | BS164: =BS162 -> 0 | BT164: 0 | BU164: 0 | BV164: 0 | BW164: 0 | BX164: 0 | BY164: 0 | BZ164: 0 | CA164: 0 | CB164: 0 | CC164: 0 | CD164: 0 | CE164: 0 | CF164: 0 | CG164: 0 | CH164: 0 | CI164: 0 | CJ164: 0 | CK164: 0 | CL164: 0 | CM164: 0 | CN164: 0 | CO164: 0 | CP164: 0 | CQ164: 0 | CR164: 0 | CS164: 0 | CT164: 0 | CU164: 0 | CV164: 0 | CW164: 0 | CX164: 0 | CY164: 0 | CZ164: 0 | DA164: 0 | DB164: 0
D165: Closing Balance | F165: =F155 -> 1505527.425 | G165: =G163-G164 -> 1404035.951 | H165: =H163-H164 -> 1303555.407 | I165: 1204136.784 | J165: 1105833.164 | K165: 1008699.794 | L165: 912794.167 | M165: 818176.1015 | N165: 724907.8244 | O165: 633054.0591 | P165: 542682.1145 | Q165: 453861.9785 | R165: 366666.4139 | S165: 281171.0582 | T165: 197454.5268 | U165: 115598.5198 | V165: 109607.6185 | W165: 103407.0356 | X165: 96989.43239 | Y165: 90347.21302 | Z165: 83472.51597 | AA165: 76357.20453 | AB165: 68992.85719 | AC165: 61370.75769 | AD165: 53481.88471 | AE165: 45316.90118 | AF165: 36866.14322 | AG165: 28119.60873 | AH165: 19066.94554 | AI165: 9697.43913 | AJ165: 0 | AK165: 0 | AL165: 0 | AM165: 0 | AN165: 0 | AO165: 0 | AP165: 0 | AQ165: 0 | AR165: 0 | AS165: 0 | AT165: 0 | AU165: 0 | AV165: 0 | AW165: 0 | AX165: 0 | AY165: 0 | AZ165: 0 | BA165: 0 | BB165: 0 | BC165: 0 | BD165: 0 | BE165: 0 | BF165: 0 | BG165: 0 | BH165: 0 | BI165: 0 | BJ165: 0 | BK165: 0 | BL165: 0 | BM165: 0 | BN165: 0 | BO165: 0 | BP165: 0 | BQ165: 0 | BR165: 0 | BS165: 0 | BT165: =BT163-BT164 -> 0 | BU165: 0 | BV165: 0 | BW165: 0 | BX165: 0 | BY165: 0 | BZ165: 0 | CA165: 0 | CB165: 0 | CC165: 0 | CD165: 0 | CE165: 0 | CF165: 0 | CG165: 0 | CH165: 0 | CI165: 0 | CJ165: 0 | CK165: 0 | CL165: 0 | CM165: 0 | CN165: 0 | CO165: 0 | CP165: 0 | CQ165: 0 | CR165: 0 | CS165: 0 | CT165: 0 | CU165: 0 | CV165: 0 | CW165: 0 | CX165: 0 | CY165: 0 | CZ165: 0 | DA165: 0 | DB165: 0
D166: Interest Expense | E166: =S62 -> 0.02 | G166: =G163*$E$166 -> 30110.5485 | H166: 28080.71902 | I166: 26071.10814 | J166: 24082.73568 | K166: 22116.66327 | L166: 20173.99588 | M166: 18255.88334 | N166: 16363.52203 | O166: 14498.15649 | P166: 12661.08118 | Q166: 10853.64229 | R166: 9077.23957 | S166: 7333.328278 | T166: 5623.421164 | U166: 3949.090536 | V166: 2311.970396 | W166: 2192.15237 | X166: 2068.140713 | Y166: 1939.788648 | Z166: 1806.94426 | AA166: 1669.450319 | AB166: 1527.144091 | AC166: 1379.857144 | AD166: 1227.415154 | AE166: 1069.637694 | AF166: 906.3380235 | AG166: 737.3228644 | AH166: 562.3921746 | AI166: 381.3389107 | AJ166: 193.9487826 | AK166: 0 | AL166: 0 | AM166: =AM163*$E$166 -> 0 | AN166: 0 | AO166: 0 | AP166: 0 | AQ166: 0 | AR166: 0 | AS166: 0 | AT166: 0 | AU166: 0 | AV166: 0 | AW166: 0 | AX166: 0 | AY166: 0 | AZ166: 0 | BA166: 0 | BB166: 0 | BC166: 0 | BD166: 0 | BE166: 0 | BF166: 0 | BG166: 0 | BH166: 0 | BI166: 0 | BJ166: 0 | BK166: 0 | BL166: 0 | BM166: 0 | BN166: 0 | BO166: 0 | BP166: 0 | BQ166: 0 | BR166: 0 | BS166: =BS163*$E$166 -> 0 | BT166: 0 | BU166: 0 | BV166: 0 | BW166: 0 | BX166: 0 | BY166: 0 | BZ166: 0 | CA166: 0 | CB166: 0 | CC166: 0 | CD166: 0 | CE166: 0 | CF166: 0 | CG166: 0 | CH166: 0 | CI166: 0 | CJ166: 0 | CK166: 0 | CL166: 0 | CM166: 0 | CN166: 0 | CO166: 0 | CP166: 0 | CQ166: 0 | CR166: 0 | CS166: 0 | CT166: 0 | CU166: 0 | CV166: 0 | CW166: 0 | CX166: 0 | CY166: 0 | CZ166: 0 | DA166: 0 | DB166: 0
D168: Equity Cash Flow Check (Equity Chg + Income) | F168: =-F156 -> -645226.0393 | G168: =F156-G156+G145 -> 88662.16872 | H168: =G156-H156+H145 -> 85184.16877 | I168: 81714.64351 | J168: 78254.22659 | K168: 74803.58201 | L168: 71363.40527 | M168: 67934.42452 | N168: 64517.40178 | O168: =N156-O156+O145 -> 61113.13416 | P168: 57722.45516 | Q168: 54346.23601 | R168: 50985.38705 | S168: 47640.85914 | T168: 44313.6452 | U168: 41004.78167 | V168: 6035.484726 | W168: 5945.621206 | X168: 5852.612463 | Y168: 5756.348414 | Z168: 5656.715124 | AA168: 5553.594668 | AB168: 5446.864997 | AC168: 5336.399786 | AD168: 5222.068294 | AE168: 5103.735199 | AF168: 4981.260446 | AG168: 4854.499077 | AH168: 4723.30106 | AI168: 4587.511112 | AJ168: 4446.968516 | AK168: 0 | AL168: 0 | AM168: 0 | AN168: 0 | AO168: 0 | AP168: 0 | AQ168: 0 | AR168: 0 | AS168: 0 | AT168: 0 | AU168: 0 | AV168: 0 | AW168: 0 | AX168: 0 | AY168: 0 | AZ168: 0 | BA168: 0 | BB168: 0 | BC168: 0 | BD168: 0 | BE168: 0 | BF168: 0 | BG168: 0 | BH168: 0 | BI168: 0 | BJ168: 0 | BK168: 0 | BL168: 0 | BM168: 0 | BN168: 0 | BO168: 0 | BP168: 0 | BQ168: 0 | BR168: 0 | BS168: 0 | BT168: =BS156-BT156+BT145 -> 0 | BU168: 0 | BV168: 0 | BW168: 0 | BX168: 0 | BY168: 0 | BZ168: 0 | CA168: 0 | CB168: 0 | CC168: 0 | CD168: 0 | CE168: 0 | CF168: 0 | CG168: 0 | CH168: 0 | CI168: 0 | CJ168: 0 | CK168: 0 | CL168: 0 | CM168: 0 | CN168: 0 | CO168: 0 | CP168: 0 | CQ168: 0 | CR168: 0 | CS168: 0 | CT168: 0 | CU168: 0 | CV168: 0 | CW168: 0 | CX168: 0 | CY168: 0 | CZ168: 0 | DA168: 0 | DB168: 0
D169: Equity IRR Check | F169: =IRR(F168:DB168) -> 0.07 | G169: =G132 -> 88662.16872 | H169: =H132 -> 85184.16877 | I169: 81714.64351 | J169: 78254.22659 | K169: 74803.58201 | L169: 71363.40527 | M169: 67934.42452 | N169: 64517.40178 | O169: 61113.13416 | P169: 57722.45516 | Q169: 54346.23601 | R169: 50985.38705 | S169: 47640.85914 | T169: 44313.6452 | U169: 41004.78167 | V169: 6035.484726 | W169: 5945.621206 | X169: 5852.612463 | Y169: 5756.348414 | Z169: 5656.715124 | AA169: 5553.594668 | AB169: 5446.864997 | AC169: 5336.399786 | AD169: 5222.068294 | AE169: 5103.735199 | AF169: 4981.260446 | AG169: 4854.499077 | AH169: 4723.30106 | AI169: 4587.511112 | AJ169: 4446.968516 | AK169: 0 | AL169: 0 | AM169: 0 | AN169: 0 | AO169: 0 | AP169: 0 | AQ169: 0 | AR169: 0 | AS169: 0 | AT169: 0 | AU169: 0 | AV169: 0 | AW169: 0 | AX169: 0 | AY169: 0 | AZ169: 0 | BA169: 0 | BB169: 0 | BC169: 0 | BD169: 0 | BE169: 0 | BF169: 0 | BG169: 0 | BH169: 0 | BI169: 0 | BJ169: 0 | BK169: 0 | BL169: 0 | BM169: 0 | BN169: 0 | BO169: 0 | BP169: 0 | BQ169: 0 | BR169: 0 | BS169: 0 | BT169: =BT132 -> 0 | BU169: 0 | BV169: 0 | BW169: 0 | BX169: 0 | BY169: 0 | BZ169: 0 | CA169: 0 | CB169: 0 | CC169: 0 | CD169: 0 | CE169: 0 | CF169: 0 | CG169: 0 | CH169: 0 | CI169: 0 | CJ169: 0 | CK169: 0 | CL169: 0 | CM169: 0 | CN169: 0 | CO169: 0 | CP169: 0 | CQ169: 0 | CR169: 0 | CS169: 0 | CT169: 0 | CU169: 0 | CV169: 0 | CW169: 0 | CX169: 0 | CY169: 0 | CZ169: 0 | DA169: 0 | DB169: 0
G170: =G169-G168 -> -1.164153218e-10 | H170: =H169-H168 -> 1.164153218e-10 | I170: 0 | J170: 0 | K170: 0 | L170: 0 | M170: 0 | N170: 1.018634066e-10 | O170: -7.275957614e-11 | P170: 8.003553376e-11 | Q170: 8.003553376e-11 | R170: 1.091393642e-10 | S170: 0 | T170: 1.018634066e-10 | U170: 1.236912794e-10 | V170: 0 | W170: 2.910383046e-11 | X170: -5.820766091e-11 | Y170: -8.003553376e-11 | Z170: 1.300577424e-10 | AA170: 0 | AB170: -9.094947018e-12 | AC170: 9.822542779e-11 | AD170: 1.073203748e-10 | AE170: -3.274180926e-11 | AF170: 5.456968211e-11 | AG170: 2.25554686e-10 | AH170: 5.1841198e-11 | AI170: 1.627995516e-10 | AJ170: -1.725311449e-09 | AK170: 0 | AL170: 0 | AM170: 0 | AN170: 0 | AO170: 0 | AP170: 0 | AQ170: 0 | AR170: 0 | AS170: 0 | AT170: 0 | AU170: 0 | AV170: 0 | AW170: 0 | AX170: 0 | AY170: 0 | AZ170: 0 | BA170: 0 | BB170: 0 | BC170: 0 | BD170: 0 | BE170: 0 | BF170: 0 | BG170: 0 | BH170: 0 | BI170: 0 | BJ170: 0 | BK170: 0 | BL170: 0 | BM170: 0 | BN170: 0 | BO170: 0 | BP170: 0 | BQ170: 0 | BR170: 0 | BS170: 0 | BT170: =BT169-BT168 -> 0 | BU170: 0 | BV170: 0 | BW170: 0 | BX170: 0 | BY170: 0 | BZ170: 0 | CA170: 0 | CB170: 0 | CC170: 0 | CD170: 0 | CE170: 0 | CF170: 0 | CG170: 0 | CH170: 0 | CI170: 0 | CJ170: 0 | CK170: 0 | CL170: 0 | CM170: 0 | CN170: 0 | CO170: 0 | CP170: 0 | CQ170: 0 | CR170: 0 | CS170: 0 | CT170: 0 | CU170: 0 | CV170: 0 | CW170: 0 | CX170: 0 | CY170: 0 | CZ170: 0 | DA170: 0 | DB170: 0
B172: Financial Model in Real Terms
D173: Index | F173: 1 | G173: =F173*(1+$S$57) -> 1.01 | H173: 1.0201 | I173: 1.030301 | J173: 1.04060401 | K173: 1.05101005 | L173: 1.061520151 | M173: 1.072135352 | N173: 1.082856706 | O173: 1.093685273 | P173: 1.104622125 | Q173: 1.115668347 | R173: 1.12682503 | S173: 1.13809328 | T173: 1.149474213 | U173: 1.160968955 | V173: 1.172578645 | W173: 1.184304431 | X173: 1.196147476 | Y173: 1.20810895 | Z173: 1.22019004 | AA173: 1.23239194 | AB173: 1.24471586 | AC173: 1.257163018 | AD173: 1.269734649 | AE173: 1.282431995 | AF173: 1.295256315 | AG173: 1.308208878 | AH173: 1.321290967 | AI173: 1.334503877 | AJ173: 1.347848915 | AK173: 1.361327404 | AL173: 1.374940679 | AM173: =AL173*(1+$S$57) -> 1.388690085 | AN173: 1.402576986 | AO173: 1.416602756 | AP173: 1.430768784 | AQ173: 1.445076471 | AR173: 1.459527236 | AS173: 1.474122509 | AT173: 1.488863734 | AU173: 1.503752371 | AV173: 1.518789895 | AW173: 1.533977794 | AX173: 1.549317572 | AY173: 1.564810747 | AZ173: 1.580458855 | BA173: 1.596263443 | BB173: 1.612226078 | BC173: 1.628348338 | BD173: 1.644631822 | BE173: 1.66107814 | BF173: 1.677688921 | BG173: 1.694465811 | BH173: 1.711410469 | BI173: 1.728524573 | BJ173: 1.745809819 | BK173: 1.763267917 | BL173: 1.780900597 | BM173: 1.798709603 | BN173: 1.816696699 | BO173: 1.834863666 | BP173: 1.853212302 | BQ173: 1.871744425 | BR173: 1.890461869 | BS173: =BR173*(1+$S$57) -> 1.909366488 | BT173: 1.928460153 | BU173: 1.947744755 | BV173: 1.967222202 | BW173: 1.986894424 | BX173: 2.006763368 | BY173: 2.026831002 | BZ173: 2.047099312 | CA173: 2.067570305 | CB173: 2.088246008 | CC173: 2.109128468 | CD173: 2.130219753 | CE173: 2.151521951 | CF173: 2.17303717 | CG173: 2.194767542 | CH173: 2.216715217 | CI173: 2.238882369 | CJ173: 2.261271193 | CK173: 2.283883905 | CL173: 2.306722744 | CM173: 2.329789971 | CN173: 2.353087871 | CO173: 2.37661875 | CP173: 2.400384937 | CQ173: 2.424388787 | CR173: 2.448632675 | CS173: 2.473119001 | CT173: 2.497850191 | CU173: 2.522828693 | CV173: 2.54805698 | CW173: 2.57353755 | CX173: 2.599272926 | CY173: 2.625265655 | CZ173: 2.651518311 | DA173: 2.678033494 | DB173: 2.704813829
D174: Initial Price | E174: =S87 -> 4.038613423 | G174: =$E$174*G116 -> 4.038613423 | H174: 4.038613423 | I174: 4.038613423 | J174: 4.038613423 | K174: 4.038613423 | L174: 4.038613423 | M174: 4.038613423 | N174: 4.038613423 | O174: 4.038613423 | P174: 4.038613423 | Q174: 4.038613423 | R174: 4.038613423 | S174: 4.038613423 | T174: 4.038613423 | U174: 4.038613423 | V174: 0 | W174: 0 | X174: 0 | Y174: 0 | Z174: 0 | AA174: 0 | AB174: 0 | AC174: 0 | AD174: 0 | AE174: 0 | AF174: 0 | AG174: 0 | AH174: 0 | AI174: 0 | AJ174: 0 | AK174: 0 | AL174: 0 | AM174: =$E$174*AM116 -> 0 | AN174: 0 | AO174: 0 | AP174: 0 | AQ174: 0 | AR174: 0 | AS174: 0 | AT174: 0 | AU174: 0 | AV174: 0 | AW174: 0 | AX174: 0 | AY174: 0 | AZ174: 0 | BA174: 0 | BB174: 0 | BC174: 0 | BD174: 0 | BE174: 0 | BF174: 0 | BG174: 0 | BH174: 0 | BI174: 0 | BJ174: 0 | BK174: 0 | BL174: 0 | BM174: 0 | BN174: 0 | BO174: 0 | BP174: 0 | BQ174: 0 | BR174: 0 | BS174: =$E$174*BS116 -> 0 | BT174: 0 | BU174: 0 | BV174: 0 | BW174: 0 | BX174: 0 | BY174: 0 | BZ174: 0 | CA174: 0 | CB174: 0 | CC174: 0 | CD174: 0 | CE174: 0 | CF174: 0 | CG174: 0 | CH174: 0 | CI174: 0 | CJ174: 0 | CK174: 0 | CL174: 0 | CM174: 0 | CN174: 0 | CO174: 0 | CP174: 0 | CQ174: 0 | CR174: 0 | CS174: 0 | CT174: 0 | CU174: 0 | CV174: 0 | CW174: 0 | CX174: 0 | CY174: 0 | CZ174: 0 | DA174: 0 | DB174: 0
D175: Price | G175: =G174*G173 -> 4.078999557 | H175: =H174*H173 -> 4.119789552 | I175: 4.160987448 | J175: 4.202597322 | K175: 4.244623296 | L175: 4.287069529 | M175: 4.329940224 | N175: 4.373239626 | O175: 4.416972022 | P175: 4.461141743 | Q175: 4.50575316 | R175: 4.550810692 | S175: 4.596318798 | T175: 4.642281986 | U175: 4.688704806 | V175: 0 | W175: 0 | X175: 0 | Y175: 0 | Z175: 0 | AA175: 0 | AB175: 0 | AC175: 0 | AD175: 0 | AE175: 0 | AF175: 0 | AG175: 0 | AH175: 0 | AI175: 0 | AJ175: 0 | AK175: 0 | AL175: 0 | AM175: 0 | AN175: 0 | AO175: 0 | AP175: 0 | AQ175: 0 | AR175: 0 | AS175: 0 | AT175: 0 | AU175: 0 | AV175: 0 | AW175: 0 | AX175: 0 | AY175: 0 | AZ175: 0 | BA175: 0 | BB175: 0 | BC175: 0 | BD175: 0 | BE175: 0 | BF175: 0 | BG175: 0 | BH175: 0 | BI175: 0 | BJ175: 0 | BK175: 0 | BL175: 0 | BM175: 0 | BN175: 0 | BO175: 0 | BP175: 0 | BQ175: 0 | BR175: 0 | BS175: 0 | BT175: =BT174*BT173 -> 0 | BU175: 0 | BV175: 0 | BW175: 0 | BX175: 0 | BY175: 0 | BZ175: 0 | CA175: 0 | CB175: 0 | CC175: 0 | CD175: 0 | CE175: 0 | CF175: 0 | CG175: 0 | CH175: 0 | CI175: 0 | CJ175: 0 | CK175: 0 | CL175: 0 | CM175: 0 | CN175: 0 | CO175: 0 | CP175: 0 | CQ175: 0 | CR175: 0 | CS175: 0 | CT175: 0 | CU175: 0 | CV175: 0 | CW175: 0 | CX175: 0 | CY175: 0 | CZ175: 0 | DA175: 0 | DB175: 0
D176: Generation | E176: =S46 -> 8503.02 | G176: =G121 -> 164500.744 | H176: 163678.2403 | I176: 162859.8491 | J176: 162045.5499 | K176: 161235.3221 | L176: 160429.1455 | M176: 159626.9998 | N176: 158828.8648 | O176: 158034.7205 | P176: 157244.5469 | Q176: 156458.3241 | R176: 155676.0325 | S176: 154897.6523 | T176: 154123.1641 | U176: 153352.5483 | V176: 0 | W176: 0 | X176: 0 | Y176: 0 | Z176: 0 | AA176: 0 | AB176: 0 | AC176: 0 | AD176: 0 | AE176: 0 | AF176: 0 | AG176: 0 | AH176: 0 | AI176: 0 | AJ176: 0 | AK176: 0 | AL176: 0 | AM176: 0 | AN176: 0 | AO176: 0 | AP176: 0 | AQ176: 0 | AR176: 0 | AS176: 0 | AT176: 0 | AU176: 0 | AV176: 0 | AW176: 0 | AX176: 0 | AY176: 0 | AZ176: 0 | BA176: 0 | BB176: 0 | BC176: 0 | BD176: 0 | BE176: 0 | BF176: 0 | BG176: 0 | BH176: 0 | BI176: 0 | BJ176: 0 | BK176: 0 | BL176: 0 | BM176: 0 | BN176: 0 | BO176: 0 | BP176: 0 | BQ176: 0 | BR176: 0 | BS176: =BS121 -> 0 | BT176: 0 | BU176: 0 | BV176: 0 | BW176: 0 | BX176: 0 | BY176: 0 | BZ176: 0 | CA176: 0 | CB176: 0 | CC176: 0 | CD176: 0 | CE176: 0 | CF176: 0 | CG176: 0 | CH176: 0 | CI176: 0 | CJ176: 0 | CK176: 0 | CL176: 0 | CM176: 0 | CN176: 0 | CO176: 0 | CP176: 0 | CQ176: 0 | CR176: 0 | CS176: 0 | CT176: 0 | CU176: 0 | CV176: 0 | CW176: 0 | CX176: 0 | CY176: 0 | CZ176: 0 | DA176: 0 | DB176: 0
D177: Revenues (USD) | G177: =G175*G176 -> 670998.4621 | H177: =H175*H176 -> 674319.9044 | I177: 677657.788 | J177: 681012.194 | K177: 684383.2044 | L177: 687770.9012 | M177: 691175.3672 | N177: 694596.6853 | O177: 698034.9389 | P177: 701490.2118 | Q177: 704962.5884 | R177: 708452.1532 | S177: 711958.9913 | T177: 715483.1883 | U177: 719024.8301 | V177: 0 | W177: 0 | X177: 0 | Y177: 0 | Z177: 0 | AA177: 0 | AB177: 0 | AC177: 0 | AD177: 0 | AE177: 0 | AF177: 0 | AG177: 0 | AH177: 0 | AI177: 0 | AJ177: 0 | AK177: 0 | AL177: 0 | AM177: 0 | AN177: 0 | AO177: 0 | AP177: 0 | AQ177: 0 | AR177: 0 | AS177: 0 | AT177: 0 | AU177: 0 | AV177: 0 | AW177: 0 | AX177: 0 | AY177: 0 | AZ177: 0 | BA177: 0 | BB177: 0 | BC177: 0 | BD177: 0 | BE177: 0 | BF177: 0 | BG177: 0 | BH177: 0 | BI177: 0 | BJ177: 0 | BK177: 0 | BL177: 0 | BM177: 0 | BN177: 0 | BO177: 0 | BP177: 0 | BQ177: 0 | BR177: 0 | BS177: 0 | BT177: =BT175*BT176 -> 0 | BU177: 0 | BV177: 0 | BW177: 0 | BX177: 0 | BY177: 0 | BZ177: 0 | CA177: 0 | CB177: 0 | CC177: 0 | CD177: 0 | CE177: 0 | CF177: 0 | CG177: 0 | CH177: 0 | CI177: 0 | CJ177: 0 | CK177: 0 | CL177: 0 | CM177: 0 | CN177: 0 | CO177: 0 | CP177: 0 | CQ177: 0 | CR177: 0 | CS177: 0 | CT177: 0 | CU177: 0 | CV177: 0 | CW177: 0 | CX177: 0 | CY177: 0 | CZ177: 0 | DA177: 0 | DB177: 0
D178: Operating Cost | E178: =E124 -> 452898.5407 | G178: =G124 -> 457427.5261 | H178: 462001.8013 | I178: 466621.8193 | J178: 471288.0375 | K178: 476000.9179 | L178: 480760.9271 | M178: 485568.5364 | N178: 490424.2217 | O178: 495328.4639 | P178: 500281.7486 | Q178: 505284.5661 | R178: 510337.4117 | S178: 515440.7858 | T178: 520595.1937 | U178: 525801.1456 | V178: 0 | W178: 0 | X178: 0 | Y178: 0 | Z178: 0 | AA178: 0 | AB178: 0 | AC178: 0 | AD178: 0 | AE178: 0 | AF178: 0 | AG178: 0 | AH178: 0 | AI178: 0 | AJ178: 0 | AK178: 0 | AL178: 0 | AM178: 0 | AN178: 0 | AO178: 0 | AP178: 0 | AQ178: 0 | AR178: 0 | AS178: 0 | AT178: 0 | AU178: 0 | AV178: 0 | AW178: 0 | AX178: 0 | AY178: 0 | AZ178: 0 | BA178: 0 | BB178: 0 | BC178: 0 | BD178: 0 | BE178: 0 | BF178: 0 | BG178: 0 | BH178: 0 | BI178: 0 | BJ178: 0 | BK178: 0 | BL178: 0 | BM178: 0 | BN178: 0 | BO178: 0 | BP178: 0 | BQ178: 0 | BR178: 0 | BS178: =BS124 -> 0 | BT178: 0 | BU178: 0 | BV178: 0 | BW178: 0 | BX178: 0 | BY178: 0 | BZ178: 0 | CA178: 0 | CB178: 0 | CC178: 0 | CD178: 0 | CE178: 0 | CF178: 0 | CG178: 0 | CH178: 0 | CI178: 0 | CJ178: 0 | CK178: 0 | CL178: 0 | CM178: 0 | CN178: 0 | CO178: 0 | CP178: 0 | CQ178: 0 | CR178: 0 | CS178: 0 | CT178: 0 | CU178: 0 | CV178: 0 | CW178: 0 | CX178: 0 | CY178: 0 | CZ178: 0 | DA178: 0 | DB178: 0
D179: EBITDA | G179: =G177-G178 -> 213570.936 | H179: 212318.1031 | I179: 211035.9686 | J179: 209724.1565 | K179: 208382.2865 | L179: 207009.9742 | M179: 205606.8309 | N179: 204172.4636 | O179: 202706.4749 | P179: 201208.4632 | Q179: 199678.0223 | R179: 198114.7415 | S179: 196518.2055 | T179: 194887.9946 | U179: 193223.6845 | V179: 0 | W179: 0 | X179: 0 | Y179: 0 | Z179: 0 | AA179: 0 | AB179: 0 | AC179: 0 | AD179: 0 | AE179: 0 | AF179: 0 | AG179: 0 | AH179: 0 | AI179: 0 | AJ179: 0 | AK179: 0 | AL179: 0 | AM179: 0 | AN179: 0 | AO179: 0 | AP179: 0 | AQ179: 0 | AR179: 0 | AS179: 0 | AT179: 0 | AU179: 0 | AV179: 0 | AW179: 0 | AX179: 0 | AY179: 0 | AZ179: 0 | BA179: 0 | BB179: 0 | BC179: 0 | BD179: 0 | BE179: 0 | BF179: 0 | BG179: 0 | BH179: 0 | BI179: 0 | BJ179: 0 | BK179: 0 | BL179: 0 | BM179: 0 | BN179: 0 | BO179: 0 | BP179: 0 | BQ179: 0 | BR179: 0 | BS179: =BS177-BS178 -> 0 | BT179: 0 | BU179: 0 | BV179: 0 | BW179: 0 | BX179: 0 | BY179: 0 | BZ179: 0 | CA179: 0 | CB179: 0 | CC179: 0 | CD179: 0 | CE179: 0 | CF179: 0 | CG179: 0 | CH179: 0 | CI179: 0 | CJ179: 0 | CK179: 0 | CL179: 0 | CM179: 0 | CN179: 0 | CO179: 0 | CP179: 0 | CQ179: 0 | CR179: 0 | CS179: 0 | CT179: 0 | CU179: 0 | CV179: 0 | CW179: 0 | CX179: 0 | CY179: 0 | CZ179: 0 | DA179: 0 | DB179: 0
D180: Depreciation | E180: =G19 -> 2150753.464 | G180: =$E$180*G112 -> 71691.78214 | H180: 71691.78214 | I180: 71691.78214 | J180: 71691.78214 | K180: 71691.78214 | L180: 71691.78214 | M180: 71691.78214 | N180: 71691.78214 | O180: 71691.78214 | P180: 71691.78214 | Q180: 71691.78214 | R180: 71691.78214 | S180: 71691.78214 | T180: 71691.78214 | U180: 71691.78214 | V180: 71691.78214 | W180: 71691.78214 | X180: 71691.78214 | Y180: 71691.78214 | Z180: 71691.78214 | AA180: 71691.78214 | AB180: 71691.78214 | AC180: 71691.78214 | AD180: 71691.78214 | AE180: 71691.78214 | AF180: 71691.78214 | AG180: 71691.78214 | AH180: 71691.78214 | AI180: 71691.78214 | AJ180: 71691.78214 | AK180: 0 | AL180: 0 | AM180: =$E$180*AM112 -> 0 | AN180: 0 | AO180: 0 | AP180: 0 | AQ180: 0 | AR180: 0 | AS180: 0 | AT180: 0 | AU180: 0 | AV180: 0 | AW180: 0 | AX180: 0 | AY180: 0 | AZ180: 0 | BA180: 0 | BB180: 0 | BC180: 0 | BD180: 0 | BE180: 0 | BF180: 0 | BG180: 0 | BH180: 0 | BI180: 0 | BJ180: 0 | BK180: 0 | BL180: 0 | BM180: 0 | BN180: 0 | BO180: 0 | BP180: 0 | BQ180: 0 | BR180: 0 | BS180: =$E$180*BS112 -> 0 | BT180: 0 | BU180: 0 | BV180: 0 | BW180: 0 | BX180: 0 | BY180: 0 | BZ180: 0 | CA180: 0 | CB180: 0 | CC180: 0 | CD180: 0 | CE180: 0 | CF180: 0 | CG180: 0 | CH180: 0 | CI180: 0 | CJ180: 0 | CK180: 0 | CL180: 0 | CM180: 0 | CN180: 0 | CO180: 0 | CP180: 0 | CQ180: 0 | CR180: 0 | CS180: 0 | CT180: 0 | CU180: 0 | CV180: 0 | CW180: 0 | CX180: 0 | CY180: 0 | CZ180: 0 | DA180: 0 | DB180: 0
D181: Less: Taxes | E181: =S51 -> 0.2 | G181: =(G179-G180)*$E$181 -> 28375.83077 | H181: 28125.2642 | I181: 27868.8373 | J181: 27606.47487 | K181: 27338.10087 | L181: 27063.6384 | M181: 26783.00974 | N181: 26496.13628 | O181: 26202.93856 | P181: 25903.33622 | Q181: 25597.24803 | R181: 25284.59186 | S181: 24965.28467 | T181: 24639.2425 | U181: 24306.38047 | V181: -14338.35643 | W181: -14338.35643 | X181: -14338.35643 | Y181: -14338.35643 | Z181: -14338.35643 | AA181: -14338.35643 | AB181: -14338.35643 | AC181: -14338.35643 | AD181: -14338.35643 | AE181: -14338.35643 | AF181: -14338.35643 | AG181: -14338.35643 | AH181: -14338.35643 | AI181: -14338.35643 | AJ181: -14338.35643 | AK181: 0 | AL181: 0 | AM181: =(AM179-AM180)*$E$181 -> 0 | AN181: 0 | AO181: 0 | AP181: 0 | AQ181: 0 | AR181: 0 | AS181: 0 | AT181: 0 | AU181: 0 | AV181: 0 | AW181: 0 | AX181: 0 | AY181: 0 | AZ181: 0 | BA181: 0 | BB181: 0 | BC181: 0 | BD181: 0 | BE181: 0 | BF181: 0 | BG181: 0 | BH181: 0 | BI181: 0 | BJ181: 0 | BK181: 0 | BL181: 0 | BM181: 0 | BN181: 0 | BO181: 0 | BP181: 0 | BQ181: 0 | BR181: 0 | BS181: =(BS179-BS180)*$E$181 -> 0 | BT181: 0 | BU181: 0 | BV181: 0 | BW181: 0 | BX181: 0 | BY181: 0 | BZ181: 0 | CA181: 0 | CB181: 0 | CC181: 0 | CD181: 0 | CE181: 0 | CF181: 0 | CG181: 0 | CH181: 0 | CI181: 0 | CJ181: 0 | CK181: 0 | CL181: 0 | CM181: 0 | CN181: 0 | CO181: 0 | CP181: 0 | CQ181: 0 | CR181: 0 | CS181: 0 | CT181: 0 | CU181: 0 | CV181: 0 | CW181: 0 | CX181: 0 | CY181: =(CY179-CY180)*$E$181 -> 0 | CZ181: =(CZ179-CZ180)*$E$181 -> 0 | DA181: =(DA179-DA180)*$E$181 -> 0 | DB181: =(DB179-DB180)*$E$181 -> 0
D182: Capex | F182: =G19 -> 2150753.464
D183: Project Cash Flow | F183: =F179-F182 -> -2150753.464 | G183: =G179-G181 -> 185195.1052 | H183: =H179-H181 -> 184192.8389 | I183: 183167.1313 | J183: 182117.6816 | K183: 181044.1856 | L183: 179946.3358 | M183: 178823.8211 | N183: 177676.3273 | O183: 176503.5364 | P183: 175305.127 | Q183: 174080.7743 | R183: 172830.1496 | S183: 171552.9208 | T183: 170248.7521 | U183: 168917.304 | V183: 14338.35643 | W183: 14338.35643 | X183: 14338.35643 | Y183: 14338.35643 | Z183: 14338.35643 | AA183: 14338.35643 | AB183: 14338.35643 | AC183: 14338.35643 | AD183: 14338.35643 | AE183: 14338.35643 | AF183: 14338.35643 | AG183: 14338.35643 | AH183: 14338.35643 | AI183: 14338.35643 | AJ183: 14338.35643 | AK183: 0 | AL183: 0 | AM183: 0 | AN183: 0 | AO183: 0 | AP183: 0 | AQ183: 0 | AR183: 0 | AS183: 0 | AT183: 0 | AU183: 0 | AV183: 0 | AW183: 0 | AX183: 0 | AY183: 0 | AZ183: 0 | BA183: 0 | BB183: 0 | BC183: 0 | BD183: 0 | BE183: 0 | BF183: 0 | BG183: 0 | BH183: 0 | BI183: 0 | BJ183: 0 | BK183: 0 | BL183: 0 | BM183: 0 | BN183: 0 | BO183: 0 | BP183: 0 | BQ183: 0 | BR183: 0 | BS183: 0 | BT183: =BT179-BT181 -> 0 | BU183: 0 | BV183: 0 | BW183: 0 | BX183: 0 | BY183: 0 | BZ183: 0 | CA183: 0 | CB183: 0 | CC183: 0 | CD183: 0 | CE183: 0 | CF183: 0 | CG183: 0 | CH183: 0 | CI183: 0 | CJ183: 0 | CK183: 0 | CL183: 0 | CM183: 0 | CN183: 0 | CO183: 0 | CP183: 0 | CQ183: 0 | CR183: 0 | CS183: 0 | CT183: 0 | CU183: 0 | CV183: 0 | CW183: 0 | CX183: 0 | CY183: 0 | CZ183: 0 | DA183: 0 | DB183: 0
D184: Project IRR | F184: =IRR(F183:DS183) -> 0.035
B186: Proof with LCOE Formula - LCOE =NPV(Revenues)/NPV(Generation)
F188: Computed | G188: Method 1 | H188: Test
D189: NPV of Revenues | E189: =S66 -> 0.035 | F189: =NPV(E189,G177:EB177) -> 7976534.093
D190: NPV of Generation | E190: =E189 -> 0.035 | F190: =NPV(E190,G121:DB121) -> 1835593.003
D191: Nominal LCOE | F191: =F189/F190 -> 4.345480767 | G191: =$E$118 -> 4.345480767 | H191: =ROUND(F191-G191,0)=0 -> TRUE
D193: Real Discount Rate
D194: NPV of Revenues | E194: =E189 -> 0.035 | F194: =F189 -> 7976534.093
D195: NPV of Generation | E195: =$S$67 -> 0.02475247525 | F195: =NPV(E195,G176:DB176) -> 1975067.494
D196: Real LCOE | F196: =F189/F195 -> 4.038613423 | G196: =$E$174 -> 4.038613423 | H196: =ROUND(F196-G196,0)=0 -> TRUE
B198: Proof with LCOE Formula - LCOE =NPV Cost/NPV(Generation)
D200: Capital Expenditure at COD -1 | F200: =G19 -> 2150753.464
D201: Gross-Up for Taxes | E201: =S51 -> 0.2 | F201: =F200/(1-E201) -> 2688441.83
D202: Value of Tax Deduction | E202: =S54 -> 0.1226136361 | F202: =F201*E202*-1 -> -329639.6282
D203: O&M Factors (Nom OM, Life) | E203: =G31 -> 86030.13857 | F203: =S49 -> 15
D204: NPV of O&M Expenses | E204: =S69 -> 0.04020100503 | F204: =PV(E204,F203,-E203) -> 955173.4233
D205: Total Cost | F205: =F201+F204+F202 -> 3313975.626
D207: NPV Generation - Nominal | E207: =E189 -> 0.035 | F207: =NPV(E207,G121:DB121) -> 1835593.003
D208: Nominal LCOE | F208: =F205/F207 -> 1.80539783 | G208: =$E$118 -> 4.345480767 | H208: =ROUND(G208-F208,0)=0 -> FALSE
D210: Total Cost | F210: =F205 -> 3313975.626
D211: NPV Generation - Real | E211: =S67 -> 0.02475247525 | F211: =NPV(E211,G121:DB121) -> 1975067.494
D212: Real LCOE | F212: =F210/F211 -> 1.677905001 | G212: =$E$174 -> 4.038613423 | H212: =ROUND(F212-G212,0)=0 -> FALSE
B214: Proof with LCOE Formula - LCOE =NPV Cost/NPV(Generation)
G215: =G115 -> 1 | H215: 2 | I215: 3 | J215: 4 | K215: 5 | L215: 6 | M215: 7 | N215: 8 | O215: 9 | P215: 10 | Q215: 11 | R215: 12 | S215: 13 | T215: 14 | U215: 15 | V215: 16 | W215: 17 | X215: 18 | Y215: 19 | Z215: 20 | AA215: 21 | AB215: 22 | AC215: 23 | AD215: 24 | AE215: 25 | AF215: 26 | AG215: 27 | AH215: 28 | AI215: 29 | AJ215: 30 | AK215: 31 | AL215: 32 | AM215: 33 | AN215: 34 | AO215: 35 | AP215: 36 | AQ215: 37 | AR215: 38 | AS215: 39 | AT215: 40 | AU215: 41 | AV215: 42 | AW215: 43 | AX215: 44 | AY215: 45 | AZ215: 46 | BA215: 47 | BB215: 48 | BC215: 49 | BD215: 50 | BE215: 51 | BF215: 52 | BG215: 53 | BH215: 54 | BI215: 55 | BJ215: 56 | BK215: 57 | BL215: 58 | BM215: 59 | BN215: 60 | BO215: 61 | BP215: 62 | BQ215: 63 | BR215: 64 | BS215: =BS115 -> 65 | BT215: 66 | BU215: 67 | BV215: 68 | BW215: 69 | BX215: 70 | BY215: 71 | BZ215: 72 | CA215: 73 | CB215: 74 | CC215: 75 | CD215: 76 | CE215: 77 | CF215: 78 | CG215: 79 | CH215: 80 | CI215: 81 | CJ215: 82 | CK215: 83 | CL215: 84 | CM215: 85 | CN215: 86 | CO215: 87 | CP215: 88 | CQ215: 89 | CR215: 90 | CS215: 91 | CT215: 92 | CU215: 93 | CV215: 94 | CW215: 95 | CX215: 96 | CY215: 97 | CZ215: 98 | DA215: 99 | DB215: 100
D216: Inflated Price | F216: =F212 -> 1.677905001 | G216: =G175 -> 4.078999557 | H216: 4.119789552 | I216: 4.160987448 | J216: 4.202597322 | K216: 4.244623296 | L216: 4.287069529 | M216: 4.329940224 | N216: 4.373239626 | O216: 4.416972022 | P216: 4.461141743 | Q216: 4.50575316 | R216: 4.550810692 | S216: 4.596318798 | T216: 4.642281986 | U216: 4.688704806 | V216: 0 | W216: 0 | X216: 0 | Y216: 0 | Z216: 0 | AA216: 0 | AB216: 0 | AC216: 0 | AD216: 0 | AE216: 0 | AF216: 0 | AG216: 0 | AH216: 0 | AI216: 0 | AJ216: 0 | AK216: 0 | AL216: 0 | AM216: 0 | AN216: 0 | AO216: 0 | AP216: 0 | AQ216: 0 | AR216: 0 | AS216: 0 | AT216: 0 | AU216: 0 | AV216: 0 | AW216: 0 | AX216: 0 | AY216: 0 | AZ216: 0 | BA216: 0 | BB216: 0 | BC216: 0 | BD216: 0 | BE216: 0 | BF216: 0 | BG216: 0 | BH216: 0 | BI216: 0 | BJ216: 0 | BK216: 0 | BL216: 0 | BM216: 0 | BN216: 0 | BO216: 0 | BP216: 0 | BQ216: 0 | BR216: 0 | BS216: =BS175 -> 0 | BT216: 0 | BU216: 0 | BV216: 0 | BW216: 0 | BX216: 0 | BY216: 0 | BZ216: 0 | CA216: 0 | CB216: 0 | CC216: 0 | CD216: 0 | CE216: 0 | CF216: 0 | CG216: 0 | CH216: 0 | CI216: 0 | CJ216: 0 | CK216: 0 | CL216: 0 | CM216: 0 | CN216: 0 | CO216: 0 | CP216: 0 | CQ216: 0 | CR216: 0 | CS216: 0 | CT216: 0 | CU216: 0 | CV216: 0 | CW216: 0 | CX216: 0 | CY216: 0 | CZ216: 0 | DA216: 0 | DB216: 0
D217: Generation | G217: 164500.744 | H217: 163678.2403 | I217: 162859.8491 | J217: 162045.5499 | K217: 161235.3221 | L217: 160429.1455 | M217: 159626.9998 | N217: 158828.8648 | O217: 158034.7205 | P217: 157244.5469 | Q217: 156458.3241 | R217: 155676.0325 | S217: 154897.6523 | T217: 154123.1641 | U217: 153352.5483 | V217: 0 | W217: 0 | X217: 0 | Y217: 0 | Z217: 0 | AA217: 0 | AB217: 0 | AC217: 0 | AD217: 0 | AE217: 0 | AF217: 0 | AG217: 0 | AH217: 0 | AI217: 0 | AJ217: 0 | AK217: 0 | AL217: 0 | AM217: 0 | AN217: 0 | AO217: 0 | AP217: 0 | AQ217: 0 | AR217: 0 | AS217: 0 | AT217: 0 | AU217: 0 | AV217: 0 | AW217: 0 | AX217: 0 | AY217: 0 | AZ217: 0 | BA217: 0 | BB217: 0 | BC217: 0 | BD217: 0 | BE217: 0 | BF217: 0 | BG217: 0 | BH217: 0 | BI217: 0 | BJ217: 0 | BK217: 0 | BL217: 0 | BM217: 0 | BN217: 0 | BO217: 0 | BP217: 0 | BQ217: 0 | BR217: 0 | BS217: 0 | BT217: 0 | BU217: 0 | BV217: 0 | BW217: 0 | BX217: 0 | BY217: 0 | BZ217: 0 | CA217: 0 | CB217: 0 | CC217: 0 | CD217: 0 | CE217: 0 | CF217: 0 | CG217: 0 | CH217: 0 | CI217: 0 | CJ217: 0 | CK217: 0 | CL217: 0 | CM217: 0 | CN217: 0 | CO217: 0 | CP217: 0 | CQ217: 0 | CR217: 0 | CS217: 0 | CT217: 0 | CU217: 0 | CV217: 0 | CW217: 0 | CX217: 0 | CY217: 0 | CZ217: 0 | DA217: 0 | DB217: 0
D218: Discount Factor - Nominal | E218: =E207 -> 0.035 | G218: =1/(1+$E$218)^G215 -> 0.9661835749 | H218: 0.9335107004 | I218: 0.9019427057 | J218: 0.8714422277 | K218: 0.8419731669 | L218: 0.8135006443 | M218: 0.7859909607 | N218: 0.7594115562 | O218: 0.7337309722 | P218: 0.7089188137 | Q218: 0.6849457137 | R218: 0.6617832983 | S218: 0.6394041529 | T218: 0.6177817903 | U218: 0.5968906186 | V218: 0.5767059117 | W218: 0.5572037794 | X218: 0.5383611396 | Y218: 0.5201556904 | Z218: 0.5025658844 | AA218: 0.4855709028 | AB218: 0.4691506308 | AC218: 0.4532856336 | AD218: 0.4379571339 | AE218: 0.4231469893 | AF218: 0.4088376708 | AG218: 0.3950122423 | AH218: 0.3816543404 | AI218: 0.368748155 | AJ218: 0.3562784106 | AK218: 0.3442303484 | AL218: 0.3325897086 | AM218: =1/(1+$E$218)^AM215 -> 0.3213427136 | AN218: 0.3104760518 | AO218: 0.2999768617 | AP218: 0.2898327166 | AQ218: 0.2800316102 | AR218: 0.2705619422 | AS218: 0.2614125046 | AT218: 0.2525724682 | AU218: 0.2440313702 | AV218: 0.2357791017 | AW218: 0.2278058953 | AX218: 0.2201023143 | AY218: 0.2126592409 | AZ218: 0.2054678656 | BA218: 0.1985196769 | BB218: 0.1918064511 | BC218: 0.1853202426 | BD218: 0.1790533745 | BE218: 0.1729984295 | BF218: 0.1671482411 | BG218: 0.1614958851 | BH218: 0.1560346716 | BI218: 0.1507581368 | BJ218: 0.1456600355 | BK218: 0.1407343339 | BL218: 0.1359752018 | BM218: 0.1313770066 | BN218: 0.1269343059 | BO218: 0.1226418414 | BP218: 0.1184945328 | BQ218: 0.1144874713 | BR218: 0.1106159143 | BS218: =1/(1+$E$218)^BS215 -> 0.1068752795 | BT218: 0.1032611396 | BU218: 0.09976921701 | BV218: 0.09639537875 | BW218: 0.09313563164 | BX218: 0.08998611753 | BY218: 0.08694310872 | BZ218: 0.0840030036 | CA218: 0.08116232232 | CB218: 0.07841770272 | CC218: 0.07576589635 | CD218: 0.07320376459 | CE218: 0.07072827497 | CF218: 0.06833649755 | CG218: 0.0660256015 | CH218: 0.06379285169 | CI218: 0.0616356055 | CJ218: 0.05955130966 | CK218: 0.05753749726 | CL218: 0.05559178479 | CM218: 0.05371186936 | CN218: 0.05189552595 | CO218: 0.05014060478 | CP218: 0.04844502878 | CQ218: 0.04680679109 | CR218: 0.04522395274 | CS218: 0.04369464033 | CT218: 0.0422170438 | CU218: 0.0407894143 | CV218: 0.03941006212 | CW218: 0.03807735471 | CX218: 0.03678971469 | CY218: 0.03554561806 | CZ218: 0.03434359233 | DA218: 0.03318221481 | DB218: 0.03206011093
D219: Discounted Generation | G219: =G217*G218 -> 158937.917 | H219: =H217*H218 -> 152795.3888 | I219: 146890.253 | J219: 141213.335 | K219: 135755.8148 | L219: 130509.2132 | M219: 125465.3789 | N219: 120616.4754 | O219: 115954.9691 | P219: 111473.6176 | Q219: 107165.4585 | R219: 103023.7983 | S219: 99042.20219 | T219: 95214.48423 | U219: 91534.6974 | V219: 0 | W219: 0 | X219: 0 | Y219: 0 | Z219: 0 | AA219: 0 | AB219: 0 | AC219: 0 | AD219: 0 | AE219: 0 | AF219: 0 | AG219: 0 | AH219: 0 | AI219: 0 | AJ219: 0 | AK219: 0 | AL219: 0 | AM219: 0 | AN219: 0 | AO219: 0 | AP219: 0 | AQ219: 0 | AR219: 0 | AS219: 0 | AT219: 0 | AU219: 0 | AV219: 0 | AW219: 0 | AX219: 0 | AY219: 0 | AZ219: 0 | BA219: 0 | BB219: 0 | BC219: 0 | BD219: 0 | BE219: 0 | BF219: 0 | BG219: 0 | BH219: 0 | BI219: 0 | BJ219: 0 | BK219: 0 | BL219: 0 | BM219: 0 | BN219: 0 | BO219: 0 | BP219: 0 | BQ219: 0 | BR219: 0 | BS219: 0 | BT219: =BT217*BT218 -> 0 | BU219: 0 | BV219: 0 | BW219: 0 | BX219: 0 | BY219: 0 | BZ219: 0 | CA219: 0 | CB219: 0 | CC219: 0 | CD219: 0 | CE219: 0 | CF219: 0 | CG219: 0 | CH219: 0 | CI219: 0 | CJ219: 0 | CK219: 0 | CL219: 0 | CM219: 0 | CN219: 0 | CO219: 0 | CP219: 0 | CQ219: 0 | CR219: 0 | CS219: 0 | CT219: 0 | CU219: 0 | CV219: 0 | CW219: 0 | CX219: 0 | CY219: 0 | CZ219: 0 | DA219: 0 | DB219: 0
D220: Weighting Factor | G220: =G219/SUM(219:219) -> 0.08658668706 | H220: 0.08324034167 | I220: 0.08002332364 | J220: 0.0769306348 | K220: 0.07395747017 | L220: 0.07109921045 | M220: 0.06835141488 | N220: 0.0657098143 | O220: 0.06317030457 | P220: 0.06072894015 | Q220: 0.05838192797 | R220: 0.05612562157 | S220: 0.05395651542 | T220: 0.05187123946 | U220: 0.04986655388 | V220: 0 | W220: 0 | X220: 0 | Y220: 0 | Z220: 0 | AA220: 0 | AB220: 0 | AC220: 0 | AD220: 0 | AE220: 0 | AF220: 0 | AG220: 0 | AH220: 0 | AI220: 0 | AJ220: 0 | AK220: 0 | AL220: 0 | AM220: =AM219/SUM(219:219) -> 0 | AN220: 0 | AO220: 0 | AP220: 0 | AQ220: 0 | AR220: 0 | AS220: 0 | AT220: 0 | AU220: 0 | AV220: 0 | AW220: 0 | AX220: 0 | AY220: 0 | AZ220: 0 | BA220: 0 | BB220: 0 | BC220: 0 | BD220: 0 | BE220: 0 | BF220: 0 | BG220: 0 | BH220: 0 | BI220: 0 | BJ220: 0 | BK220: 0 | BL220: 0 | BM220: 0 | BN220: 0 | BO220: 0 | BP220: 0 | BQ220: 0 | BR220: 0 | BS220: =BS219/SUM(219:219) -> 0 | BT220: 0 | BU220: 0 | BV220: 0 | BW220: 0 | BX220: 0 | BY220: 0 | BZ220: 0 | CA220: 0 | CB220: 0 | CC220: 0 | CD220: 0 | CE220: 0 | CF220: 0 | CG220: 0 | CH220: 0 | CI220: 0 | CJ220: 0 | CK220: 0 | CL220: 0 | CM220: 0 | CN220: 0 | CO220: 0 | CP220: 0 | CQ220: 0 | CR220: 0 | CS220: 0 | CT220: 0 | CU220: 0 | CV220: 0 | CW220: 0 | CX220: 0 | CY220: =CY219/SUM(219:219) -> 0 | CZ220: =CZ219/SUM(219:219) -> 0 | DA220: =DA219/SUM(219:219) -> 0 | DB220: =DB219/SUM(219:219) -> 0
D222: LCOE with Sumproduct - MWH | E222: =SUMPRODUCT(G220:DB220*G216:DB216) -> 4.345480767 | G222: =_xlfn.FORMULATEXT(E222) -> =SUMPRODUCT(G220:DB220*G216:DB216)

Sheet SMR LCOH
F1: 1
G3: 1 | H3: 2 | I3: 3 | J3: 4
A5: Drivers | G5: SMR Base | H5: No Tracking | I5: Single Axis Tracking | J5: Bi-Facial | S5: =INDEX(G5:R5,$F$1) -> SMR Base
C6: Units | G6: USD/MWH | H6: USD/MWH | I6: USD/MWH | J6: USD/MWH | S6: =INDEX(G6:R6,$F$1) -> USD/MWH
C7: Resulting Levelised Cost per Unit | G7: =G73 -> 2379.4141 | H7: =H73 -> 2372.511647 | I7: =I73 -> 35412.75512 | J7: =I7+H7 -> 37785.26677
B9: Project Inputs
D10: Size in MW per Hour | E10: MW | G10: 1 | H10: =G10 -> 1 | I10: =H10 -> 1 | J10: =I10 -> 1 | S10: =INDEX(G10:R10,$F$1) -> 1
D12: Cost/kW | E12: USD/kW | G12: 400 | H12: =G12 -> 400 | I12: =H12*15 -> 6000 | J12: =I12 -> 6000 | S12: =INDEX(G12:R12,$F$1) -> 400
D13: Total Up-Front Cost | E13: USD | G13: =G12*G10*1000 -> 400000 | H13: =H12*H10*1000 -> 400000 | I13: =I12*I10*1000 -> 6000000 | J13: =H13+I13 -> 6400000 | S13: =INDEX(G13:R13,$F$1) -> 400000
S14: =INDEX(G14:R14,$F$1) -> 0
D15: Capacity Factor | E15: % | G15: ='Electrolyzer vs SMR'!I4 -> 0.97 | H15: =G15 -> 0.97 | I15: =H15 -> 0.97 | J15: =I15 -> 0.97 | S15: =INDEX(G15:R15,$F$1) -> 0.97
D16: Hours of Operation at Load Factor | E16: Hours/Year | G16: =G15*8766 -> 8503.02 | H16: =H15*8766 -> 8503.02 | I16: =I15*8766 -> 8503.02 | J16: =J15*8766 -> 8503.02 | S16: =INDEX(G16:R16,$F$1) -> 8503.02
D17: Hours/Yr | E17: Hours | G17: =8766*G15 -> 8503.02 | H17: =8766*H15 -> 8503.02 | I17: =8766*I15 -> 8503.02 | J17: =8766*J15 -> 8503.02 | S17: =INDEX(G17:R17,$F$1) -> 8503.02
D18: Converstion from kW to kG | E18: kWh/kg | G18: 50 | H18: =G18 -> 50 | I18: =H18 -> 50 | J18: =I18 -> 50
D19: Total kWh Produced/Year | E19: kWh per Year | G19: =G16*G10*1000*G15 -> 8247929.4 | H19: =H16*H10*1000*H15 -> 8247929.4 | I19: =I16*I10*1000*I15 -> 8247929.4 | J19: =J16*J10*1000*J15 -> 8247929.4
D20: Total kg Produced/Year | E20: kg per year | G20: =G19/G18 -> 164958.588 | H20: =H19/H18 -> 164958.588 | I20: =I19/I18 -> 164958.588 | J20: =J19/J18 -> 164958.588
D22: SMR Effiency | E22: MBTU/kg | G22: 1 | H22: =G22 -> 1 | I22: =H22 -> 1 | J22: =I22 -> 1
D23: Annual Energy | E23: MMBTU/year | G23: =G20*G22 -> 164958.588 | H23: =H20*H22 -> 164958.588 | I23: 164958.588 | J23: 164958.588 | S23: =INDEX(G23:R23,$F$1) -> 164958.588
D24: Fuel Cost per MMBTU | E24: USD/MMBTU | G24: 3 | H24: =G24 -> 3 | I24: =H24 -> 3 | J24: =I24 -> 3
D25: Total Fuel Cost | E25: USD | G25: =G24*G23 -> 494875.764 | H25: =H24*H23 -> 494875.764 | I25: =I24*I23 -> 494875.764 | J25: =J24*J23 -> 494875.764
D27: O&M Cost as Percent of Cap Exp | E27: % | G27: 0.047 | H27: =G27 -> 0.047 | I27: =H27 -> 0.047 | J27: =I27 -> 0.047
D28: O&M Cost | E28: USD/year | G28: =G27*G13 -> 18800 | H28: =G28 -> 18800 | I28: =H28*15 -> 282000 | J28: =I28 -> 282000 | S28: =INDEX(G28:R28,$F$1) -> 18800
D29: Total O&M Cost per Year | E29: USD/year | G29: =G28+G25 -> 513675.764 | H29: =G29 -> 513675.764 | I29: =H29 -> 513675.764 | J29: =I29 -> 513675.764 | S29: =INDEX(G29:R29,$F$1) -> 513675.764
D31: Cost per kg | E31: USD/kg | G31: =G29/G20 -> 3.113967998 | H31: =H29/H20 -> 3.113967998 | I31: =I29/I20 -> 3.113967998 | J31: =J29/J20 -> 3.113967998
B33: Capital Charge Inputs
D34: Plant Life | E34: Years | G34: 30 | H34: =G34 -> 30 | I34: =G34 -> 30 | J34: =H34 -> 30 | S34: =INDEX(G34:R34,$F$1) -> 30
D35: Plant Life from Maximum Hours | E35: Years | G35: =G34 -> 30 | H35: =H34 -> 30 | I35: =I34 -> 30 | J35: =I35 -> 30 | S35: =INDEX(G35:R35,$F$1) -> 30
D37: Income Tax Rate | E37: % p.a. | G37: 0.25 | H37: =G37 -> 0.25 | I37: 0.25 | J37: 0.25 | S37: =INDEX(G37:R37,$F$1) -> 0.25
D38: Tax Life | E38: Year | G38: 10 | H38: 10 | I38: 10 | J38: 10 | S38: =INDEX(G38:R38,$F$1) -> 10
D39: Variable Delicing Factor (1-SL) | E39: Factor | G39: 1 | H39: 1 | I39: 1 | J39: 1 | S39: =INDEX(G39:R39,$F$1) -> 1
D40: Value of Depreciation Deduction | E40: % | G40: =F194 -> 0.2115645994 | H40: =F199 -> 0.2115645994 | I40: =F204 -> 0.1884406457 | J40: =F209 -> 0.1884406457 | S40: =INDEX(G40:R40,$F$1) -> 0.2115645994
S41: =INDEX(G41:R41,$F$1) -> 0
D42: Degradation | E42: % p.a. | G42: 0.005 | H42: =G42 -> 0.005 | I42: =H42 -> 0.005 | J42: 0.01 | S42: =INDEX(G42:R42,$F$1) -> 0.005
D43: Inflation Rate | E43: % p.a. | G43: 0.02 | H43: =G43 -> 0.02 | I43: =H43 -> 0.02 | J43: =I43 -> 0.02 | S43: =INDEX(G43:R43,$F$1) -> 0.02
S44: =INDEX(G44:R44,$F$1) -> 0
D45: Debt Percent | E45: % | G45: 0.75 | H45: =G45 -> 0.75 | I45: =H45 -> 0.75 | J45: =I45 -> 0.75 | S45: =INDEX(G45:R45,$F$1) -> 0.75
D46: Equity Percent | E46: % | G46: =1-G45 -> 0.25 | H46: =1-H45 -> 0.25 | I46: =1-I45 -> 0.25 | J46: =1-J45 -> 0.25 | S46: =INDEX(G46:R46,$F$1) -> 0.25
D47: Pre-tax Interest Rate | E47: % | G47: 0.025 | H47: =G47 -> 0.025 | I47: 0.085 | J47: =I47 -> 0.085 | S47: =INDEX(G47:R47,$F$1) -> 0.025
D48: Interest Rate | E48: % | G48: =G47*(1-G37) -> 0.01875 | H48: =H47*(1-H37) -> 0.01875 | I48: =I47*(1-I37) -> 0.06375 | J48: =J47*(1-J37) -> 0.06375 | S48: =INDEX(G48:R48,$F$1) -> 0.01875
D49: Minimum Target Equity IRR | E49: % | G49: ='Summary of Truck Analysis'!$K$2 -> 0.07 | H49: ='Summary of Truck Analysis'!$K$2 -> 0.07 | I49: ='Summary of Truck Analysis'!$K$2 -> 0.07 | J49: ='Summary of Truck Analysis'!$K$2 -> 0.07 | S49: =INDEX(G49:R49,$F$1) -> 0.07
D50: WACC | E50: % | G50: =G48*G45+G49*G46 -> 0.0315625 | H50: =H48*H45+H49*H46 -> 0.0315625 | I50: =I48*I45+I49*I46 -> 0.0653125 | J50: =J48*J45+J49*J46 -> 0.0653125 | S50: =INDEX(G50:R50,$F$1) -> 0.0315625
D52: Required Pre-tax Project IRR - Nominal | E52: % p.a. | G52: =G50 -> 0.0315625 | H52: 0.04 | I52: 0.055 | J52: 0.055 | S52: =INDEX(G52:R52,$F$1) -> 0.0315625
D53: Required Real IRR | E53: % p.a. | G53: =(1+G52)/(1+G43)-1 -> 0.01133578431 | H53: =(1+H52)/(1+H43)-1 -> 0.01960784314 | I53: =(1+I52)/(1+I43)-1 -> 0.03431372549 | J53: =(1+J52)/(1+J43)-1 -> 0.03431372549 | S53: =INDEX(G53:R53,$F$1) -> 0.01133578431 | V53: =_xlfn.FORMULATEXT(J53) -> =(1+J52)/(1+J43)-1
D55: Nominal Adjusted IRR for Degradation | E55: % p.a. | G55: =(1+G52)/(1-G42)-1 -> 0.03674623116 | H55: =(1+H52)/(1-H42)-1 -> 0.04522613065 | I55: =(1+I52)/(1-I42)-1 -> 0.06030150754 | J55: =(1+J52)/(1-J42)-1 -> 0.06565656566 | S55: =INDEX(G55:R55,$F$1) -> 0.03674623116 | V55: =_xlfn.FORMULATEXT(J55) -> =(1+J52)/(1-J42)-1
D56: Real Adjusted IRR for Degradation | E56: % p.a. | G56: =(1+G53)/(1-G42)-1 -> 0.01641787368 | H56: =(1+H53)/(1-H42)-1 -> 0.02473150064 | I56: =(1+I53)/(1-I42)-1 -> 0.0395112819 | J56: =(1+J53)/(1-J42)-1 -> 0.04476133888 | S56: =INDEX(G56:R56,$F$1) -> 0.01641787368 | V56: =_xlfn.FORMULATEXT(J56) -> =(1+J53)/(1-J42)-1
D58: Carrying charge rate - Nominal | E58: % p.a. | G58: =PMT(G55,G35,-1)/(1-G37) -> 0.07408982542 | H58: =PMT(H55,H35,-1)/(1-H37) -> 0.08207329683 | I58: =PMT(I55,I35,-1)/(1-I37) -> 0.09717792683 | J58: =PMT(J55,J35,-1)/(1-J37) -> 0.1027991768 | S58: =INDEX(G58:R58,$F$1) -> 0.07408982542 | V58: =_xlfn.FORMULATEXT(J58) -> =PMT(J55,J35,-1)/(1-J37)
D59: Carrying charge rate - Real | E59: % p.a. | G59: =PMT(G56,G35,-1)/(1-G37) -> 0.05664121273 | H59: =PMT(H56,H35,-1)/(1-H37) -> 0.06347567931 | I59: =PMT(I56,I35,-1)/(1-I37) -> 0.07664991008 | J59: =PMT(J56,J35,-1)/(1-J37) -> 0.0816257008 | S59: =INDEX(G59:R59,$F$1) -> 0.05664121273 | V59: =_xlfn.FORMULATEXT(J59) -> =PMT(J56,J35,-1)/(1-J37)
D61: Value of Tax Deductions | E61: %
D62: Capexp Recovery - Nominal | E62: USD/Kw-yr | G62: =G58*G12 -> 29.63593017 | H62: =H58*H12 -> 32.82931873 | I62: =I58*I12 -> 583.067561 | J62: =J58*J12 -> 616.7950605 | S62: =INDEX(G62:R62,$F$1) -> 29.63593017
D63: Capexp Recovery - After Tax Shield | E63: USD/kgyr | G63: =G62*(1-G40) -> 23.36601647 | H63: =H62*(1-H40) -> 25.88379706 | I63: =I62*(1-I40) -> 473.1939333 | J63: =J62*(1-J40) -> 500.565801 | S63: =INDEX(G63:R63,$F$1) -> 23.36601647
D64: Capexp Recovery - Nominal | E64: USD/MWH | G64: =G63/G16*1000 -> 2.747966778 | H64: =H63/H16*1000 -> 3.044071055 | I64: =I63/I16*1000 -> 55.65010235 | J64: =J63/J16*1000 -> 58.86917837 | S64: =INDEX(G64:R64,$F$1) -> 2.747966778
D65: Capexp Recovery - Real | E65: USD/kgyr | G65: =G59*G12*(1-G40) -> 17.8631749 | H65: =H59*H12*(1-H40) -> 20.01858906 | I65: =I59*I12*(1-I40) -> 373.2357092 | J65: =J59*J12*(1-J40) -> 397.4646062 | S65: =INDEX(G65:R65,$F$1) -> 17.8631749
D66: Capexp Recovery - Real | E66: USD/MWH | G66: =G65/G17*1000 -> 2.100803585 | H66: =H65/H17*1000 -> 2.354291659 | I66: =I65/I17*1000 -> 43.89448798 | J66: =J65/J17*1000 -> 46.74393406 | S66: =INDEX(G66:R66,$F$1) -> 2.100803585
D68: O&M Cost - Nominal | E68: USD/kW-yr | G68: =G28*PV(G53,G35,-1)/PV(G55,G35,-1) -> 26441.47318 | H68: =H28*PV(H53,H35,-1)/PV(H55,H35,-1) -> 26058.22935 | I68: =I28*PV(I53,I35,-1)/PV(I55,I35,-1) -> 381285.4654 | J68: =J28*PV(J53,J35,-1)/PV(J55,J35,-1) -> 403340.8947 | S68: =INDEX(G68:R68,$F$1) -> 26441.47318
D69: O&M Cost - Nominal | E69: USD/MWH | G69: =G68*1000/G16 -> 3109.656707 | H69: =H68*1000/H16 -> 3064.585213 | I69: =I68*1000/I16 -> 44841.18177 | J69: =J68*1000/J16 -> 47435.01658 | S69: =INDEX(G69:R69,$F$1) -> 3109.656707
D70: O&M Cost - Real Degradation | E70: USD/kW-yr | G70: =PV(G53,G35,-1)/PV(G56,G35,-1)*G28 -> 20214.3425 | H70: =PV(H53,H35,-1)/PV(H56,H35,-1)*H28 -> 20153.4954 | I70: =PV(I53,I35,-1)/PV(I56,I35,-1)*I28 -> 300742.1294 | J70: =PV(J53,J35,-1)/PV(J56,J35,-1)*J28 -> 320265.0472 | S70: =INDEX(G70:R70,$F$1) -> 20214.3425
D71: O&M Cost - Real | E71: USD/MWH | G71: =G70*1000/G16 -> 2377.313296 | H71: =H70*1000/H16 -> 2370.157356 | I71: =I70*1000/I16 -> 35368.86063 | J71: =J70*1000/J16 -> 37664.85874 | S71: =INDEX(G71:R71,$F$1) -> 2377.313296
D73: LCOE - Real | E73: USD/MWH | G73: =G66+G71 -> 2379.4141 | H73: =H66+H71 -> 2372.511647 | I73: =I66+I71 -> 35412.75512 | J73: =J66+J71 -> 37711.60267 | S73: =INDEX(G73:R73,$F$1) -> 2379.4141
D74: LCOE - Nominal | E74: USD/MWH | G74: =G64+G69 -> 3112.404674 | H74: =H64+H69 -> 3067.629284 | I74: =I64+I69 -> 44896.83188 | J74: =J64+J69 -> 47493.88576 | S74: =INDEX(G74:R74,$F$1) -> 3112.404674
B76: Proof w/ financial model | E76: Driver
C77: Timeline | F77: 0 | G77: 1 | H77: 2 | I77: 3 | J77: 4 | K77: 5 | L77: 6 | M77: 7 | N77: 8 | O77: 9 | P77: 10 | Q77: 11 | R77: 12 | S77: 13 | T77: 14 | U77: 15 | V77: 16 | W77: 17 | X77: 18 | Y77: 19 | Z77: 20 | AA77: 21 | AB77: 22 | AC77: 23 | AD77: 24 | AE77: 25 | AF77: 26 | AG77: 27 | AH77: 28 | AI77: 29 | AJ77: 30 | AK77: 31 | AL77: 32 | AM77: 33 | AN77: 34 | AO77: 35 | AP77: 36 | AQ77: 37 | AR77: 38 | AS77: 39 | AT77: 40 | AU77: 41 | AV77: 42 | AW77: 43 | AX77: 44 | AY77: 45 | AZ77: 46 | BA77: 47 | BB77: 48 | BC77: 49 | BD77: 50 | BE77: 51 | BF77: 52 | BG77: 53 | BH77: 54 | BI77: 55 | BJ77: 56 | BK77: 57 | BL77: 58 | BM77: 59 | BN77: 60 | BO77: 61 | BP77: 62 | BQ77: 63 | BR77: 64 | BS77: 65 | BT77: 66 | BU77: 67 | BV77: 68 | BW77: 69 | BX77: 70 | BY77: 71 | BZ77: 72 | CA77: 73 | CB77: 74 | CC77: 75 | CD77: 76 | CE77: 77 | CF77: 78 | CG77: 79 | CH77: 80 | CI77: 81 | CJ77: 82 | CK77: 83 | CL77: 84 | CM77: 85 | CN77: 86 | CO77: 87 | CP77: 88 | CQ77: 89 | CR77: 90 | CS77: 91 | CT77: 92 | CU77: 93 | CV77: 94 | CW77: 95 | CX77: 96 | CY77: 97 | CZ77: 98 | DA77: 99 | DB77: 100
C78: Flag | E78: =S35 -> 30 | G78: =G77<=$E$78 -> TRUE | H78: TRUE | I78: TRUE | J78: TRUE | K78: TRUE | L78: TRUE | M78: TRUE | N78: TRUE | O78: TRUE | P78: TRUE | Q78: TRUE | R78: TRUE | S78: TRUE | T78: TRUE | U78: TRUE | V78: TRUE | W78: TRUE | X78: TRUE | Y78: TRUE | Z78: TRUE | AA78: TRUE | AB78: TRUE | AC78: TRUE | AD78: TRUE | AE78: TRUE | AF78: TRUE | AG78: TRUE | AH78: TRUE | AI78: TRUE | AJ78: TRUE | AK78: FALSE | AL78: FALSE | AM78: FALSE | AN78: FALSE | AO78: FALSE | AP78: FALSE | AQ78: FALSE | AR78: FALSE | AS78: FALSE | AT78: FALSE | AU78: FALSE | AV78: FALSE | AW78: FALSE | AX78: FALSE | AY78: FALSE | AZ78: FALSE | BA78: FALSE | BB78: FALSE | BC78: FALSE | BD78: FALSE | BE78: FALSE | BF78: FALSE | BG78: FALSE | BH78: FALSE | BI78: FALSE | BJ78: FALSE | BK78: FALSE | BL78: FALSE | BM78: FALSE | BN78: FALSE | BO78: FALSE | BP78: FALSE | BQ78: FALSE | BR78: FALSE | BS78: =BS77<=$E$78 -> FALSE | BT78: FALSE | BU78: FALSE | BV78: FALSE | BW78: FALSE | BX78: FALSE | BY78: FALSE | BZ78: FALSE | CA78: FALSE | CB78: FALSE | CC78: FALSE | CD78: FALSE | CE78: FALSE | CF78: FALSE | CG78: FALSE | CH78: FALSE | CI78: FALSE | CJ78: FALSE | CK78: FALSE | CL78: FALSE | CM78: FALSE | CN78: FALSE | CO78: FALSE | CP78: FALSE | CQ78: FALSE | CR78: FALSE | CS78: FALSE | CT78: FALSE | CU78: FALSE | CV78: FALSE | CW78: FALSE | CX78: FALSE | CY78: FALSE | CZ78: FALSE | DA78: FALSE | DB78: FALSE
C79: Nominal
D80: Price per MWH | E80: =S74 -> 3112.404674 | G80: =$E$80*G78 -> 3112.404674 | H80: =$E$80 -> 3112.404674 | I80: 3112.404674 | J80: 3112.404674 | K80: 3112.404674 | L80: 3112.404674 | M80: 3112.404674 | N80: 3112.404674 | O80: 3112.404674 | P80: 3112.404674 | Q80: 3112.404674 | R80: 3112.404674 | S80: 3112.404674 | T80: 3112.404674 | U80: 3112.404674 | V80: 3112.404674 | W80: 3112.404674 | X80: 3112.404674 | Y80: 3112.404674 | Z80: 3112.404674 | AA80: 3112.404674 | AB80: 3112.404674 | AC80: 3112.404674 | AD80: 3112.404674 | AE80: 3112.404674 | AF80: 3112.404674 | AG80: 3112.404674 | AH80: 3112.404674 | AI80: 3112.404674 | AJ80: 3112.404674 | AK80: 3112.404674 | AL80: 3112.404674 | AM80: 3112.404674 | AN80: 3112.404674 | AO80: 3112.404674 | AP80: 3112.404674 | AQ80: 3112.404674 | AR80: 3112.404674 | AS80: 3112.404674 | AT80: 3112.404674 | AU80: 3112.404674 | AV80: 3112.404674 | AW80: 3112.404674 | AX80: 3112.404674 | AY80: 3112.404674 | AZ80: 3112.404674 | BA80: 3112.404674 | BB80: 3112.404674 | BC80: 3112.404674 | BD80: 3112.404674 | BE80: 3112.404674 | BF80: 3112.404674 | BG80: 3112.404674 | BH80: 3112.404674 | BI80: 3112.404674 | BJ80: 3112.404674 | BK80: 3112.404674 | BL80: 3112.404674 | BM80: 3112.404674 | BN80: 3112.404674 | BO80: 3112.404674 | BP80: 3112.404674 | BQ80: 3112.404674 | BR80: 3112.404674 | BS80: 3112.404674 | BT80: =$E$80 -> 3112.404674 | BU80: 3112.404674 | BV80: 3112.404674 | BW80: 3112.404674 | BX80: 3112.404674 | BY80: 3112.404674 | BZ80: 3112.404674 | CA80: 3112.404674 | CB80: 3112.404674 | CC80: 3112.404674 | CD80: 3112.404674 | CE80: 3112.404674 | CF80: 3112.404674 | CG80: 3112.404674 | CH80: 3112.404674 | CI80: 3112.404674 | CJ80: 3112.404674 | CK80: 3112.404674 | CL80: 3112.404674 | CM80: 3112.404674 | CN80: 3112.404674 | CO80: 3112.404674 | CP80: 3112.404674 | CQ80: 3112.404674 | CR80: 3112.404674 | CS80: 3112.404674 | CT80: 3112.404674 | CU80: 3112.404674 | CV80: 3112.404674 | CW80: 3112.404674 | CX80: 3112.404674 | CY80: 3112.404674 | CZ80: 3112.404674 | DA80: 3112.404674 | DB80: 3112.404674
D81: Production without Degradation | E81: =S16 -> 8503.02 | G81: =$E$81*G78 -> 8503.02 | H81: 8503.02 | I81: 8503.02 | J81: 8503.02 | K81: 8503.02 | L81: 8503.02 | M81: 8503.02 | N81: 8503.02 | O81: 8503.02 | P81: 8503.02 | Q81: 8503.02 | R81: 8503.02 | S81: 8503.02 | T81: 8503.02 | U81: 8503.02 | V81: 8503.02 | W81: 8503.02 | X81: 8503.02 | Y81: 8503.02 | Z81: 8503.02 | AA81: 8503.02 | AB81: 8503.02 | AC81: 8503.02 | AD81: 8503.02 | AE81: 8503.02 | AF81: 8503.02 | AG81: 8503.02 | AH81: 8503.02 | AI81: 8503.02 | AJ81: 8503.02 | AK81: 0 | AL81: 0 | AM81: 0 | AN81: 0 | AO81: 0 | AP81: 0 | AQ81: 0 | AR81: 0 | AS81: 0 | AT81: 0 | AU81: 0 | AV81: 0 | AW81: 0 | AX81: 0 | AY81: 0 | AZ81: 0 | BA81: 0 | BB81: 0 | BC81: 0 | BD81: 0 | BE81: 0 | BF81: 0 | BG81: 0 | BH81: 0 | BI81: 0 | BJ81: 0 | BK81: 0 | BL81: 0 | BM81: 0 | BN81: 0 | BO81: 0 | BP81: 0 | BQ81: 0 | BR81: 0 | BS81: =$E$81*BS78 -> 0 | BT81: 0 | BU81: 0 | BV81: 0 | BW81: 0 | BX81: 0 | BY81: 0 | BZ81: 0 | CA81: 0 | CB81: 0 | CC81: 0 | CD81: 0 | CE81: 0 | CF81: 0 | CG81: 0 | CH81: 0 | CI81: 0 | CJ81: 0 | CK81: 0 | CL81: 0 | CM81: 0 | CN81: 0 | CO81: 0 | CP81: 0 | CQ81: 0 | CR81: 0 | CS81: 0 | CT81: 0 | CU81: 0 | CV81: 0 | CW81: 0 | CX81: 0 | CY81: 0 | CZ81: 0 | DA81: 0 | DB81: 0
D82: Degradation Index | E82: =S42 -> 0.005 | F82: 1 | G82: =F82*(1-$E$82) -> 0.995 | H82: 0.990025 | I82: 0.985074875 | J82: 0.9801495006 | K82: 0.9752487531 | L82: 0.9703725094 | M82: 0.9655206468 | N82: 0.9606930436 | O82: 0.9558895784 | P82: 0.9511101305 | Q82: 0.9463545798 | R82: 0.9416228069 | S82: 0.9369146929 | T82: 0.9322301194 | U82: 0.9275689688 | V82: 0.922931124 | W82: 0.9183164684 | X82: 0.913724886 | Y82: 0.9091562616 | Z82: 0.9046104803 | AA82: 0.9000874279 | AB82: 0.8955869907 | AC82: 0.8911090558 | AD82: 0.8866535105 | AE82: 0.8822202429 | AF82: 0.8778091417 | AG82: 0.873420096 | AH82: 0.8690529955 | AI82: 0.8647077306 | AJ82: 0.8603841919 | AK82: 0.856082271 | AL82: 0.8518018596 | AM82: 0.8475428503 | AN82: 0.8433051361 | AO82: 0.8390886104 | AP82: 0.8348931673 | AQ82: 0.8307187015 | AR82: 0.826565108 | AS82: 0.8224322824 | AT82: 0.818320121 | AU82: 0.8142285204 | AV82: 0.8101573778 | AW82: 0.8061065909 | AX82: 0.802076058 | AY82: 0.7980656777 | AZ82: 0.7940753493 | BA82: 0.7901049725 | BB82: 0.7861544477 | BC82: 0.7822236754 | BD82: 0.7783125571 | BE82: 0.7744209943 | BF82: 0.7705488893 | BG82: 0.7666961449 | BH82: 0.7628626641 | BI82: 0.7590483508 | BJ82: 0.7552531091 | BK82: 0.7514768435 | BL82: 0.7477194593 | BM82: 0.743980862 | BN82: 0.7402609577 | BO82: 0.7365596529 | BP82: 0.7328768546 | BQ82: 0.7292124704 | BR82: 0.725566408 | BS82: =BR82*(1-$E$82) -> 0.721938576 | BT82: 0.7183288831 | BU82: 0.7147372387 | BV82: 0.7111635525 | BW82: 0.7076077347 | BX82: 0.7040696961 | BY82: 0.7005493476 | BZ82: 0.6970466008 | CA82: 0.6935613678 | CB82: 0.690093561 | CC82: 0.6866430932 | CD82: 0.6832098777 | CE82: 0.6797938283 | CF82: 0.6763948592 | CG82: 0.6730128849 | CH82: 0.6696478205 | CI82: 0.6662995814 | CJ82: 0.6629680835 | CK82: 0.659653243 | CL82: 0.6563549768 | CM82: 0.6530732019 | CN82: 0.6498078359 | CO82: 0.6465587968 | CP82: 0.6433260028 | CQ82: 0.6401093728 | CR82: 0.6369088259 | CS82: 0.6337242818 | CT82: 0.6305556604 | CU82: 0.6274028821 | CV82: 0.6242658676 | CW82: 0.6211445383 | CX82: 0.6180388156 | CY82: 0.6149486215 | CZ82: 0.6118738784 | DA82: 0.608814509 | DB82: 0.6057704365
D83: Final Production with Degradation | G83: =G81*G82 -> 8460.5049 | H83: =H81*H82 -> 8418.202376 | I83: 8376.111364 | J83: 8334.230807 | K83: 8292.559653 | L83: 8251.096855 | M83: 8209.84137 | N83: 8168.792163 | O83: 8127.948203 | P83: 8087.308462 | Q83: 8046.871919 | R83: 8006.63756 | S83: 7966.604372 | T83: 7926.77135 | U83: 7887.137493 | V83: 7847.701806 | W83: 7808.463297 | X83: 7769.42098 | Y83: 7730.573875 | Z83: 7691.921006 | AA83: 7653.461401 | AB83: 7615.194094 | AC83: 7577.118123 | AD83: 7539.232533 | AE83: 7501.53637 | AF83: 7464.028688 | AG83: 7426.708545 | AH83: 7389.575002 | AI83: 7352.627127 | AJ83: 7315.863992 | AK83: 0 | AL83: 0 | AM83: 0 | AN83: 0 | AO83: 0 | AP83: 0 | AQ83: 0 | AR83: 0 | AS83: 0 | AT83: 0 | AU83: 0 | AV83: 0 | AW83: 0 | AX83: 0 | AY83: 0 | AZ83: 0 | BA83: 0 | BB83: 0 | BC83: 0 | BD83: 0 | BE83: 0 | BF83: 0 | BG83: 0 | BH83: 0 | BI83: 0 | BJ83: 0 | BK83: 0 | BL83: 0 | BM83: 0 | BN83: 0 | BO83: 0 | BP83: 0 | BQ83: 0 | BR83: 0 | BS83: 0 | BT83: =BT81*BT82 -> 0 | BU83: 0 | BV83: 0 | BW83: 0 | BX83: 0 | BY83: 0 | BZ83: 0 | CA83: 0 | CB83: 0 | CC83: 0 | CD83: 0 | CE83: 0 | CF83: 0 | CG83: 0 | CH83: 0 | CI83: 0 | CJ83: 0 | CK83: 0 | CL83: 0 | CM83: 0 | CN83: 0 | CO83: 0 | CP83: 0 | CQ83: 0 | CR83: 0 | CS83: 0 | CT83: 0 | CU83: 0 | CV83: 0 | CW83: 0 | CX83: 0 | CY83: 0 | CZ83: 0 | DA83: 0 | DB83: 0
D84: Nominal Revenues | G84: =G80*G83 -> 26332515 | H84: =H80*H83 -> 26200852.42 | I84: 26069848.16 | J84: 25939498.92 | K84: 25809801.42 | L84: 25680752.42 | M84: 25552348.65 | N84: 25424586.91 | O84: 25297463.98 | P84: 25170976.66 | Q84: 25045121.77 | R84: 24919896.16 | S84: 24795296.68 | T84: 24671320.2 | U84: 24547963.6 | V84: 24425223.78 | W84: 24303097.66 | X84: 24181582.17 | Y84: 24060674.26 | Z84: 23940370.89 | AA84: 23820669.04 | AB84: 23701565.69 | AC84: 23583057.86 | AD84: 23465142.57 | AE84: 23347816.86 | AF84: 23231077.78 | AG84: 23114922.39 | AH84: 22999347.78 | AI84: 22884351.04 | AJ84: 22769929.28 | AK84: 0 | AL84: 0 | AM84: 0 | AN84: 0 | AO84: 0 | AP84: 0 | AQ84: 0 | AR84: 0 | AS84: 0 | AT84: 0 | AU84: 0 | AV84: 0 | AW84: 0 | AX84: 0 | AY84: 0 | AZ84: 0 | BA84: 0 | BB84: 0 | BC84: 0 | BD84: 0 | BE84: 0 | BF84: 0 | BG84: 0 | BH84: 0 | BI84: 0 | BJ84: 0 | BK84: 0 | BL84: 0 | BM84: 0 | BN84: 0 | BO84: 0 | BP84: 0 | BQ84: 0 | BR84: 0 | BS84: 0 | BT84: =BT80*BT83 -> 0 | BU84: 0 | BV84: 0 | BW84: 0 | BX84: 0 | BY84: 0 | BZ84: 0 | CA84: 0 | CB84: 0 | CC84: 0 | CD84: 0 | CE84: 0 | CF84: 0 | CG84: 0 | CH84: 0 | CI84: 0 | CJ84: 0 | CK84: 0 | CL84: 0 | CM84: 0 | CN84: 0 | CO84: 0 | CP84: 0 | CQ84: 0 | CR84: 0 | CS84: 0 | CT84: 0 | CU84: 0 | CV84: 0 | CW84: 0 | CX84: 0 | CY84: 0 | CZ84: 0 | DA84: 0 | DB84: 0
D85: Inflation Index | E85: =S43 -> 0.02 | F85: 1 | G85: =F85*(1+$E$85) -> 1.02 | H85: 1.0404 | I85: 1.061208 | J85: 1.08243216 | K85: 1.104080803 | L85: 1.126162419 | M85: 1.148685668 | N85: 1.171659381 | O85: 1.195092569 | P85: 1.21899442 | Q85: 1.243374308 | R85: 1.268241795 | S85: 1.29360663 | T85: 1.319478763 | U85: 1.345868338 | V85: 1.372785705 | W85: 1.400241419 | X85: 1.428246248 | Y85: 1.456811173 | Z85: 1.485947396 | AA85: 1.515666344 | AB85: 1.545979671 | AC85: 1.576899264 | AD85: 1.608437249 | AE85: 1.640605994 | AF85: 1.673418114 | AG85: 1.706886477 | AH85: 1.741024206 | AI85: 1.77584469 | AJ85: 1.811361584 | AK85: 1.847588816 | AL85: 1.884540592 | AM85: 1.922231404 | AN85: 1.960676032 | AO85: 1.999889553 | AP85: 2.039887344 | AQ85: 2.080685091 | AR85: 2.122298792 | AS85: 2.164744768 | AT85: 2.208039664 | AU85: 2.252200457 | AV85: 2.297244466 | AW85: 2.343189355 | AX85: 2.390053142 | AY85: 2.437854205 | AZ85: 2.486611289 | BA85: 2.536343515 | BB85: 2.587070385 | BC85: 2.638811793 | BD85: 2.691588029 | BE85: 2.74541979 | BF85: 2.800328185 | BG85: 2.856334749 | BH85: 2.913461444 | BI85: 2.971730673 | BJ85: 3.031165286 | BK85: 3.091788592 | BL85: 3.153624364 | BM85: 3.216696851 | BN85: 3.281030788 | BO85: 3.346651404 | BP85: 3.413584432 | BQ85: 3.481856121 | BR85: 3.551493243 | BS85: =BR85*(1+$E$85) -> 3.622523108 | BT85: 3.69497357 | BU85: 3.768873042 | BV85: 3.844250503 | BW85: 3.921135513 | BX85: 3.999558223 | BY85: 4.079549387 | BZ85: 4.161140375 | CA85: 4.244363183 | CB85: 4.329250446 | CC85: 4.415835455 | CD85: 4.504152164 | CE85: 4.594235208 | CF85: 4.686119912 | CG85: 4.77984231 | CH85: 4.875439156 | CI85: 4.972947939 | CJ85: 5.072406898 | CK85: 5.173855036 | CL85: 5.277332137 | CM85: 5.382878779 | CN85: 5.490536355 | CO85: 5.600347082 | CP85: 5.712354024 | CQ85: 5.826601104 | CR85: 5.943133126 | CS85: 6.061995789 | CT85: 6.183235705 | CU85: 6.306900419 | CV85: 6.433038427 | CW85: 6.561699196 | CX85: 6.69293318 | CY85: 6.826791843 | CZ85: 6.96332768 | DA85: 7.102594234 | DB85: 7.244646118
D86: O&M Cost per year | E86: =S29 -> 513675.764 | G86: =$E$86*G85*G78 -> 523949.2793 | H86: 534428.2649 | I86: 545116.8302 | J86: 556019.1668 | K86: 567139.5501 | L86: 578482.3411 | M86: 590051.9879 | N86: 601853.0277 | O86: 613890.0882 | P86: 626167.89 | Q86: 638691.2478 | R86: 651465.0728 | S86: 664494.3742 | T86: 677784.2617 | U86: 691339.9469 | V86: 705166.7459 | W86: 719270.0808 | X86: 733655.4824 | Y86: 748328.5921 | Z86: 763295.1639 | AA86: 778561.0672 | AB86: 794132.2885 | AC86: 810014.9343 | AD86: 826215.233 | AE86: 842739.5376 | AF86: 859594.3284 | AG86: 876786.2149 | AH86: 894321.9392 | AI86: 912208.378 | AJ86: 930452.5456 | AK86: 0 | AL86: 0 | AM86: 0 | AN86: 0 | AO86: 0 | AP86: 0 | AQ86: 0 | AR86: 0 | AS86: 0 | AT86: 0 | AU86: 0 | AV86: 0 | AW86: 0 | AX86: 0 | AY86: 0 | AZ86: 0 | BA86: 0 | BB86: 0 | BC86: 0 | BD86: 0 | BE86: 0 | BF86: 0 | BG86: 0 | BH86: 0 | BI86: 0 | BJ86: 0 | BK86: 0 | BL86: 0 | BM86: 0 | BN86: 0 | BO86: 0 | BP86: 0 | BQ86: 0 | BR86: 0 | BS86: =$E$86*BS85*BS78 -> 0 | BT86: 0 | BU86: 0 | BV86: 0 | BW86: 0 | BX86: 0 | BY86: 0 | BZ86: 0 | CA86: 0 | CB86: 0 | CC86: 0 | CD86: 0 | CE86: 0 | CF86: 0 | CG86: 0 | CH86: 0 | CI86: 0 | CJ86: 0 | CK86: 0 | CL86: 0 | CM86: 0 | CN86: 0 | CO86: 0 | CP86: 0 | CQ86: 0 | CR86: 0 | CS86: 0 | CT86: 0 | CU86: 0 | CV86: 0 | CW86: 0 | CX86: 0 | CY86: 0 | CZ86: 0 | DA86: 0 | DB86: 0
D87: EBITDA | G87: =G84-G86 -> 25808565.72 | H87: =H84-H86 -> 25666424.16 | I87: 25524731.33 | J87: 25383479.75 | K87: 25242661.87 | L87: 25102270.08 | M87: 24962296.67 | N87: 24822733.88 | O87: 24683573.89 | P87: 24544808.77 | Q87: 24406430.53 | R87: 24268431.09 | S87: 24130802.31 | T87: 23993535.94 | U87: 23856623.65 | V87: 23720057.04 | W87: 23583827.58 | X87: 23447926.69 | Y87: 23312345.67 | Z87: 23177075.73 | AA87: 23042107.97 | AB87: 22907433.4 | AC87: 22773042.93 | AD87: 22638927.34 | AE87: 22505077.32 | AF87: 22371483.45 | AG87: 22238136.17 | AH87: 22105025.84 | AI87: 21972142.66 | AJ87: 21839476.74 | AK87: 0 | AL87: 0 | AM87: 0 | AN87: 0 | AO87: 0 | AP87: 0 | AQ87: 0 | AR87: 0 | AS87: 0 | AT87: 0 | AU87: 0 | AV87: 0 | AW87: 0 | AX87: 0 | AY87: 0 | AZ87: 0 | BA87: 0 | BB87: 0 | BC87: 0 | BD87: 0 | BE87: 0 | BF87: 0 | BG87: 0 | BH87: 0 | BI87: 0 | BJ87: 0 | BK87: 0 | BL87: 0 | BM87: 0 | BN87: 0 | BO87: 0 | BP87: 0 | BQ87: 0 | BR87: 0 | BS87: 0 | BT87: =BT84-BT86 -> 0 | BU87: 0 | BV87: 0 | BW87: 0 | BX87: 0 | BY87: 0 | BZ87: 0 | CA87: 0 | CB87: 0 | CC87: 0 | CD87: 0 | CE87: 0 | CF87: 0 | CG87: 0 | CH87: 0 | CI87: 0 | CJ87: 0 | CK87: 0 | CL87: 0 | CM87: 0 | CN87: 0 | CO87: 0 | CP87: 0 | CQ87: 0 | CR87: 0 | CS87: 0 | CT87: 0 | CU87: 0 | CV87: 0 | CW87: 0 | CX87: 0 | CY87: 0 | CZ87: 0 | DA87: 0 | DB87: 0
D88: Less: Tax Depreciation | E88: =S13 -> 400000 | G88: =$E$88*G211 -> 40000 | H88: 40000 | I88: 40000 | J88: 40000 | K88: 40000 | L88: 40000 | M88: 40000 | N88: 40000 | O88: 40000 | P88: 40000 | Q88: 0 | R88: 0 | S88: 0 | T88: 0 | U88: 0 | V88: 0 | W88: 0 | X88: 0 | Y88: 0 | Z88: 0 | AA88: 0 | AB88: 0 | AC88: 0 | AD88: 0 | AE88: 0 | AF88: 0 | AG88: 0 | AH88: 0 | AI88: 0 | AJ88: 0 | AK88: 0 | AL88: 0 | AM88: =$E$88*AM211 -> 0 | AN88: 0 | AO88: 0 | AP88: 0 | AQ88: 0 | AR88: 0 | AS88: 0 | AT88: 0 | AU88: 0 | AV88: 0 | AW88: 0 | AX88: 0 | AY88: 0 | AZ88: 0 | BA88: 0 | BB88: 0 | BC88: 0 | BD88: 0 | BE88: 0 | BF88: 0 | BG88: 0 | BH88: 0 | BI88: 0 | BJ88: 0 | BK88: 0 | BL88: 0 | BM88: 0 | BN88: 0 | BO88: 0 | BP88: 0 | BQ88: 0 | BR88: 0 | BS88: =$E$88*BS211 -> 0 | BT88: 0 | BU88: 0 | BV88: 0 | BW88: 0 | BX88: 0 | BY88: 0 | BZ88: 0 | CA88: 0 | CB88: 0 | CC88: 0 | CD88: 0 | CE88: 0 | CF88: 0 | CG88: 0 | CH88: 0 | CI88: 0 | CJ88: 0 | CK88: 0 | CL88: 0 | CM88: 0 | CN88: 0 | CO88: 0 | CP88: 0 | CQ88: 0 | CR88: 0 | CS88: 0 | CT88: 0 | CU88: 0 | CV88: 0 | CW88: 0 | CX88: 0 | CY88: 0 | CZ88: 0 | DA88: 0 | DB88: 0
D89: Less: Interest | E89: FALSE | G89: =G130*$E$89 -> 0 | H89: 0 | I89: 0 | J89: 0 | K89: 0 | L89: 0 | M89: 0 | N89: 0 | O89: 0 | P89: 0 | Q89: 0 | R89: 0 | S89: 0 | T89: 0 | U89: 0 | V89: 0 | W89: 0 | X89: 0 | Y89: 0 | Z89: 0 | AA89: 0 | AB89: 0 | AC89: 0 | AD89: 0 | AE89: 0 | AF89: 0 | AG89: 0 | AH89: 0 | AI89: 0 | AJ89: 0 | AK89: 0 | AL89: 0 | AM89: 0 | AN89: 0 | AO89: 0 | AP89: 0 | AQ89: 0 | AR89: 0 | AS89: 0 | AT89: 0 | AU89: 0 | AV89: 0 | AW89: 0 | AX89: 0 | AY89: 0 | AZ89: 0 | BA89: 0 | BB89: 0 | BC89: 0 | BD89: 0 | BE89: 0 | BF89: 0 | BG89: 0 | BH89: 0 | BI89: 0 | BJ89: 0 | BK89: 0 | BL89: 0 | BM89: 0 | BN89: 0 | BO89: 0 | BP89: 0 | BQ89: 0 | BR89: 0 | BS89: =BS130*$E$89 -> 0 | BT89: 0 | BU89: 0 | BV89: 0 | BW89: 0 | BX89: 0 | BY89: 0 | BZ89: 0 | CA89: 0 | CB89: 0 | CC89: 0 | CD89: 0 | CE89: 0 | CF89: 0 | CG89: 0 | CH89: 0 | CI89: 0 | CJ89: 0 | CK89: 0 | CL89: 0 | CM89: 0 | CN89: 0 | CO89: 0 | CP89: 0 | CQ89: 0 | CR89: 0 | CS89: 0 | CT89: 0 | CU89: 0 | CV89: 0 | CW89: 0 | CX89: 0 | CY89: 0 | CZ89: 0 | DA89: 0 | DB89: 0
D90: Taxable Income | G90: =G87-G88-G89 -> 25768565.72 | H90: =H87-H88-H89 -> 25626424.16 | I90: 25484731.33 | J90: 25343479.75 | K90: 25202661.87 | L90: 25062270.08 | M90: 24922296.67 | N90: 24782733.88 | O90: 24643573.89 | P90: 24504808.77 | Q90: 24406430.53 | R90: 24268431.09 | S90: 24130802.31 | T90: 23993535.94 | U90: 23856623.65 | V90: 23720057.04 | W90: 23583827.58 | X90: 23447926.69 | Y90: 23312345.67 | Z90: 23177075.73 | AA90: 23042107.97 | AB90: 22907433.4 | AC90: 22773042.93 | AD90: 22638927.34 | AE90: 22505077.32 | AF90: 22371483.45 | AG90: 22238136.17 | AH90: 22105025.84 | AI90: 21972142.66 | AJ90: 21839476.74 | AK90: 0 | AL90: 0 | AM90: 0 | AN90: 0 | AO90: 0 | AP90: 0 | AQ90: 0 | AR90: 0 | AS90: 0 | AT90: 0 | AU90: 0 | AV90: 0 | AW90: 0 | AX90: 0 | AY90: 0 | AZ90: 0 | BA90: 0 | BB90: 0 | BC90: 0 | BD90: 0 | BE90: 0 | BF90: 0 | BG90: 0 | BH90: 0 | BI90: 0 | BJ90: 0 | BK90: 0 | BL90: 0 | BM90: 0 | BN90: 0 | BO90: 0 | BP90: 0 | BQ90: 0 | BR90: 0 | BS90: 0 | BT90: =BT87-BT88-BT89 -> 0 | BU90: 0 | BV90: 0 | BW90: 0 | BX90: 0 | BY90: 0 | BZ90: 0 | CA90: 0 | CB90: 0 | CC90: 0 | CD90: 0 | CE90: 0 | CF90: 0 | CG90: 0 | CH90: 0 | CI90: 0 | CJ90: 0 | CK90: 0 | CL90: 0 | CM90: 0 | CN90: 0 | CO90: 0 | CP90: 0 | CQ90: 0 | CR90: 0 | CS90: 0 | CT90: 0 | CU90: 0 | CV90: 0 | CW90: 0 | CX90: 0 | CY90: 0 | CZ90: 0 | DA90: 0 | DB90: 0
D91: Taxes | E91: =S37 -> 0.25 | G91: =G90*$E$91 -> 6442141.429 | H91: 6406606.039 | I91: 6371182.832 | J91: 6335869.938 | K91: 6300665.468 | L91: 6265567.519 | M91: 6230574.167 | N91: 6195683.471 | O91: 6160893.472 | P91: 6126202.192 | Q91: 6101607.631 | R91: 6067107.773 | S91: 6032700.577 | T91: 5998383.985 | U91: 5964155.913 | V91: 5930014.259 | W91: 5895956.895 | X91: 5861981.673 | Y91: 5828086.418 | Z91: 5794268.932 | AA91: 5760526.992 | AB91: 5726858.351 | AC91: 5693260.732 | AD91: 5659731.835 | AE91: 5626269.331 | AF91: 5592870.862 | AG91: 5559534.043 | AH91: 5526256.459 | AI91: 5493035.665 | AJ91: 5459869.184 | AK91: 0 | AL91: 0 | AM91: 0 | AN91: 0 | AO91: 0 | AP91: 0 | AQ91: 0 | AR91: 0 | AS91: 0 | AT91: 0 | AU91: 0 | AV91: 0 | AW91: 0 | AX91: 0 | AY91: 0 | AZ91: 0 | BA91: 0 | BB91: 0 | BC91: 0 | BD91: 0 | BE91: 0 | BF91: 0 | BG91: 0 | BH91: 0 | BI91: 0 | BJ91: 0 | BK91: 0 | BL91: 0 | BM91: 0 | BN91: 0 | BO91: 0 | BP91: 0 | BQ91: 0 | BR91: 0 | BS91: =BS90*$E$91 -> 0 | BT91: 0 | BU91: 0 | BV91: 0 | BW91: 0 | BX91: 0 | BY91: 0 | BZ91: 0 | CA91: 0 | CB91: 0 | CC91: 0 | CD91: 0 | CE91: 0 | CF91: 0 | CG91: 0 | CH91: 0 | CI91: 0 | CJ91: 0 | CK91: 0 | CL91: 0 | CM91: 0 | CN91: 0 | CO91: 0 | CP91: 0 | CQ91: 0 | CR91: 0 | CS91: 0 | CT91: 0 | CU91: 0 | CV91: 0 | CW91: 0 | CX91: 0 | CY91: 0 | CZ91: 0 | DA91: 0 | DB91: 0
D92: Less: Debt Service | G92: =G130+G128 -> 7276.48725 | H92: =H130+H128 -> 7240.309666 | I92: 7204.316775 | J92: 7168.507732 | K92: 7132.881695 | L92: 7097.437852 | M92: 7062.176557 | N92: 7027.155435 | O92: 6995.261784 | P92: 7109.198176 | Q92: 6920.017342 | R92: 6885.649263 | S92: 6851.457665 | T92: 6817.441758 | U92: 6783.600758 | V92: 6749.933887 | W92: 6716.440373 | X92: 6683.11945 | Y92: 6649.970357 | Z92: 6616.992339 | AA92: 6584.184648 | AB92: 6551.546542 | AC92: 6519.077282 | AD92: 6486.776154 | AE92: 6454.643222 | AF92: 6422.71674 | AG92: 6392.921663 | AH92: 6460.4057 | AI92: 11326.50427 | AJ92: 253286.8474 | AK92: 0 | AL92: 0 | AM92: 0 | AN92: 0 | AO92: 0 | AP92: 0 | AQ92: 0 | AR92: 0 | AS92: 0 | AT92: 0 | AU92: 0 | AV92: 0 | AW92: 0 | AX92: 0 | AY92: 0 | AZ92: 0 | BA92: 0 | BB92: 0 | BC92: 0 | BD92: 0 | BE92: 0 | BF92: 0 | BG92: 0 | BH92: 0 | BI92: 0 | BJ92: 0 | BK92: 0 | BL92: 0 | BM92: 0 | BN92: 0 | BO92: 0 | BP92: 0 | BQ92: 0 | BR92: 0 | BS92: 0 | BT92: =BT130+BT128 -> 0 | BU92: 0 | BV92: 0 | BW92: 0 | BX92: 0 | BY92: 0 | BZ92: 0 | CA92: 0 | CB92: 0 | CC92: 0 | CD92: 0 | CE92: 0 | CF92: 0 | CG92: 0 | CH92: 0 | CI92: 0 | CJ92: 0 | CK92: 0 | CL92: 0 | CM92: 0 | CN92: 0 | CO92: 0 | CP92: 0 | CQ92: 0 | CR92: 0 | CS92: 0 | CT92: 0 | CU92: 0 | CV92: 0 | CW92: 0 | CX92: 0 | CY92: 0 | CZ92: 0 | DA92: 0 | DB92: 0
D93: Capital Expenditure | F93: =-G13 -> -400000
D94: Equity Cash Flow | F94: =-F120 -> -100000 | G94: =G87-G91-G92 -> 19359147.8 | H94: =H87-H91-H92 -> 19252577.81 | I94: 19146344.18 | J94: 19040441.31 | K94: 18934863.52 | L94: 18829605.12 | M94: 18724660.32 | N94: 18620023.26 | O94: 18515685.15 | P94: 18411497.38 | Q94: 18297902.88 | R94: 18194437.67 | S94: 18091250.27 | T94: 17988334.51 | U94: 17885684.14 | V94: 17783292.84 | W94: 17681154.25 | X94: 17579261.9 | Y94: 17477609.28 | Z94: 17376189.8 | AA94: 17274996.79 | AB94: 17174023.51 | AC94: 17073263.12 | AD94: 16972708.73 | AE94: 16872353.35 | AF94: 16772189.87 | AG94: 16672209.21 | AH94: 16572308.97 | AI94: 16467780.49 | AJ94: 16126320.7 | AK94: 0 | AL94: 0 | AM94: 0 | AN94: 0 | AO94: 0 | AP94: 0 | AQ94: 0 | AR94: 0 | AS94: 0 | AT94: 0 | AU94: 0 | AV94: 0 | AW94: 0 | AX94: 0 | AY94: 0 | AZ94: 0 | BA94: 0 | BB94: 0 | BC94: 0 | BD94: 0 | BE94: 0 | BF94: 0 | BG94: 0 | BH94: 0 | BI94: 0 | BJ94: 0 | BK94: 0 | BL94: 0 | BM94: 0 | BN94: 0 | BO94: 0 | BP94: 0 | BQ94: 0 | BR94: 0 | BS94: 0 | BT94: =BT87-BT91-BT92 -> 0 | BU94: 0 | BV94: 0 | BW94: 0 | BX94: 0 | BY94: 0 | BZ94: 0 | CA94: 0 | CB94: 0 | CC94: 0 | CD94: 0 | CE94: 0 | CF94: 0 | CG94: 0 | CH94: 0 | CI94: 0 | CJ94: 0 | CK94: 0 | CL94: 0 | CM94: 0 | CN94: 0 | CO94: 0 | CP94: 0 | CQ94: 0 | CR94: 0 | CS94: 0 | CT94: 0 | CU94: 0 | CV94: 0 | CW94: 0 | CX94: 0 | CY94: 0 | CZ94: 0 | DA94: 0 | DB94: 0
D95: Equity IRR | F95: =IRR(F94:DB94) -> 193.585973 | G95: Target | H95: =S49 -> 0.07 | I95: Test | J95: =ROUND(H95-F95,3)=0 -> FALSE
D97: Project Cash Flow Pre-tax | F97: =F87+F93 -> -400000 | G97: =G87+G93 -> 25808565.72 | H97: 25666424.16 | I97: 25524731.33 | J97: 25383479.75 | K97: 25242661.87 | L97: 25102270.08 | M97: 24962296.67 | N97: 24822733.88 | O97: 24683573.89 | P97: 24544808.77 | Q97: 24406430.53 | R97: 24268431.09 | S97: 24130802.31 | T97: 23993535.94 | U97: 23856623.65 | V97: 23720057.04 | W97: 23583827.58 | X97: 23447926.69 | Y97: 23312345.67 | Z97: 23177075.73 | AA97: 23042107.97 | AB97: 22907433.4 | AC97: 22773042.93 | AD97: 22638927.34 | AE97: 22505077.32 | AF97: 22371483.45 | AG97: 22238136.17 | AH97: 22105025.84 | AI97: 21972142.66 | AJ97: 21839476.74 | AK97: 0 | AL97: 0 | AM97: 0 | AN97: 0 | AO97: 0 | AP97: 0 | AQ97: 0 | AR97: 0 | AS97: 0 | AT97: 0 | AU97: 0 | AV97: 0 | AW97: 0 | AX97: 0 | AY97: 0 | AZ97: 0 | BA97: 0 | BB97: 0 | BC97: 0 | BD97: 0 | BE97: 0 | BF97: 0 | BG97: 0 | BH97: 0 | BI97: 0 | BJ97: 0 | BK97: 0 | BL97: 0 | BM97: 0 | BN97: 0 | BO97: 0 | BP97: 0 | BQ97: 0 | BR97: 0 | BS97: =BS87+BS93 -> 0 | BT97: 0 | BU97: 0 | BV97: 0 | BW97: 0 | BX97: 0 | BY97: 0 | BZ97: 0 | CA97: 0 | CB97: 0 | CC97: 0 | CD97: 0 | CE97: 0 | CF97: 0 | CG97: 0 | CH97: 0 | CI97: 0 | CJ97: 0 | CK97: 0 | CL97: 0 | CM97: 0 | CN97: 0 | CO97: 0 | CP97: 0 | CQ97: 0 | CR97: 0 | CS97: 0 | CT97: 0 | CU97: 0 | CV97: 0 | CW97: 0 | CX97: 0 | CY97: 0 | CZ97: 0 | DA97: 0 | DB97: 0
D98: Pre-tax IRR | F98: =IRR(97:97) -> 64.51590656
D99: Project After-tax Cash Flow | F99: =F97 -> -400000 | G99: =G87-(G87-G88)*$E$91 -> 19366424.29 | H99: 19259818.12 | I99: 19153548.5 | J99: 19047609.81 | K99: 18941996.4 | L99: 18836702.56 | M99: 18731722.5 | N99: 18627050.41 | O99: 18522680.42 | P99: 18418606.57 | Q99: 18304822.89 | R99: 18201323.32 | S99: 18098101.73 | T99: 17995151.95 | U99: 17892467.74 | V99: 17790042.78 | W99: 17687870.69 | X99: 17585945.02 | Y99: 17484259.25 | Z99: 17382806.8 | AA99: 17281580.98 | AB99: 17180575.05 | AC99: 17079782.2 | AD99: 16979195.51 | AE99: 16878807.99 | AF99: 16778612.59 | AG99: 16678602.13 | AH99: 16578769.38 | AI99: 16479106.99 | AJ99: 16379607.55 | AK99: 0 | AL99: 0 | AM99: 0 | AN99: 0 | AO99: 0 | AP99: 0 | AQ99: 0 | AR99: 0 | AS99: 0 | AT99: 0 | AU99: 0 | AV99: 0 | AW99: 0 | AX99: 0 | AY99: 0 | AZ99: 0 | BA99: 0 | BB99: 0 | BC99: 0 | BD99: 0 | BE99: 0 | BF99: 0 | BG99: 0 | BH99: 0 | BI99: 0 | BJ99: 0 | BK99: 0 | BL99: 0 | BM99: 0 | BN99: 0 | BO99: 0 | BP99: 0 | BQ99: 0 | BR99: 0 | BS99: =BS87-(BS87-BS88)*$E$91 -> 0 | BT99: 0 | BU99: 0 | BV99: 0 | BW99: 0 | BX99: 0 | BY99: 0 | BZ99: 0 | CA99: 0 | CB99: 0 | CC99: 0 | CD99: 0 | CE99: 0 | CF99: 0 | CG99: 0 | CH99: 0 | CI99: 0 | CJ99: 0 | CK99: 0 | CL99: 0 | CM99: 0 | CN99: 0 | CO99: 0 | CP99: 0 | CQ99: 0 | CR99: 0 | CS99: 0 | CT99: 0 | CU99: 0 | CV99: 0 | CW99: 0 | CX99: 0 | CY99: 0 | CZ99: 0 | DA99: 0 | DB99: 0
D100: After-tax IRR | F100: =IFERROR(IRR(F99:DB99),0.1) -> 48.41055576
C102: Asset Balance
D103: Straight Line Depreciation | E103: =S35 -> 30 | F103: =-F93 -> 400000 | G103: =$F$103/$E$103*G78 -> 13333.33333 | H103: 13333.33333 | I103: 13333.33333 | J103: 13333.33333 | K103: 13333.33333 | L103: 13333.33333 | M103: 13333.33333 | N103: 13333.33333 | O103: 13333.33333 | P103: 13333.33333 | Q103: 13333.33333 | R103: 13333.33333 | S103: 13333.33333 | T103: 13333.33333 | U103: 13333.33333 | V103: 13333.33333 | W103: 13333.33333 | X103: 13333.33333 | Y103: 13333.33333 | Z103: 13333.33333 | AA103: 13333.33333 | AB103: 13333.33333 | AC103: 13333.33333 | AD103: 13333.33333 | AE103: 13333.33333 | AF103: 13333.33333 | AG103: 13333.33333 | AH103: 13333.33333 | AI103: 13333.33333 | AJ103: 13333.33333 | AK103: 0 | AL103: 0 | AM103: 0 | AN103: 0 | AO103: 0 | AP103: 0 | AQ103: 0 | AR103: 0 | AS103: 0 | AT103: 0 | AU103: 0 | AV103: 0 | AW103: 0 | AX103: 0 | AY103: 0 | AZ103: 0 | BA103: 0 | BB103: 0 | BC103: 0 | BD103: 0 | BE103: 0 | BF103: 0 | BG103: 0 | BH103: 0 | BI103: 0 | BJ103: 0 | BK103: 0 | BL103: 0 | BM103: 0 | BN103: 0 | BO103: 0 | BP103: 0 | BQ103: 0 | BR103: 0 | BS103: =$F$103/$E$103*BS78 -> 0 | BT103: 0 | BU103: 0 | BV103: 0 | BW103: 0 | BX103: 0 | BY103: 0 | BZ103: 0 | CA103: 0 | CB103: 0 | CC103: 0 | CD103: 0 | CE103: 0 | CF103: 0 | CG103: 0 | CH103: 0 | CI103: 0 | CJ103: 0 | CK103: 0 | CL103: 0 | CM103: 0 | CN103: 0 | CO103: 0 | CP103: 0 | CQ103: 0 | CR103: 0 | CS103: 0 | CT103: 0 | CU103: 0 | CV103: 0 | CW103: 0 | CX103: 0 | CY103: 0 | CZ103: 0 | DA103: 0 | DB103: 0
D104: NPV of Future Project Cash Flow | F104: =NPV($F$100,G99:DB99) -> 400000 | G104: 397798.017 | H104: 395602.9836 | I104: 393414.7838 | J104: 391233.3007 | K104: 389058.4162 | L104: 386890.011 | M104: 384727.9633 | N104: 382572.0721 | O104: 380418.2827 | P104: 378072.1946 | Q104: 375934.3584 | R104: 373802.262 | S104: 371675.7775 | T104: 369554.776 | U104: 367439.127 | V104: 365328.6988 | W104: 363223.3581 | X104: 361122.9701 | Y104: 359027.3987 | Z104: 356936.5059 | AA104: 354850.1526 | AB104: 352768.1975 | AC104: 350690.4982 | AD104: 348616.9102 | AE104: 346547.2863 | AF104: 344481.4256 | AG104: 342416.5567 | AH104: 340222.9929 | AI104: 331500.1683 | AJ104: 0 | AK104: 0 | AL104: 0 | AM104: 0 | AN104: 0 | AO104: 0 | AP104: 0 | AQ104: 0 | AR104: 0 | AS104: 0 | AT104: 0 | AU104: 0 | AV104: 0 | AW104: 0 | AX104: 0 | AY104: 0 | AZ104: 0 | BA104: 0 | BB104: 0 | BC104: 0 | BD104: 0 | BE104: 0 | BF104: 0 | BG104: 0 | BH104: 0 | BI104: 0 | BJ104: 0 | BK104: 0 | BL104: 0 | BM104: 0 | BN104: 0 | BO104: 0 | BP104: 0 | BQ104: 0 | BR104: =NPV($F$100,BS99:FN99) -> 0 | BS104: 0 | BT104: 0 | BU104: 0 | BV104: 0 | BW104: 0 | BX104: 0 | BY104: 0 | BZ104: 0 | CA104: 0 | CB104: 0 | CC104: 0 | CD104: 0 | CE104: 0 | CF104: 0 | CG104: 0 | CH104: 0 | CI104: 0 | CJ104: 0 | CK104: 0 | CL104: 0 | CM104: 0 | CN104: 0 | CO104: 0 | CP104: 0 | CQ104: 0 | CR104: 0 | CS104: 0 | CT104: 0 | CU104: 0 | CV104: 0 | CW104: 0 | CX104: 0 | CY104: 0 | CZ104: 0 | DA104: 0 | DB104: 0
D105: Economic Depreciation from NPV of After Tax Cash Flow | G105: =F104-G104 -> 2201.983 | H105: =G104-H104 -> 2195.033402 | I105: 2188.199758 | J105: 2181.483113 | K105: 2174.884538 | L105: 2168.405166 | M105: 2162.047702 | N105: 2155.891268 | O105: =N104-O104 -> 2153.789361 | P105: 2346.088101 | Q105: 2137.836141 | R105: 2132.096463 | S105: 2126.484474 | T105: 2121.001515 | U105: 2115.64896 | V105: 2110.428217 | W105: 2105.340728 | X105: 2100.387969 | Y105: 2095.571452 | Z105: 2090.892727 | AA105: 2086.353378 | AB105: 2081.955028 | AC105: 2077.699339 | AD105: 2073.588031 | AE105: 2069.623898 | AF105: 2065.860702 | AG105: 2064.868821 | AH105: 2193.563828 | AI105: 8722.824582 | AJ105: 331500.1683 | AK105: 0 | AL105: 0 | AM105: 0 | AN105: 0 | AO105: 0 | AP105: 0 | AQ105: 0 | AR105: 0 | AS105: 0 | AT105: 0 | AU105: 0 | AV105: 0 | AW105: 0 | AX105: 0 | AY105: 0 | AZ105: 0 | BA105: 0 | BB105: 0 | BC105: 0 | BD105: 0 | BE105: 0 | BF105: 0 | BG105: 0 | BH105: 0 | BI105: 0 | BJ105: 0 | BK105: 0 | BL105: 0 | BM105: 0 | BN105: 0 | BO105: 0 | BP105: 0 | BQ105: 0 | BR105: 0 | BS105: 0 | BT105: =BS104-BT104 -> 0 | BU105: 0 | BV105: 0 | BW105: 0 | BX105: 0 | BY105: 0 | BZ105: 0 | CA105: 0 | CB105: 0 | CC105: 0 | CD105: 0 | CE105: 0 | CF105: 0 | CG105: 0 | CH105: 0 | CI105: 0 | CJ105: 0 | CK105: 0 | CL105: 0 | CM105: 0 | CN105: 0 | CO105: 0 | CP105: 0 | CQ105: 0 | CR105: 0 | CS105: 0 | CT105: 0 | CU105: 0 | CV105: 0 | CW105: 0 | CX105: 0 | CY105: 0 | CZ105: 0 | DA105: 0 | DB105: 0
D107: Income with Straight Line Depreciation | E107: =SUM(G107:DB107) -> 535223592.1 | G107: =G87-G103-G89-G91 -> 19353090.95 | H107: =H87-H103-H89-H91 -> 19246484.78 | I107: 19140215.16 | J107: 19034276.48 | K107: 18928663.07 | L107: 18823369.22 | M107: 18718389.17 | N107: 18613717.08 | O107: 18509347.08 | P107: 18405273.24 | Q107: 18291489.56 | R107: 18187989.99 | S107: 18084768.4 | T107: 17981818.62 | U107: 17879134.41 | V107: 17776709.44 | W107: 17674537.35 | X107: 17572611.69 | Y107: 17470925.92 | Z107: 17369473.46 | AA107: 17268247.64 | AB107: 17167241.72 | AC107: 17066448.86 | AD107: 16965862.17 | AE107: 16865474.66 | AF107: 16765279.25 | AG107: 16665268.8 | AH107: 16565436.04 | AI107: 16465773.66 | AJ107: 16366274.22 | AK107: 0 | AL107: 0 | AM107: 0 | AN107: 0 | AO107: 0 | AP107: 0 | AQ107: 0 | AR107: 0 | AS107: 0 | AT107: 0 | AU107: 0 | AV107: 0 | AW107: 0 | AX107: 0 | AY107: 0 | AZ107: 0 | BA107: 0 | BB107: 0 | BC107: 0 | BD107: 0 | BE107: 0 | BF107: 0 | BG107: 0 | BH107: 0 | BI107: 0 | BJ107: 0 | BK107: 0 | BL107: 0 | BM107: 0 | BN107: 0 | BO107: 0 | BP107: 0 | BQ107: 0 | BR107: 0 | BS107: 0 | BT107: =BT87-BT103-BT89-BT91 -> 0 | BU107: 0 | BV107: 0 | BW107: 0 | BX107: 0 | BY107: 0 | BZ107: 0 | CA107: 0 | CB107: 0 | CC107: 0 | CD107: 0 | CE107: 0 | CF107: 0 | CG107: 0 | CH107: 0 | CI107: 0 | CJ107: 0 | CK107: 0 | CL107: 0 | CM107: 0 | CN107: 0 | CO107: 0 | CP107: 0 | CQ107: 0 | CR107: 0 | CS107: 0 | CT107: 0 | CU107: 0 | CV107: 0 | CW107: 0 | CX107: 0 | CY107: 0 | CZ107: 0 | DA107: 0 | DB107: 0
D108: Income with Economic Depreciation | E108: =SUM(G108:DB108) -> 535068118.1 | G108: =(G87-G105-G89)*(1-$E$115)+G115-G130 -> 19358597.3 | H108: 19252029.05 | I108: 19145797.13 | J108: 19039895.93 | K108: 18934319.8 | L108: 18829063.02 | M108: 18724119.81 | N108: 18619484.28 | O108: 18515146.71 | P108: 18410910.85 | Q108: 18297368.42 | R108: 18193904.65 | S108: 18090718.65 | T108: 17987804.26 | U108: 17885155.23 | V108: 17782765.24 | W108: 17680627.91 | X108: 17578736.8 | Y108: 17477085.39 | Z108: 17375667.08 | AA108: 17274475.2 | AB108: 17173503.02 | AC108: 17072743.69 | AD108: 16972190.33 | AE108: 16871835.94 | AF108: 16771673.4 | AG108: 16671692.99 | AH108: 16571760.58 | AI108: 16465599.78 | AJ108: 16043445.66 | AK108: 0 | AL108: 0 | AM108: 0 | AN108: 0 | AO108: 0 | AP108: 0 | AQ108: 0 | AR108: 0 | AS108: 0 | AT108: 0 | AU108: 0 | AV108: 0 | AW108: 0 | AX108: 0 | AY108: 0 | AZ108: 0 | BA108: 0 | BB108: 0 | BC108: 0 | BD108: 0 | BE108: 0 | BF108: 0 | BG108: 0 | BH108: 0 | BI108: 0 | BJ108: 0 | BK108: 0 | BL108: 0 | BM108: 0 | BN108: 0 | BO108: 0 | BP108: 0 | BQ108: 0 | BR108: 0 | BS108: =(BS87-BS105-BS89)*(1-$E$115)+BS115-BS130 -> 0 | BT108: 0 | BU108: 0 | BV108: 0 | BW108: 0 | BX108: 0 | BY108: 0 | BZ108: 0 | CA108: 0 | CB108: 0 | CC108: 0 | CD108: 0 | CE108: 0 | CF108: 0 | CG108: 0 | CH108: 0 | CI108: 0 | CJ108: 0 | CK108: 0 | CL108: 0 | CM108: 0 | CN108: 0 | CO108: 0 | CP108: 0 | CQ108: 0 | CR108: 0 | CS108: 0 | CT108: 0 | CU108: 0 | CV108: 0 | CW108: 0 | CX108: 0 | CY108: 0 | CZ108: 0 | DA108: 0 | DB108: 0
D110: Gross Plant | F110: =F103 -> 400000 | G110: =F110 -> 400000 | H110: =G110 -> 400000 | I110: 400000 | J110: 400000 | K110: 400000 | L110: 400000 | M110: 400000 | N110: 400000 | O110: =N110 -> 400000 | P110: 400000 | Q110: 400000 | R110: 400000 | S110: 400000 | T110: 400000 | U110: 400000 | V110: 400000 | W110: 400000 | X110: 400000 | Y110: 400000 | Z110: 400000 | AA110: 400000 | AB110: 400000 | AC110: 400000 | AD110: 400000 | AE110: 400000 | AF110: 400000 | AG110: 400000 | AH110: 400000 | AI110: 400000 | AJ110: 400000 | AK110: 400000 | AL110: 400000 | AM110: 400000 | AN110: 400000 | AO110: 400000 | AP110: 400000 | AQ110: 400000 | AR110: 400000 | AS110: 400000 | AT110: 400000 | AU110: 400000 | AV110: 400000 | AW110: 400000 | AX110: 400000 | AY110: 400000 | AZ110: 400000 | BA110: 400000 | BB110: 400000 | BC110: 400000 | BD110: 400000 | BE110: 400000 | BF110: 400000 | BG110: 400000 | BH110: 400000 | BI110: 400000 | BJ110: 400000 | BK110: 400000 | BL110: 400000 | BM110: 400000 | BN110: 400000 | BO110: 400000 | BP110: 400000 | BQ110: 400000 | BR110: 400000 | BS110: 400000 | BT110: =BS110 -> 400000 | BU110: 400000 | BV110: 400000 | BW110: 400000 | BX110: 400000 | BY110: 400000 | BZ110: 400000 | CA110: 400000 | CB110: 400000 | CC110: 400000 | CD110: 400000 | CE110: 400000 | CF110: 400000 | CG110: 400000 | CH110: 400000 | CI110: 400000 | CJ110: 400000 | CK110: 400000 | CL110: 400000 | CM110: 400000 | CN110: 400000 | CO110: 400000 | CP110: 400000 | CQ110: 400000 | CR110: 400000 | CS110: 400000 | CT110: 400000 | CU110: 400000 | CV110: 400000 | CW110: 400000 | CX110: 400000 | CY110: 400000 | CZ110: 400000 | DA110: 400000 | DB110: 400000
D111: Less: Accumulated Depreciation | G111: =F111+G105 -> 2201.983 | H111: =G111+H105 -> 4397.016402 | I111: 6585.21616 | J111: 8766.699273 | K111: 10941.58381 | L111: 13109.98898 | M111: 15272.03668 | N111: 17427.92795 | O111: =N111+O105 -> 19581.71731 | P111: 21927.80541 | Q111: 24065.64155 | R111: 26197.73801 | S111: 28324.22249 | T111: 30445.224 | U111: 32560.87296 | V111: 34671.30118 | W111: 36776.64191 | X111: 38877.02988 | Y111: 40972.60133 | Z111: 43063.49406 | AA111: 45149.84743 | AB111: 47231.80246 | AC111: 49309.5018 | AD111: 51383.08983 | AE111: 53452.71373 | AF111: 55518.57443 | AG111: 57583.44325 | AH111: 59777.00708 | AI111: 68499.83166 | AJ111: 400000 | AK111: 400000 | AL111: 400000 | AM111: 400000 | AN111: 400000 | AO111: 400000 | AP111: 400000 | AQ111: 400000 | AR111: 400000 | AS111: 400000 | AT111: 400000 | AU111: 400000 | AV111: 400000 | AW111: 400000 | AX111: 400000 | AY111: 400000 | AZ111: 400000 | BA111: 400000 | BB111: 400000 | BC111: 400000 | BD111: 400000 | BE111: 400000 | BF111: 400000 | BG111: 400000 | BH111: 400000 | BI111: 400000 | BJ111: 400000 | BK111: 400000 | BL111: 400000 | BM111: 400000 | BN111: 400000 | BO111: 400000 | BP111: 400000 | BQ111: 400000 | BR111: 400000 | BS111: 400000 | BT111: =BS111+BT105 -> 400000 | BU111: 400000 | BV111: 400000 | BW111: 400000 | BX111: 400000 | BY111: 400000 | BZ111: 400000 | CA111: 400000 | CB111: 400000 | CC111: 400000 | CD111: 400000 | CE111: 400000 | CF111: 400000 | CG111: 400000 | CH111: 400000 | CI111: 400000 | CJ111: 400000 | CK111: 400000 | CL111: 400000 | CM111: 400000 | CN111: 400000 | CO111: 400000 | CP111: 400000 | CQ111: 400000 | CR111: 400000 | CS111: 400000 | CT111: 400000 | CU111: 400000 | CV111: 400000 | CW111: 400000 | CX111: 400000 | CY111: 400000 | CZ111: 400000 | DA111: 400000 | DB111: 400000
D112: Net Plant | F112: =F110-F111 -> 400000 | G112: =G110-G111 -> 397798.017 | H112: =H110-H111 -> 395602.9836 | I112: 393414.7838 | J112: 391233.3007 | K112: 389058.4162 | L112: 386890.011 | M112: 384727.9633 | N112: 382572.0721 | O112: 380418.2827 | P112: 378072.1946 | Q112: 375934.3584 | R112: 373802.262 | S112: 371675.7775 | T112: 369554.776 | U112: 367439.127 | V112: 365328.6988 | W112: 363223.3581 | X112: 361122.9701 | Y112: 359027.3987 | Z112: 356936.5059 | AA112: 354850.1526 | AB112: 352768.1975 | AC112: 350690.4982 | AD112: 348616.9102 | AE112: 346547.2863 | AF112: 344481.4256 | AG112: 342416.5567 | AH112: 340222.9929 | AI112: 331500.1683 | AJ112: 0 | AK112: 0 | AL112: 0 | AM112: 0 | AN112: 0 | AO112: 0 | AP112: 0 | AQ112: 0 | AR112: 0 | AS112: 0 | AT112: 0 | AU112: 0 | AV112: 0 | AW112: 0 | AX112: 0 | AY112: 0 | AZ112: 0 | BA112: 0 | BB112: 0 | BC112: 0 | BD112: 0 | BE112: 0 | BF112: 0 | BG112: 0 | BH112: 0 | BI112: 0 | BJ112: 0 | BK112: 0 | BL112: 0 | BM112: 0 | BN112: 0 | BO112: 0 | BP112: 0 | BQ112: 0 | BR112: 0 | BS112: 0 | BT112: =BT110-BT111 -> 0 | BU112: 0 | BV112: 0 | BW112: 0 | BX112: 0 | BY112: 0 | BZ112: 0 | CA112: 0 | CB112: 0 | CC112: 0 | CD112: 0 | CE112: 0 | CF112: 0 | CG112: 0 | CH112: 0 | CI112: 0 | CJ112: 0 | CK112: 0 | CL112: 0 | CM112: 0 | CN112: 0 | CO112: 0 | CP112: 0 | CQ112: 0 | CR112: 0 | CS112: 0 | CT112: 0 | CU112: 0 | CV112: 0 | CW112: 0 | CX112: 0 | CY112: 0 | CZ112: 0 | DA112: 0 | DB112: 0
C114: Capital Balance
D115: Deferred Taxes | E115: =S37 -> 0.25 | G115: =(G88-G105)*$E$115 -> 9449.50425 | H115: 9451.241649 | I115: 9452.95006 | J115: 9454.629222 | K115: 9456.278865 | L115: 9457.898708 | M115: 9459.488074 | N115: 9461.027183 | O115: 9461.55266 | P115: 9413.477975 | Q115: -534.4590351 | R115: -533.0241158 | S115: -531.6211186 | T115: -530.2503788 | U115: -528.91224 | V115: -527.6070542 | W115: -526.3351819 | X115: -525.0969921 | Y115: -523.8928631 | Z115: -522.7231818 | AA115: -521.5883445 | AB115: -520.488757 | AC115: -519.4248347 | AD115: -518.3970078 | AE115: -517.4059744 | AF115: -516.4651755 | AG115: -516.2172052 | AH115: -548.390957 | AI115: -2180.706145 | AJ115: -82875.04208 | AK115: 0 | AL115: 0 | AM115: 0 | AN115: 0 | AO115: 0 | AP115: 0 | AQ115: 0 | AR115: 0 | AS115: 0 | AT115: 0 | AU115: 0 | AV115: 0 | AW115: 0 | AX115: 0 | AY115: 0 | AZ115: 0 | BA115: 0 | BB115: 0 | BC115: 0 | BD115: 0 | BE115: 0 | BF115: 0 | BG115: 0 | BH115: 0 | BI115: 0 | BJ115: 0 | BK115: 0 | BL115: 0 | BM115: 0 | BN115: 0 | BO115: 0 | BP115: 0 | BQ115: 0 | BR115: 0 | BS115: =(BS88-BS105)*$E$115 -> 0 | BT115: 0 | BU115: 0 | BV115: 0 | BW115: 0 | BX115: 0 | BY115: 0 | BZ115: 0 | CA115: 0 | CB115: 0 | CC115: 0 | CD115: 0 | CE115: 0 | CF115: 0 | CG115: 0 | CH115: 0 | CI115: 0 | CJ115: 0 | CK115: 0 | CL115: 0 | CM115: 0 | CN115: 0 | CO115: 0 | CP115: 0 | CQ115: 0 | CR115: 0 | CS115: 0 | CT115: 0 | CU115: 0 | CV115: 0 | CW115: 0 | CX115: 0 | CY115: 0 | CZ115: 0 | DA115: 0 | DB115: 0
D116: Accumulated Deferred Taxes
D117: Net Capital | F117: =F112-F116 -> 400000 | G117: =G112-G116 -> 397798.017 | H117: =H112-H116 -> 395602.9836 | I117: 393414.7838 | J117: 391233.3007 | K117: 389058.4162 | L117: 386890.011 | M117: 384727.9633 | N117: 382572.0721 | O117: 380418.2827 | P117: 378072.1946 | Q117: 375934.3584 | R117: 373802.262 | S117: 371675.7775 | T117: 369554.776 | U117: 367439.127 | V117: 365328.6988 | W117: 363223.3581 | X117: 361122.9701 | Y117: 359027.3987 | Z117: 356936.5059 | AA117: 354850.1526 | AB117: 352768.1975 | AC117: 350690.4982 | AD117: 348616.9102 | AE117: 346547.2863 | AF117: 344481.4256 | AG117: 342416.5567 | AH117: 340222.9929 | AI117: 331500.1683 | AJ117: 0 | AK117: 0 | AL117: 0 | AM117: 0 | AN117: 0 | AO117: 0 | AP117: 0 | AQ117: 0 | AR117: 0 | AS117: 0 | AT117: 0 | AU117: 0 | AV117: 0 | AW117: 0 | AX117: 0 | AY117: 0 | AZ117: 0 | BA117: 0 | BB117: 0 | BC117: 0 | BD117: 0 | BE117: 0 | BF117: 0 | BG117: 0 | BH117: 0 | BI117: 0 | BJ117: 0 | BK117: 0 | BL117: 0 | BM117: 0 | BN117: 0 | BO117: 0 | BP117: 0 | BQ117: 0 | BR117: 0 | BS117: 0 | BT117: =BT112-BT116 -> 0 | BU117: 0 | BV117: 0 | BW117: 0 | BX117: 0 | BY117: 0 | BZ117: 0 | CA117: 0 | CB117: 0 | CC117: 0 | CD117: 0 | CE117: 0 | CF117: 0 | CG117: 0 | CH117: 0 | CI117: 0 | CJ117: 0 | CK117: 0 | CL117: 0 | CM117: 0 | CN117: 0 | CO117: 0 | CP117: 0 | CQ117: 0 | CR117: 0 | CS117: 0 | CT117: 0 | CU117: 0 | CV117: 0 | CW117: 0 | CX117: 0 | CY117: 0 | CZ117: 0 | DA117: 0 | DB117: 0
D119: Debt Balance | E119: =S45 -> 0.75 | F119: =F117*$E$119 -> 300000 | G119: 298348.5127 | H119: 296702.2377 | I119: 295061.0879 | J119: 293424.9755 | K119: 291793.8121 | L119: 290167.5083 | M119: 288545.9725 | N119: 286929.054 | O119: 285313.712 | P119: 283554.1459 | Q119: 281950.7688 | R119: 280351.6965 | S119: 278756.8331 | T119: 277166.082 | U119: 275579.3453 | V119: 273996.5241 | W119: 272417.5186 | X119: 270842.2276 | Y119: 269270.549 | Z119: 267702.3795 | AA119: 266137.6144 | AB119: 264576.1482 | AC119: 263017.8736 | AD119: 261462.6826 | AE119: 259910.4647 | AF119: 258361.0692 | AG119: 256812.4176 | AH119: 255167.2447 | AI119: 248625.1263 | AJ119: 0 | AK119: 0 | AL119: 0 | AM119: 0 | AN119: 0 | AO119: 0 | AP119: 0 | AQ119: 0 | AR119: 0 | AS119: 0 | AT119: 0 | AU119: 0 | AV119: 0 | AW119: 0 | AX119: 0 | AY119: 0 | AZ119: 0 | BA119: 0 | BB119: 0 | BC119: 0 | BD119: 0 | BE119: 0 | BF119: 0 | BG119: 0 | BH119: 0 | BI119: 0 | BJ119: 0 | BK119: 0 | BL119: 0 | BM119: 0 | BN119: 0 | BO119: 0 | BP119: 0 | BQ119: 0 | BR119: =BR117*$E$119 -> 0 | BS119: 0 | BT119: 0 | BU119: 0 | BV119: 0 | BW119: 0 | BX119: 0 | BY119: 0 | BZ119: 0 | CA119: 0 | CB119: 0 | CC119: 0 | CD119: 0 | CE119: 0 | CF119: 0 | CG119: 0 | CH119: 0 | CI119: 0 | CJ119: 0 | CK119: 0 | CL119: 0 | CM119: 0 | CN119: 0 | CO119: 0 | CP119: 0 | CQ119: 0 | CR119: 0 | CS119: 0 | CT119: 0 | CU119: 0 | CV119: 0 | CW119: 0 | CX119: 0 | CY119: 0 | CZ119: 0 | DA119: 0 | DB119: 0
D120: Equity Balance | E120: =S46 -> 0.25 | F120: =F117*$E$120 -> 100000 | G120: 99449.50425 | H120: 98900.7459 | I120: 98353.69596 | J120: 97808.32518 | K120: 97264.60405 | L120: 96722.50276 | M120: 96181.99083 | N120: 95643.01801 | O120: 95104.57067 | P120: 94518.04865 | Q120: 93983.58961 | R120: 93450.5655 | S120: 92918.94438 | T120: 92388.694 | U120: 91859.78176 | V120: 91332.1747 | W120: 90805.83952 | X120: 90280.74253 | Y120: 89756.84967 | Z120: 89234.12649 | AA120: 88712.53814 | AB120: 88192.04938 | AC120: 87672.62455 | AD120: 87154.22754 | AE120: 86636.82157 | AF120: 86120.35639 | AG120: 85604.13919 | AH120: 85055.74823 | AI120: 82875.04208 | AJ120: 0 | AK120: 0 | AL120: 0 | AM120: 0 | AN120: 0 | AO120: 0 | AP120: 0 | AQ120: 0 | AR120: 0 | AS120: 0 | AT120: 0 | AU120: 0 | AV120: 0 | AW120: 0 | AX120: 0 | AY120: 0 | AZ120: 0 | BA120: 0 | BB120: 0 | BC120: 0 | BD120: 0 | BE120: 0 | BF120: 0 | BG120: 0 | BH120: 0 | BI120: 0 | BJ120: 0 | BK120: 0 | BL120: 0 | BM120: 0 | BN120: 0 | BO120: 0 | BP120: 0 | BQ120: 0 | BR120: =BR117*$E$120 -> 0 | BS120: 0 | BT120: 0 | BU120: 0 | BV120: 0 | BW120: 0 | BX120: 0 | BY120: 0 | BZ120: 0 | CA120: 0 | CB120: 0 | CC120: 0 | CD120: 0 | CE120: 0 | CF120: 0 | CG120: 0 | CH120: 0 | CI120: 0 | CJ120: 0 | CK120: 0 | CL120: 0 | CM120: 0 | CN120: 0 | CO120: 0 | CP120: 0 | CQ120: 0 | CR120: 0 | CS120: 0 | CT120: 0 | CU120: 0 | CV120: 0 | CW120: 0 | CX120: 0 | CY120: 0 | CZ120: 0 | DA120: 0 | DB120: 0
D122: Debt Percent | G122: =G119/G117 -> 0.75 | H122: =H119/H117 -> 0.75 | I122: 0.75 | J122: 0.75 | K122: 0.75 | L122: 0.75 | M122: 0.75 | N122: 0.75 | O122: 0.75 | P122: 0.75 | Q122: 0.75 | R122: 0.75 | S122: 0.75 | T122: 0.75 | U122: 0.75 | V122: 0.75 | W122: 0.75 | X122: 0.75 | Y122: 0.75 | Z122: 0.75 | AA122: 0.75 | AB122: 0.75 | AC122: 0.75 | AD122: 0.75 | AE122: 0.75 | AF122: 0.75 | AG122: 0.75 | AH122: 0.75 | AI122: 0.75 | BT122: =BT119/BT117 -> 
D123: Equity Percent | G123: =G120/G117 -> 0.25 | H123: =H120/H117 -> 0.25 | I123: 0.25 | J123: 0.25 | K123: 0.25 | L123: 0.25 | M123: 0.25 | N123: 0.25 | O123: 0.25 | P123: 0.25 | Q123: 0.25 | R123: 0.25 | S123: 0.25 | T123: 0.25 | U123: 0.25 | V123: 0.25 | W123: 0.25 | X123: 0.25 | Y123: 0.25 | Z123: 0.25 | AA123: 0.25 | AB123: 0.25 | AC123: 0.25 | AD123: 0.25 | AE123: 0.25 | AF123: 0.25 | AG123: 0.25 | AH123: 0.25 | AI123: 0.25 | BT123: =BT120/BT117 -> 
C125: Debt Balance
D126: Debt Repayment | G126: =F119-G119 -> 1651.48725 | H126: 1646.275052 | I126: 1641.149819 | J126: 1636.112335 | K126: 1631.163404 | L126: 1626.303875 | M126: 1621.535777 | N126: 1616.918451 | O126: =N119-O119 -> 1615.342021 | P126: 1759.566076 | Q126: 1603.377105 | R126: 1599.072347 | S126: 1594.863356 | T126: 1590.751136 | U126: 1586.73672 | V126: 1582.821163 | W126: 1579.005546 | X126: 1575.290976 | Y126: 1571.678589 | Z126: 1568.169545 | AA126: 1564.765034 | AB126: 1561.466271 | AC126: 1558.274504 | AD126: 1555.191023 | AE126: 1552.217923 | AF126: 1549.395526 | AG126: 1548.651616 | AH126: 1645.172871 | AI126: 6542.118436 | AJ126: 248625.1263 | AK126: 0 | AL126: 0 | AM126: 0 | AN126: 0 | AO126: 0 | AP126: 0 | AQ126: 0 | AR126: 0 | AS126: 0 | AT126: 0 | AU126: 0 | AV126: 0 | AW126: 0 | AX126: 0 | AY126: 0 | AZ126: 0 | BA126: 0 | BB126: 0 | BC126: 0 | BD126: 0 | BE126: 0 | BF126: 0 | BG126: 0 | BH126: 0 | BI126: 0 | BJ126: 0 | BK126: 0 | BL126: 0 | BM126: 0 | BN126: 0 | BO126: 0 | BP126: 0 | BQ126: 0 | BR126: 0 | BS126: =BR119-BS119 -> 0 | BT126: 0 | BU126: 0 | BV126: 0 | BW126: 0 | BX126: 0 | BY126: 0 | BZ126: 0 | CA126: 0 | CB126: 0 | CC126: 0 | CD126: 0 | CE126: 0 | CF126: 0 | CG126: 0 | CH126: 0 | CI126: 0 | CJ126: 0 | CK126: 0 | CL126: 0 | CM126: 0 | CN126: 0 | CO126: 0 | CP126: 0 | CQ126: 0 | CR126: 0 | CS126: 0 | CT126: 0 | CU126: 0 | CV126: 0 | CW126: 0 | CX126: 0 | CY126: 0 | CZ126: 0 | DA126: 0 | DB126: 0
D127: Opening Balance | G127: =F129 -> 300000 | H127: =G129 -> 298348.5127 | I127: 296702.2377 | J127: 295061.0879 | K127: 293424.9755 | L127: 291793.8121 | M127: 290167.5083 | N127: 288545.9725 | O127: =N129 -> 286929.054 | P127: 285313.712 | Q127: 283554.1459 | R127: 281950.7688 | S127: 280351.6965 | T127: 278756.8331 | U127: 277166.082 | V127: 275579.3453 | W127: 273996.5241 | X127: 272417.5186 | Y127: 270842.2276 | Z127: 269270.549 | AA127: 267702.3795 | AB127: 266137.6144 | AC127: 264576.1482 | AD127: 263017.8736 | AE127: 261462.6826 | AF127: 259910.4647 | AG127: 258361.0692 | AH127: 256812.4176 | AI127: 255167.2447 | AJ127: 248625.1263 | AK127: 0 | AL127: 0 | AM127: 0 | AN127: 0 | AO127: 0 | AP127: 0 | AQ127: 0 | AR127: 0 | AS127: 0 | AT127: 0 | AU127: 0 | AV127: 0 | AW127: 0 | AX127: 0 | AY127: 0 | AZ127: 0 | BA127: 0 | BB127: 0 | BC127: 0 | BD127: 0 | BE127: 0 | BF127: 0 | BG127: 0 | BH127: 0 | BI127: 0 | BJ127: 0 | BK127: 0 | BL127: 0 | BM127: 0 | BN127: 0 | BO127: 0 | BP127: 0 | BQ127: 0 | BR127: 0 | BS127: 0 | BT127: =BS129 -> 0 | BU127: 0 | BV127: 0 | BW127: 0 | BX127: 0 | BY127: 0 | BZ127: 0 | CA127: 0 | CB127: 0 | CC127: 0 | CD127: 0 | CE127: 0 | CF127: 0 | CG127: 0 | CH127: 0 | CI127: 0 | CJ127: 0 | CK127: 0 | CL127: 0 | CM127: 0 | CN127: 0 | CO127: 0 | CP127: 0 | CQ127: 0 | CR127: 0 | CS127: 0 | CT127: 0 | CU127: 0 | CV127: 0 | CW127: 0 | CX127: 0 | CY127: 0 | CZ127: 0 | DA127: 0 | DB127: 0
D128: Debt Repayment | G128: =G126 -> 1651.48725 | H128: 1646.275052 | I128: 1641.149819 | J128: 1636.112335 | K128: 1631.163404 | L128: 1626.303875 | M128: 1621.535777 | N128: 1616.918451 | O128: 1615.342021 | P128: 1759.566076 | Q128: 1603.377105 | R128: 1599.072347 | S128: 1594.863356 | T128: 1590.751136 | U128: 1586.73672 | V128: 1582.821163 | W128: 1579.005546 | X128: 1575.290976 | Y128: 1571.678589 | Z128: 1568.169545 | AA128: 1564.765034 | AB128: 1561.466271 | AC128: 1558.274504 | AD128: 1555.191023 | AE128: 1552.217923 | AF128: 1549.395526 | AG128: 1548.651616 | AH128: 1645.172871 | AI128: 6542.118436 | AJ128: 248625.1263 | AK128: 0 | AL128: 0 | AM128: 0 | AN128: 0 | AO128: 0 | AP128: 0 | AQ128: 0 | AR128: 0 | AS128: 0 | AT128: 0 | AU128: 0 | AV128: 0 | AW128: 0 | AX128: 0 | AY128: 0 | AZ128: 0 | BA128: 0 | BB128: 0 | BC128: 0 | BD128: 0 | BE128: 0 | BF128: 0 | BG128: 0 | BH128: 0 | BI128: 0 | BJ128: 0 | BK128: 0 | BL128: 0 | BM128: 0 | BN128: 0 | BO128: 0 | BP128: 0 | BQ128: 0 | BR128: 0 | BS128: =BS126 -> 0 | BT128: 0 | BU128: 0 | BV128: 0 | BW128: 0 | BX128: 0 | BY128: 0 | BZ128: 0 | CA128: 0 | CB128: 0 | CC128: 0 | CD128: 0 | CE128: 0 | CF128: 0 | CG128: 0 | CH128: 0 | CI128: 0 | CJ128: 0 | CK128: 0 | CL128: 0 | CM128: 0 | CN128: 0 | CO128: 0 | CP128: 0 | CQ128: 0 | CR128: 0 | CS128: 0 | CT128: 0 | CU128: 0 | CV128: 0 | CW128: 0 | CX128: 0 | CY128: 0 | CZ128: 0 | DA128: 0 | DB128: 0
D129: Closing Balance | F129: =F119 -> 300000 | G129: =G127-G128 -> 298348.5127 | H129: =H127-H128 -> 296702.2377 | I129: 295061.0879 | J129: 293424.9755 | K129: 291793.8121 | L129: 290167.5083 | M129: 288545.9725 | N129: 286929.054 | O129: 285313.712 | P129: 283554.1459 | Q129: 281950.7688 | R129: 280351.6965 | S129: 278756.8331 | T129: 277166.082 | U129: 275579.3453 | V129: 273996.5241 | W129: 272417.5186 | X129: 270842.2276 | Y129: 269270.549 | Z129: 267702.3795 | AA129: 266137.6144 | AB129: 264576.1482 | AC129: 263017.8736 | AD129: 261462.6826 | AE129: 259910.4647 | AF129: 258361.0692 | AG129: 256812.4176 | AH129: 255167.2447 | AI129: 248625.1263 | AJ129: 0 | AK129: 0 | AL129: 0 | AM129: 0 | AN129: 0 | AO129: 0 | AP129: 0 | AQ129: 0 | AR129: 0 | AS129: 0 | AT129: 0 | AU129: 0 | AV129: 0 | AW129: 0 | AX129: 0 | AY129: 0 | AZ129: 0 | BA129: 0 | BB129: 0 | BC129: 0 | BD129: 0 | BE129: 0 | BF129: 0 | BG129: 0 | BH129: 0 | BI129: 0 | BJ129: 0 | BK129: 0 | BL129: 0 | BM129: 0 | BN129: 0 | BO129: 0 | BP129: 0 | BQ129: 0 | BR129: 0 | BS129: 0 | BT129: =BT127-BT128 -> 0 | BU129: 0 | BV129: 0 | BW129: 0 | BX129: 0 | BY129: 0 | BZ129: 0 | CA129: 0 | CB129: 0 | CC129: 0 | CD129: 0 | CE129: 0 | CF129: 0 | CG129: 0 | CH129: 0 | CI129: 0 | CJ129: 0 | CK129: 0 | CL129: 0 | CM129: 0 | CN129: 0 | CO129: 0 | CP129: 0 | CQ129: 0 | CR129: 0 | CS129: 0 | CT129: 0 | CU129: 0 | CV129: 0 | CW129: 0 | CX129: 0 | CY129: 0 | CZ129: 0 | DA129: 0 | DB129: 0
D130: Interest Expense | E130: =S48 -> 0.01875 | G130: =G127*$E$130 -> 5625 | H130: 5594.034614 | I130: 5563.166957 | J130: 5532.395398 | K130: 5501.718291 | L130: 5471.133978 | M130: 5440.64078 | N130: 5410.236984 | O130: 5379.919763 | P130: 5349.6321 | Q130: 5316.640236 | R130: 5286.576916 | S130: 5256.594309 | T130: 5226.690621 | U130: 5196.864037 | V130: 5167.112724 | W130: 5137.434827 | X130: 5107.828473 | Y130: 5078.291767 | Z130: 5048.822794 | AA130: 5019.419615 | AB130: 4990.08027 | AC130: 4960.802778 | AD130: 4931.585131 | AE130: 4902.425299 | AF130: 4873.321213 | AG130: 4844.270047 | AH130: 4815.232829 | AI130: 4784.385838 | AJ130: 4661.721117 | AK130: 0 | AL130: 0 | AM130: 0 | AN130: 0 | AO130: 0 | AP130: 0 | AQ130: 0 | AR130: 0 | AS130: 0 | AT130: 0 | AU130: 0 | AV130: 0 | AW130: 0 | AX130: 0 | AY130: 0 | AZ130: 0 | BA130: 0 | BB130: 0 | BC130: 0 | BD130: 0 | BE130: 0 | BF130: 0 | BG130: 0 | BH130: 0 | BI130: 0 | BJ130: 0 | BK130: 0 | BL130: 0 | BM130: 0 | BN130: 0 | BO130: 0 | BP130: 0 | BQ130: 0 | BR130: 0 | BS130: =BS127*$E$130 -> 0 | BT130: 0 | BU130: 0 | BV130: 0 | BW130: 0 | BX130: 0 | BY130: 0 | BZ130: 0 | CA130: 0 | CB130: 0 | CC130: 0 | CD130: 0 | CE130: 0 | CF130: 0 | CG130: 0 | CH130: 0 | CI130: 0 | CJ130: 0 | CK130: 0 | CL130: 0 | CM130: 0 | CN130: 0 | CO130: 0 | CP130: 0 | CQ130: 0 | CR130: 0 | CS130: 0 | CT130: 0 | CU130: 0 | CV130: 0 | CW130: 0 | CX130: 0 | CY130: 0 | CZ130: 0 | DA130: 0 | DB130: 0
D132: Equity Cash Flow Check (Equity Chg + Income) | F132: =-F120 -> -100000 | G132: =F120-G120+G108 -> 19359147.8 | H132: =G120-H120+H108 -> 19252577.81 | I132: 19146344.18 | J132: 19040441.31 | K132: 18934863.52 | L132: 18829605.12 | M132: 18724660.32 | N132: 18620023.26 | O132: =N120-O120+O108 -> 18515685.15 | P132: 18411497.38 | Q132: 18297902.88 | R132: 18194437.67 | S132: 18091250.27 | T132: 17988334.51 | U132: 17885684.14 | V132: 17783292.84 | W132: 17681154.25 | X132: 17579261.9 | Y132: 17477609.28 | Z132: 17376189.8 | AA132: 17274996.79 | AB132: 17174023.51 | AC132: 17073263.12 | AD132: 16972708.73 | AE132: 16872353.35 | AF132: 16772189.87 | AG132: 16672209.21 | AH132: 16572308.97 | AI132: 16467780.49 | AJ132: 16126320.7 | AK132: 0 | AL132: 0 | AM132: 0 | AN132: 0 | AO132: 0 | AP132: 0 | AQ132: 0 | AR132: 0 | AS132: 0 | AT132: 0 | AU132: 0 | AV132: 0 | AW132: 0 | AX132: 0 | AY132: 0 | AZ132: 0 | BA132: 0 | BB132: 0 | BC132: 0 | BD132: 0 | BE132: 0 | BF132: 0 | BG132: 0 | BH132: 0 | BI132: 0 | BJ132: 0 | BK132: 0 | BL132: 0 | BM132: 0 | BN132: 0 | BO132: 0 | BP132: 0 | BQ132: 0 | BR132: 0 | BS132: 0 | BT132: =BS120-BT120+BT108 -> 0 | BU132: 0 | BV132: 0 | BW132: 0 | BX132: 0 | BY132: 0 | BZ132: 0 | CA132: 0 | CB132: 0 | CC132: 0 | CD132: 0 | CE132: 0 | CF132: 0 | CG132: 0 | CH132: 0 | CI132: 0 | CJ132: 0 | CK132: 0 | CL132: 0 | CM132: 0 | CN132: 0 | CO132: 0 | CP132: 0 | CQ132: 0 | CR132: 0 | CS132: 0 | CT132: 0 | CU132: 0 | CV132: 0 | CW132: 0 | CX132: 0 | CY132: 0 | CZ132: 0 | DA132: 0 | DB132: 0
D133: Equity IRR Check | F133: =IRR(F132:DB132) -> 193.585973 | G133: =G94 -> 19359147.8 | H133: =H94 -> 19252577.81 | I133: 19146344.18 | J133: 19040441.31 | K133: 18934863.52 | L133: 18829605.12 | M133: 18724660.32 | N133: 18620023.26 | O133: 18515685.15 | P133: 18411497.38 | Q133: 18297902.88 | R133: 18194437.67 | S133: 18091250.27 | T133: 17988334.51 | U133: 17885684.14 | V133: 17783292.84 | W133: 17681154.25 | X133: 17579261.9 | Y133: 17477609.28 | Z133: 17376189.8 | AA133: 17274996.79 | AB133: 17174023.51 | AC133: 17073263.12 | AD133: 16972708.73 | AE133: 16872353.35 | AF133: 16772189.87 | AG133: 16672209.21 | AH133: 16572308.97 | AI133: 16467780.49 | AJ133: 16126320.7 | AK133: 0 | AL133: 0 | AM133: 0 | AN133: 0 | AO133: 0 | AP133: 0 | AQ133: 0 | AR133: 0 | AS133: 0 | AT133: 0 | AU133: 0 | AV133: 0 | AW133: 0 | AX133: 0 | AY133: 0 | AZ133: 0 | BA133: 0 | BB133: 0 | BC133: 0 | BD133: 0 | BE133: 0 | BF133: 0 | BG133: 0 | BH133: 0 | BI133: 0 | BJ133: 0 | BK133: 0 | BL133: 0 | BM133: 0 | BN133: 0 | BO133: 0 | BP133: 0 | BQ133: 0 | BR133: 0 | BS133: 0 | BT133: =BT94 -> 0 | BU133: 0 | BV133: 0 | BW133: 0 | BX133: 0 | BY133: 0 | BZ133: 0 | CA133: 0 | CB133: 0 | CC133: 0 | CD133: 0 | CE133: 0 | CF133: 0 | CG133: 0 | CH133: 0 | CI133: 0 | CJ133: 0 | CK133: 0 | CL133: 0 | CM133: 0 | CN133: 0 | CO133: 0 | CP133: 0 | CQ133: 0 | CR133: 0 | CS133: 0 | CT133: 0 | CU133: 0 | CV133: 0 | CW133: 0 | CX133: 0 | CY133: 0 | CZ133: 0 | DA133: 0 | DB133: 0
D134: Check | F134: =ROUND(F133-H95,3)=0 -> FALSE | G134: =G133-G132 -> 0 | H134: =H133-H132 -> 0 | I134: 0 | J134: 0 | K134: 0 | L134: 0 | M134: 0 | N134: 0 | O134: 0 | P134: 0 | Q134: 0 | R134: 0 | S134: 0 | T134: 0 | U134: 0 | V134: 0 | W134: 0 | X134: 0 | Y134: 0 | Z134: 0 | AA134: 0 | AB134: 0 | AC134: 0 | AD134: 0 | AE134: 0 | AF134: 0 | AG134: 0 | AH134: 0 | AI134: 0 | AJ134: 0 | AK134: 0 | AL134: 0 | AM134: 0 | AN134: 0 | AO134: 0 | AP134: 0 | AQ134: 0 | AR134: 0 | AS134: 0 | AT134: 0 | AU134: 0 | AV134: 0 | AW134: 0 | AX134: 0 | AY134: 0 | AZ134: 0 | BA134: 0 | BB134: 0 | BC134: 0 | BD134: 0 | BE134: 0 | BF134: 0 | BG134: 0 | BH134: 0 | BI134: 0 | BJ134: 0 | BK134: 0 | BL134: 0 | BM134: 0 | BN134: 0 | BO134: 0 | BP134: 0 | BQ134: 0 | BR134: 0 | BS134: 0 | BT134: =BT133-BT132 -> 0 | BU134: 0 | BV134: 0 | BW134: 0 | BX134: 0 | BY134: 0 | BZ134: 0 | CA134: 0 | CB134: 0 | CC134: 0 | CD134: 0 | CE134: 0 | CF134: 0 | CG134: 0 | CH134: 0 | CI134: 0 | CJ134: 0 | CK134: 0 | CL134: 0 | CM134: 0 | CN134: 0 | CO134: 0 | CP134: 0 | CQ134: 0 | CR134: 0 | CS134: 0 | CT134: 0 | CU134: 0 | CV134: 0 | CW134: 0 | CX134: 0 | CY134: 0 | CZ134: 0 | DA134: 0 | DB134: 0
B136: Financial Model in Real Terms with Inflating Price
D137: Index | F137: 1 | G137: =F137*(1+$S$43) -> 1.02 | H137: 1.0404 | I137: 1.061208 | J137: 1.08243216 | K137: 1.104080803 | L137: 1.126162419 | M137: 1.148685668 | N137: 1.171659381 | O137: 1.195092569 | P137: 1.21899442 | Q137: 1.243374308 | R137: 1.268241795 | S137: 1.29360663 | T137: 1.319478763 | U137: 1.345868338 | V137: 1.372785705 | W137: 1.400241419 | X137: 1.428246248 | Y137: 1.456811173 | Z137: 1.485947396 | AA137: 1.515666344 | AB137: 1.545979671 | AC137: 1.576899264 | AD137: 1.608437249 | AE137: 1.640605994 | AF137: 1.673418114 | AG137: 1.706886477 | AH137: 1.741024206 | AI137: 1.77584469 | AJ137: 1.811361584 | AK137: 1.847588816 | AL137: 1.884540592 | AM137: 1.922231404 | AN137: 1.960676032 | AO137: 1.999889553 | AP137: 2.039887344 | AQ137: 2.080685091 | AR137: 2.122298792 | AS137: 2.164744768 | AT137: 2.208039664 | AU137: 2.252200457 | AV137: 2.297244466 | AW137: 2.343189355 | AX137: 2.390053142 | AY137: 2.437854205 | AZ137: 2.486611289 | BA137: 2.536343515 | BB137: 2.587070385 | BC137: 2.638811793 | BD137: 2.691588029 | BE137: 2.74541979 | BF137: 2.800328185 | BG137: 2.856334749 | BH137: 2.913461444 | BI137: 2.971730673 | BJ137: 3.031165286 | BK137: 3.091788592 | BL137: 3.153624364 | BM137: 3.216696851 | BN137: 3.281030788 | BO137: 3.346651404 | BP137: 3.413584432 | BQ137: 3.481856121 | BR137: 3.551493243 | BS137: =BR137*(1+$S$43) -> 3.622523108 | BT137: 3.69497357 | BU137: 3.768873042 | BV137: 3.844250503 | BW137: 3.921135513 | BX137: 3.999558223 | BY137: 4.079549387 | BZ137: 4.161140375 | CA137: 4.244363183 | CB137: 4.329250446 | CC137: 4.415835455 | CD137: 4.504152164 | CE137: 4.594235208 | CF137: 4.686119912 | CG137: 4.77984231 | CH137: 4.875439156 | CI137: 4.972947939 | CJ137: 5.072406898 | CK137: 5.173855036 | CL137: 5.277332137 | CM137: 5.382878779 | CN137: 5.490536355 | CO137: 5.600347082 | CP137: 5.712354024 | CQ137: 5.826601104 | CR137: 5.943133126 | CS137: 6.061995789 | CT137: 6.183235705 | CU137: 6.306900419 | CV137: 6.433038427 | CW137: 6.561699196 | CX137: 6.69293318 | CY137: 6.826791843 | CZ137: 6.96332768 | DA137: 7.102594234 | DB137: 7.244646118
D138: Initial Price | E138: =S73 -> 2379.4141 | G138: =$E$138*G78 -> 2379.4141 | H138: 2379.4141 | I138: 2379.4141 | J138: 2379.4141 | K138: 2379.4141 | L138: 2379.4141 | M138: 2379.4141 | N138: 2379.4141 | O138: 2379.4141 | P138: 2379.4141 | Q138: 2379.4141 | R138: 2379.4141 | S138: 2379.4141 | T138: 2379.4141 | U138: 2379.4141 | V138: 2379.4141 | W138: 2379.4141 | X138: 2379.4141 | Y138: 2379.4141 | Z138: 2379.4141 | AA138: 2379.4141 | AB138: 2379.4141 | AC138: 2379.4141 | AD138: 2379.4141 | AE138: 2379.4141 | AF138: 2379.4141 | AG138: 2379.4141 | AH138: 2379.4141 | AI138: 2379.4141 | AJ138: 2379.4141 | AK138: 0 | AL138: 0 | AM138: 0 | AN138: 0 | AO138: 0 | AP138: 0 | AQ138: 0 | AR138: 0 | AS138: 0 | AT138: 0 | AU138: 0 | AV138: 0 | AW138: 0 | AX138: 0 | AY138: 0 | AZ138: 0 | BA138: 0 | BB138: 0 | BC138: 0 | BD138: 0 | BE138: 0 | BF138: 0 | BG138: 0 | BH138: 0 | BI138: 0 | BJ138: 0 | BK138: 0 | BL138: 0 | BM138: 0 | BN138: 0 | BO138: 0 | BP138: 0 | BQ138: 0 | BR138: 0 | BS138: =$E$138*BS78 -> 0 | BT138: 0 | BU138: 0 | BV138: 0 | BW138: 0 | BX138: 0 | BY138: 0 | BZ138: 0 | CA138: 0 | CB138: 0 | CC138: 0 | CD138: 0 | CE138: 0 | CF138: 0 | CG138: 0 | CH138: 0 | CI138: 0 | CJ138: 0 | CK138: 0 | CL138: 0 | CM138: 0 | CN138: 0 | CO138: 0 | CP138: 0 | CQ138: 0 | CR138: 0 | CS138: 0 | CT138: 0 | CU138: 0 | CV138: 0 | CW138: 0 | CX138: 0 | CY138: 0 | CZ138: 0 | DA138: 0 | DB138: 0
D139: Price | G139: =G138*G137 -> 2427.002382 | H139: =H138*H137 -> 2475.542429 | I139: 2525.053278 | J139: 2575.554344 | K139: 2627.06543 | L139: 2679.606739 | M139: 2733.198874 | N139: 2787.862851 | O139: 2843.620108 | P139: 2900.49251 | Q139: 2958.502361 | R139: 3017.672408 | S139: 3078.025856 | T139: 3139.586373 | U139: 3202.378101 | V139: 3266.425663 | W139: 3331.754176 | X139: 3398.389259 | Y139: 3466.357045 | Z139: 3535.684185 | AA139: 3606.397869 | AB139: 3678.525827 | AC139: 3752.096343 | AD139: 3827.13827 | AE139: 3903.681035 | AF139: 3981.754656 | AG139: 4061.389749 | AH139: 4142.617544 | AI139: 4225.469895 | AJ139: 4309.979293 | AK139: 0 | AL139: 0 | AM139: 0 | AN139: 0 | AO139: 0 | AP139: 0 | AQ139: 0 | AR139: 0 | AS139: 0 | AT139: 0 | AU139: 0 | AV139: 0 | AW139: 0 | AX139: 0 | AY139: 0 | AZ139: 0 | BA139: 0 | BB139: 0 | BC139: 0 | BD139: 0 | BE139: 0 | BF139: 0 | BG139: 0 | BH139: 0 | BI139: 0 | BJ139: 0 | BK139: 0 | BL139: 0 | BM139: 0 | BN139: 0 | BO139: 0 | BP139: 0 | BQ139: 0 | BR139: 0 | BS139: 0 | BT139: =BT138*BT137 -> 0 | BU139: 0 | BV139: 0 | BW139: 0 | BX139: 0 | BY139: 0 | BZ139: 0 | CA139: 0 | CB139: 0 | CC139: 0 | CD139: 0 | CE139: 0 | CF139: 0 | CG139: 0 | CH139: 0 | CI139: 0 | CJ139: 0 | CK139: 0 | CL139: 0 | CM139: 0 | CN139: 0 | CO139: 0 | CP139: 0 | CQ139: 0 | CR139: 0 | CS139: 0 | CT139: 0 | CU139: 0 | CV139: 0 | CW139: 0 | CX139: 0 | CY139: 0 | CZ139: 0 | DA139: 0 | DB139: 0
D140: Generation | E140: =S17 -> 8503.02 | G140: =G83 -> 8460.5049 | H140: 8418.202376 | I140: 8376.111364 | J140: 8334.230807 | K140: 8292.559653 | L140: 8251.096855 | M140: 8209.84137 | N140: 8168.792163 | O140: 8127.948203 | P140: 8087.308462 | Q140: 8046.871919 | R140: 8006.63756 | S140: 7966.604372 | T140: 7926.77135 | U140: 7887.137493 | V140: 7847.701806 | W140: 7808.463297 | X140: 7769.42098 | Y140: 7730.573875 | Z140: 7691.921006 | AA140: 7653.461401 | AB140: 7615.194094 | AC140: 7577.118123 | AD140: 7539.232533 | AE140: 7501.53637 | AF140: 7464.028688 | AG140: 7426.708545 | AH140: 7389.575002 | AI140: 7352.627127 | AJ140: 7315.863992 | AK140: 0 | AL140: 0 | AM140: 0 | AN140: 0 | AO140: 0 | AP140: 0 | AQ140: 0 | AR140: 0 | AS140: 0 | AT140: 0 | AU140: 0 | AV140: 0 | AW140: 0 | AX140: 0 | AY140: 0 | AZ140: 0 | BA140: 0 | BB140: 0 | BC140: 0 | BD140: 0 | BE140: 0 | BF140: 0 | BG140: 0 | BH140: 0 | BI140: 0 | BJ140: 0 | BK140: 0 | BL140: 0 | BM140: 0 | BN140: 0 | BO140: 0 | BP140: 0 | BQ140: 0 | BR140: 0 | BS140: =BS83 -> 0 | BT140: 0 | BU140: 0 | BV140: 0 | BW140: 0 | BX140: 0 | BY140: 0 | BZ140: 0 | CA140: 0 | CB140: 0 | CC140: 0 | CD140: 0 | CE140: 0 | CF140: 0 | CG140: 0 | CH140: 0 | CI140: 0 | CJ140: 0 | CK140: 0 | CL140: 0 | CM140: 0 | CN140: 0 | CO140: 0 | CP140: 0 | CQ140: 0 | CR140: 0 | CS140: 0 | CT140: 0 | CU140: 0 | CV140: 0 | CW140: 0 | CX140: 0 | CY140: 0 | CZ140: 0 | DA140: 0 | DB140: 0
D141: Revenues (USD) | G141: =G139*G140 -> 20533665.54 | H141: =H139*H140 -> 20839617.16 | I141: 21150127.46 | J141: 21465264.35 | K141: 21785096.79 | L141: 22109694.74 | M141: 22439129.19 | N141: 22773472.21 | O141: 23112796.95 | P141: 23457177.62 | Q141: 23806689.57 | R141: 24161409.24 | S141: 24521414.24 | T141: 24886783.31 | U141: 25257596.38 | V141: 25633934.57 | W141: 26015880.2 | X141: 26403516.81 | Y141: 26796929.21 | Z141: 27196203.46 | AA141: 27601426.89 | AB141: 28012688.15 | AC141: 28430077.2 | AD141: 28853685.35 | AE141: 29283605.26 | AF141: 29719930.98 | AG141: 30162757.95 | AH141: 30612183.05 | AI141: 31068304.58 | AJ141: 31531222.31 | AK141: 0 | AL141: 0 | AM141: 0 | AN141: 0 | AO141: 0 | AP141: 0 | AQ141: 0 | AR141: 0 | AS141: 0 | AT141: 0 | AU141: 0 | AV141: 0 | AW141: 0 | AX141: 0 | AY141: 0 | AZ141: 0 | BA141: 0 | BB141: 0 | BC141: 0 | BD141: 0 | BE141: 0 | BF141: 0 | BG141: 0 | BH141: 0 | BI141: 0 | BJ141: 0 | BK141: 0 | BL141: 0 | BM141: 0 | BN141: 0 | BO141: 0 | BP141: 0 | BQ141: 0 | BR141: 0 | BS141: 0 | BT141: =BT139*BT140 -> 0 | BU141: 0 | BV141: 0 | BW141: 0 | BX141: 0 | BY141: 0 | BZ141: 0 | CA141: 0 | CB141: 0 | CC141: 0 | CD141: 0 | CE141: 0 | CF141: 0 | CG141: 0 | CH141: 0 | CI141: 0 | CJ141: 0 | CK141: 0 | CL141: 0 | CM141: 0 | CN141: 0 | CO141: 0 | CP141: 0 | CQ141: 0 | CR141: 0 | CS141: 0 | CT141: 0 | CU141: 0 | CV141: 0 | CW141: 0 | CX141: 0 | CY141: 0 | CZ141: 0 | DA141: 0 | DB141: 0
D142: Operating Cost | E142: =E86 -> 513675.764 | G142: =G86 -> 523949.2793 | H142: 534428.2649 | I142: 545116.8302 | J142: 556019.1668 | K142: 567139.5501 | L142: 578482.3411 | M142: 590051.9879 | N142: 601853.0277 | O142: 613890.0882 | P142: 626167.89 | Q142: 638691.2478 | R142: 651465.0728 | S142: 664494.3742 | T142: 677784.2617 | U142: 691339.9469 | V142: 705166.7459 | W142: 719270.0808 | X142: 733655.4824 | Y142: 748328.5921 | Z142: 763295.1639 | AA142: 778561.0672 | AB142: 794132.2885 | AC142: 810014.9343 | AD142: 826215.233 | AE142: 842739.5376 | AF142: 859594.3284 | AG142: 876786.2149 | AH142: 894321.9392 | AI142: 912208.378 | AJ142: 930452.5456 | AK142: 0 | AL142: 0 | AM142: 0 | AN142: 0 | AO142: 0 | AP142: 0 | AQ142: 0 | AR142: 0 | AS142: 0 | AT142: 0 | AU142: 0 | AV142: 0 | AW142: 0 | AX142: 0 | AY142: 0 | AZ142: 0 | BA142: 0 | BB142: 0 | BC142: 0 | BD142: 0 | BE142: 0 | BF142: 0 | BG142: 0 | BH142: 0 | BI142: 0 | BJ142: 0 | BK142: 0 | BL142: 0 | BM142: 0 | BN142: 0 | BO142: 0 | BP142: 0 | BQ142: 0 | BR142: 0 | BS142: =BS86 -> 0 | BT142: 0 | BU142: 0 | BV142: 0 | BW142: 0 | BX142: 0 | BY142: 0 | BZ142: 0 | CA142: 0 | CB142: 0 | CC142: 0 | CD142: 0 | CE142: 0 | CF142: 0 | CG142: 0 | CH142: 0 | CI142: 0 | CJ142: 0 | CK142: 0 | CL142: 0 | CM142: 0 | CN142: 0 | CO142: 0 | CP142: 0 | CQ142: 0 | CR142: 0 | CS142: 0 | CT142: 0 | CU142: 0 | CV142: 0 | CW142: 0 | CX142: 0 | CY142: 0 | CZ142: 0 | DA142: 0 | DB142: 0
D143: EBITDA | G143: =G141-G142 -> 20009716.26 | H143: 20305188.89 | I143: 20605010.63 | J143: 20909245.19 | K143: 21217957.24 | L143: 21531212.39 | M143: 21849077.2 | N143: 22171619.18 | O143: 22498906.86 | P143: 22831009.73 | Q143: 23167998.32 | R143: 23509944.17 | S143: 23856919.87 | T143: 24208999.05 | U143: 24566256.44 | V143: 24928767.83 | W143: 25296610.12 | X143: 25669861.33 | Y143: 26048600.62 | Z143: 26432908.29 | AA143: 26822865.82 | AB143: 27218555.86 | AC143: 27620062.27 | AD143: 28027470.12 | AE143: 28440865.73 | AF143: 28860336.65 | AG143: 29285971.74 | AH143: 29717861.11 | AI143: 30156096.2 | AJ143: 30600769.77 | AK143: 0 | AL143: 0 | AM143: 0 | AN143: 0 | AO143: 0 | AP143: 0 | AQ143: 0 | AR143: 0 | AS143: 0 | AT143: 0 | AU143: 0 | AV143: 0 | AW143: 0 | AX143: 0 | AY143: 0 | AZ143: 0 | BA143: 0 | BB143: 0 | BC143: 0 | BD143: 0 | BE143: 0 | BF143: 0 | BG143: 0 | BH143: 0 | BI143: 0 | BJ143: 0 | BK143: 0 | BL143: 0 | BM143: 0 | BN143: 0 | BO143: 0 | BP143: 0 | BQ143: 0 | BR143: 0 | BS143: =BS141-BS142 -> 0 | BT143: 0 | BU143: 0 | BV143: 0 | BW143: 0 | BX143: 0 | BY143: 0 | BZ143: 0 | CA143: 0 | CB143: 0 | CC143: 0 | CD143: 0 | CE143: 0 | CF143: 0 | CG143: 0 | CH143: 0 | CI143: 0 | CJ143: 0 | CK143: 0 | CL143: 0 | CM143: 0 | CN143: 0 | CO143: 0 | CP143: 0 | CQ143: 0 | CR143: 0 | CS143: 0 | CT143: 0 | CU143: 0 | CV143: 0 | CW143: 0 | CX143: 0 | CY143: 0 | CZ143: 0 | DA143: 0 | DB143: 0
D144: Depreciation | E144: =G13 -> 400000 | G144: =$E$144*G211 -> 40000 | H144: 40000 | I144: 40000 | J144: 40000 | K144: 40000 | L144: 40000 | M144: 40000 | N144: 40000 | O144: 40000 | P144: 40000 | Q144: 0 | R144: 0 | S144: 0 | T144: 0 | U144: 0 | V144: 0 | W144: 0 | X144: 0 | Y144: 0 | Z144: 0 | AA144: 0 | AB144: 0 | AC144: 0 | AD144: 0 | AE144: 0 | AF144: 0 | AG144: 0 | AH144: 0 | AI144: 0 | AJ144: 0 | AK144: 0 | AL144: 0 | AM144: =$E$144*AM211 -> 0 | AN144: 0 | AO144: 0 | AP144: 0 | AQ144: 0 | AR144: 0 | AS144: 0 | AT144: 0 | AU144: 0 | AV144: 0 | AW144: 0 | AX144: 0 | AY144: 0 | AZ144: 0 | BA144: 0 | BB144: 0 | BC144: 0 | BD144: 0 | BE144: 0 | BF144: 0 | BG144: 0 | BH144: 0 | BI144: 0 | BJ144: 0 | BK144: 0 | BL144: 0 | BM144: 0 | BN144: 0 | BO144: 0 | BP144: 0 | BQ144: 0 | BR144: 0 | BS144: =$E$144*BS211 -> 0 | BT144: 0 | BU144: 0 | BV144: 0 | BW144: 0 | BX144: 0 | BY144: 0 | BZ144: 0 | CA144: 0 | CB144: 0 | CC144: 0 | CD144: 0 | CE144: 0 | CF144: 0 | CG144: 0 | CH144: 0 | CI144: 0 | CJ144: 0 | CK144: 0 | CL144: 0 | CM144: 0 | CN144: 0 | CO144: 0 | CP144: 0 | CQ144: 0 | CR144: 0 | CS144: 0 | CT144: 0 | CU144: 0 | CV144: 0 | CW144: 0 | CX144: 0 | CY144: 0 | CZ144: 0 | DA144: 0 | DB144: 0
